Workbook

Sheet PI vs x
A1: Measurement | B1: Hall
A2: Type | B2: Off-axis
A4: Project | B4: ='10 y=-0.2'!B5 -> 504314
A5: PS serial no | B5: ='10 y=-0.2'!B7 -> 2410110
A7: Measurement date | B7: =LEFT('10 y=-0.2'!B4,10) -> 02-10-2024
C11: Nominal gap [mm] | D11: Encoder [counts] | E11: Encoder [mm] | F11: PI [T^2mm^3] | G11: y [mm] | H11: Encoder value at 10 mm gap:
B12: ='PI vs x'!$C$12 & "mm gap" -> 10mm gap | C12: ='10 y=-0.2'!B48 -> 10 | D12: ='10 y=-0.2'!$B$50 -> 19.7503 | E12: =D12-$H$12+10 -> 10 | F12: ='10 y=-0.2'!$K$3 -> 10659.93168 | G12: -0.2 | H12: 19.7503
C13: =C12 -> 10 | D13: ='10 y=-0.1'!$B$50 -> 19.7503 | E13: =D13-$H$12+10 -> 10 | F13: ='10 y=-0.1'!$K$3 -> 10659.02385 | G13: -0.1
C14: =C13 -> 10 | D14: ='10 y=0'!$B$50 -> 19.7503 | E14: 10 | F14: ='10 y=0'!$K$3 -> 10657.22304 | G14: 0
C15: 10 | D15: ='10 y=0.1'!$B$50 -> 19.7503 | E15: 10 | F15: ='10 y=0.1'!$K$3 -> 10656.88736 | G15: 0.1
C16: 10 | D16: ='10 y=0.2'!$B$50 -> 19.7503 | E16: 10 | F16: ='10 y=0.2'!$K$3 -> 10659.7751 | G16: 0.2
B17: ='PI vs x'!$C$17 & "mm gap" -> mm gap

Sheet 10 y=-0.2
A1: =IF('DF raw data'!A1="","",'DF raw data'!A1) -> Number of header lines | B1: =IF('DF raw data'!B1="","",'DF raw data'!B1) -> 54 | C1: =IF('DF raw data'!C1="","",'DF raw data'!C1) ->  | D1: =IF('DF raw data'!D1="","",'DF raw data'!D1) ->  | F1: T_coeff | G1: -0.001 | H1: /degC | J1: IBy total | K1: =J1262*1000 -> -11.36112901 | L1: muTm | M1: =L1262*1000 -> 52.49045473 | R1: DF ref | S1: 1
A2: =IF('DF raw data'!A2="","",'DF raw data'!A2) -> Measured by | B2: =IF('DF raw data'!B2="","",'DF raw data'!B2) -> Danfysik | C2: =IF('DF raw data'!C2="","",'DF raw data'!C2) ->  | D2: =IF('DF raw data'!D2="","",'DF raw data'!D2) ->  | F2: Tcorr | G2: 20 | H2: degC | J2: JBy total | K2: =K1262 -> -14.61227667 | L2: muTm^2 | M2: =M1262 -> 18.30200357
A3: =IF('DF raw data'!A3="","",'DF raw data'!A3) -> Operator | B3: =IF('DF raw data'!B3="","",'DF raw data'!B3) -> PMHA | C3: =IF('DF raw data'!C3="","",'DF raw data'!C3) ->  | D3: =IF('DF raw data'!D3="","",'DF raw data'!D3) ->  | F3: Step | G3: =A63-A62 -> 0.5 | H3: mm | J3: PI total | K3: =N1262 -> 10659.93168 | L3: T^2mm^3
A4: =IF('DF raw data'!A4="","",'DF raw data'!A4) -> Data-time | B4: =IF('DF raw data'!B4="","",'DF raw data'!B4) -> 02-10-2024, 21:38:29 | C4: =IF('DF raw data'!C4="","",'DF raw data'!C4) ->  | D4: =IF('DF raw data'!D4="","",'DF raw data'!D4) -> 
A5: =IF('DF raw data'!A5="","",'DF raw data'!A5) -> Project | B5: =IF('DF raw data'!B5="","",'DF raw data'!B5) -> 504314 | C5: =IF('DF raw data'!C5="","",'DF raw data'!C5) ->  | D5: =IF('DF raw data'!D5="","",'DF raw data'!D5) -> 
A6: =IF('DF raw data'!A6="","",'DF raw data'!A6) -> Magnet type | B6: =IF('DF raw data'!B6="","",'DF raw data'!B6) -> Dipole | C6: =IF('DF raw data'!C6="","",'DF raw data'!C6) ->  | D6: =IF('DF raw data'!D6="","",'DF raw data'!D6) -> 
A7: =IF('DF raw data'!A7="","",'DF raw data'!A7) -> Magnet nr. | B7: =IF('DF raw data'!B7="","",'DF raw data'!B7) -> 2410110 | C7: =IF('DF raw data'!C7="","",'DF raw data'!C7) ->  | D7: =IF('DF raw data'!D7="","",'DF raw data'!D7) -> 
A8: =IF('DF raw data'!A8="","",'DF raw data'!A8) -> Meas. number | B8: =IF('DF raw data'!B8="","",'DF raw data'!B8) -> 994 | C8: =IF('DF raw data'!C8="","",'DF raw data'!C8) ->  | D8: =IF('DF raw data'!D8="","",'DF raw data'!D8) -> 
A9: =IF('DF raw data'!A9="","",'DF raw data'!A9) -> Add. info | B9: =IF('DF raw data'!B9="","",'DF raw data'!B9) -> Y-alignment scan 1) | C9: =IF('DF raw data'!C9="","",'DF raw data'!C9) ->  | D9: =IF('DF raw data'!D9="","",'DF raw data'!D9) -> 
A10: =IF('DF raw data'!A10="","",'DF raw data'!A10) -> Device | B10: =IF('DF raw data'!B10="","",'DF raw data'!B10) -> (HAL) HALL-PROBE | C10: =IF('DF raw data'!C10="","",'DF raw data'!C10) ->  | D10: =IF('DF raw data'!D10="","",'DF raw data'!D10) -> 
A11: =IF('DF raw data'!A11="","",'DF raw data'!A11) -> Goal | B11: =IF('DF raw data'!B11="","",'DF raw data'!B11) -> (AXI) AXis Integral (Line, EFB) | C11: =IF('DF raw data'!C11="","",'DF raw data'!C11) ->  | D11: =IF('DF raw data'!D11="","",'DF raw data'!D11) -> 
A12: =IF('DF raw data'!A12="","",'DF raw data'!A12) -> Power supply mode | B12: =IF('DF raw data'!B12="","",'DF raw data'!B12) -> (PM) Permanent Magnet (no MPS in use) | C12: =IF('DF raw data'!C12="","",'DF raw data'!C12) ->  | D12: =IF('DF raw data'!D12="","",'DF raw data'!D12) -> 
A13: =IF('DF raw data'!A13="","",'DF raw data'!A13) -> Data format | B13: =IF('DF raw data'!B13="","",'DF raw data'!B13) -> Raw data text file | C13: =IF('DF raw data'!C13="","",'DF raw data'!C13) ->  | D13: =IF('DF raw data'!D13="","",'DF raw data'!D13) -> 
A14: =IF('DF raw data'!A14="","",'DF raw data'!A14) -> Direction of the pos. x-axis | B14: =IF('DF raw data'!B14="","",'DF raw data'!B14) -> See test program | C14: =IF('DF raw data'!C14="","",'DF raw data'!C14) ->  | D14: =IF('DF raw data'!D14="","",'DF raw data'!D14) -> 
A15: =IF('DF raw data'!A15="","",'DF raw data'!A15) -> Direction of the pos. y-axis | B15: =IF('DF raw data'!B15="","",'DF raw data'!B15) -> Vertical up | C15: =IF('DF raw data'!C15="","",'DF raw data'!C15) ->  | D15: =IF('DF raw data'!D15="","",'DF raw data'!D15) -> 
A16: =IF('DF raw data'!A16="","",'DF raw data'!A16) -> Direction of the pos. z-axis | B16: =IF('DF raw data'!B16="","",'DF raw data'!B16) -> See test program | C16: =IF('DF raw data'!C16="","",'DF raw data'!C16) ->  | D16: =IF('DF raw data'!D16="","",'DF raw data'!D16) -> 
A17: =IF('DF raw data'!A17="","",'DF raw data'!A17) -> Mapper type | B17: =IF('DF raw data'!B17="","",'DF raw data'!B17) -> Precision Hall Mapper | C17: =IF('DF raw data'!C17="","",'DF raw data'!C17) ->  | D17: =IF('DF raw data'!D17="","",'DF raw data'!D17) -> 
A18: =IF('DF raw data'!A18="","",'DF raw data'!A18) -> Mapper Danfysik Reg. Number | B18: =IF('DF raw data'!B18="","",'DF raw data'!B18) -> 2033-D (mapper 1) | C18: =IF('DF raw data'!C18="","",'DF raw data'!C18) ->  | D18: =IF('DF raw data'!D18="","",'DF raw data'!D18) -> 
A19: =IF('DF raw data'!A19="","",'DF raw data'!A19) -> Measurement consept | B19: =IF('DF raw data'!B19="","",'DF raw data'!B19) -> Square line grid | C19: =IF('DF raw data'!C19="","",'DF raw data'!C19) ->  | D19: =IF('DF raw data'!D19="","",'DF raw data'!D19) -> 
A20: =IF('DF raw data'!A20="","",'DF raw data'!A20) -> Mode | B20: =IF('DF raw data'!B20="","",'DF raw data'!B20) -> On-the-fly measurement | C20: =IF('DF raw data'!C20="","",'DF raw data'!C20) ->  | D20: =IF('DF raw data'!D20="","",'DF raw data'!D20) -> 
A21: =IF('DF raw data'!A21="","",'DF raw data'!A21) ->  | B21: =IF('DF raw data'!B21="","",'DF raw data'!B21) ->  | C21: =IF('DF raw data'!C21="","",'DF raw data'!C21) ->  | D21: =IF('DF raw data'!D21="","",'DF raw data'!D21) -> 
A22: =IF('DF raw data'!A22="","",'DF raw data'!A22) -> Probe Name | B22: =IF('DF raw data'!B22="","",'DF raw data'!B22) -> ID12_By | C22: =IF('DF raw data'!C22="","",'DF raw data'!C22) ->  | D22: =IF('DF raw data'!D22="","",'DF raw data'!D22) -> 
A23: =IF('DF raw data'!A23="","",'DF raw data'!A23) -> Probe Type | B23: =IF('DF raw data'!B23="","",'DF raw data'!B23) -> DF_ID_3D_Bxyz | C23: =IF('DF raw data'!C23="","",'DF raw data'!C23) ->  | D23: =IF('DF raw data'!D23="","",'DF raw data'!D23) -> 
A24: =IF('DF raw data'!A24="","",'DF raw data'!A24) -> Probe Danfysik Reg. Number | B24: =IF('DF raw data'!B24="","",'DF raw data'!B24) -> 2277 | C24: =IF('DF raw data'!C24="","",'DF raw data'!C24) ->  | D24: =IF('DF raw data'!D24="","",'DF raw data'!D24) -> 
A25: =IF('DF raw data'!A25="","",'DF raw data'!A25) -> Probe Axis | B25: =IF('DF raw data'!B25="","",'DF raw data'!B25) -> By | C25: =IF('DF raw data'!C25="","",'DF raw data'!C25) ->  | D25: =IF('DF raw data'!D25="","",'DF raw data'!D25) -> 
A26: =IF('DF raw data'!A26="","",'DF raw data'!A26) -> Probe Current Supply | B26: =IF('DF raw data'!B26="","",'DF raw data'!B26) -> 1825-D | C26: =IF('DF raw data'!C26="","",'DF raw data'!C26) ->  | D26: =IF('DF raw data'!D26="","",'DF raw data'!D26) -> 
A27: =IF('DF raw data'!A27="","",'DF raw data'!A27) -> Probe Gain Correction | B27: =IF('DF raw data'!B27="","",'DF raw data'!B27) -> 0.99615 | C27: =IF('DF raw data'!C27="","",'DF raw data'!C27) ->  | D27: =IF('DF raw data'!D27="","",'DF raw data'!D27) -> 
A28: =IF('DF raw data'!A28="","",'DF raw data'!A28) -> Probe Offset Correction | B28: =IF('DF raw data'!B28="","",'DF raw data'!B28) -> 0.0027536 | C28: =IF('DF raw data'!C28="","",'DF raw data'!C28) ->  | D28: =IF('DF raw data'!D28="","",'DF raw data'!D28) -> 
A29: =IF('DF raw data'!A29="","",'DF raw data'!A29) -> DVM Number | B29: =IF('DF raw data'!B29="","",'DF raw data'!B29) -> 2 | C29: =IF('DF raw data'!C29="","",'DF raw data'!C29) ->  | D29: =IF('DF raw data'!D29="","",'DF raw data'!D29) -> 
A30: =IF('DF raw data'!A30="","",'DF raw data'!A30) -> DVM Type | B30: =IF('DF raw data'!B30="","",'DF raw data'!B30) -> K2701 | C30: =IF('DF raw data'!C30="","",'DF raw data'!C30) ->  | D30: =IF('DF raw data'!D30="","",'DF raw data'!D30) -> 
A31: =IF('DF raw data'!A31="","",'DF raw data'!A31) -> DVM Danfysik Reg. Number | B31: =IF('DF raw data'!B31="","",'DF raw data'!B31) -> 1743-D | C31: =IF('DF raw data'!C31="","",'DF raw data'!C31) ->  | D31: =IF('DF raw data'!D31="","",'DF raw data'!D31) -> 
A32: =IF('DF raw data'!A32="","",'DF raw data'!A32) -> Probe Name | B32: =IF('DF raw data'!B32="","",'DF raw data'!B32) -> ID12_Bx | C32: =IF('DF raw data'!C32="","",'DF raw data'!C32) ->  | D32: =IF('DF raw data'!D32="","",'DF raw data'!D32) -> 
A33: =IF('DF raw data'!A33="","",'DF raw data'!A33) -> Probe Type | B33: =IF('DF raw data'!B33="","",'DF raw data'!B33) -> DF_ID_3D_Bxyz | C33: =IF('DF raw data'!C33="","",'DF raw data'!C33) ->  | D33: =IF('DF raw data'!D33="","",'DF raw data'!D33) -> 
A34: =IF('DF raw data'!A34="","",'DF raw data'!A34) -> Probe Danfysik Reg. Number | B34: =IF('DF raw data'!B34="","",'DF raw data'!B34) -> 2277 | C34: =IF('DF raw data'!C34="","",'DF raw data'!C34) ->  | D34: =IF('DF raw data'!D34="","",'DF raw data'!D34) -> 
A35: =IF('DF raw data'!A35="","",'DF raw data'!A35) -> Probe Axis | B35: =IF('DF raw data'!B35="","",'DF raw data'!B35) -> Bx | C35: =IF('DF raw data'!C35="","",'DF raw data'!C35) ->  | D35: =IF('DF raw data'!D35="","",'DF raw data'!D35) -> 
A36: =IF('DF raw data'!A36="","",'DF raw data'!A36) -> Probe Current Supply | B36: =IF('DF raw data'!B36="","",'DF raw data'!B36) -> 1825-D | C36: =IF('DF raw data'!C36="","",'DF raw data'!C36) ->  | D36: =IF('DF raw data'!D36="","",'DF raw data'!D36) -> 
A37: =IF('DF raw data'!A37="","",'DF raw data'!A37) -> Probe Gain Correction | B37: =IF('DF raw data'!B37="","",'DF raw data'!B37) -> 1 | C37: =IF('DF raw data'!C37="","",'DF raw data'!C37) ->  | D37: =IF('DF raw data'!D37="","",'DF raw data'!D37) -> 
A38: =IF('DF raw data'!A38="","",'DF raw data'!A38) -> Probe Offset Correction | B38: =IF('DF raw data'!B38="","",'DF raw data'!B38) -> -0.17575 | C38: =IF('DF raw data'!C38="","",'DF raw data'!C38) ->  | D38: =IF('DF raw data'!D38="","",'DF raw data'!D38) -> 
A39: =IF('DF raw data'!A39="","",'DF raw data'!A39) -> DVM Number | B39: =IF('DF raw data'!B39="","",'DF raw data'!B39) -> 3 | C39: =IF('DF raw data'!C39="","",'DF raw data'!C39) ->  | D39: =IF('DF raw data'!D39="","",'DF raw data'!D39) -> 
A40: =IF('DF raw data'!A40="","",'DF raw data'!A40) -> DVM Type | B40: =IF('DF raw data'!B40="","",'DF raw data'!B40) -> K2701 | C40: =IF('DF raw data'!C40="","",'DF raw data'!C40) ->  | D40: =IF('DF raw data'!D40="","",'DF raw data'!D40) -> 
A41: =IF('DF raw data'!A41="","",'DF raw data'!A41) -> DVM Danfysik Reg. Number | B41: =IF('DF raw data'!B41="","",'DF raw data'!B41) -> 1744-D | C41: =IF('DF raw data'!C41="","",'DF raw data'!C41) ->  | D41: =IF('DF raw data'!D41="","",'DF raw data'!D41) -> 
A42: =IF('DF raw data'!A42="","",'DF raw data'!A42) -> Probe Name | B42: =IF('DF raw data'!B42="","",'DF raw data'!B42) -> ID12_Bz | C42: =IF('DF raw data'!C42="","",'DF raw data'!C42) ->  | D42: =IF('DF raw data'!D42="","",'DF raw data'!D42) -> 
A43: =IF('DF raw data'!A43="","",'DF raw data'!A43) -> Probe Type | B43: =IF('DF raw data'!B43="","",'DF raw data'!B43) -> DF_ID_3D_Bxyz | C43: =IF('DF raw data'!C43="","",'DF raw data'!C43) ->  | D43: =IF('DF raw data'!D43="","",'DF raw data'!D43) -> 
A44: =IF('DF raw data'!A44="","",'DF raw data'!A44) -> Probe Danfysik Reg. Number | B44: =IF('DF raw data'!B44="","",'DF raw data'!B44) -> 2277 | C44: =IF('DF raw data'!C44="","",'DF raw data'!C44) ->  | D44: =IF('DF raw data'!D44="","",'DF raw data'!D44) -> 
A45: =IF('DF raw data'!A45="","",'DF raw data'!A45) -> Probe Axis | B45: =IF('DF raw data'!B45="","",'DF raw data'!B45) -> Bz | C45: =IF('DF raw data'!C45="","",'DF raw data'!C45) ->  | D45: =IF('DF raw data'!D45="","",'DF raw data'!D45) -> 
A46: =IF('DF raw data'!A46="","",'DF raw data'!A46) -> Probe Current Supply | B46: =IF('DF raw data'!B46="","",'DF raw data'!B46) -> 1825-D | C46: =IF('DF raw data'!C46="","",'DF raw data'!C46) ->  | D46: =IF('DF raw data'!D46="","",'DF raw data'!D46) -> 
A47: =IF('DF raw data'!A47="","",'DF raw data'!A47) -> Probe Gain Correction | B47: =IF('DF raw data'!B47="","",'DF raw data'!B47) -> 1 | C47: =IF('DF raw data'!C47="","",'DF raw data'!C47) ->  | D47: =IF('DF raw data'!D47="","",'DF raw data'!D47) -> 
A48: =IF('DF raw data'!A53="","",'DF raw data'!A53) -> PS-Gap: | B48: =IF('DF raw data'!B53="","",'DF raw data'!B53) -> 10 | C48: =IF('DF raw data'!C53="","",'DF raw data'!C53) ->  | D48: =IF('DF raw data'!D53="","",'DF raw data'!D53) -> 
A49: =IF('DF raw data'!A54="","",'DF raw data'!A54) -> PS-Temperature: | B49: =IF('DF raw data'!B54="","",'DF raw data'!B54) -> 25.3 | C49: =IF('DF raw data'!C54="","",'DF raw data'!C54) ->  | D49: =IF('DF raw data'!D54="","",'DF raw data'!D54) -> 
A50: =IF('DF raw data'!A55="","",'DF raw data'!A55) -> PS-Encoder: | B50: =IF('DF raw data'!B55="","",'DF raw data'!B55) -> 19.7503 | C50: =IF('DF raw data'!C55="","",'DF raw data'!C55) ->  | D50: =IF('DF raw data'!D55="","",'DF raw data'!D55) -> 
A51: =IF('DF raw data'!A56="","",'DF raw data'!A56) ->  | B51: =IF('DF raw data'!B56="","",'DF raw data'!B56) ->  | C51: =IF('DF raw data'!C56="","",'DF raw data'!C56) ->  | D51: =IF('DF raw data'!D56="","",'DF raw data'!D56) -> 
A52: =IF('DF raw data'!A57="","",'DF raw data'!A57) -> Monitor-Index | B52: =IF('DF raw data'!B57="","",'DF raw data'!B57) -> [1,1,4] | C52: =IF('DF raw data'!C57="","",'DF raw data'!C57) ->  | D52: =IF('DF raw data'!D57="","",'DF raw data'!D57) -> 
A53: =IF('DF raw data'!A58="","",'DF raw data'!A58) ->  | B53: =IF('DF raw data'!B58="","",'DF raw data'!B58) ->  | C53: =IF('DF raw data'!C58="","",'DF raw data'!C58) ->  | D53: =IF('DF raw data'!D58="","",'DF raw data'!D58) -> 
A54: =IF('DF raw data'!A59="","",'DF raw data'!A59) -> Time [s] | B54: =IF('DF raw data'!B59="","",'DF raw data'!B59) -> Y [mm] | C54: =IF('DF raw data'!C59="","",'DF raw data'!C59) -> X [mm] | D54: =IF('DF raw data'!D59="","",'DF raw data'!D59) -> Nominal current [A]
A55: =IF('DF raw data'!A60="","",'DF raw data'!A60) ->  | B55: =IF('DF raw data'!B60="","",'DF raw data'!B60) ->  | C55: =IF('DF raw data'!C60="","",'DF raw data'!C60) ->  | D55: =IF('DF raw data'!D60="","",'DF raw data'!D60) -> 
A56: =IF('DF raw data'!A61="","",'DF raw data'!A61) -> 210.7 | B56: =IF('DF raw data'!B61="","",'DF raw data'!B61) -> 31.15 | C56: =IF('DF raw data'!C61="","",'DF raw data'!C61) -> 301.3 | D56: =IF('DF raw data'!D61="","",'DF raw data'!D61) -> 0
A57: =IF('DF raw data'!A62="","",'DF raw data'!A62) ->  | B57: =IF('DF raw data'!B62="","",'DF raw data'!B62) ->  | C57: =IF('DF raw data'!C62="","",'DF raw data'!C62) ->  | D57: =IF('DF raw data'!D62="","",'DF raw data'!D62) -> 
A58: =IF('DF raw data'!A63="","",'DF raw data'!A63) -> Measurement-Index | B58: =IF('DF raw data'!B63="","",'DF raw data'!B63) -> [1,1,1201,2] | C58: =IF('DF raw data'!C63="","",'DF raw data'!C63) ->  | D58: =IF('DF raw data'!D63="","",'DF raw data'!D63) -> 
A59: =IF('DF raw data'!A64="","",'DF raw data'!A64) ->  | B59: =IF('DF raw data'!B64="","",'DF raw data'!B64) ->  | C59: =IF('DF raw data'!C64="","",'DF raw data'!C64) ->  | D59: =IF('DF raw data'!D64="","",'DF raw data'!D64) -> 
A60: =IF('DF raw data'!A65="","",'DF raw data'!A65) -> Z [mm] | B60: =IF('DF raw data'!B65="","",'DF raw data'!B65) -> By [T] | C60: =IF('DF raw data'!C65="","",'DF raw data'!C65) -> Bx [T] | D60: =IF('DF raw data'!D65="","",'DF raw data'!D65) -> Bz [T] | F60: By_corr | G60: Bx_corr | H60: Bz_corr | J60: Iy | K60: Jy | L60: Ix | M60: Jx | N60: PI
A62: =IF('DF raw data'!A67="","",'DF raw data'!A67) -> -300 | B62: =IF('DF raw data'!B67="","",'DF raw data'!B67) -> -2.35632e-05 | C62: =IF('DF raw data'!C67="","",'DF raw data'!C67) -> 0.000152371 | D62: =IF('DF raw data'!D67="","",'DF raw data'!D67) -> -2.22479e-05 | F62: =(1-$G$1*($B$49))*B62 -> -2.415934896e-05 | G62: =(1-$G$1*($B$49-$G$2))*C62 -> 0.0001531785663 | H62: =(1-$G$1*($B$49-$G$2))*D62 -> -2.236581387e-05 | J62: =F62*$G$3 -> -1.207967448e-05 | K62: =J62*$G$3 -> -6.03983724e-06 | L62: =G62*$G$3 -> 7.658928315e-05 | M62: =L62*$G$3 -> 3.829464158e-05 | N62: =(J62^2+L62^2)*$G$3 -> 3.005918414e-09
A63: =IF('DF raw data'!A68="","",'DF raw data'!A68) -> -299.5 | B63: =IF('DF raw data'!B68="","",'DF raw data'!B68) -> -3.42654e-05 | C63: =IF('DF raw data'!C68="","",'DF raw data'!C68) -> 0.000149933 | D63: =IF('DF raw data'!D68="","",'DF raw data'!D68) -> -2.18368e-05 | F63: =(1-$G$1*($B$49-$G$2))*B63 -> -3.444700662e-05 | G63: =(1-$G$1*($B$49-$G$2))*C63 -> 0.0001507276449 | H63: -2.195253504e-05 | J63: =F63*$G$3+J62 -> -2.930317779e-05 | K63: =J63*$G$3+K62 -> -2.069142614e-05 | L63: =G63*$G$3+L62 -> 0.0001519531056 | M63: =L63*$G$3+M62 -> 0.0001142711944 | N63: =(J63^2+L63^2)*$G$3+N62 -> 1.498012968e-08
A64: =IF('DF raw data'!A69="","",'DF raw data'!A69) -> -299 | B64: =IF('DF raw data'!B69="","",'DF raw data'!B69) -> -3.0421e-05 | C64: =IF('DF raw data'!C69="","",'DF raw data'!C69) -> 0.000160456 | D64: =IF('DF raw data'!D69="","",'DF raw data'!D69) -> -2.09597e-05 | F64: =(1-$G$1*($B$49-$G$2))*B64 -> -3.05822313e-05 | G64: 0.0001613064168 | H64: -2.107078641e-05 | J64: =F64*$G$3+J63 -> -4.459429344e-05 | K64: =J64*$G$3+K63 -> -4.298857286e-05 | L64: =G64*$G$3+L63 -> 0.000232606314 | M64: =L64*$G$3+M63 -> 0.0002305743514 | N64: =(J64^2+L64^2)*$G$3+N63 -> 4.302730384e-08
A65: =IF('DF raw data'!A70="","",'DF raw data'!A70) -> -298.5 | B65: =IF('DF raw data'!B70="","",'DF raw data'!B70) -> -4.0547e-05 | C65: =IF('DF raw data'!C70="","",'DF raw data'!C70) -> 0.000151866 | D65: =IF('DF raw data'!D70="","",'DF raw data'!D70) -> -1.98863e-05 | F65: -4.07618991e-05 | G65: 0.0001526708898 | H65: -1.999169739e-05 | J65: -6.497524299e-05 | K65: -7.547619435e-05 | L65: 0.0003089417589 | M65: 0.0003850452308 | N65: 9.286070014e-08
A66: =IF('DF raw data'!A71="","",'DF raw data'!A71) -> -298 | B66: =IF('DF raw data'!B71="","",'DF raw data'!B71) -> -2.99733e-05 | C66: =IF('DF raw data'!C71="","",'DF raw data'!C71) -> 0.000149744 | D66: =IF('DF raw data'!D71="","",'DF raw data'!D71) -> -1.93583e-05 | F66: -3.013215849e-05 | G66: 0.0001505376432 | H66: -1.946089899e-05 | J66: -8.004132224e-05 | K66: -0.0001154968555 | L66: 0.0003842105805 | M66: 0.0005771505211 | N66: 1.698728919e-07
A67: =IF('DF raw data'!A72="","",'DF raw data'!A72) -> -297.5 | B67: =IF('DF raw data'!B72="","",'DF raw data'!B72) -> -2.57436e-05 | C67: =IF('DF raw data'!C72="","",'DF raw data'!C72) -> 0.000160904 | D67: =IF('DF raw data'!D72="","",'DF raw data'!D72) -> -1.97854e-05 | F67: -2.588004108e-05 | G67: 0.0001617567912 | H67: -1.989026262e-05 | J67: -9.298134278e-05 | K67: -0.0001619875269 | L67: 0.0004650889761 | M67: 0.0008096950091 | N67: 2.823495348e-07
A68: =IF('DF raw data'!A73="","",'DF raw data'!A73) -> -297 | B68: =IF('DF raw data'!B73="","",'DF raw data'!B73) -> -2.6256e-05 | C68: =IF('DF raw data'!C73="","",'DF raw data'!C73) -> 0.000163941 | D68: =IF('DF raw data'!D73="","",'DF raw data'!D73) -> -2.02687e-05 | F68: -2.63951568e-05 | G68: 0.0001648098873 | H68: -2.037612411e-05 | J68: -0.0001061789212 | K68: -0.0002150769874 | L68: 0.0005474939198 | M68: 0.001083441969 | N68: 4.378613125e-07
A69: =IF('DF raw data'!A74="","",'DF raw data'!A74) -> -296.5 | B69: =IF('DF raw data'!B74="","",'DF raw data'!B74) -> -3.55485e-05 | C69: =IF('DF raw data'!C74="","",'DF raw data'!C74) -> 0.000156066 | D69: =IF('DF raw data'!D74="","",'DF raw data'!D74) -> -1.99986e-05 | F69: -3.573690705e-05 | G69: 0.0001568931498 | H69: -2.010459258e-05 | J69: -0.0001240473747 | K69: -0.0002771006748 | L69: 0.0006259404947 | M69: 0.001396412216 | N69: 6.414559395e-07
A70: =IF('DF raw data'!A75="","",'DF raw data'!A75) -> -296 | B70: =IF('DF raw data'!B75="","",'DF raw data'!B75) -> -2.0745e-05 | C70: =IF('DF raw data'!C75="","",'DF raw data'!C75) -> 0.000151656 | D70: =IF('DF raw data'!D75="","",'DF raw data'!D75) -> -1.96863e-05 | F70: -2.08549485e-05 | G70: 0.0001524597768 | H70: -1.979063739e-05 | J70: -0.000134474849 | K70: -0.0003443380993 | L70: 0.0007021703831 | M70: 0.001747497408 | N70: 8.970193054e-07
A71: =IF('DF raw data'!A76="","",'DF raw data'!A76) -> -295.5 | B71: =IF('DF raw data'!B76="","",'DF raw data'!B76) -> -2.83713e-05 | C71: =IF('DF raw data'!C76="","",'DF raw data'!C76) -> 0.000153023 | D71: =IF('DF raw data'!D76="","",'DF raw data'!D76) -> -1.95916e-05 | F71: -2.852166789e-05 | G71: 0.0001538340219 | H71: -1.969543548e-05 | J71: -0.0001487356829 | K71: -0.0004187059407 | L71: 0.000779087394 | M71: 0.002137041105 | N71: 1.211569041e-06
A72: =IF('DF raw data'!A77="","",'DF raw data'!A77) -> -295 | B72: =IF('DF raw data'!B77="","",'DF raw data'!B77) -> -2.29879e-05 | C72: =IF('DF raw data'!C77="","",'DF raw data'!C77) -> 0.000156646 | D72: =IF('DF raw data'!D77="","",'DF raw data'!D77) -> -1.98759e-05 | F72: -2.310973587e-05 | G72: 0.0001574762238 | H72: -1.998124227e-05 | J72: -0.0001602905508 | K72: -0.0004988512161 | L72: 0.0008578255059 | M72: 0.002565953858 | N72: 1.59234787e-06
A73: =IF('DF raw data'!A78="","",'DF raw data'!A78) -> -294.5 | B73: =IF('DF raw data'!B78="","",'DF raw data'!B78) -> -1.5041e-05 | C73: =IF('DF raw data'!C78="","",'DF raw data'!C78) -> 0.00015722 | D73: =IF('DF raw data'!D78="","",'DF raw data'!D78) -> -2.04925e-05 | F73: -1.51207173e-05 | G73: 0.000158053266 | H73: -2.060111025e-05 | J73: -0.0001678509095 | K73: -0.0005827766709 | L73: 0.0009368521389 | M73: 0.003034379927 | N73: 2.045280799e-06
A74: =IF('DF raw data'!A79="","",'DF raw data'!A79) -> -294 | B74: =IF('DF raw data'!B79="","",'DF raw data'!B79) -> -3.0357e-05 | C74: =IF('DF raw data'!C79="","",'DF raw data'!C79) -> 0.000146763 | D74: =IF('DF raw data'!D79="","",'DF raw data'!D79) -> -2.06659e-05 | F74: -3.05178921e-05 | G74: 0.0001475408439 | H74: -2.077542927e-05 | J74: -0.0001831098555 | K74: -0.0006743315986 | L74: 0.001010622561 | M74: 0.003539691208 | N74: 2.572724389e-06
A75: =IF('DF raw data'!A80="","",'DF raw data'!A80) -> -293.5 | B75: =IF('DF raw data'!B80="","",'DF raw data'!B80) -> -2.36282e-05 | C75: =IF('DF raw data'!C80="","",'DF raw data'!C80) -> 0.000150449 | D75: =IF('DF raw data'!D80="","",'DF raw data'!D80) -> -2.06469e-05 | F75: -2.375342946e-05 | G75: 0.0001512463797 | H75: -2.075632857e-05 | J75: -0.0001949865703 | K75: -0.0007718248838 | L75: 0.001086245751 | M75: 0.004082814083 | N75: 3.181699186e-06
A76: =IF('DF raw data'!A81="","",'DF raw data'!A81) -> -293 | B76: =IF('DF raw data'!B81="","",'DF raw data'!B81) -> -2.15773e-05 | C76: =IF('DF raw data'!C81="","",'DF raw data'!C81) -> 0.000154479 | D76: =IF('DF raw data'!D81="","",'DF raw data'!D81) -> -2.11014e-05 | F76: -2.169165969e-05 | G76: 0.0001552977387 | H76: -2.121323742e-05 | J76: -0.0002058324001 | K76: -0.0008747410838 | L76: 0.00116389462 | M76: 0.004664761393 | N76: 3.880208018e-06
A77: =IF('DF raw data'!A82="","",'DF raw data'!A82) -> -292.5 | B77: =IF('DF raw data'!B82="","",'DF raw data'!B82) -> -3.17667e-05 | C77: =IF('DF raw data'!C82="","",'DF raw data'!C82) -> 0.000157649 | D77: =IF('DF raw data'!D82="","",'DF raw data'!D82) -> -2.11953e-05 | F77: -3.193506351e-05 | G77: 0.0001584845397 | H77: -2.130763509e-05 | J77: -0.0002217999319 | K77: -0.0009856410497 | L77: 0.00124313689 | M77: 0.005286329838 | N77: 4.677500286e-06
A78: =IF('DF raw data'!A83="","",'DF raw data'!A83) -> -292 | B78: =IF('DF raw data'!B83="","",'DF raw data'!B83) -> -3.67018e-05 | C78: =IF('DF raw data'!C83="","",'DF raw data'!C83) -> 0.000162673 | D78: =IF('DF raw data'!D83="","",'DF raw data'!D83) -> -2.02941e-05 | F78: -3.689631954e-05 | G78: 0.0001635351669 | H78: -2.040165873e-05 | J78: -0.0002402480916 | K78: -0.001105765096 | L78: 0.001324904473 | M78: 0.005948782075 | N78: 5.584045791e-06
A79: =IF('DF raw data'!A84="","",'DF raw data'!A84) -> -291.5 | B79: =IF('DF raw data'!B84="","",'DF raw data'!B84) -> -3.02225e-05 | C79: =IF('DF raw data'!C84="","",'DF raw data'!C84) -> 0.000150088 | D79: =IF('DF raw data'!D84="","",'DF raw data'!D84) -> -3.03991e-05 | F79: -3.038267925e-05 | G79: 0.0001508834664 | H79: -3.056021523e-05 | J79: -0.0002554394313 | K79: -0.001233484811 | L79: 0.001400346207 | M79: 0.006648955178 | N79: 6.597155191e-06
A80: =IF('DF raw data'!A85="","",'DF raw data'!A85) -> -291 | B80: =IF('DF raw data'!B85="","",'DF raw data'!B85) -> -2.20946e-05 | C80: =IF('DF raw data'!C85="","",'DF raw data'!C85) -> 0.000146982 | D80: =IF('DF raw data'!D85="","",'DF raw data'!D85) -> -1.39316e-05 | F80: -2.221170138e-05 | G80: 0.0001477610046 | H80: -1.400543748e-05 | J80: -0.0002665452819 | K80: -0.001366757452 | L80: 0.001474226709 | M80: 0.007386068532 | N80: 7.71935058e-06
A81: =IF('DF raw data'!A86="","",'DF raw data'!A86) -> -290.5 | B81: =IF('DF raw data'!B86="","",'DF raw data'!B86) -> -3.49678e-05 | C81: =IF('DF raw data'!C86="","",'DF raw data'!C86) -> 0.000146989 | D81: =IF('DF raw data'!D86="","",'DF raw data'!D86) -> -2.59178e-05 | F81: -3.515312934e-05 | G81: 0.0001477680417 | H81: -2.605516434e-05 | J81: -0.0002841218466 | K81: -0.001508818375 | L81: 0.00154811073 | M81: 0.008160123897 | N81: 8.958036607e-06
A82: =IF('DF raw data'!A87="","",'DF raw data'!A87) -> -290 | B82: =IF('DF raw data'!B87="","",'DF raw data'!B87) -> -2.15756e-05 | C82: =IF('DF raw data'!C87="","",'DF raw data'!C87) -> 0.000145597 | D82: =IF('DF raw data'!D87="","",'DF raw data'!D87) -> -2.35992e-05 | F82: -2.168995068e-05 | G82: 0.0001463686641 | H82: -2.372427576e-05 | J82: -0.000294966822 | K82: -0.001656301786 | L82: 0.001621295062 | M82: 0.008970771428 | N82: 1.031583816e-05
A83: =IF('DF raw data'!A88="","",'DF raw data'!A88) -> -289.5 | B83: =IF('DF raw data'!B88="","",'DF raw data'!B88) -> -2.03632e-05 | C83: =IF('DF raw data'!C88="","",'DF raw data'!C88) -> 0.000150965 | D83: =IF('DF raw data'!D88="","",'DF raw data'!D88) -> -1.54539e-05 | F83: -2.047112496e-05 | G83: 0.0001517651145 | H83: -1.553580567e-05 | J83: -0.0003052023844 | K83: -0.001808902979 | L83: 0.001697177619 | M83: 0.009819360238 | N83: 1.180261834e-05
A84: =IF('DF raw data'!A89="","",'DF raw data'!A89) -> -289 | B84: =IF('DF raw data'!B89="","",'DF raw data'!B89) -> -2.00362e-05 | C84: =IF('DF raw data'!C89="","",'DF raw data'!C89) -> 0.000153981 | D84: =IF('DF raw data'!D89="","",'DF raw data'!D89) -> -2.57735e-05 | F84: -2.014239186e-05 | G84: 0.0001547970993 | H84: -2.591009955e-05 | J84: -0.0003152735804 | K84: -0.001966539769 | L84: 0.001774576169 | M84: 0.01070664832 | N84: 1.342687735e-05
A85: =IF('DF raw data'!A90="","",'DF raw data'!A90) -> -288.5 | B85: =IF('DF raw data'!B90="","",'DF raw data'!B90) -> -2.37546e-05 | C85: =IF('DF raw data'!C90="","",'DF raw data'!C90) -> 0.000142134 | D85: =IF('DF raw data'!D90="","",'DF raw data'!D90) -> -2.33129e-05 | F85: -2.388049938e-05 | G85: 0.0001428873102 | H85: -2.343645837e-05 | J85: -0.0003272138301 | K85: -0.002130146684 | L85: 0.001846019824 | M85: 0.01162965823 | N85: 1.518430639e-05
A86: =IF('DF raw data'!A91="","",'DF raw data'!A91) -> -288 | B86: =IF('DF raw data'!B91="","",'DF raw data'!B91) -> -2.16308e-05 | C86: =IF('DF raw data'!C91="","",'DF raw data'!C91) -> 0.000142291 | D86: =IF('DF raw data'!D91="","",'DF raw data'!D91) -> -3.72079e-05 | F86: -2.174544324e-05 | G86: 0.0001430451423 | H86: -3.740510187e-05 | J86: -0.0003380865517 | K86: -0.00229918996 | L86: 0.001917542395 | M86: 0.01258842943 | N86: 1.707994206e-05
A87: =IF('DF raw data'!A92="","",'DF raw data'!A92) -> -287.5 | B87: =IF('DF raw data'!B92="","",'DF raw data'!B92) -> -2.48492e-05 | C87: =IF('DF raw data'!C92="","",'DF raw data'!C92) -> 0.000144678 | D87: =IF('DF raw data'!D92="","",'DF raw data'!D92) -> -1.54931e-05 | F87: -2.498090076e-05 | G87: 0.0001454447934 | H87: -1.557521343e-05 | J87: -0.0003505770021 | K87: -0.002474478461 | L87: 0.001990264792 | M87: 0.01358356183 | N87: 1.912197115e-05
A88: =IF('DF raw data'!A93="","",'DF raw data'!A93) -> -287 | B88: =IF('DF raw data'!B93="","",'DF raw data'!B93) -> -3.202e-05 | C88: =IF('DF raw data'!C93="","",'DF raw data'!C93) -> 0.000143862 | D88: =IF('DF raw data'!D93="","",'DF raw data'!D93) -> -2.59296e-05 | F88: -3.2189706e-05 | G88: 0.0001446244686 | H88: -2.606702688e-05 | J88: -0.0003666718551 | K88: -0.002657814388 | L88: 0.002062577026 | M88: 0.01461485034 | N88: 2.131630727e-05
A89: =IF('DF raw data'!A94="","",'DF raw data'!A94) -> -286.5 | B89: =IF('DF raw data'!B94="","",'DF raw data'!B94) -> -2.54215e-05 | C89: =IF('DF raw data'!C94="","",'DF raw data'!C94) -> 0.000144572 | D89: =IF('DF raw data'!D94="","",'DF raw data'!D94) -> -2.223e-05 | F89: -2.555623395e-05 | G89: 0.0001453382316 | H89: -2.2347819e-05 | J89: -0.000379449972 | K89: -0.002847539374 | L89: 0.002135246142 | M89: 0.01568247341 | N89: 2.366793645e-05
A90: =IF('DF raw data'!A95="","",'DF raw data'!A95) -> -286 | B90: =IF('DF raw data'!B95="","",'DF raw data'!B95) -> -9.13786e-06 | C90: =IF('DF raw data'!C95="","",'DF raw data'!C95) -> 0.000150218 | D90: =IF('DF raw data'!D95="","",'DF raw data'!D95) -> -3.16458e-05 | F90: -9.186290658e-06 | G90: 0.0001510141554 | H90: -3.181352274e-05 | J90: -0.0003840431174 | K90: -0.003039560933 | L90: 0.002210753219 | M90: 0.01678785002 | N90: 2.618539591e-05
A91: =IF('DF raw data'!A96="","",'DF raw data'!A96) -> -285.5 | B91: =IF('DF raw data'!B96="","",'DF raw data'!B96) -> -2.82384e-05 | C91: =IF('DF raw data'!C96="","",'DF raw data'!C96) -> 0.000144934 | D91: =IF('DF raw data'!D96="","",'DF raw data'!D96) -> -2.67766e-05 | F91: -2.838806352e-05 | G91: 0.0001457021502 | H91: -2.691851598e-05 | J91: -0.0003982371491 | K91: -0.003238679508 | L91: 0.002283604295 | M91: 0.01792965217 | N91: 2.887211661e-05
A92: =IF('DF raw data'!A97="","",'DF raw data'!A97) -> -285 | B92: =IF('DF raw data'!B97="","",'DF raw data'!B97) -> -2.87489e-05 | C92: =IF('DF raw data'!C97="","",'DF raw data'!C97) -> 0.000139215 | D92: =IF('DF raw data'!D97="","",'DF raw data'!D97) -> -3.01258e-05 | F92: -2.890126917e-05 | G92: 0.0001399528395 | H92: -3.028546674e-05 | J92: -0.0004126877837 | K92: -0.003445023399 | L92: 0.002353580714 | M92: 0.01910644252 | N92: 3.17269433e-05
A93: =IF('DF raw data'!A98="","",'DF raw data'!A98) -> -284.5 | B93: =IF('DF raw data'!B98="","",'DF raw data'!B98) -> -2.94493e-05 | C93: =IF('DF raw data'!C98="","",'DF raw data'!C98) -> 0.000145218 | D93: =IF('DF raw data'!D98="","",'DF raw data'!D98) -> -3.68919e-05 | F93: -2.960538129e-05 | G93: 0.0001459876554 | H93: -3.708742707e-05 | J93: -0.0004274904743 | K93: -0.003658768637 | L93: 0.002426574542 | M93: 0.0203197298 | N93: 3.476244936e-05
A94: =IF('DF raw data'!A99="","",'DF raw data'!A99) -> -284 | B94: =IF('DF raw data'!B99="","",'DF raw data'!B99) -> -1.9524e-05 | C94: =IF('DF raw data'!C99="","",'DF raw data'!C99) -> 0.00014617 | D94: =IF('DF raw data'!D99="","",'DF raw data'!D99) -> -2.51389e-05 | F94: -1.96274772e-05 | G94: 0.000146944701 | H94: -2.527213617e-05 | J94: -0.0004373042129 | K94: -0.003877420743 | L94: 0.002500046892 | M94: 0.02156975324 | N94: 3.798318408e-05
A95: =IF('DF raw data'!A100="","",'DF raw data'!A100) -> -283.5 | B95: =IF('DF raw data'!B100="","",'DF raw data'!B100) -> -3.77831e-05 | C95: =IF('DF raw data'!C100="","",'DF raw data'!C100) -> 0.000144914 | D95: =IF('DF raw data'!D100="","",'DF raw data'!D100) -> -3.25831e-05 | F95: -3.798335043e-05 | G95: 0.0001456820442 | H95: -3.275579043e-05 | J95: -0.0004562958882 | K95: -0.004105568687 | L95: 0.002572887915 | M95: 0.0228561972 | N95: 4.139716316e-05
A96: =IF('DF raw data'!A101="","",'DF raw data'!A101) -> -283 | B96: =IF('DF raw data'!B101="","",'DF raw data'!B101) -> -4.77239e-05 | C96: =IF('DF raw data'!C101="","",'DF raw data'!C101) -> 0.000152415 | D96: =IF('DF raw data'!D101="","",'DF raw data'!D101) -> -2.08386e-05 | F96: -4.797683667e-05 | G96: 0.0001532227995 | H96: -2.094904458e-05 | J96: -0.0004802843065 | K96: -0.00434571084 | L96: 0.002649499314 | M96: 0.02418094686 | N96: 4.502242297e-05
A97: =IF('DF raw data'!A102="","",'DF raw data'!A102) -> -282.5 | B97: =IF('DF raw data'!B102="","",'DF raw data'!B102) -> -2.45858e-05 | C97: =IF('DF raw data'!C102="","",'DF raw data'!C102) -> 0.000157494 | D97: =IF('DF raw data'!D102="","",'DF raw data'!D102) -> -2.64012e-05 | F97: -2.471610474e-05 | G97: 0.0001583287182 | H97: -2.654112636e-05 | J97: -0.0004926423589 | K97: -0.00459203202 | L97: 0.002728663673 | M97: 0.02554527869 | N97: 4.886657394e-05
A98: =IF('DF raw data'!A103="","",'DF raw data'!A103) -> -282 | B98: =IF('DF raw data'!B103="","",'DF raw data'!B103) -> -2.53547e-05 | C98: =IF('DF raw data'!C103="","",'DF raw data'!C103) -> 0.000153953 | D98: =IF('DF raw data'!D103="","",'DF raw data'!D103) -> -2.6545e-05 | F98: -2.548907991e-05 | G98: 0.0001547689509 | H98: -2.66856885e-05 | J98: -0.0005053868988 | K98: -0.004844725469 | L98: 0.002806048149 | M98: 0.02694830277 | N98: 5.293123501e-05
A99: =IF('DF raw data'!A104="","",'DF raw data'!A104) -> -281.5 | B99: =IF('DF raw data'!B104="","",'DF raw data'!B104) -> -2.01017e-05 | C99: =IF('DF raw data'!C104="","",'DF raw data'!C104) -> 0.000150962 | D99: =IF('DF raw data'!D104="","",'DF raw data'!D104) -> -2.34777e-05 | F99: -2.020823901e-05 | G99: 0.0001517620986 | H99: -2.360213181e-05 | J99: -0.0005154910183 | K99: -0.005102470978 | L99: 0.002881929198 | M99: 0.02838926737 | N99: 5.721685845e-05
A100: =IF('DF raw data'!A105="","",'DF raw data'!A105) -> -281 | B100: =IF('DF raw data'!B105="","",'DF raw data'!B105) -> -3.02838e-05 | C100: =IF('DF raw data'!C105="","",'DF raw data'!C105) -> 0.000154219 | D100: =IF('DF raw data'!D105="","",'DF raw data'!D105) -> -3.48177e-05 | F100: -3.044430414e-05 | G100: 0.0001550363607 | H100: -3.500223381e-05 | J100: -0.0005307131704 | K100: -0.005367827564 | L100: 0.002959447379 | M100: 0.02986899106 | N100: 6.173685108e-05
A101: =IF('DF raw data'!A106="","",'DF raw data'!A106) -> -280.5 | B101: =IF('DF raw data'!B106="","",'DF raw data'!B106) -> -2.09307e-05 | C101: =IF('DF raw data'!C106="","",'DF raw data'!C106) -> 0.00015685 | D101: =IF('DF raw data'!D106="","",'DF raw data'!D106) -> -2.98969e-05 | F101: -2.104163271e-05 | G101: 0.000157681305 | H101: -3.005535357e-05 | J101: -0.0005412339868 | K101: -0.005638444557 | L101: 0.003038288031 | M101: 0.03138813507 | N101: 6.649891527e-05
A102: =IF('DF raw data'!A107="","",'DF raw data'!A107) -> -280 | B102: =IF('DF raw data'!B107="","",'DF raw data'!B107) -> -2.95148e-05 | C102: =IF('DF raw data'!C107="","",'DF raw data'!C107) -> 0.000160809 | D102: =IF('DF raw data'!D107="","",'DF raw data'!D107) -> -3.49668e-05 | F102: -2.967122844e-05 | G102: 0.0001616612877 | H102: -3.515212404e-05 | J102: -0.000556069601 | K102: -0.005916479357 | L102: 0.003119118675 | M102: 0.03294769441 | N102: 7.151797263e-05
A103: =IF('DF raw data'!A108="","",'DF raw data'!A108) -> -279.5 | B103: =IF('DF raw data'!B108="","",'DF raw data'!B108) -> -3.85577e-05 | C103: =IF('DF raw data'!C108="","",'DF raw data'!C108) -> 0.000159565 | D103: =IF('DF raw data'!D108="","",'DF raw data'!D108) -> -2.392e-05 | F103: -3.876205581e-05 | G103: 0.0001604106945 | H103: -2.4046776e-05 | J103: -0.0005754506289 | K103: -0.006204204672 | L103: 0.003199324022 | M103: 0.03454735642 | N103: 7.680138144e-05
A104: =IF('DF raw data'!A109="","",'DF raw data'!A109) -> -279 | B104: =IF('DF raw data'!B109="","",'DF raw data'!B109) -> -3.74073e-05 | C104: =IF('DF raw data'!C109="","",'DF raw data'!C109) -> 0.000157652 | D104: =IF('DF raw data'!D109="","",'DF raw data'!D109) -> -1.9212e-05 | F104: -3.760555869e-05 | G104: 0.0001584875556 | H104: -1.93138236e-05 | J104: -0.0005942534082 | K104: -0.006501331376 | L104: 0.0032785678 | M104: 0.03618664032 | N104: 8.235245341e-05
A105: =IF('DF raw data'!A110="","",'DF raw data'!A110) -> -278.5 | B105: =IF('DF raw data'!B110="","",'DF raw data'!B110) -> -2.90779e-05 | C105: =IF('DF raw data'!C110="","",'DF raw data'!C110) -> 0.000147517 | D105: =IF('DF raw data'!D110="","",'DF raw data'!D110) -> -1.67401e-05 | F105: -2.923201287e-05 | G105: 0.0001482988401 | H105: -1.682882253e-05 | J105: -0.0006088694147 | K105: -0.006805766083 | L105: 0.00335271722 | M105: 0.03786299893 | N105: 8.815817077e-05
A106: =IF('DF raw data'!A111="","",'DF raw data'!A111) -> -278 | B106: =IF('DF raw data'!B111="","",'DF raw data'!B111) -> -1.66441e-05 | C106: =IF('DF raw data'!C111="","",'DF raw data'!C111) -> 0.000149033 | D106: =IF('DF raw data'!D111="","",'DF raw data'!D111) -> -1.90872e-05 | F106: -1.673231373e-05 | G106: 0.0001498228749 | H106: -1.918836216e-05 | J106: -0.0006172355715 | K106: -0.007114383869 | L106: 0.003427628657 | M106: 0.03957681326 | N106: 9.422297975e-05
A107: =IF('DF raw data'!A112="","",'DF raw data'!A112) -> -277.5 | B107: =IF('DF raw data'!B112="","",'DF raw data'!B112) -> -2.63934e-05 | C107: =IF('DF raw data'!C112="","",'DF raw data'!C112) -> 0.000144891 | D107: =IF('DF raw data'!D112="","",'DF raw data'!D112) -> -5.89554e-06 | F107: -2.653328502e-05 | G107: 0.0001456589223 | H107: -5.926786362e-06 | J107: -0.000630502214 | K107: -0.007429634976 | L107: 0.003500458119 | M107: 0.04132704232 | N107: 0.0001005483498
A108: =IF('DF raw data'!A113="","",'DF raw data'!A113) -> -277 | B108: =IF('DF raw data'!B113="","",'DF raw data'!B113) -> -3.1124e-05 | C108: =IF('DF raw data'!C113="","",'DF raw data'!C113) -> 0.000140468 | D108: =IF('DF raw data'!D113="","",'DF raw data'!D113) -> -2.41504e-05 | F108: -3.12889572e-05 | G108: 0.0001412124804 | H108: -2.427839712e-05 | J108: -0.0006461466926 | K108: -0.007752708322 | L108: 0.003571064359 | M108: 0.0431125745 | N108: 0.0001071333529
A109: =IF('DF raw data'!A114="","",'DF raw data'!A114) -> -276.5 | B109: =IF('DF raw data'!B114="","",'DF raw data'!B114) -> -3.40155e-05 | C109: =IF('DF raw data'!C114="","",'DF raw data'!C114) -> 0.000138356 | D109: =IF('DF raw data'!D114="","",'DF raw data'!D114) -> -1.18507e-05 | F109: -3.419578215e-05 | G109: 0.0001390892868 | H109: -1.191350871e-05 | J109: -0.0006632445837 | K109: -0.008084330614 | L109: 0.003640609002 | M109: 0.044932879 | N109: 0.0001139803165
A110: =IF('DF raw data'!A115="","",'DF raw data'!A115) -> -276 | B110: =IF('DF raw data'!B115="","",'DF raw data'!B115) -> -3.63151e-05 | C110: =IF('DF raw data'!C115="","",'DF raw data'!C115) -> 0.00013621 | D110: =IF('DF raw data'!D115="","",'DF raw data'!D115) -> -2.36211e-05 | F110: -3.650757003e-05 | G110: 0.000136931913 | H110: -2.374629183e-05 | J110: -0.0006814983687 | K110: -0.008425079799 | L110: 0.003709074959 | M110: 0.04678741648 | N110: 0.0001210911551
A111: =IF('DF raw data'!A116="","",'DF raw data'!A116) -> -275.5 | B111: =IF('DF raw data'!B116="","",'DF raw data'!B116) -> -3.73395e-05 | C111: =IF('DF raw data'!C116="","",'DF raw data'!C116) -> 0.000141636 | D111: =IF('DF raw data'!D116="","",'DF raw data'!D116) -> -2.50307e-05 | F111: -3.753739935e-05 | G111: 0.0001423866708 | H111: -2.516336271e-05 | J111: -0.0007002670684 | K111: -0.008775213333 | L111: 0.003780268294 | M111: 0.04867755062 | N111: 0.0001284815562
A112: =IF('DF raw data'!A117="","",'DF raw data'!A117) -> -275 | B112: =IF('DF raw data'!B117="","",'DF raw data'!B117) -> -2.80461e-05 | C112: =IF('DF raw data'!C117="","",'DF raw data'!C117) -> 0.000149237 | D112: =IF('DF raw data'!D117="","",'DF raw data'!D117) -> -2.67409e-05 | F112: -2.819474433e-05 | G112: 0.0001500279561 | H112: -2.688262677e-05 | J112: -0.0007143644406 | K112: -0.009132395553 | L112: 0.003855282272 | M112: 0.05060519176 | N112: 0.0001361683152
A113: =IF('DF raw data'!A118="","",'DF raw data'!A118) -> -274.5 | B113: =IF('DF raw data'!B118="","",'DF raw data'!B118) -> -2.77918e-05 | C113: =IF('DF raw data'!C118="","",'DF raw data'!C118) -> 0.000143495 | D113: =IF('DF raw data'!D118="","",'DF raw data'!D118) -> -2.35479e-05 | F113: -2.793909654e-05 | G113: 0.0001442555235 | H113: -2.367270387e-05 | J113: -0.0007283339888 | K113: -0.009496562548 | L113: 0.003927410034 | M113: 0.05256889678 | N113: 0.0001441458252
A114: =IF('DF raw data'!A119="","",'DF raw data'!A119) -> -274 | B114: =IF('DF raw data'!B119="","",'DF raw data'!B119) -> -1.86904e-05 | C114: =IF('DF raw data'!C119="","",'DF raw data'!C119) -> 0.000142089 | D114: =IF('DF raw data'!D119="","",'DF raw data'!D119) -> -2.5672e-05 | F114: -1.878945912e-05 | G114: 0.0001428420717 | H114: -2.58080616e-05 | J114: -0.0007377287184 | K114: -0.009865426907 | L114: 0.00399883107 | M114: 0.05456831231 | N114: 0.000152413272
A115: =IF('DF raw data'!A120="","",'DF raw data'!A120) -> -273.5 | B115: =IF('DF raw data'!B120="","",'DF raw data'!B120) -> -2.83706e-05 | C115: =IF('DF raw data'!C120="","",'DF raw data'!C120) -> 0.000149341 | D115: =IF('DF raw data'!D120="","",'DF raw data'!D120) -> -2.05999e-05 | F115: -2.852096418e-05 | G115: 0.0001501325073 | H115: -2.070907947e-05 | J115: -0.0007519892005 | K115: -0.01024142151 | L115: 0.004073897323 | M115: 0.05660526097 | N115: 0.0001609943356
A116: =IF('DF raw data'!A121="","",'DF raw data'!A121) -> -273 | B116: =IF('DF raw data'!B121="","",'DF raw data'!B121) -> -2.95178e-05 | C116: =IF('DF raw data'!C121="","",'DF raw data'!C121) -> 0.000146639 | D116: =IF('DF raw data'!D121="","",'DF raw data'!D121) -> -3.03103e-05 | F116: -2.967424434e-05 | G116: 0.0001474161867 | H116: -3.047094459e-05 | J116: -0.0007668263227 | K116: -0.01062483467 | L116: 0.004147605417 | M116: 0.05867906368 | N116: 0.0001698896622
A117: =IF('DF raw data'!A122="","",'DF raw data'!A122) -> -272.5 | B117: =IF('DF raw data'!B122="","",'DF raw data'!B122) -> -1.56784e-05 | C117: =IF('DF raw data'!C122="","",'DF raw data'!C122) -> 0.000141336 | D117: =IF('DF raw data'!D122="","",'DF raw data'!D122) -> -2.57658e-05 | F117: -1.576149552e-05 | G117: 0.0001420850808 | H117: -2.590235874e-05 | J117: -0.0007747070704 | K117: -0.0110121882 | L117: 0.004218647957 | M117: 0.06078838766 | N117: 0.000179088243
A118: =IF('DF raw data'!A123="","",'DF raw data'!A123) -> -272 | B118: =IF('DF raw data'!B123="","",'DF raw data'!B123) -> -2.5934e-05 | C118: =IF('DF raw data'!C123="","",'DF raw data'!C123) -> 0.000128573 | D118: =IF('DF raw data'!D123="","",'DF raw data'!D123) -> -2.23459e-05 | F118: -2.60714502e-05 | G118: 0.0001292544369 | H118: -2.246433327e-05 | J118: -0.0007877427955 | K118: -0.0114060596 | L118: 0.004283275176 | M118: 0.06293002525 | N118: 0.0001885717355
A119: =IF('DF raw data'!A124="","",'DF raw data'!A124) -> -271.5 | B119: =IF('DF raw data'!B124="","",'DF raw data'!B124) -> -2.24129e-05 | C119: =IF('DF raw data'!C124="","",'DF raw data'!C124) -> 0.00013874 | D119: =IF('DF raw data'!D124="","",'DF raw data'!D124) -> -1.6885e-05 | F119: -2.253168837e-05 | G119: 0.000139475322 | H119: -1.69744905e-05 | J119: -0.0007990086397 | K119: -0.01180556392 | L119: 0.004353012837 | M119: 0.06510653167 | N119: 0.0001983653033
A120: =IF('DF raw data'!A125="","",'DF raw data'!A125) -> -271 | B120: =IF('DF raw data'!B125="","",'DF raw data'!B125) -> -1.5744e-05 | C120: =IF('DF raw data'!C125="","",'DF raw data'!C125) -> 0.00015541 | D120: =IF('DF raw data'!D125="","",'DF raw data'!D125) -> -2.34943e-05 | F120: -1.58274432e-05 | G120: 0.000156233673 | H120: -2.361881979e-05 | J120: -0.0008069223613 | K120: -0.0122090251 | L120: 0.004431129673 | M120: 0.0673220965 | N120: 0.0002085083202
A121: =IF('DF raw data'!A126="","",'DF raw data'!A126) -> -270.5 | B121: =IF('DF raw data'!B126="","",'DF raw data'!B126) -> -2.91997e-05 | C121: =IF('DF raw data'!C126="","",'DF raw data'!C126) -> 0.000152145 | D121: =IF('DF raw data'!D126="","",'DF raw data'!D126) -> -2.6533e-05 | F121: -2.935445841e-05 | G121: 0.0001529513685 | H121: -2.66736249e-05 | J121: -0.0008215995905 | K121: -0.0126198249 | L121: 0.004507605357 | M121: 0.06957589918 | N121: 0.0002190050862
A122: =IF('DF raw data'!A127="","",'DF raw data'!A127) -> -270 | B122: =IF('DF raw data'!B127="","",'DF raw data'!B127) -> -2.98524e-05 | C122: =IF('DF raw data'!C127="","",'DF raw data'!C127) -> 0.000143058 | D122: =IF('DF raw data'!D127="","",'DF raw data'!D127) -> -8.19995e-06 | F122: -3.001061772e-05 | G122: 0.0001438162074 | H122: -8.243409735e-06 | J122: -0.0008366048994 | K122: -0.01303812735 | L122: 0.004579513461 | M122: 0.07186565591 | N122: 0.0002298410119
A123: =IF('DF raw data'!A128="","",'DF raw data'!A128) -> -269.5 | B123: =IF('DF raw data'!B128="","",'DF raw data'!B128) -> -3.4716e-05 | C123: =IF('DF raw data'!C128="","",'DF raw data'!C128) -> 0.00014366 | D123: =IF('DF raw data'!D128="","",'DF raw data'!D128) -> -1.89824e-05 | F123: -3.48999948e-05 | G123: 0.000144421398 | H123: -1.908300672e-05 | J123: -0.0008540548968 | K123: -0.0134651548 | L123: 0.00465172416 | M123: 0.07419151799 | N123: 0.0002410249856
A124: =IF('DF raw data'!A129="","",'DF raw data'!A129) -> -269 | B124: =IF('DF raw data'!B129="","",'DF raw data'!B129) -> -2.33737e-05 | C124: =IF('DF raw data'!C129="","",'DF raw data'!C129) -> 0.000148435 | D124: =IF('DF raw data'!D129="","",'DF raw data'!D129) -> -1.77664e-05 | F124: -2.349758061e-05 | G124: 0.0001492217055 | H124: -1.786056192e-05 | J124: -0.0008658036871 | K124: -0.01389805664 | L124: 0.004726335013 | M124: 0.0765546855 | N124: 0.0002525689149
A125: =IF('DF raw data'!A130="","",'DF raw data'!A130) -> -268.5 | B125: =IF('DF raw data'!B130="","",'DF raw data'!B130) -> -2.13849e-05 | C125: =IF('DF raw data'!C130="","",'DF raw data'!C130) -> 0.000153389 | D125: =IF('DF raw data'!D130="","",'DF raw data'!D130) -> -2.10308e-05 | F125: -2.149823997e-05 | G125: 0.0001542019617 | H125: -2.114226324e-05 | J125: -0.0008765528071 | K125: -0.01433633304 | L125: 0.004803435994 | M125: 0.0789564035 | N125: 0.000264489586
A126: =IF('DF raw data'!A131="","",'DF raw data'!A131) -> -268 | B126: =IF('DF raw data'!B131="","",'DF raw data'!B131) -> -3.06026e-05 | C126: =IF('DF raw data'!C131="","",'DF raw data'!C131) -> 0.000152985 | D126: =IF('DF raw data'!D131="","",'DF raw data'!D131) -> -3.71686e-05 | F126: -3.076479378e-05 | G126: 0.0001537958205 | H126: -3.736559358e-05 | J126: -0.0008919352039 | K126: -0.01478230064 | L126: 0.004880333904 | M126: 0.08139657045 | N126: 0.0002767961897
A127: =IF('DF raw data'!A132="","",'DF raw data'!A132) -> -267.5 | B127: =IF('DF raw data'!B132="","",'DF raw data'!B132) -> -2.81095e-05 | C127: =IF('DF raw data'!C132="","",'DF raw data'!C132) -> 0.000148309 | D127: =IF('DF raw data'!D132="","",'DF raw data'!D132) -> -2.79653e-05 | F127: -2.825848035e-05 | G127: 0.0001490950377 | H127: -2.811351609e-05 | J127: -0.0009060644441 | K127: -0.01523533287 | L127: 0.004954881423 | M127: 0.08387401116 | N127: 0.000289482091
A128: =IF('DF raw data'!A133="","",'DF raw data'!A133) -> -267 | B128: =IF('DF raw data'!B133="","",'DF raw data'!B133) -> -2.56128e-05 | C128: =IF('DF raw data'!C133="","",'DF raw data'!C133) -> 0.000154996 | D128: =IF('DF raw data'!D133="","",'DF raw data'!D133) -> -2.38392e-05 | F128: =(1-$G$1*($B$49-$G$2))*B128 -> -2.574854784e-05 | G128: 0.0001558174788 | H128: -2.396554776e-05 | J128: =F128*$G$3+J127 -> -0.000918938718 | K128: =J128*$G$3+K127 -> -0.01569480223 | L128: =G128*$G$3+L127 -> 0.005032790162 | M128: =L128*$G$3+M127 -> 0.08639040624 | N128: =(J128^2+L128^2)*$G$3+N127 -> 0.0003025688036
A129: =IF('DF raw data'!A134="","",'DF raw data'!A134) -> -266.5 | B129: =IF('DF raw data'!B134="","",'DF raw data'!B134) -> -3.61248e-05 | C129: =IF('DF raw data'!C134="","",'DF raw data'!C134) -> 0.000152954 | D129: =IF('DF raw data'!D134="","",'DF raw data'!D134) -> -2.05091e-05 | F129: -3.631626144e-05 | G129: 0.0001537646562 | H129: -2.061779823e-05 | J129: -0.0009370968488 | K129: -0.01616335065 | L129: 0.00510967249 | M129: 0.08894524249 | N129: 0.0003160622554
A130: =IF('DF raw data'!A135="","",'DF raw data'!A135) -> -266 | B130: =IF('DF raw data'!B135="","",'DF raw data'!B135) -> -2.79221e-05 | C130: =IF('DF raw data'!C135="","",'DF raw data'!C135) -> 0.000143758 | D130: =IF('DF raw data'!D135="","",'DF raw data'!D135) -> -2.01954e-05 | F130: -2.807008713e-05 | G130: 0.0001445199174 | H130: -2.030243562e-05 | J130: -0.0009511318923 | K130: -0.0166389166 | L130: 0.005181932449 | M130: 0.09153620871 | N130: 0.0003299407933
A131: =IF('DF raw data'!A136="","",'DF raw data'!A136) -> -265.5 | B131: =IF('DF raw data'!B136="","",'DF raw data'!B136) -> -2.01573e-05 | C131: =IF('DF raw data'!C136="","",'DF raw data'!C136) -> 0.000142158 | D131: =IF('DF raw data'!D136="","",'DF raw data'!D136) -> -3.66937e-05 | F131: -2.026413369e-05 | G131: 0.0001429114374 | H131: -3.688817661e-05 | J131: -0.0009612639592 | K131: -0.01711954858 | L131: 0.005253388168 | M131: 0.09416290279 | N131: 0.0003442018511
A132: =IF('DF raw data'!A137="","",'DF raw data'!A137) -> -265 | B132: =IF('DF raw data'!B137="","",'DF raw data'!B137) -> -1.76574e-05 | C132: =IF('DF raw data'!C137="","",'DF raw data'!C137) -> 0.000142346 | D132: =IF('DF raw data'!D137="","",'DF raw data'!D137) -> -3.75045e-05 | F132: -1.775098422e-05 | G132: 0.0001431004338 | H132: -3.770327385e-05 | J132: -0.0009701394513 | K132: -0.0176046183 | L132: 0.005324938384 | M132: 0.09682537199 | N132: 0.0003588499208
A133: =IF('DF raw data'!A138="","",'DF raw data'!A138) -> -264.5 | B133: =IF('DF raw data'!B138="","",'DF raw data'!B138) -> -3.71377e-05 | C133: =IF('DF raw data'!C138="","",'DF raw data'!C138) -> 0.000149835 | D133: =IF('DF raw data'!D138="","",'DF raw data'!D138) -> -3.95868e-05 | F133: -3.733452981e-05 | G133: 0.0001506291255 | H133: -3.979661004e-05 | J133: -0.0009888067162 | K133: -0.01809902166 | L133: 0.005400252947 | M133: 0.09952549846 | N133: 0.0003739201561
A134: =IF('DF raw data'!A139="","",'DF raw data'!A139) -> -264 | B134: =IF('DF raw data'!B139="","",'DF raw data'!B139) -> -3.07312e-05 | C134: =IF('DF raw data'!C139="","",'DF raw data'!C139) -> 0.000156781 | D134: =IF('DF raw data'!D139="","",'DF raw data'!D139) -> -3.64849e-05 | F134: -3.089407536e-05 | G134: 0.0001576119393 | H134: -3.667826997e-05 | J134: -0.001004253754 | K134: -0.01860114854 | L134: 0.005479058917 | M134: 0.1022650279 | N134: 0.0003894344622
A135: =IF('DF raw data'!A140="","",'DF raw data'!A140) -> -263.5 | B135: =IF('DF raw data'!B140="","",'DF raw data'!B140) -> -3.26555e-05 | C135: =IF('DF raw data'!C140="","",'DF raw data'!C140) -> 0.000158242 | D135: =IF('DF raw data'!D140="","",'DF raw data'!D140) -> -3.41204e-05 | F135: -3.282857415e-05 | G135: 0.0001590806826 | H135: -3.430123812e-05 | J135: -0.001020668041 | K135: -0.01911148256 | L135: 0.005558599258 | M135: 0.1050443275 | N135: 0.0004054043567
A136: =IF('DF raw data'!A141="","",'DF raw data'!A141) -> -263 | B136: =IF('DF raw data'!B141="","",'DF raw data'!B141) -> -2.62395e-05 | C136: =IF('DF raw data'!C141="","",'DF raw data'!C141) -> 0.00015305 | D136: =IF('DF raw data'!D141="","",'DF raw data'!D141) -> -4.57003e-05 | F136: -2.637856935e-05 | G136: 0.000153861165 | H136: -4.594251159e-05 | J136: -0.001033857326 | K136: -0.01962841122 | L136: 0.005635529841 | M136: 0.1078620925 | N136: 0.0004218183854
A137: =IF('DF raw data'!A142="","",'DF raw data'!A142) -> -262.5 | B137: =IF('DF raw data'!B142="","",'DF raw data'!B142) -> -2.99679e-05 | C137: =IF('DF raw data'!C142="","",'DF raw data'!C142) -> 0.000157279 | D137: =IF('DF raw data'!D142="","",'DF raw data'!D142) -> -2.77514e-05 | F137: -3.012672987e-05 | G137: 0.0001581125787 | H137: -2.789848242e-05 | J137: -0.001048920691 | K137: -0.02015287156 | L137: 0.00571458613 | M137: 0.1107193855 | N137: 0.0004386967501
A138: =IF('DF raw data'!A143="","",'DF raw data'!A143) -> -262 | B138: =IF('DF raw data'!B143="","",'DF raw data'!B143) -> -3.4515e-05 | C138: =IF('DF raw data'!C143="","",'DF raw data'!C143) -> 0.000152119 | D138: =IF('DF raw data'!D143="","",'DF raw data'!D143) -> -3.22016e-05 | F138: -3.46979295e-05 | G138: 0.0001529252307 | H138: -3.237226848e-05 | J138: -0.001066269655 | K138: -0.02068600639 | L138: 0.005791048745 | M138: 0.1136149099 | N138: 0.0004560333383
A139: =IF('DF raw data'!A144="","",'DF raw data'!A144) -> -261.5 | B139: =IF('DF raw data'!B144="","",'DF raw data'!B144) -> -2.91265e-05 | C139: =IF('DF raw data'!C144="","",'DF raw data'!C144) -> 0.000155925 | D139: =IF('DF raw data'!D144="","",'DF raw data'!D144) -> -4.07432e-05 | F139: -2.928087045e-05 | G139: 0.0001567514025 | H139: -4.095913896e-05 | J139: -0.001080910091 | K139: -0.02122646144 | L139: 0.005869424447 | M139: 0.1165496221 | N139: 0.0004738425933
A140: =IF('DF raw data'!A145="","",'DF raw data'!A145) -> -261 | B140: =IF('DF raw data'!B145="","",'DF raw data'!B145) -> -3.54112e-05 | C140: =IF('DF raw data'!C145="","",'DF raw data'!C145) -> 0.000162593 | D140: =IF('DF raw data'!D145="","",'DF raw data'!D145) -> -3.41254e-05 | F140: -3.559887936e-05 | G140: 0.0001634547429 | H140: -3.430626462e-05 | J140: -0.00109870953 | K140: -0.0217758162 | L140: 0.005951151818 | M140: 0.119525198 | N140: 0.0004921542786
A141: =IF('DF raw data'!A146="","",'DF raw data'!A146) -> -260.5 | B141: =IF('DF raw data'!B146="","",'DF raw data'!B146) -> -3.08707e-05 | C141: =IF('DF raw data'!C146="","",'DF raw data'!C146) -> 0.000164132 | D141: =IF('DF raw data'!D146="","",'DF raw data'!D146) -> -1.90115e-05 | F141: -3.103431471e-05 | G141: 0.0001650018996 | H141: -1.911226095e-05 | J141: -0.001114226688 | K141: -0.02233292955 | L141: 0.006033652768 | M141: 0.1225420244 | N141: 0.000510977512
A142: =IF('DF raw data'!A147="","",'DF raw data'!A147) -> -260 | B142: =IF('DF raw data'!B147="","",'DF raw data'!B147) -> -3.24674e-05 | C142: =IF('DF raw data'!C147="","",'DF raw data'!C147) -> 0.000157112 | D142: =IF('DF raw data'!D147="","",'DF raw data'!D147) -> -2.76052e-05 | F142: -3.263947722e-05 | G142: 0.0001579446936 | H142: -2.775150756e-05 | J142: -0.001130546426 | K142: -0.02289820276 | L142: 0.006112625115 | M142: 0.125598337 | N142: 0.0005302986725
A143: =IF('DF raw data'!A148="","",'DF raw data'!A148) -> -259.5 | B143: =IF('DF raw data'!B148="","",'DF raw data'!B148) -> -3.41367e-05 | C143: =IF('DF raw data'!C148="","",'DF raw data'!C148) -> 0.000152163 | D143: =IF('DF raw data'!D148="","",'DF raw data'!D148) -> -2.26122e-05 | F143: -3.431762451e-05 | G143: 0.0001529694639 | H143: -2.273204466e-05 | J143: -0.001147705238 | K143: -0.02347205538 | L143: 0.006189109847 | M143: 0.1286928919 | N143: 0.0005501098265
A144: =IF('DF raw data'!A149="","",'DF raw data'!A149) -> -259 | B144: =IF('DF raw data'!B149="","",'DF raw data'!B149) -> -3.55456e-05 | C144: =IF('DF raw data'!C149="","",'DF raw data'!C149) -> 0.000157881 | D144: =IF('DF raw data'!D149="","",'DF raw data'!D149) -> -2.44732e-05 | F144: -3.573399168e-05 | G144: 0.0001587177693 | H144: -2.460290796e-05 | J144: -0.001165572234 | K144: -0.0240548415 | L144: 0.006268468731 | M144: 0.1318271263 | N144: 0.000570435956
A145: =IF('DF raw data'!A150="","",'DF raw data'!A150) -> -258.5 | B145: =IF('DF raw data'!B150="","",'DF raw data'!B150) -> -2.65071e-05 | C145: =IF('DF raw data'!C150="","",'DF raw data'!C150) -> 0.000162181 | D145: =IF('DF raw data'!D150="","",'DF raw data'!D150) -> -2.83109e-05 | F145: -2.664758763e-05 | G145: 0.0001630405593 | H145: -2.846094777e-05 | J145: -0.001178896028 | K145: -0.02464428951 | L145: 0.006349989011 | M145: 0.1350021208 | N145: 0.0005912920341
A146: =IF('DF raw data'!A151="","",'DF raw data'!A151) -> -258 | B146: =IF('DF raw data'!B151="","",'DF raw data'!B151) -> -2.53528e-05 | C146: =IF('DF raw data'!C151="","",'DF raw data'!C151) -> 0.000155927 | D146: =IF('DF raw data'!D151="","",'DF raw data'!D151) -> -2.94785e-05 | F146: -2.548716984e-05 | G146: 0.0001567534131 | H146: -2.963473605e-05 | J146: -0.001191639613 | K146: -0.02524010932 | L146: 0.006428365717 | M146: 0.1382163036 | N146: 0.0006126639795
A147: =IF('DF raw data'!A152="","",'DF raw data'!A152) -> -257.5 | B147: =IF('DF raw data'!B152="","",'DF raw data'!B152) -> -3.43917e-05 | C147: =IF('DF raw data'!C152="","",'DF raw data'!C152) -> 0.000150125 | D147: =IF('DF raw data'!D152="","",'DF raw data'!D152) -> -2.48333e-05 | F147: -3.457397601e-05 | G147: 0.0001509206625 | H147: -2.496491649e-05 | J147: -0.001208926601 | K147: -0.02584457262 | L147: 0.006503826049 | M147: 0.1414682167 | N147: 0.0006345446079
A148: =IF('DF raw data'!A153="","",'DF raw data'!A153) -> -257 | B148: =IF('DF raw data'!B153="","",'DF raw data'!B153) -> -1.93315e-05 | C148: =IF('DF raw data'!C153="","",'DF raw data'!C153) -> 0.000149964 | D148: =IF('DF raw data'!D153="","",'DF raw data'!D153) -> -2.528e-05 | F148: -1.943395695e-05 | G148: 0.0001507588092 | H148: -2.5413984e-05 | J148: -0.001218643579 | K148: -0.02645389441 | L148: 0.006579205453 | M148: 0.1447578194 | N148: 0.0006569301262
A149: =IF('DF raw data'!A154="","",'DF raw data'!A154) -> -256.5 | B149: =IF('DF raw data'!B154="","",'DF raw data'!B154) -> -2.37563e-05 | C149: =IF('DF raw data'!C154="","",'DF raw data'!C154) -> 0.00015118 | D149: =IF('DF raw data'!D154="","",'DF raw data'!D154) -> -2.07902e-05 | F149: -2.388220839e-05 | G149: 0.000151981254 | H149: -2.090038806e-05 | J149: -0.001230584684 | K149: -0.02706918675 | L149: 0.00665519608 | M149: 0.1480854174 | N149: 0.0006798331129
A150: =IF('DF raw data'!A155="","",'DF raw data'!A155) -> -256 | B150: =IF('DF raw data'!B155="","",'DF raw data'!B155) -> -2.46456e-05 | C150: =IF('DF raw data'!C155="","",'DF raw data'!C155) -> 0.000155059 | D150: =IF('DF raw data'!D155="","",'DF raw data'!D155) -> -3.29137e-05 | F150: -2.477622168e-05 | G150: 0.0001558808127 | H150: -3.308814261e-05 | J150: -0.001242972795 | K150: -0.02769067315 | L150: 0.006733136487 | M150: 0.1514519857 | N150: 0.0007032731671
A151: =IF('DF raw data'!A156="","",'DF raw data'!A156) -> -255.5 | B151: =IF('DF raw data'!B156="","",'DF raw data'!B156) -> -3.11121e-05 | C151: =IF('DF raw data'!C156="","",'DF raw data'!C156) -> 0.000150478 | D151: =IF('DF raw data'!D156="","",'DF raw data'!D156) -> -4.24745e-05 | F151: -3.127699413e-05 | G151: 0.0001512755334 | H151: -4.269961485e-05 | J151: -0.001258611292 | K151: -0.02831997879 | L151: 0.006808774253 | M151: 0.1548563728 | N151: 0.0007272449217
A152: =IF('DF raw data'!A157="","",'DF raw data'!A157) -> -255 | B152: =IF('DF raw data'!B157="","",'DF raw data'!B157) -> -3.32996e-05 | C152: =IF('DF raw data'!C157="","",'DF raw data'!C157) -> 0.000152422 | D152: =IF('DF raw data'!D157="","",'DF raw data'!D157) -> -2.92071e-05 | F152: -3.347608788e-05 | G152: 0.0001532298366 | H152: -2.936189763e-05 | J152: -0.001275349336 | K152: -0.02895765346 | L152: 0.006885389172 | M152: 0.1582990674 | N152: 0.0007517624717
A153: =IF('DF raw data'!A158="","",'DF raw data'!A158) -> -254.5 | B153: =IF('DF raw data'!B158="","",'DF raw data'!B158) -> -2.55482e-05 | C153: =IF('DF raw data'!C158="","",'DF raw data'!C158) -> 0.000161307 | D153: =IF('DF raw data'!D158="","",'DF raw data'!D158) -> -2.453e-05 | F153: -2.568360546e-05 | G153: 0.0001621619271 | H153: -2.4660009e-05 | J153: -0.001288191138 | K153: -0.02960174903 | L153: 0.006966470135 | M153: 0.1617823024 | N153: 0.000776858043
A154: =IF('DF raw data'!A159="","",'DF raw data'!A159) -> -254 | B154: =IF('DF raw data'!B159="","",'DF raw data'!B159) -> -1.87616e-05 | C154: =IF('DF raw data'!C159="","",'DF raw data'!C159) -> 0.000157187 | D154: =IF('DF raw data'!D159="","",'DF raw data'!D159) -> -1.46506e-05 | F154: -1.886103648e-05 | G154: 0.0001580200911 | H154: -1.472824818e-05 | J154: -0.001297621656 | K154: -0.03025055986 | L154: 0.007045480181 | M154: 0.1653050425 | N154: 0.0008025193494
A155: =IF('DF raw data'!A160="","",'DF raw data'!A160) -> -253.5 | B155: =IF('DF raw data'!B160="","",'DF raw data'!B160) -> -3.40037e-05 | C155: =IF('DF raw data'!C160="","",'DF raw data'!C160) -> 0.000152244 | D155: =IF('DF raw data'!D160="","",'DF raw data'!D160) -> -3.01198e-05 | F155: -3.418391961e-05 | G155: 0.0001530508932 | H155: -3.027943494e-05 | J155: -0.001314713616 | K155: -0.03090791666 | L155: 0.007122005627 | M155: 0.1688660454 | N155: 0.0008287450675
A156: =IF('DF raw data'!A161="","",'DF raw data'!A161) -> -253 | B156: =IF('DF raw data'!B161="","",'DF raw data'!B161) -> -2.54809e-05 | C156: =IF('DF raw data'!C161="","",'DF raw data'!C161) -> 0.000151117 | D156: =IF('DF raw data'!D161="","",'DF raw data'!D161) -> -2.96424e-05 | F156: -2.561594877e-05 | G156: 0.0001519179201 | H156: -2.979950472e-05 | J156: -0.001327521591 | K156: -0.03157167746 | L156: 0.007197964587 | M156: 0.1724650276 | N156: 0.0008555315714
A157: =IF('DF raw data'!A162="","",'DF raw data'!A162) -> -252.5 | B157: =IF('DF raw data'!B162="","",'DF raw data'!B162) -> -2.79169e-05 | C157: =IF('DF raw data'!C162="","",'DF raw data'!C162) -> 0.000158213 | D157: =IF('DF raw data'!D162="","",'DF raw data'!D162) -> -2.83047e-05 | F157: -2.806485957e-05 | G157: 0.0001590515289 | H157: -2.845471491e-05 | J157: -0.00134155402 | K157: -0.03224245447 | L157: 0.007277490352 | M157: 0.1761037728 | N157: 0.0008829123879
A158: =IF('DF raw data'!A163="","",'DF raw data'!A163) -> -252 | B158: =IF('DF raw data'!B163="","",'DF raw data'!B163) -> -2.5547e-05 | C158: =IF('DF raw data'!C163="","",'DF raw data'!C163) -> 0.000159702 | D158: =IF('DF raw data'!D163="","",'DF raw data'!D163) -> -2.64076e-05 | F158: -2.56823991e-05 | G158: 0.0001605484206 | H158: -2.654756028e-05 | J158: -0.00135439522 | K158: -0.03291965208 | L158: 0.007357764562 | M158: 0.1797826551 | N158: 0.0009108979307
A159: =IF('DF raw data'!A164="","",'DF raw data'!A164) -> -251.5 | B159: =IF('DF raw data'!B164="","",'DF raw data'!B164) -> -3.34379e-05 | C159: =IF('DF raw data'!C164="","",'DF raw data'!C164) -> 0.000157846 | D159: =IF('DF raw data'!D164="","",'DF raw data'!D164) -> -1.35067e-05 | F159: -3.361512087e-05 | G159: 0.0001586825838 | H159: -1.357828551e-05 | J159: -0.00137120278 | K159: -0.03360525347 | L159: 0.007437105854 | M159: 0.183501208 | N159: 0.000939493301
A160: =IF('DF raw data'!A165="","",'DF raw data'!A165) -> -251 | B160: =IF('DF raw data'!B165="","",'DF raw data'!B165) -> -4.12564e-05 | C160: =IF('DF raw data'!C165="","",'DF raw data'!C165) -> 0.000164504 | D160: =IF('DF raw data'!D165="","",'DF raw data'!D165) -> -1.33232e-05 | F160: -4.147505892e-05 | G160: 0.0001653758712 | H160: -1.339381296e-05 | J160: -0.00139194031 | K160: -0.03430122363 | L160: 0.00751979379 | M160: 0.1872611049 | N160: 0.0009687356993
A161: =IF('DF raw data'!A166="","",'DF raw data'!A166) -> -250.5 | B161: =IF('DF raw data'!B166="","",'DF raw data'!B166) -> -3.95887e-05 | C161: =IF('DF raw data'!C166="","",'DF raw data'!C166) -> 0.000169682 | D161: =IF('DF raw data'!D166="","",'DF raw data'!D166) -> -1.56632e-05 | F161: -3.979852011e-05 | G161: 0.0001705813146 | H161: -1.574621496e-05 | J161: -0.00141183957 | K161: -0.03500714341 | L161: 0.007605084447 | M161: 0.1910636471 | N161: 0.0009986509995
A162: =IF('DF raw data'!A167="","",'DF raw data'!A167) -> -250 | B162: =IF('DF raw data'!B167="","",'DF raw data'!B167) -> -2.30573e-05 | C162: =IF('DF raw data'!C167="","",'DF raw data'!C167) -> 0.000162636 | D162: =IF('DF raw data'!D167="","",'DF raw data'!D167) -> -1.19017e-05 | F162: -2.317950369e-05 | G162: 0.0001634979708 | H162: -1.196477901e-05 | J162: -0.001423429322 | K162: -0.03571885807 | L162: 0.007686833432 | M162: 0.1949070639 | N162: 0.001029207779
A163: =IF('DF raw data'!A168="","",'DF raw data'!A168) -> -249.5 | B163: =IF('DF raw data'!B168="","",'DF raw data'!B168) -> -2.80437e-05 | C163: =IF('DF raw data'!C168="","",'DF raw data'!C168) -> 0.000154162 | D163: =IF('DF raw data'!D168="","",'DF raw data'!D168) -> -3.05464e-05 | F163: -2.819233161e-05 | G163: 0.0001549790586 | H163: -3.070829592e-05 | J163: -0.001437525488 | K163: -0.03643762082 | L163: 0.007764322962 | M163: 0.1987892253 | N163: 0.001060383374
A164: =IF('DF raw data'!A169="","",'DF raw data'!A169) -> -249 | B164: =IF('DF raw data'!B169="","",'DF raw data'!B169) -> -3.07372e-05 | C164: =IF('DF raw data'!C169="","",'DF raw data'!C169) -> 0.000154688 | D164: =IF('DF raw data'!D169="","",'DF raw data'!D169) -> -2.73997e-05 | F164: -3.090010716e-05 | G164: 0.0001555078464 | H164: -2.754491841e-05 | J164: -0.001452975541 | K164: -0.03716410859 | L164: 0.007842076885 | M164: 0.2027102638 | N164: 0.001092188028
A165: =IF('DF raw data'!A170="","",'DF raw data'!A170) -> -248.5 | B165: =IF('DF raw data'!B170="","",'DF raw data'!B170) -> -3.52267e-05 | C165: =IF('DF raw data'!C170="","",'DF raw data'!C170) -> 0.000149821 | D165: =IF('DF raw data'!D170="","",'DF raw data'!D170) -> -2.21065e-05 | F165: -3.541340151e-05 | G165: 0.0001506150513 | H165: -2.222366445e-05 | J165: -0.001470682242 | K165: -0.03789944971 | L165: 0.007917384411 | M165: 0.206668956 | N165: 0.001124611969
A166: =IF('DF raw data'!A171="","",'DF raw data'!A171) -> -248 | B166: =IF('DF raw data'!B171="","",'DF raw data'!B171) -> -2.27924e-05 | C166: =IF('DF raw data'!C171="","",'DF raw data'!C171) -> 0.000150461 | D166: =IF('DF raw data'!D171="","",'DF raw data'!D171) -> -2.47339e-05 | F166: -2.291319972e-05 | G166: 0.0001512584433 | H166: -2.486498967e-05 | J166: -0.001482138842 | K166: -0.03864051913 | L166: 0.007993013632 | M166: 0.2106654628 | N166: 0.001157654471
A167: =IF('DF raw data'!A172="","",'DF raw data'!A172) -> -247.5 | B167: =IF('DF raw data'!B172="","",'DF raw data'!B172) -> -3.21493e-05 | C167: =IF('DF raw data'!C172="","",'DF raw data'!C172) -> 0.000155026 | D167: =IF('DF raw data'!D172="","",'DF raw data'!D172) -> -2.42908e-05 | F167: -3.231969129e-05 | G167: 0.0001558476378 | H167: -2.441954124e-05 | J167: -0.001498298687 | K167: -0.03938966847 | L167: 0.008070937451 | M167: 0.2147009315 | N167: 0.001191346936
A168: =IF('DF raw data'!A173="","",'DF raw data'!A173) -> -247 | B168: =IF('DF raw data'!B173="","",'DF raw data'!B173) -> -3.33006e-05 | C168: =IF('DF raw data'!C173="","",'DF raw data'!C173) -> 0.000160026 | D168: =IF('DF raw data'!D173="","",'DF raw data'!D173) -> -2.76265e-05 | F168: -3.347709318e-05 | G168: 0.0001608741378 | H168: -2.777292045e-05 | J168: -0.001515037234 | K168: -0.04014718709 | L168: 0.00815137452 | M168: 0.2187766188 | N168: 0.001225717058
A169: =IF('DF raw data'!A174="","",'DF raw data'!A174) -> -246.5 | B169: =IF('DF raw data'!B174="","",'DF raw data'!B174) -> -2.38805e-05 | C169: =IF('DF raw data'!C174="","",'DF raw data'!C174) -> 0.00016478 | D169: =IF('DF raw data'!D174="","",'DF raw data'!D174) -> -2.69704e-05 | F169: -2.400706665e-05 | G169: 0.000165653334 | H169: -2.711334312e-05 | J169: -0.001527040767 | K169: -0.04091070747 | L169: 0.008234201187 | M169: 0.2228937194 | N169: 0.001260784019
A170: =IF('DF raw data'!A175="","",'DF raw data'!A175) -> -246 | B170: =IF('DF raw data'!B175="","",'DF raw data'!B175) -> -2.91378e-05 | C170: =IF('DF raw data'!C175="","",'DF raw data'!C175) -> 0.000151653 | D170: =IF('DF raw data'!D175="","",'DF raw data'!D175) -> -2.34659e-05 | F170: -2.929223034e-05 | G170: 0.0001524567609 | H170: -2.359026927e-05 | J170: -0.001541686883 | K170: -0.04168155091 | L170: 0.008310429567 | M170: 0.2270489342 | N170: 0.001296504038
A171: =IF('DF raw data'!A176="","",'DF raw data'!A176) -> -245.5 | B171: =IF('DF raw data'!B176="","",'DF raw data'!B176) -> -3.38794e-05 | C171: =IF('DF raw data'!C176="","",'DF raw data'!C176) -> 0.000147771 | D171: =IF('DF raw data'!D176="","",'DF raw data'!D176) -> -2.43216e-05 | F171: -3.405896082e-05 | G171: 0.0001485541863 | H171: -2.445050448e-05 | J171: -0.001558716363 | K171: -0.04246090909 | L171: 0.008384706661 | M171: 0.2312412875 | N171: 0.00133287049
A172: =IF('DF raw data'!A177="","",'DF raw data'!A177) -> -245 | B172: =IF('DF raw data'!B177="","",'DF raw data'!B177) -> -1.95219e-05 | C172: =IF('DF raw data'!C177="","",'DF raw data'!C177) -> 0.000147298 | D172: =IF('DF raw data'!D177="","",'DF raw data'!D177) -> -2.84392e-05 | F172: -1.962536607e-05 | G172: 0.0001480786794 | H172: -2.858992776e-05 | J172: -0.001568529046 | K172: -0.04324517362 | L172: 0.008458746 | M172: 0.2354706605 | N172: 0.001369875823
A173: =IF('DF raw data'!A178="","",'DF raw data'!A178) -> -244.5 | B173: =IF('DF raw data'!B178="","",'DF raw data'!B178) -> -3.3941e-05 | C173: =IF('DF raw data'!C178="","",'DF raw data'!C178) -> 0.00014831 | D173: =IF('DF raw data'!D178="","",'DF raw data'!D178) -> -2.83631e-05 | F173: -3.41208873e-05 | G173: 0.000149096043 | H173: -2.851342443e-05 | J173: -0.00158558949 | K173: -0.04403796836 | L173: 0.008533294022 | M173: 0.2397373075 | N173: 0.001407541424
A174: =IF('DF raw data'!A179="","",'DF raw data'!A179) -> -244 | B174: =IF('DF raw data'!B179="","",'DF raw data'!B179) -> -2.65776e-05 | C174: =IF('DF raw data'!C179="","",'DF raw data'!C179) -> 0.000158472 | D174: =IF('DF raw data'!D179="","",'DF raw data'!D179) -> -1.82263e-05 | F174: -2.671846128e-05 | G174: 0.0001593119016 | H174: -1.832289939e-05 | J174: -0.00159894872 | K174: -0.04483744272 | L174: 0.008612949973 | M174: 0.2440437825 | N174: 0.001445911196
A175: =IF('DF raw data'!A180="","",'DF raw data'!A180) -> -243.5 | B175: =IF('DF raw data'!B180="","",'DF raw data'!B180) -> -2.09287e-05 | C175: =IF('DF raw data'!C180="","",'DF raw data'!C180) -> 0.000161017 | D175: =IF('DF raw data'!D180="","",'DF raw data'!D180) -> -3.30851e-05 | F175: -2.103962211e-05 | G175: 0.0001618703901 | H175: -3.326045103e-05 | J175: -0.001609468531 | K175: -0.04564217699 | L175: 0.008693885168 | M175: 0.2483907251 | N175: 0.00148499821
A176: =IF('DF raw data'!A181="","",'DF raw data'!A181) -> -243 | B176: =IF('DF raw data'!B181="","",'DF raw data'!B181) -> -3.17661e-05 | C176: =IF('DF raw data'!C181="","",'DF raw data'!C181) -> 0.000162433 | D176: =IF('DF raw data'!D181="","",'DF raw data'!D181) -> -2.22063e-05 | F176: -3.193446033e-05 | G176: 0.0001632938949 | H176: -2.232399339e-05 | J176: -0.001625435761 | K176: -0.04645489487 | L176: 0.008775532115 | M176: 0.2527784911 | N176: 0.001524824213
A177: =IF('DF raw data'!A182="","",'DF raw data'!A182) -> -242.5 | B177: =IF('DF raw data'!B182="","",'DF raw data'!B182) -> -2.68315e-05 | C177: =IF('DF raw data'!C182="","",'DF raw data'!C182) -> 0.000161327 | D177: =IF('DF raw data'!D182="","",'DF raw data'!D182) -> -2.19596e-05 | F177: -2.697370695e-05 | G177: 0.0001621820331 | H177: -2.207598588e-05 | J177: -0.001638922615 | K177: -0.04727435618 | L177: 0.008856623132 | M177: 0.2572068027 | N177: 0.001565387133
A178: =IF('DF raw data'!A183="","",'DF raw data'!A183) -> -242 | B178: =IF('DF raw data'!B183="","",'DF raw data'!B183) -> -2.11243e-05 | C178: =IF('DF raw data'!C183="","",'DF raw data'!C183) -> 0.000157227 | D178: =IF('DF raw data'!D183="","",'DF raw data'!D183) -> -2.77791e-05 | F178: -2.123625879e-05 | G178: 0.0001580603031 | H178: -2.792632923e-05 | J178: -0.001649540744 | K178: -0.04809912655 | L178: 0.008935653283 | M178: 0.2616746293 | N178: 0.001606670575
A179: =IF('DF raw data'!A184="","",'DF raw data'!A184) -> -241.5 | B179: =IF('DF raw data'!B184="","",'DF raw data'!B184) -> -3.36267e-05 | C179: =IF('DF raw data'!C184="","",'DF raw data'!C184) -> 0.000153117 | D179: =IF('DF raw data'!D184="","",'DF raw data'!D184) -> -1.86729e-05 | F179: -3.380492151e-05 | G179: 0.0001539285201 | H179: -1.877186637e-05 | J179: -0.001666443205 | K179: -0.04893234815 | L179: 0.009012617543 | M179: 0.2661809381 | N179: 0.001648672729
A180: =IF('DF raw data'!A185="","",'DF raw data'!A185) -> -241 | B180: =IF('DF raw data'!B185="","",'DF raw data'!B185) -> -2.78529e-05 | C180: =IF('DF raw data'!C185="","",'DF raw data'!C185) -> 0.000155054 | D180: =IF('DF raw data'!D185="","",'DF raw data'!D185) -> -2.84943e-05 | F180: -2.800052037e-05 | G180: 0.0001558757862 | H180: -2.864531979e-05 | J180: -0.001680443465 | K180: -0.04977256988 | L180: 0.009090555436 | M180: 0.2707262158 | N180: 0.001691403773
A181: =IF('DF raw data'!A186="","",'DF raw data'!A186) -> -240.5 | B181: =IF('DF raw data'!B186="","",'DF raw data'!B186) -> -3.38131e-05 | C181: =IF('DF raw data'!C186="","",'DF raw data'!C186) -> 0.000162415 | D181: =IF('DF raw data'!D186="","",'DF raw data'!D186) -> -2.79683e-05 | F181: -3.399230943e-05 | G181: 0.0001632757995 | H181: -2.811653199e-05 | J181: -0.00169743962 | K181: -0.05062128969 | L181: 0.009172193336 | M181: 0.2753123125 | N181: 0.001734908989
A182: =IF('DF raw data'!A187="","",'DF raw data'!A187) -> -240 | B182: =IF('DF raw data'!B187="","",'DF raw data'!B187) -> -3.86173e-05 | C182: =IF('DF raw data'!C187="","",'DF raw data'!C187) -> 0.000159566 | D182: =IF('DF raw data'!D187="","",'DF raw data'!D187) -> -3.12217e-05 | F182: -3.882197169e-05 | G182: 0.0001604116998 | H182: -3.138717501e-05 | J182: -0.001716850606 | K182: -0.051479715 | L182: 0.009252399186 | M182: 0.2799385121 | N182: 0.001779186222
A183: =IF('DF raw data'!A188="","",'DF raw data'!A188) -> -239.5 | B183: =IF('DF raw data'!B188="","",'DF raw data'!B188) -> -2.61941e-05 | C183: =IF('DF raw data'!C188="","",'DF raw data'!C188) -> 0.000160454 | D183: =IF('DF raw data'!D188="","",'DF raw data'!D188) -> -1.67233e-05 | F183: -2.633292873e-05 | G183: 0.0001613044062 | H183: -1.681193349e-05 | J183: -0.00173001707 | K183: -0.05234472353 | L183: 0.009333051389 | M183: 0.2846050378 | N183: 0.001824235626
A184: =IF('DF raw data'!A189="","",'DF raw data'!A189) -> -239 | B184: =IF('DF raw data'!B189="","",'DF raw data'!B189) -> -4.45216e-05 | C184: =IF('DF raw data'!C189="","",'DF raw data'!C189) -> 0.000155643 | D184: =IF('DF raw data'!D189="","",'DF raw data'!D189) -> -1.8162e-05 | F184: -4.475756448e-05 | G184: 0.0001564679079 | H184: -1.82582586e-05 | J184: -0.001752395852 | K184: -0.05322092146 | L184: 0.009411285343 | M184: 0.2893106805 | N184: 0.001870057218
A185: =IF('DF raw data'!A190="","",'DF raw data'!A190) -> -238.5 | B185: =IF('DF raw data'!B190="","",'DF raw data'!B190) -> -3.58666e-05 | C185: =IF('DF raw data'!C190="","",'DF raw data'!C190) -> 0.000149068 | D185: =IF('DF raw data'!D190="","",'DF raw data'!D190) -> -2.34873e-05 | F185: -3.605669298e-05 | G185: 0.0001498580604 | H185: -2.361178269e-05 | J185: -0.001770424199 | K185: -0.05410613356 | L185: 0.009486214373 | M185: 0.2940537877 | N185: 0.00191661855
A186: =IF('DF raw data'!A191="","",'DF raw data'!A191) -> -238 | B186: =IF('DF raw data'!B191="","",'DF raw data'!B191) -> -2.68912e-05 | C186: =IF('DF raw data'!C191="","",'DF raw data'!C191) -> 0.0001509 | D186: =IF('DF raw data'!D191="","",'DF raw data'!D191) -> -2.90306e-05 | F186: -2.703372336e-05 | G186: 0.00015169977 | H186: -2.918446218e-05 | J186: -0.001783941061 | K186: -0.05499810409 | L186: 0.009562064258 | M186: 0.2988348198 | N186: 0.001963926309
A187: =IF('DF raw data'!A192="","",'DF raw data'!A192) -> -237.5 | B187: =IF('DF raw data'!B192="","",'DF raw data'!B192) -> -3.99101e-05 | C187: =IF('DF raw data'!C192="","",'DF raw data'!C192) -> 0.000149474 | D187: =IF('DF raw data'!D192="","",'DF raw data'!D192) -> -1.39983e-05 | F187: -4.012162353e-05 | G187: 0.0001502662122 | H187: -1.407249099e-05 | J187: -0.001804001872 | K187: -0.05590010502 | L187: 0.009637197364 | M187: 0.3036534185 | N187: 0.002011991307
A188: =IF('DF raw data'!A193="","",'DF raw data'!A193) -> -237 | B188: =IF('DF raw data'!B193="","",'DF raw data'!B193) -> -3.54169e-05 | C188: =IF('DF raw data'!C193="","",'DF raw data'!C193) -> 0.000157434 | D188: =IF('DF raw data'!D193="","",'DF raw data'!D193) -> -2.54713e-05 | F188: -3.560460957e-05 | G188: 0.0001582684002 | H188: -2.560629789e-05 | J188: -0.001821804177 | K188: -0.05681100711 | L188: 0.009716331564 | M188: 0.3085115842 | N188: 0.002060854342
A189: =IF('DF raw data'!A194="","",'DF raw data'!A194) -> -236.5 | B189: =IF('DF raw data'!B194="","",'DF raw data'!B194) -> -3.45159e-05 | C189: =IF('DF raw data'!C194="","",'DF raw data'!C194) -> 0.000158033 | D189: =IF('DF raw data'!D194="","",'DF raw data'!D194) -> -3.09611e-05 | F189: -3.469883427e-05 | G189: 0.0001588705749 | H189: -3.112519383e-05 | J189: -0.001839153594 | K189: -0.05773058391 | L189: 0.009795766852 | M189: 0.3134094677 | N189: 0.002110524109
A190: =IF('DF raw data'!A195="","",'DF raw data'!A195) -> -236 | B190: =IF('DF raw data'!B195="","",'DF raw data'!B195) -> -3.81685e-05 | C190: =IF('DF raw data'!C195="","",'DF raw data'!C195) -> 0.00015343 | D190: =IF('DF raw data'!D195="","",'DF raw data'!D195) -> -3.12647e-05 | F190: -3.837079305e-05 | G190: 0.000154243179 | H190: -3.143040291e-05 | J190: -0.001858338991 | K190: -0.05865975341 | L190: 0.009872888441 | M190: 0.3183459119 | N190: 0.002160987784
A191: =IF('DF raw data'!A196="","",'DF raw data'!A196) -> -235.5 | B191: =IF('DF raw data'!B196="","",'DF raw data'!B196) -> -3.43901e-05 | C191: =IF('DF raw data'!C196="","",'DF raw data'!C196) -> 0.000155401 | D191: =IF('DF raw data'!D196="","",'DF raw data'!D196) -> -2.73845e-05 | F191: -3.457236753e-05 | G191: 0.0001562246253 | H191: -2.752963785e-05 | J191: -0.001875625175 | K191: -0.05959756599 | L191: 0.009951000754 | M191: 0.3233214123 | N191: 0.002212257977
A192: =IF('DF raw data'!A197="","",'DF raw data'!A197) -> -235 | B192: =IF('DF raw data'!B197="","",'DF raw data'!B197) -> -3.50307e-05 | C192: =IF('DF raw data'!C197="","",'DF raw data'!C197) -> 0.000156103 | D192: =IF('DF raw data'!D197="","",'DF raw data'!D197) -> -2.80197e-05 | F192: =(1-$G$1*($B$49-$G$2))*B192 -> -3.521636271e-05 | G192: 0.0001569303459 | H192: -2.816820441e-05 | J192: =F192*$G$3+J191 -> -0.001893233356 | K192: =J192*$G$3+K191 -> -0.06054418267 | L192: =G192*$G$3+L191 -> 0.01002946593 | M192: =L192*$G$3+M191 -> 0.3283361452 | N192: =(J192^2+L192^2)*$G$3+N191 -> 0.002264345237
A193: =IF('DF raw data'!A198="","",'DF raw data'!A198) -> -234.5 | B193: =IF('DF raw data'!B198="","",'DF raw data'!B198) -> -4.64963e-05 | C193: =IF('DF raw data'!C198="","",'DF raw data'!C198) -> 0.00015555 | D193: =IF('DF raw data'!D198="","",'DF raw data'!D198) -> -3.62738e-05 | F193: -4.674273039e-05 | G193: 0.000156374415 | H193: -3.646605114e-05 | J193: -0.001916604721 | K193: -0.06150248503 | L193: 0.01010765313 | M193: 0.3333899718 | N193: 0.002317264249
A194: =IF('DF raw data'!A199="","",'DF raw data'!A199) -> -234 | B194: =IF('DF raw data'!B199="","",'DF raw data'!B199) -> -3.91907e-05 | C194: =IF('DF raw data'!C199="","",'DF raw data'!C199) -> 0.000159472 | D194: =IF('DF raw data'!D199="","",'DF raw data'!D199) -> -3.65913e-05 | F194: -3.939841071e-05 | G194: 0.0001603172016 | H194: -3.678523389e-05 | J194: -0.001936303927 | K194: -0.06247063699 | L194: 0.01018781174 | M194: 0.3384838777 | N194: 0.00237103464
A195: =IF('DF raw data'!A200="","",'DF raw data'!A200) -> -233.5 | B195: =IF('DF raw data'!B200="","",'DF raw data'!B200) -> -3.39454e-05 | C195: =IF('DF raw data'!C200="","",'DF raw data'!C200) -> 0.000153639 | D195: =IF('DF raw data'!D200="","",'DF raw data'!D200) -> -2.14769e-05 | F195: -3.412531062e-05 | G195: 0.0001544532867 | H195: -2.159072757e-05 | J195: -0.001953366582 | K195: -0.06344732029 | L195: 0.01026503838 | M195: 0.3436163969 | N195: 0.002425627967
A196: =IF('DF raw data'!A201="","",'DF raw data'!A201) -> -233 | B196: =IF('DF raw data'!B201="","",'DF raw data'!B201) -> -3.77206e-05 | C196: =IF('DF raw data'!C201="","",'DF raw data'!C201) -> 0.000151827 | D196: =IF('DF raw data'!D201="","",'DF raw data'!D201) -> -3.04718e-05 | F196: -3.792051918e-05 | G196: 0.0001526316831 | H196: -3.063330054e-05 | J196: -0.001972326841 | K196: -0.06443348371 | L196: 0.01034135422 | M196: 0.348787074 | N196: 0.002481044807
A197: =IF('DF raw data'!A202="","",'DF raw data'!A202) -> -232.5 | B197: =IF('DF raw data'!B202="","",'DF raw data'!B202) -> -3.45218e-05 | C197: =IF('DF raw data'!C202="","",'DF raw data'!C202) -> 0.000154817 | D197: =IF('DF raw data'!D202="","",'DF raw data'!D202) -> -2.18105e-05 | F197: -3.470476554e-05 | G197: 0.0001556375301 | H197: -2.192609565e-05 | J197: -0.001989679224 | K197: -0.06542832332 | L197: 0.01041917299 | M197: 0.3539966605 | N197: 0.002537303802
A198: =IF('DF raw data'!A203="","",'DF raw data'!A203) -> -232 | B198: =IF('DF raw data'!B203="","",'DF raw data'!B203) -> -2.96465e-05 | C198: =IF('DF raw data'!C203="","",'DF raw data'!C203) -> 0.000160918 | D198: =IF('DF raw data'!D203="","",'DF raw data'!D203) -> -2.96092e-05 | F198: -2.980362645e-05 | G198: 0.0001617708654 | H198: -2.976612876e-05 | J198: -0.002004581037 | K198: -0.06643061384 | L198: 0.01050005842 | M198: 0.3592466897 | N198: 0.002594438587
A199: =IF('DF raw data'!A204="","",'DF raw data'!A204) -> -231.5 | B199: =IF('DF raw data'!B204="","",'DF raw data'!B204) -> -3.17571e-05 | C199: =IF('DF raw data'!C204="","",'DF raw data'!C204) -> 0.000156391 | D199: =IF('DF raw data'!D204="","",'DF raw data'!D204) -> -3.61925e-05 | F199: -3.192541263e-05 | G199: 0.0001572198723 | H199: -3.638432025e-05 | J199: -0.002020543744 | K199: -0.06744088571 | L199: 0.01057866835 | M199: 0.3645360238 | N199: 0.002652433998
A200: =IF('DF raw data'!A205="","",'DF raw data'!A205) -> -231 | B200: =IF('DF raw data'!B205="","",'DF raw data'!B205) -> -3.20144e-05 | C200: =IF('DF raw data'!C205="","",'DF raw data'!C205) -> 0.000161021 | D200: =IF('DF raw data'!D205="","",'DF raw data'!D205) -> -3.46344e-05 | F200: -3.218407632e-05 | G200: 0.0001618744113 | H200: -3.481796232e-05 | J200: -0.002036635782 | K200: -0.0684592036 | L200: 0.01065960556 | M200: 0.3698658266 | N200: 0.002711321536
A201: =IF('DF raw data'!A206="","",'DF raw data'!A206) -> -230.5 | B201: =IF('DF raw data'!B206="","",'DF raw data'!B206) -> -3.24053e-05 | C201: =IF('DF raw data'!C206="","",'DF raw data'!C206) -> 0.000161043 | D201: =IF('DF raw data'!D206="","",'DF raw data'!D206) -> -2.48484e-05 | F201: -3.257704809e-05 | G201: 0.0001618965279 | H201: -2.498009652e-05 | J201: -0.002052924306 | K201: -0.06948566575 | L201: 0.01074055382 | M201: 0.3752361035 | N201: 0.002771108533
... 1061 more rows

Sheet 10 y=-0.1
A1: =IF('DF raw data'!E1="","",'DF raw data'!E1) -> Number of header lines | B1: =IF('DF raw data'!F1="","",'DF raw data'!F1) -> 54 | C1: =IF('DF raw data'!G1="","",'DF raw data'!G1) ->  | D1: =IF('DF raw data'!H1="","",'DF raw data'!H1) ->  | F1: T_coeff | G1: -0.001 | H1: /degC | J1: IBy total | K1: =J1262*1000 -> -10.91304848 | L1: muTm | M1: =L1262*1000 -> 30.98745439 | R1: DF ref | S1: ='10 y=-0.2'!S1 -> 1
A2: =IF('DF raw data'!E2="","",'DF raw data'!E2) -> Measured by | B2: =IF('DF raw data'!F2="","",'DF raw data'!F2) -> Danfysik | C2: =IF('DF raw data'!G2="","",'DF raw data'!G2) ->  | D2: =IF('DF raw data'!H2="","",'DF raw data'!H2) ->  | F2: Tcorr | G2: 20 | H2: degC | J2: JBy total | K2: =K1262 -> -14.44530426 | L2: muTm^2 | M2: =M1262 -> 11.56963533
A3: =IF('DF raw data'!E3="","",'DF raw data'!E3) -> Operator | B3: =IF('DF raw data'!F3="","",'DF raw data'!F3) -> PMHA | C3: =IF('DF raw data'!G3="","",'DF raw data'!G3) ->  | D3: =IF('DF raw data'!H3="","",'DF raw data'!H3) ->  | F3: Step | G3: =A63-A62 -> 0.5 | H3: mm | J3: PI total | K3: =N1262 -> 10659.02385 | L3: T^2mm^3
A4: =IF('DF raw data'!E4="","",'DF raw data'!E4) -> Data-time | B4: =IF('DF raw data'!F4="","",'DF raw data'!F4) -> 02-10-2024, 21:42:00 | C4: =IF('DF raw data'!G4="","",'DF raw data'!G4) ->  | D4: =IF('DF raw data'!H4="","",'DF raw data'!H4) -> 
A5: =IF('DF raw data'!E5="","",'DF raw data'!E5) -> Project | B5: =IF('DF raw data'!F5="","",'DF raw data'!F5) -> 504314 | C5: =IF('DF raw data'!G5="","",'DF raw data'!G5) ->  | D5: =IF('DF raw data'!H5="","",'DF raw data'!H5) -> 
A6: =IF('DF raw data'!E6="","",'DF raw data'!E6) -> Magnet type | B6: =IF('DF raw data'!F6="","",'DF raw data'!F6) -> Dipole | C6: =IF('DF raw data'!G6="","",'DF raw data'!G6) ->  | D6: =IF('DF raw data'!H6="","",'DF raw data'!H6) -> 
A7: =IF('DF raw data'!E7="","",'DF raw data'!E7) -> Magnet nr. | B7: =IF('DF raw data'!F7="","",'DF raw data'!F7) -> 2410110 | C7: =IF('DF raw data'!G7="","",'DF raw data'!G7) ->  | D7: =IF('DF raw data'!H7="","",'DF raw data'!H7) -> 
A8: =IF('DF raw data'!E8="","",'DF raw data'!E8) -> Meas. number | B8: =IF('DF raw data'!F8="","",'DF raw data'!F8) -> 995 | C8: =IF('DF raw data'!G8="","",'DF raw data'!G8) ->  | D8: =IF('DF raw data'!H8="","",'DF raw data'!H8) -> 
A9: =IF('DF raw data'!E9="","",'DF raw data'!E9) -> Add. info | B9: =IF('DF raw data'!F9="","",'DF raw data'!F9) -> Y-alignment scan 2) | C9: =IF('DF raw data'!G9="","",'DF raw data'!G9) ->  | D9: =IF('DF raw data'!H9="","",'DF raw data'!H9) -> 
A10: =IF('DF raw data'!E10="","",'DF raw data'!E10) -> Device | B10: =IF('DF raw data'!F10="","",'DF raw data'!F10) -> (HAL) HALL-PROBE | C10: =IF('DF raw data'!G10="","",'DF raw data'!G10) ->  | D10: =IF('DF raw data'!H10="","",'DF raw data'!H10) -> 
A11: =IF('DF raw data'!E11="","",'DF raw data'!E11) -> Goal | B11: =IF('DF raw data'!F11="","",'DF raw data'!F11) -> (AXI) AXis Integral (Line, EFB) | C11: =IF('DF raw data'!G11="","",'DF raw data'!G11) ->  | D11: =IF('DF raw data'!H11="","",'DF raw data'!H11) -> 
A12: =IF('DF raw data'!E12="","",'DF raw data'!E12) -> Power supply mode | B12: =IF('DF raw data'!F12="","",'DF raw data'!F12) -> (PM) Permanent Magnet (no MPS in use) | C12: =IF('DF raw data'!G12="","",'DF raw data'!G12) ->  | D12: =IF('DF raw data'!H12="","",'DF raw data'!H12) -> 
A13: =IF('DF raw data'!E13="","",'DF raw data'!E13) -> Data format | B13: =IF('DF raw data'!F13="","",'DF raw data'!F13) -> Raw data text file | C13: =IF('DF raw data'!G13="","",'DF raw data'!G13) ->  | D13: =IF('DF raw data'!H13="","",'DF raw data'!H13) -> 
A14: =IF('DF raw data'!E14="","",'DF raw data'!E14) -> Direction of the pos. x-axis | B14: =IF('DF raw data'!F14="","",'DF raw data'!F14) -> See test program | C14: =IF('DF raw data'!G14="","",'DF raw data'!G14) ->  | D14: =IF('DF raw data'!H14="","",'DF raw data'!H14) -> 
A15: =IF('DF raw data'!E15="","",'DF raw data'!E15) -> Direction of the pos. y-axis | B15: =IF('DF raw data'!F15="","",'DF raw data'!F15) -> Vertical up | C15: =IF('DF raw data'!G15="","",'DF raw data'!G15) ->  | D15: =IF('DF raw data'!H15="","",'DF raw data'!H15) -> 
A16: =IF('DF raw data'!E16="","",'DF raw data'!E16) -> Direction of the pos. z-axis | B16: =IF('DF raw data'!F16="","",'DF raw data'!F16) -> See test program | C16: =IF('DF raw data'!G16="","",'DF raw data'!G16) ->  | D16: =IF('DF raw data'!H16="","",'DF raw data'!H16) -> 
A17: =IF('DF raw data'!E17="","",'DF raw data'!E17) -> Mapper type | B17: =IF('DF raw data'!F17="","",'DF raw data'!F17) -> Precision Hall Mapper | C17: =IF('DF raw data'!G17="","",'DF raw data'!G17) ->  | D17: =IF('DF raw data'!H17="","",'DF raw data'!H17) -> 
A18: =IF('DF raw data'!E18="","",'DF raw data'!E18) -> Mapper Danfysik Reg. Number | B18: =IF('DF raw data'!F18="","",'DF raw data'!F18) -> 2033-D (mapper 1) | C18: =IF('DF raw data'!G18="","",'DF raw data'!G18) ->  | D18: =IF('DF raw data'!H18="","",'DF raw data'!H18) -> 
A19: =IF('DF raw data'!E19="","",'DF raw data'!E19) -> Measurement consept | B19: =IF('DF raw data'!F19="","",'DF raw data'!F19) -> Square line grid | C19: =IF('DF raw data'!G19="","",'DF raw data'!G19) ->  | D19: =IF('DF raw data'!H19="","",'DF raw data'!H19) -> 
A20: =IF('DF raw data'!E20="","",'DF raw data'!E20) -> Mode | B20: =IF('DF raw data'!F20="","",'DF raw data'!F20) -> On-the-fly measurement | C20: =IF('DF raw data'!G20="","",'DF raw data'!G20) ->  | D20: =IF('DF raw data'!H20="","",'DF raw data'!H20) -> 
A21: =IF('DF raw data'!E21="","",'DF raw data'!E21) ->  | B21: =IF('DF raw data'!F21="","",'DF raw data'!F21) ->  | C21: =IF('DF raw data'!G21="","",'DF raw data'!G21) ->  | D21: =IF('DF raw data'!H21="","",'DF raw data'!H21) -> 
A22: =IF('DF raw data'!E22="","",'DF raw data'!E22) -> Probe Name | B22: =IF('DF raw data'!F22="","",'DF raw data'!F22) -> ID12_By | C22: =IF('DF raw data'!G22="","",'DF raw data'!G22) ->  | D22: =IF('DF raw data'!H22="","",'DF raw data'!H22) -> 
A23: =IF('DF raw data'!E23="","",'DF raw data'!E23) -> Probe Type | B23: =IF('DF raw data'!F23="","",'DF raw data'!F23) -> DF_ID_3D_Bxyz | C23: =IF('DF raw data'!G23="","",'DF raw data'!G23) ->  | D23: =IF('DF raw data'!H23="","",'DF raw data'!H23) -> 
A24: =IF('DF raw data'!E24="","",'DF raw data'!E24) -> Probe Danfysik Reg. Number | B24: =IF('DF raw data'!F24="","",'DF raw data'!F24) -> 2277 | C24: =IF('DF raw data'!G24="","",'DF raw data'!G24) ->  | D24: =IF('DF raw data'!H24="","",'DF raw data'!H24) -> 
A25: =IF('DF raw data'!E25="","",'DF raw data'!E25) -> Probe Axis | B25: =IF('DF raw data'!F25="","",'DF raw data'!F25) -> By | C25: =IF('DF raw data'!G25="","",'DF raw data'!G25) ->  | D25: =IF('DF raw data'!H25="","",'DF raw data'!H25) -> 
A26: =IF('DF raw data'!E26="","",'DF raw data'!E26) -> Probe Current Supply | B26: =IF('DF raw data'!F26="","",'DF raw data'!F26) -> 1825-D | C26: =IF('DF raw data'!G26="","",'DF raw data'!G26) ->  | D26: =IF('DF raw data'!H26="","",'DF raw data'!H26) -> 
A27: =IF('DF raw data'!E27="","",'DF raw data'!E27) -> Probe Gain Correction | B27: =IF('DF raw data'!F27="","",'DF raw data'!F27) -> 0.99615 | C27: =IF('DF raw data'!G27="","",'DF raw data'!G27) ->  | D27: =IF('DF raw data'!H27="","",'DF raw data'!H27) -> 
A28: =IF('DF raw data'!E28="","",'DF raw data'!E28) -> Probe Offset Correction | B28: =IF('DF raw data'!F28="","",'DF raw data'!F28) -> 0.0027536 | C28: =IF('DF raw data'!G28="","",'DF raw data'!G28) ->  | D28: =IF('DF raw data'!H28="","",'DF raw data'!H28) -> 
A29: =IF('DF raw data'!E29="","",'DF raw data'!E29) -> DVM Number | B29: =IF('DF raw data'!F29="","",'DF raw data'!F29) -> 2 | C29: =IF('DF raw data'!G29="","",'DF raw data'!G29) ->  | D29: =IF('DF raw data'!H29="","",'DF raw data'!H29) -> 
A30: =IF('DF raw data'!E30="","",'DF raw data'!E30) -> DVM Type | B30: =IF('DF raw data'!F30="","",'DF raw data'!F30) -> K2701 | C30: =IF('DF raw data'!G30="","",'DF raw data'!G30) ->  | D30: =IF('DF raw data'!H30="","",'DF raw data'!H30) -> 
A31: =IF('DF raw data'!E31="","",'DF raw data'!E31) -> DVM Danfysik Reg. Number | B31: =IF('DF raw data'!F31="","",'DF raw data'!F31) -> 1743-D | C31: =IF('DF raw data'!G31="","",'DF raw data'!G31) ->  | D31: =IF('DF raw data'!H31="","",'DF raw data'!H31) -> 
A32: =IF('DF raw data'!E32="","",'DF raw data'!E32) -> Probe Name | B32: =IF('DF raw data'!F32="","",'DF raw data'!F32) -> ID12_Bx | C32: =IF('DF raw data'!G32="","",'DF raw data'!G32) ->  | D32: =IF('DF raw data'!H32="","",'DF raw data'!H32) -> 
A33: =IF('DF raw data'!E33="","",'DF raw data'!E33) -> Probe Type | B33: =IF('DF raw data'!F33="","",'DF raw data'!F33) -> DF_ID_3D_Bxyz | C33: =IF('DF raw data'!G33="","",'DF raw data'!G33) ->  | D33: =IF('DF raw data'!H33="","",'DF raw data'!H33) -> 
A34: =IF('DF raw data'!E34="","",'DF raw data'!E34) -> Probe Danfysik Reg. Number | B34: =IF('DF raw data'!F34="","",'DF raw data'!F34) -> 2277 | C34: =IF('DF raw data'!G34="","",'DF raw data'!G34) ->  | D34: =IF('DF raw data'!H34="","",'DF raw data'!H34) -> 
A35: =IF('DF raw data'!E35="","",'DF raw data'!E35) -> Probe Axis | B35: =IF('DF raw data'!F35="","",'DF raw data'!F35) -> Bx | C35: =IF('DF raw data'!G35="","",'DF raw data'!G35) ->  | D35: =IF('DF raw data'!H35="","",'DF raw data'!H35) -> 
A36: =IF('DF raw data'!E36="","",'DF raw data'!E36) -> Probe Current Supply | B36: =IF('DF raw data'!F36="","",'DF raw data'!F36) -> 1825-D | C36: =IF('DF raw data'!G36="","",'DF raw data'!G36) ->  | D36: =IF('DF raw data'!H36="","",'DF raw data'!H36) -> 
A37: =IF('DF raw data'!E37="","",'DF raw data'!E37) -> Probe Gain Correction | B37: =IF('DF raw data'!F37="","",'DF raw data'!F37) -> 1 | C37: =IF('DF raw data'!G37="","",'DF raw data'!G37) ->  | D37: =IF('DF raw data'!H37="","",'DF raw data'!H37) -> 
A38: =IF('DF raw data'!E38="","",'DF raw data'!E38) -> Probe Offset Correction | B38: =IF('DF raw data'!F38="","",'DF raw data'!F38) -> -0.17575 | C38: =IF('DF raw data'!G38="","",'DF raw data'!G38) ->  | D38: =IF('DF raw data'!H38="","",'DF raw data'!H38) -> 
A39: =IF('DF raw data'!E39="","",'DF raw data'!E39) -> DVM Number | B39: =IF('DF raw data'!F39="","",'DF raw data'!F39) -> 3 | C39: =IF('DF raw data'!G39="","",'DF raw data'!G39) ->  | D39: =IF('DF raw data'!H39="","",'DF raw data'!H39) -> 
A40: =IF('DF raw data'!E40="","",'DF raw data'!E40) -> DVM Type | B40: =IF('DF raw data'!F40="","",'DF raw data'!F40) -> K2701 | C40: =IF('DF raw data'!G40="","",'DF raw data'!G40) ->  | D40: =IF('DF raw data'!H40="","",'DF raw data'!H40) -> 
A41: =IF('DF raw data'!E41="","",'DF raw data'!E41) -> DVM Danfysik Reg. Number | B41: =IF('DF raw data'!F41="","",'DF raw data'!F41) -> 1744-D | C41: =IF('DF raw data'!G41="","",'DF raw data'!G41) ->  | D41: =IF('DF raw data'!H41="","",'DF raw data'!H41) -> 
A42: =IF('DF raw data'!E42="","",'DF raw data'!E42) -> Probe Name | B42: =IF('DF raw data'!F42="","",'DF raw data'!F42) -> ID12_Bz | C42: =IF('DF raw data'!G42="","",'DF raw data'!G42) ->  | D42: =IF('DF raw data'!H42="","",'DF raw data'!H42) -> 
A43: =IF('DF raw data'!E43="","",'DF raw data'!E43) -> Probe Type | B43: =IF('DF raw data'!F43="","",'DF raw data'!F43) -> DF_ID_3D_Bxyz | C43: =IF('DF raw data'!G43="","",'DF raw data'!G43) ->  | D43: =IF('DF raw data'!H43="","",'DF raw data'!H43) -> 
A44: =IF('DF raw data'!E44="","",'DF raw data'!E44) -> Probe Danfysik Reg. Number | B44: =IF('DF raw data'!F44="","",'DF raw data'!F44) -> 2277 | C44: =IF('DF raw data'!G44="","",'DF raw data'!G44) ->  | D44: =IF('DF raw data'!H44="","",'DF raw data'!H44) -> 
A45: =IF('DF raw data'!E45="","",'DF raw data'!E45) -> Probe Axis | B45: =IF('DF raw data'!F45="","",'DF raw data'!F45) -> Bz | C45: =IF('DF raw data'!G45="","",'DF raw data'!G45) ->  | D45: =IF('DF raw data'!H45="","",'DF raw data'!H45) -> 
A46: =IF('DF raw data'!E46="","",'DF raw data'!E46) -> Probe Current Supply | B46: =IF('DF raw data'!F46="","",'DF raw data'!F46) -> 1825-D | C46: =IF('DF raw data'!G46="","",'DF raw data'!G46) ->  | D46: =IF('DF raw data'!H46="","",'DF raw data'!H46) -> 
A47: =IF('DF raw data'!E47="","",'DF raw data'!E47) -> Probe Gain Correction | B47: =IF('DF raw data'!F47="","",'DF raw data'!F47) -> 1 | C47: =IF('DF raw data'!G47="","",'DF raw data'!G47) ->  | D47: =IF('DF raw data'!H47="","",'DF raw data'!H47) -> 
A48: =IF('DF raw data'!E53="","",'DF raw data'!E53) -> PS-Gap: | B48: =IF('DF raw data'!F53="","",'DF raw data'!F53) -> 10 | C48: =IF('DF raw data'!G53="","",'DF raw data'!G53) ->  | D48: =IF('DF raw data'!H53="","",'DF raw data'!H53) -> 
A49: =IF('DF raw data'!E54="","",'DF raw data'!E54) -> PS-Temperature: | B49: =IF('DF raw data'!F54="","",'DF raw data'!F54) -> 25.3 | C49: =IF('DF raw data'!G54="","",'DF raw data'!G54) ->  | D49: =IF('DF raw data'!H54="","",'DF raw data'!H54) -> 
A50: =IF('DF raw data'!E55="","",'DF raw data'!E55) -> PS-Encoder: | B50: =IF('DF raw data'!F55="","",'DF raw data'!F55) -> 19.7503 | C50: =IF('DF raw data'!G55="","",'DF raw data'!G55) ->  | D50: =IF('DF raw data'!H55="","",'DF raw data'!H55) -> 
A51: =IF('DF raw data'!E56="","",'DF raw data'!E56) ->  | B51: =IF('DF raw data'!F56="","",'DF raw data'!F56) ->  | C51: =IF('DF raw data'!G56="","",'DF raw data'!G56) ->  | D51: =IF('DF raw data'!H56="","",'DF raw data'!H56) -> 
A52: =IF('DF raw data'!E57="","",'DF raw data'!E57) -> Monitor-Index | B52: =IF('DF raw data'!F57="","",'DF raw data'!F57) -> [1,1,4] | C52: =IF('DF raw data'!G57="","",'DF raw data'!G57) ->  | D52: =IF('DF raw data'!H57="","",'DF raw data'!H57) -> 
A53: =IF('DF raw data'!E58="","",'DF raw data'!E58) ->  | B53: =IF('DF raw data'!F58="","",'DF raw data'!F58) ->  | C53: =IF('DF raw data'!G58="","",'DF raw data'!G58) ->  | D53: =IF('DF raw data'!H58="","",'DF raw data'!H58) -> 
A54: =IF('DF raw data'!E59="","",'DF raw data'!E59) -> Time [s] | B54: =IF('DF raw data'!F59="","",'DF raw data'!F59) -> Y [mm] | C54: =IF('DF raw data'!G59="","",'DF raw data'!G59) -> X [mm] | D54: =IF('DF raw data'!H59="","",'DF raw data'!H59) -> Nominal current [A]
A55: =IF('DF raw data'!E60="","",'DF raw data'!E60) ->  | B55: =IF('DF raw data'!F60="","",'DF raw data'!F60) ->  | C55: =IF('DF raw data'!G60="","",'DF raw data'!G60) ->  | D55: =IF('DF raw data'!H60="","",'DF raw data'!H60) -> 
A56: =IF('DF raw data'!E61="","",'DF raw data'!E61) -> 211.1 | B56: =IF('DF raw data'!F61="","",'DF raw data'!F61) -> 31.25 | C56: =IF('DF raw data'!G61="","",'DF raw data'!G61) -> 301.3 | D56: =IF('DF raw data'!H61="","",'DF raw data'!H61) -> 0
A57: =IF('DF raw data'!E62="","",'DF raw data'!E62) ->  | B57: =IF('DF raw data'!F62="","",'DF raw data'!F62) ->  | C57: =IF('DF raw data'!G62="","",'DF raw data'!G62) ->  | D57: =IF('DF raw data'!H62="","",'DF raw data'!H62) -> 
A58: =IF('DF raw data'!E63="","",'DF raw data'!E63) -> Measurement-Index | B58: =IF('DF raw data'!F63="","",'DF raw data'!F63) -> [1,1,1201,2] | C58: =IF('DF raw data'!G63="","",'DF raw data'!G63) ->  | D58: =IF('DF raw data'!H63="","",'DF raw data'!H63) -> 
A59: =IF('DF raw data'!E64="","",'DF raw data'!E64) ->  | B59: =IF('DF raw data'!F64="","",'DF raw data'!F64) ->  | C59: =IF('DF raw data'!G64="","",'DF raw data'!G64) ->  | D59: =IF('DF raw data'!H64="","",'DF raw data'!H64) -> 
A60: =IF('DF raw data'!E65="","",'DF raw data'!E65) -> Z [mm] | B60: By [T] | C60: Bx [T] | D60: Bz [T] | F60: By_corr | G60: Bx_corr | H60: Bz_corr | J60: Iy | K60: Jy | L60: Ix | M60: Jx | N60: PI
A62: =IF('DF raw data'!E67="","",'DF raw data'!E67) -> -300 | B62: =IF('DF raw data'!F67="","",'DF raw data'!F67) -> -3.36323e-05 | C62: =IF('DF raw data'!G67="","",'DF raw data'!G67) -> 9.40905e-05 | D62: =IF('DF raw data'!H67="","",'DF raw data'!H67) -> -2.54672e-05 | F62: =(1-$G$1*($B$49))*B62 -> -3.448319719e-05 | G62: =(1-$G$1*($B$49-$G$2))*C62 -> 9.458917965e-05 | H62: =(1-$G$1*($B$49-$G$2))*D62 -> -2.560217616e-05 | J62: =F62*$G$3 -> -1.72415986e-05 | K62: =J62*$G$3 -> -8.620799298e-06 | L62: =G62*$G$3 -> 4.729458983e-05 | M62: =L62*$G$3 -> 2.364729491e-05 | N62: =(J62^2+L62^2)*$G$3 -> 1.267025474e-09
A63: =IF('DF raw data'!E68="","",'DF raw data'!E68) -> -299.5 | B63: =IF('DF raw data'!F68="","",'DF raw data'!F68) -> -2.72871e-05 | C63: =IF('DF raw data'!G68="","",'DF raw data'!G68) -> 0.000102932 | D63: =IF('DF raw data'!H68="","",'DF raw data'!H68) -> -2.5779e-05 | F63: =(1-$G$1*($B$49-$G$2))*B63 -> -2.743172163e-05 | G63: =(1-$G$1*($B$49-$G$2))*C63 -> 0.0001034775396 | H63: -2.59156287e-05 | J63: =F63*$G$3+J62 -> -3.095745941e-05 | K63: =J63*$G$3+K62 -> -2.4099529e-05 | L63: =G63*$G$3+L62 -> 9.903335962e-05 | M63: =L63*$G$3+M62 -> 7.316397473e-05 | N63: =(J63^2+L63^2)*$G$3+N62 -> 6.65001078e-09
A64: =IF('DF raw data'!E69="","",'DF raw data'!E69) -> -299 | B64: =IF('DF raw data'!F69="","",'DF raw data'!F69) -> -3.32473e-05 | C64: =IF('DF raw data'!G69="","",'DF raw data'!G69) -> 9.6165e-05 | D64: =IF('DF raw data'!H69="","",'DF raw data'!H69) -> -2.62073e-05 | F64: =(1-$G$1*($B$49-$G$2))*B64 -> -3.342351069e-05 | G64: 9.66746745e-05 | H64: -2.634619869e-05 | J64: =F64*$G$3+J63 -> -4.766921476e-05 | K64: =J64*$G$3+K63 -> -4.793413638e-05 | L64: =G64*$G$3+L63 -> 0.0001473706969 | M64: =L64*$G$3+M63 -> 0.0001468493232 | N64: =(J64^2+L64^2)*$G$3+N63 -> 1.864524895e-08
A65: =IF('DF raw data'!E70="","",'DF raw data'!E70) -> -298.5 | B65: =IF('DF raw data'!F70="","",'DF raw data'!F70) -> -2.86967e-05 | C65: =IF('DF raw data'!G70="","",'DF raw data'!G70) -> 9.65946e-05 | D65: =IF('DF raw data'!H70="","",'DF raw data'!H70) -> -2.62705e-05 | F65: -2.884879251e-05 | G65: 9.710655138e-05 | H65: -2.640973365e-05 | J65: -6.209361101e-05 | K65: -7.898094189e-05 | L65: 0.0001959239726 | M65: 0.0002448113094 | N65: 3.976615872e-08
A66: =IF('DF raw data'!E71="","",'DF raw data'!E71) -> -298 | B66: =IF('DF raw data'!F71="","",'DF raw data'!F71) -> -3.3696e-05 | C66: =IF('DF raw data'!G71="","",'DF raw data'!G71) -> 0.000100221 | D66: =IF('DF raw data'!H71="","",'DF raw data'!H71) -> -2.5948e-05 | F66: -3.38745888e-05 | G66: 0.0001007521713 | H66: -2.60855244e-05 | J66: -7.903090541e-05 | K66: -0.0001184963946 | L66: 0.0002463000582 | M66: 0.0003679613386 | N66: 7.322096007e-08
A67: =IF('DF raw data'!E72="","",'DF raw data'!E72) -> -297.5 | B67: =IF('DF raw data'!F72="","",'DF raw data'!F72) -> -2.97227e-05 | C67: =IF('DF raw data'!G72="","",'DF raw data'!G72) -> 0.000100647 | D67: =IF('DF raw data'!H72="","",'DF raw data'!H72) -> -2.57786e-05 | F67: -2.988023031e-05 | G67: 0.0001011804291 | H67: -2.591522658e-05 | J67: -9.397102057e-05 | K67: -0.0001654819049 | L67: 0.0002968902728 | M67: 0.0005164064749 | N67: 1.217081535e-07
A68: =IF('DF raw data'!E73="","",'DF raw data'!E73) -> -297 | B68: =IF('DF raw data'!F73="","",'DF raw data'!F73) -> -2.357e-05 | C68: =IF('DF raw data'!G73="","",'DF raw data'!G73) -> 0.000101158 | D68: =IF('DF raw data'!H73="","",'DF raw data'!H73) -> -2.60053e-05 | F68: -2.3694921e-05 | G68: 0.0001016941374 | H68: -2.614312809e-05 | J68: -0.0001058184811 | K68: -0.0002183911454 | L68: 0.0003477373415 | M68: 0.0006902751457 | N68: 1.877675582e-07
A69: =IF('DF raw data'!E74="","",'DF raw data'!E74) -> -296.5 | B69: =IF('DF raw data'!F74="","",'DF raw data'!F74) -> -3.22858e-05 | C69: =IF('DF raw data'!G74="","",'DF raw data'!G74) -> 0.000106873 | D69: =IF('DF raw data'!H74="","",'DF raw data'!H74) -> -2.63805e-05 | F69: -3.245691474e-05 | G69: 0.0001074394269 | H69: -2.652031665e-05 | J69: -0.0001220469384 | K69: -0.0002794146146 | L69: 0.0004014570549 | M69: 0.0008910036731 | N69: 2.757991693e-07
A70: =IF('DF raw data'!E75="","",'DF raw data'!E75) -> -296 | B70: =IF('DF raw data'!F75="","",'DF raw data'!F75) -> -2.28643e-05 | C70: =IF('DF raw data'!G75="","",'DF raw data'!G75) -> 0.000103574 | D70: =IF('DF raw data'!H75="","",'DF raw data'!H75) -> -2.68947e-05 | F70: -2.298548079e-05 | G70: 0.0001041229422 | H70: -2.703724191e-05 | J70: -0.0001335396788 | K70: -0.000346184454 | L70: 0.000453518526 | M70: 0.001117762936 | N70: 3.875551189e-07
A71: =IF('DF raw data'!E76="","",'DF raw data'!E76) -> -295.5 | B71: =IF('DF raw data'!F76="","",'DF raw data'!F76) -> -3.31825e-05 | C71: =IF('DF raw data'!G76="","",'DF raw data'!G76) -> 9.40907e-05 | D71: =IF('DF raw data'!H76="","",'DF raw data'!H76) -> -2.70979e-05 | F71: -3.335836725e-05 | G71: 9.458938071e-05 | H71: -2.724151887e-05 | J71: -0.0001502188625 | K71: -0.0004212938853 | L71: 0.0005008132164 | M71: 0.001368169544 | N71: 5.242449111e-07
A72: =IF('DF raw data'!E77="","",'DF raw data'!E77) -> -295 | B72: =IF('DF raw data'!F77="","",'DF raw data'!F77) -> -3.73486e-05 | C72: =IF('DF raw data'!G77="","",'DF raw data'!G77) -> 0.000100334 | D72: =IF('DF raw data'!H77="","",'DF raw data'!H77) -> -2.67122e-05 | F72: -3.754654758e-05 | G72: 0.0001008657702 | H72: -2.685377466e-05 | J72: -0.0001689921362 | K72: -0.0005057899534 | L72: 0.0005512461015 | M72: 0.001643792595 | N72: 6.904602143e-07
A73: =IF('DF raw data'!E78="","",'DF raw data'!E78) -> -294.5 | B73: =IF('DF raw data'!F78="","",'DF raw data'!F78) -> -3.2286e-05 | C73: =IF('DF raw data'!G78="","",'DF raw data'!G78) -> 0.000101606 | D73: =IF('DF raw data'!H78="","",'DF raw data'!H78) -> -2.6053e-05 | F73: -3.24571158e-05 | G73: 0.0001021445118 | H73: -2.61910809e-05 | J73: -0.0001852206941 | K73: -0.0005984003005 | L73: 0.0006023183574 | M73: 0.001944951774 | N73: 8.890072689e-07
A74: =IF('DF raw data'!E79="","",'DF raw data'!E79) -> -294 | B74: =IF('DF raw data'!F79="","",'DF raw data'!F79) -> -3.67085e-05 | C74: =IF('DF raw data'!G79="","",'DF raw data'!G79) -> 0.000101072 | D74: =IF('DF raw data'!H79="","",'DF raw data'!H79) -> -2.54286e-05 | F74: -3.690305505e-05 | G74: 0.0001016076816 | H74: -2.556337158e-05 | J74: -0.0002036722217 | K74: -0.0007002364113 | L74: 0.0006531221982 | M74: 0.002271512873 | N74: 1.123032759e-06
A75: =IF('DF raw data'!E80="","",'DF raw data'!E80) -> -293.5 | B75: =IF('DF raw data'!F80="","",'DF raw data'!F80) -> -2.99152e-05 | C75: =IF('DF raw data'!G80="","",'DF raw data'!G80) -> 9.93219e-05 | D75: =IF('DF raw data'!H80="","",'DF raw data'!H80) -> -2.52628e-05 | F75: -3.007375056e-05 | G75: 9.984830607e-05 | H75: -2.539669284e-05 | J75: -0.000218709097 | K75: -0.0008095909598 | L75: 0.0007030463512 | M75: 0.002623036048 | N75: 1.394086679e-06
A76: =IF('DF raw data'!E81="","",'DF raw data'!E81) -> -293 | B76: =IF('DF raw data'!F81="","",'DF raw data'!F81) -> -2.0558e-05 | C76: =IF('DF raw data'!G81="","",'DF raw data'!G81) -> 8.94735e-05 | D76: =IF('DF raw data'!H81="","",'DF raw data'!H81) -> -2.56014e-05 | F76: -2.06669574e-05 | G76: 8.994770955e-05 | H76: -2.573708742e-05 | J76: -0.0002290425757 | K76: -0.0009241122476 | L76: 0.000748020206 | M76: 0.002997046151 | N76: 1.700084044e-06
A77: =IF('DF raw data'!E82="","",'DF raw data'!E82) -> -292.5 | B77: =IF('DF raw data'!F82="","",'DF raw data'!F82) -> -3.2927e-05 | C77: =IF('DF raw data'!G82="","",'DF raw data'!G82) -> 9.09981e-05 | D77: =IF('DF raw data'!H82="","",'DF raw data'!H82) -> -2.58156e-05 | F77: -3.31015131e-05 | G77: 9.148038993e-05 | H77: -2.595242268e-05 | J77: -0.0002455933322 | K77: -0.001046908914 | L77: 0.0007937604009 | M77: 0.003393926352 | N77: 2.045269874e-06
A78: =IF('DF raw data'!E83="","",'DF raw data'!E83) -> -292 | B78: =IF('DF raw data'!F83="","",'DF raw data'!F83) -> -1.76737e-05 | C78: =IF('DF raw data'!G83="","",'DF raw data'!G83) -> 8.99999e-05 | D78: =IF('DF raw data'!H83="","",'DF raw data'!H83) -> -2.6034e-05 | F78: -1.776737061e-05 | G78: 9.047689947e-05 | H78: -2.61719802e-05 | J78: -0.0002544770175 | K78: -0.001174147422 | L78: 0.0008389988507 | M78: 0.003813425777 | N78: 2.429608686e-06
A79: =IF('DF raw data'!E84="","",'DF raw data'!E84) -> -291.5 | B79: =IF('DF raw data'!F84="","",'DF raw data'!F84) -> -2.62566e-05 | C79: =IF('DF raw data'!G84="","",'DF raw data'!G84) -> 8.94065e-05 | D79: =IF('DF raw data'!H84="","",'DF raw data'!H84) -> -3.37272e-05 | F79: -2.639575998e-05 | G79: 8.988035445e-05 | H79: -3.390595416e-05 | J79: -0.0002676748975 | K79: -0.001307984871 | L79: 0.0008839390279 | M79: 0.004255395291 | N79: 2.856107714e-06
A80: =IF('DF raw data'!E85="","",'DF raw data'!E85) -> -291 | B80: =IF('DF raw data'!F85="","",'DF raw data'!F85) -> -2.37588e-05 | C80: =IF('DF raw data'!G85="","",'DF raw data'!G85) -> 9.15916e-05 | D80: =IF('DF raw data'!H85="","",'DF raw data'!H85) -> -3.10949e-05 | F80: -2.388472164e-05 | G80: 9.207703548e-05 | H80: -3.125970297e-05 | J80: -0.0002796172583 | K80: -0.0014477935 | L80: 0.0009299775456 | M80: 0.004720384064 | N80: 3.327629737e-06
A81: =IF('DF raw data'!E86="","",'DF raw data'!E86) -> -290.5 | B81: =IF('DF raw data'!F86="","",'DF raw data'!F86) -> -2.5428e-05 | C81: =IF('DF raw data'!G86="","",'DF raw data'!G86) -> 8.52431e-05 | D81: =IF('DF raw data'!H86="","",'DF raw data'!H86) -> -2.69495e-05 | F81: -2.55627684e-05 | G81: 8.569488843e-05 | H81: -2.709233235e-05 | J81: -0.0002923986425 | K81: -0.001593992822 | L81: 0.0009728249899 | M81: 0.005206796559 | N81: 3.84357245e-06
A82: =IF('DF raw data'!E87="","",'DF raw data'!E87) -> -290 | B82: =IF('DF raw data'!F87="","",'DF raw data'!F87) -> -2.50476e-05 | C82: =IF('DF raw data'!G87="","",'DF raw data'!G87) -> 0.00010169 | D82: =IF('DF raw data'!H87="","",'DF raw data'!H87) -> -2.06216e-05 | F82: -2.518035228e-05 | G82: 0.000102228957 | H82: -2.073089448e-05 | J82: -0.0003049888187 | K82: -0.001746487231 | L82: 0.001023939468 | M82: 0.005718766293 | N82: 4.414307558e-06
A83: =IF('DF raw data'!E88="","",'DF raw data'!E88) -> -289.5 | B83: =IF('DF raw data'!F88="","",'DF raw data'!F88) -> -2.48555e-05 | C83: =IF('DF raw data'!G88="","",'DF raw data'!G88) -> 0.000105724 | D83: =IF('DF raw data'!H88="","",'DF raw data'!H88) -> -2.01086e-05 | F83: -2.498723415e-05 | G83: 0.0001062843372 | H83: -2.021517558e-05 | J83: -0.0003174824357 | K83: -0.001905228449 | L83: 0.001077081637 | M83: 0.006257307112 | N83: 5.044757532e-06
A84: =IF('DF raw data'!E89="","",'DF raw data'!E89) -> -289 | B84: =IF('DF raw data'!F89="","",'DF raw data'!F89) -> -2.22853e-05 | C84: =IF('DF raw data'!G89="","",'DF raw data'!G89) -> 0.000103285 | D84: =IF('DF raw data'!H89="","",'DF raw data'!H89) -> -3.0585e-05 | F84: -2.240341209e-05 | G84: 0.0001038324105 | H84: -3.07471005e-05 | J84: -0.0003286841418 | K84: -0.00206957052 | L84: 0.001128997842 | M84: 0.006821806033 | N84: 5.736092229e-06
A85: =IF('DF raw data'!E90="","",'DF raw data'!E90) -> -288.5 | B85: =IF('DF raw data'!F90="","",'DF raw data'!F90) -> -2.35737e-05 | C85: =IF('DF raw data'!G90="","",'DF raw data'!G90) -> 9.81766e-05 | D85: =IF('DF raw data'!H90="","",'DF raw data'!H90) -> -2.02404e-05 | F85: -2.369864061e-05 | G85: 9.869693598e-05 | H85: -2.034767412e-05 | J85: -0.0003405334621 | K85: -0.002239837251 | L85: 0.00117834631 | M85: 0.007410979188 | N85: 6.488323762e-06
A86: =IF('DF raw data'!E91="","",'DF raw data'!E91) -> -288 | B86: =IF('DF raw data'!F91="","",'DF raw data'!F91) -> -3.42041e-05 | C86: =IF('DF raw data'!G91="","",'DF raw data'!G91) -> 9.98105e-05 | D86: =IF('DF raw data'!H91="","",'DF raw data'!H91) -> -3.30181e-05 | F86: -3.438538173e-05 | G86: 0.0001003394957 | H86: -3.319309593e-05 | J86: -0.0003577261529 | K86: -0.002418700327 | L86: 0.001228516058 | M86: 0.008025237217 | N86: 7.306933614e-06
A87: =IF('DF raw data'!E92="","",'DF raw data'!E92) -> -287.5 | B87: =IF('DF raw data'!F92="","",'DF raw data'!F92) -> -3.27995e-05 | C87: =IF('DF raw data'!G92="","",'DF raw data'!G92) -> 9.75098e-05 | D87: =IF('DF raw data'!H92="","",'DF raw data'!H92) -> -2.47135e-05 | F87: -3.297333735e-05 | G87: 9.802660194e-05 | H87: -2.484448155e-05 | J87: -0.0003742128216 | K87: -0.002605806738 | L87: 0.001277529359 | M87: 0.008664001896 | N87: 8.192991864e-06
A88: =IF('DF raw data'!E93="","",'DF raw data'!E93) -> -287 | B88: =IF('DF raw data'!F93="","",'DF raw data'!F93) -> -2.52364e-05 | C88: =IF('DF raw data'!G93="","",'DF raw data'!G93) -> 9.60931e-05 | D88: =IF('DF raw data'!H93="","",'DF raw data'!H93) -> -2.57272e-05 | F88: -2.537015292e-05 | G88: 9.660239343e-05 | H88: -2.586355416e-05 | J88: -0.0003868978981 | K88: -0.002799255687 | L88: 0.001325830556 | M88: 0.009326917174 | N88: 9.146750187e-06
A89: =IF('DF raw data'!E94="","",'DF raw data'!E94) -> -286.5 | B89: =IF('DF raw data'!F94="","",'DF raw data'!F94) -> -3.43375e-05 | C89: =IF('DF raw data'!G94="","",'DF raw data'!G94) -> 0.000101072 | D89: =IF('DF raw data'!H94="","",'DF raw data'!H94) -> -2.48608e-05 | F89: -3.451948875e-05 | G89: 0.0001016076816 | H89: -2.499256224e-05 | J89: -0.0004041576425 | K89: -0.003001334508 | L89: 0.001376634397 | M89: 0.01001523437 | N89: 1.017598302e-05
A90: =IF('DF raw data'!E95="","",'DF raw data'!E95) -> -286 | B90: =IF('DF raw data'!F95="","",'DF raw data'!F95) -> -1.9272e-05 | C90: =IF('DF raw data'!G95="","",'DF raw data'!G95) -> 9.98545e-05 | D90: =IF('DF raw data'!H95="","",'DF raw data'!H95) -> -3.21975e-05 | F90: -1.93741416e-05 | G90: 0.0001003837289 | H90: -3.236814675e-05 | J90: -0.0004138447133 | K90: -0.003208256865 | L90: 0.001426826261 | M90: 0.0107286475 | N90: 1.127953333e-05
A91: =IF('DF raw data'!E96="","",'DF raw data'!E96) -> -285.5 | B91: =IF('DF raw data'!F96="","",'DF raw data'!F96) -> -2.39565e-05 | C91: =IF('DF raw data'!G96="","",'DF raw data'!G96) -> 0.000100116 | D91: =IF('DF raw data'!H96="","",'DF raw data'!H96) -> -2.28874e-05 | F91: -2.408346945e-05 | G91: 0.0001006466148 | H91: -2.300870322e-05 | J91: -0.000425886448 | K91: -0.003421200089 | L91: 0.001477149568 | M91: 0.01146722229 | N91: 1.246120839e-05
A92: =IF('DF raw data'!E97="","",'DF raw data'!E97) -> -285 | B92: =IF('DF raw data'!F97="","",'DF raw data'!F97) -> -2.60122e-05 | C92: =IF('DF raw data'!G97="","",'DF raw data'!G97) -> 0.000102436 | D92: =IF('DF raw data'!H97="","",'DF raw data'!H97) -> -1.52306e-05 | F92: -2.615006466e-05 | G92: 0.0001029789108 | H92: -1.531132218e-05 | J92: -0.0004389614803 | K92: -0.003640680829 | L92: 0.001528639024 | M92: 0.0122315418 | N92: 1.372592061e-05
A93: =IF('DF raw data'!E98="","",'DF raw data'!E98) -> -284.5 | B93: =IF('DF raw data'!F98="","",'DF raw data'!F98) -> -1.79966e-05 | C93: =IF('DF raw data'!G98="","",'DF raw data'!G98) -> 0.000108566 | D93: =IF('DF raw data'!H98="","",'DF raw data'!H98) -> -2.23674e-05 | F93: -1.809198198e-05 | G93: 0.0001091413998 | H93: -2.248594722e-05 | J93: -0.0004480074713 | K93: -0.003864684565 | L93: 0.001583209724 | M93: 0.01302314666 | N93: 1.507955247e-05
A94: =IF('DF raw data'!E99="","",'DF raw data'!E99) -> -284 | B94: =IF('DF raw data'!F99="","",'DF raw data'!F99) -> -1.88962e-05 | C94: =IF('DF raw data'!G99="","",'DF raw data'!G99) -> 0.000109384 | D94: =IF('DF raw data'!H99="","",'DF raw data'!H99) -> -1.87649e-05 | F94: -1.899634986e-05 | G94: 0.0001099637352 | H94: -1.886435397e-05 | J94: -0.0004575056462 | K94: -0.004093437388 | L94: 0.001638191591 | M94: 0.01384224246 | N94: 1.652604402e-05
A95: =IF('DF raw data'!E100="","",'DF raw data'!E100) -> -283.5 | B95: =IF('DF raw data'!F100="","",'DF raw data'!F100) -> -2.63898e-05 | C95: =IF('DF raw data'!G100="","",'DF raw data'!G100) -> 0.00010424 | D95: =IF('DF raw data'!H100="","",'DF raw data'!H100) -> -2.59367e-05 | F95: -2.652966594e-05 | G95: 0.000104792472 | H95: -2.607416451e-05 | J95: -0.0004707704792 | K95: -0.004328822627 | L95: 0.001690587827 | M95: 0.01468753637 | N95: 1.806590005e-05
A96: =IF('DF raw data'!E101="","",'DF raw data'!E101) -> -283 | B96: =IF('DF raw data'!F101="","",'DF raw data'!F101) -> -2.25372e-05 | C96: =IF('DF raw data'!G101="","",'DF raw data'!G101) -> 0.00010339 | D96: =IF('DF raw data'!H101="","",'DF raw data'!H101) -> -3.73455e-05 | F96: -2.265664716e-05 | G96: 0.000103937967 | H96: -3.754343115e-05 | J96: -0.0004820988028 | K96: -0.004569872029 | L96: 0.001742556811 | M96: 0.01555881478 | N96: 1.970036179e-05
A97: =IF('DF raw data'!E102="","",'DF raw data'!E102) -> -282.5 | B97: =IF('DF raw data'!F102="","",'DF raw data'!F102) -> -3.53561e-05 | C97: =IF('DF raw data'!G102="","",'DF raw data'!G102) -> 0.000105476 | D97: =IF('DF raw data'!H102="","",'DF raw data'!H102) -> -3.53668e-05 | F97: -3.554348733e-05 | G97: 0.0001060350228 | H97: -3.555424404e-05 | J97: -0.0004998705464 | K97: -0.004819807302 | L97: 0.001795574322 | M97: 0.01645660194 | N97: 2.143734065e-05
A98: =IF('DF raw data'!E103="","",'DF raw data'!E103) -> -282 | B98: =IF('DF raw data'!F103="","",'DF raw data'!F103) -> -2.83818e-05 | C98: =IF('DF raw data'!G103="","",'DF raw data'!G103) -> 0.000106002 | D98: =IF('DF raw data'!H103="","",'DF raw data'!H103) -> -1.79734e-05 | F98: -2.853222354e-05 | G98: 0.0001065638106 | H98: -1.806865902e-05 | J98: -0.0005141366582 | K98: -0.005076875631 | L98: 0.001848856227 | M98: 0.01738103005 | N98: 2.327864358e-05
A99: =IF('DF raw data'!E104="","",'DF raw data'!E104) -> -281.5 | B99: =IF('DF raw data'!F104="","",'DF raw data'!F104) -> -3.04987e-05 | C99: =IF('DF raw data'!G104="","",'DF raw data'!G104) -> 0.000107527 | D99: =IF('DF raw data'!H104="","",'DF raw data'!H104) -> -1.50477e-05 | F99: -3.066034311e-05 | G99: 0.0001080968931 | H99: -1.512745281e-05 | J99: -0.0005294668298 | K99: -0.005341609046 | L99: 0.001902904674 | M99: 0.01833248239 | N99: 2.522933424e-05
A100: =IF('DF raw data'!E105="","",'DF raw data'!E105) -> -281 | B100: =IF('DF raw data'!F105="","",'DF raw data'!F105) -> -3.43448e-05 | C100: =IF('DF raw data'!G105="","",'DF raw data'!G105) -> 0.000101213 | D100: =IF('DF raw data'!H105="","",'DF raw data'!H105) -> -1.3618e-05 | F100: -3.452682744e-05 | G100: 0.0001017494289 | H100: -1.36901754e-05 | J100: -0.0005467302435 | K100: -0.005614974168 | L100: 0.001953779388 | M100: 0.01930937208 | N100: 2.728741817e-05
A101: =IF('DF raw data'!E106="","",'DF raw data'!E106) -> -280.5 | B101: =IF('DF raw data'!F106="","",'DF raw data'!F106) -> -3.33137e-05 | C101: =IF('DF raw data'!G106="","",'DF raw data'!G106) -> 9.75509e-05 | D101: =IF('DF raw data'!H106="","",'DF raw data'!H106) -> -2.24403e-05 | F101: -3.349026261e-05 | G101: 9.806791977e-05 | H101: -2.255923359e-05 | J101: -0.0005634753748 | K101: -0.005896711855 | L101: 0.002002813348 | M101: 0.02031077876 | N101: 2.945180107e-05
A102: =IF('DF raw data'!E107="","",'DF raw data'!E107) -> -280 | B102: =IF('DF raw data'!F107="","",'DF raw data'!F107) -> -6.6516e-06 | C102: =IF('DF raw data'!G107="","",'DF raw data'!G107) -> 9.4675e-05 | D102: =IF('DF raw data'!H107="","",'DF raw data'!H107) -> -2.43486e-05 | F102: -6.68685348e-06 | G102: 9.51767775e-05 | H102: -2.447764758e-05 | J102: -0.0005668188015 | K102: -0.006180121256 | L102: 0.002050401737 | M102: 0.02133597962 | N102: 3.171451649e-05
A103: =IF('DF raw data'!E108="","",'DF raw data'!E108) -> -279.5 | B103: =IF('DF raw data'!F108="","",'DF raw data'!F108) -> -2.97153e-05 | C103: =IF('DF raw data'!G108="","",'DF raw data'!G108) -> 0.00010135 | D103: =IF('DF raw data'!H108="","",'DF raw data'!H108) -> -3.7101e-05 | F103: -2.987279109e-05 | G103: 0.000101887155 | H103: -3.72976353e-05 | J103: -0.0005817551971 | K103: -0.006470998854 | L103: 0.002101345315 | M103: 0.02238665228 | N103: 3.409156211e-05
A104: =IF('DF raw data'!E109="","",'DF raw data'!E109) -> -279 | B104: =IF('DF raw data'!F109="","",'DF raw data'!F109) -> -3.0553e-05 | C104: =IF('DF raw data'!G109="","",'DF raw data'!G109) -> 0.000102336 | D104: =IF('DF raw data'!H109="","",'DF raw data'!H109) -> -2.98774e-05 | F104: -3.07149309e-05 | G104: 0.0001028783808 | H104: -3.003575022e-05 | J104: -0.0005971126625 | K104: -0.006769555186 | L104: 0.002152784505 | M104: 0.02346304453 | N104: 3.658707444e-05
A105: =IF('DF raw data'!E110="","",'DF raw data'!E110) -> -278.5 | B105: =IF('DF raw data'!F110="","",'DF raw data'!F110) -> -2.97245e-05 | C105: =IF('DF raw data'!G110="","",'DF raw data'!G110) -> 8.97413e-05 | D105: =IF('DF raw data'!H110="","",'DF raw data'!H110) -> -2.29586e-05 | F105: -2.988203985e-05 | G105: 9.021692889e-05 | H105: -2.308028058e-05 | J105: -0.0006120536825 | K105: -0.007075582027 | L105: 0.002197892969 | M105: 0.02456199102 | N105: 3.918974604e-05
A106: =IF('DF raw data'!E111="","",'DF raw data'!E111) -> -278 | B106: =IF('DF raw data'!F111="","",'DF raw data'!F111) -> -2.53668e-05 | C106: =IF('DF raw data'!G111="","",'DF raw data'!G111) -> 9.49855e-05 | D106: =IF('DF raw data'!H111="","",'DF raw data'!H111) -> -2.22671e-05 | F106: -2.550124404e-05 | G106: 9.548892315e-05 | H106: -2.238511563e-05 | J106: -0.0006248043045 | K106: -0.007387984179 | L106: 0.002245637431 | M106: 0.02568480973 | N106: 4.190637999e-05
A107: =IF('DF raw data'!E112="","",'DF raw data'!E112) -> -277.5 | B107: =IF('DF raw data'!F112="","",'DF raw data'!F112) -> -3.09433e-05 | C107: =IF('DF raw data'!G112="","",'DF raw data'!G112) -> 9.50989e-05 | D107: =IF('DF raw data'!H112="","",'DF raw data'!H112) -> -2.09333e-05 | F107: -3.110729949e-05 | G107: 9.560292417e-05 | H107: -2.104424649e-05 | J107: -0.0006403579542 | K107: -0.007708163156 | L107: 0.002293438893 | M107: 0.02683152918 | N107: 4.474134012e-05
A108: =IF('DF raw data'!E113="","",'DF raw data'!E113) -> -277 | B108: =IF('DF raw data'!F113="","",'DF raw data'!F113) -> -2.8313e-05 | C108: =IF('DF raw data'!G113="","",'DF raw data'!G113) -> 9.30049e-05 | D108: =IF('DF raw data'!H113="","",'DF raw data'!H113) -> -2.50271e-05 | F108: -2.84630589e-05 | G108: 9.349782597e-05 | H108: -2.515974363e-05 | J108: -0.0006545894837 | K108: -0.008035457898 | L108: 0.002340187806 | M108: 0.02800162308 | N108: 4.76938233e-05
A109: =IF('DF raw data'!E114="","",'DF raw data'!E114) -> -276.5 | B109: =IF('DF raw data'!F114="","",'DF raw data'!F114) -> -1.90139e-05 | C109: =IF('DF raw data'!G114="","",'DF raw data'!G114) -> 9.92515e-05 | D109: =IF('DF raw data'!H114="","",'DF raw data'!H114) -> -3.48552e-05 | F109: -1.911467367e-05 | G109: 9.977753295e-05 | H109: -3.503993256e-05 | J109: -0.0006641468205 | K109: -0.008367531308 | L109: 0.002390076573 | M109: 0.02919666137 | N109: 5.077060181e-05
A110: =IF('DF raw data'!E115="","",'DF raw data'!E115) -> -276 | B110: =IF('DF raw data'!F115="","",'DF raw data'!F115) -> -2.56852e-05 | C110: =IF('DF raw data'!G115="","",'DF raw data'!G115) -> 0.000103033 | D110: =IF('DF raw data'!H115="","",'DF raw data'!H115) -> -2.56377e-05 | F110: -2.582133156e-05 | G110: 0.0001035790749 | H110: -2.577357981e-05 | J110: -0.0006770574863 | K110: -0.008706060052 | L110: 0.00244186611 | M110: 0.03041759442 | N110: 5.398116028e-05
A111: =IF('DF raw data'!E116="","",'DF raw data'!E116) -> -275.5 | B111: =IF('DF raw data'!F116="","",'DF raw data'!F116) -> -3.32494e-05 | C111: =IF('DF raw data'!G116="","",'DF raw data'!G116) -> 0.000107001 | D111: =IF('DF raw data'!H116="","",'DF raw data'!H116) -> -2.29621e-05 | F111: -3.342562182e-05 | G111: 0.0001075681053 | H111: -2.308379913e-05 | J111: -0.0006937702972 | K111: -0.0090529452 | L111: 0.002495650163 | M111: 0.03166541951 | N111: 5.733595376e-05
A112: =IF('DF raw data'!E117="","",'DF raw data'!E117) -> -275 | B112: =IF('DF raw data'!F117="","",'DF raw data'!F117) -> -3.03632e-05 | C112: =IF('DF raw data'!G117="","",'DF raw data'!G117) -> 0.000102001 | D112: =IF('DF raw data'!H117="","",'DF raw data'!H117) -> -2.63634e-05 | F112: -3.052412496e-05 | G112: 0.0001025416053 | H112: -2.650312602e-05 | J112: -0.0007090323597 | K112: -0.00940746138 | L112: 0.002546920965 | M112: 0.03293887999 | N112: 6.083072041e-05
A113: =IF('DF raw data'!E118="","",'DF raw data'!E118) -> -274.5 | B113: =IF('DF raw data'!F118="","",'DF raw data'!F118) -> -2.87533e-05 | C113: =IF('DF raw data'!G118="","",'DF raw data'!G118) -> 9.73326e-05 | D113: =IF('DF raw data'!H118="","",'DF raw data'!H118) -> -3.7955e-05 | F113: -2.890569249e-05 | G113: 9.784846278e-05 | H113: -3.81561615e-05 | J113: -0.0007234852059 | K113: -0.009769203983 | L113: 0.002595845197 | M113: 0.03423680259 | N113: 6.446164197e-05
A114: =IF('DF raw data'!E119="","",'DF raw data'!E119) -> -274 | B114: =IF('DF raw data'!F119="","",'DF raw data'!F119) -> -3.13847e-05 | C114: =IF('DF raw data'!G119="","",'DF raw data'!G119) -> 9.42624e-05 | D114: =IF('DF raw data'!H119="","",'DF raw data'!H119) -> -3.23076e-05 | F114: -3.155103891e-05 | G114: 9.476199072e-05 | H114: -3.247883028e-05 | J114: -0.0007392607254 | K114: -0.01013883435 | L114: 0.002643226192 | M114: 0.03555841568 | N114: 6.822821753e-05
A115: =IF('DF raw data'!E120="","",'DF raw data'!E120) -> -273.5 | B115: =IF('DF raw data'!F120="","",'DF raw data'!F120) -> -2.71e-05 | C115: =IF('DF raw data'!G120="","",'DF raw data'!G120) -> 9.27615e-05 | D115: =IF('DF raw data'!H120="","",'DF raw data'!H120) -> -1.79939e-05 | F115: -2.724363e-05 | G115: 9.325313595e-05 | H115: -1.808926767e-05 | J115: -0.0007528825404 | K115: -0.01051527562 | L115: 0.00268985276 | M115: 0.03690334206 | N115: 7.212928753e-05
A116: =IF('DF raw data'!E121="","",'DF raw data'!E121) -> -273 | B116: =IF('DF raw data'!F121="","",'DF raw data'!F121) -> -3.36382e-05 | C116: =IF('DF raw data'!G121="","",'DF raw data'!G121) -> 9.41399e-05 | D116: =IF('DF raw data'!H121="","",'DF raw data'!H121) -> -1.64146e-05 | F116: -3.381648246e-05 | G116: 9.463884147e-05 | H116: -1.650159738e-05 | J116: -0.0007697907816 | K116: -0.01090017101 | L116: 0.002737172181 | M116: 0.03827192815 | N116: 7.617163222e-05
A117: =IF('DF raw data'!E122="","",'DF raw data'!E122) -> -272.5 | B117: =IF('DF raw data'!F122="","",'DF raw data'!F122) -> -2.85694e-05 | C117: =IF('DF raw data'!G122="","",'DF raw data'!G122) -> 9.33108e-05 | D117: =IF('DF raw data'!H122="","",'DF raw data'!H122) -> -2.49701e-05 | F117: -2.872081782e-05 | G117: 9.380534724e-05 | H117: -2.510244153e-05 | J117: -0.0007841511905 | K117: -0.0112922466 | L117: 0.002784074854 | M117: 0.03966396558 | N117: 8.035461517e-05
A118: =IF('DF raw data'!E123="","",'DF raw data'!E123) -> -272 | B118: =IF('DF raw data'!F123="","",'DF raw data'!F123) -> -2.81194e-05 | C118: =IF('DF raw data'!G123="","",'DF raw data'!G123) -> 9.0985e-05 | D118: =IF('DF raw data'!H123="","",'DF raw data'!H123) -> -2.72326e-05 | F118: -2.826843282e-05 | G118: 9.14672205e-05 | H118: -2.737693278e-05 | J118: -0.0007982854069 | K118: -0.01169138931 | L118: 0.002829808465 | M118: 0.04107886981 | N118: 8.467715294e-05
A119: =IF('DF raw data'!E124="","",'DF raw data'!E124) -> -271.5 | B119: =IF('DF raw data'!F124="","",'DF raw data'!F124) -> -2.32537e-05 | C119: =IF('DF raw data'!G124="","",'DF raw data'!G124) -> 9.06951e-05 | D119: =IF('DF raw data'!H124="","",'DF raw data'!H124) -> -1.93946e-05 | F119: -2.337694461e-05 | G119: 9.117578403e-05 | H119: -1.949739138e-05 | J119: -0.0008099738792 | K119: -0.01209637624 | L119: 0.002875396357 | M119: 0.04251656799 | N119: 8.913913388e-05
A120: =IF('DF raw data'!E125="","",'DF raw data'!E125) -> -271 | B120: =IF('DF raw data'!F125="","",'DF raw data'!F125) -> -3.79309e-05 | C120: =IF('DF raw data'!G125="","",'DF raw data'!G125) -> 9.07923e-05 | D120: =IF('DF raw data'!H125="","",'DF raw data'!H125) -> -1.83058e-05 | F120: -3.813193377e-05 | G120: 9.127349919e-05 | H120: -1.840282074e-05 | J120: -0.0008290398461 | K120: -0.01251089617 | L120: 0.002921033106 | M120: 0.04397708454 | N120: 9.374900462e-05
A121: =IF('DF raw data'!E126="","",'DF raw data'!E126) -> -270.5 | B121: =IF('DF raw data'!F126="","",'DF raw data'!F126) -> -3.13853e-05 | C121: =IF('DF raw data'!G126="","",'DF raw data'!G126) -> 8.80851e-05 | D121: =IF('DF raw data'!H126="","",'DF raw data'!H126) -> -3.13283e-05 | F121: -3.155164209e-05 | G121: 8.855195103e-05 | H121: -3.149433999e-05 | J121: -0.0008448156672 | K121: -0.012933304 | L121: 0.002965309082 | M121: 0.04545973909 | N121: 9.850239035e-05
A122: =IF('DF raw data'!E127="","",'DF raw data'!E127) -> -270 | B122: =IF('DF raw data'!F127="","",'DF raw data'!F127) -> -3.78043e-05 | C122: =IF('DF raw data'!G127="","",'DF raw data'!G127) -> 9.13766e-05 | D122: =IF('DF raw data'!H127="","",'DF raw data'!H127) -> -1.59308e-05 | F122: -3.800466279e-05 | G122: 9.186089598e-05 | H122: -1.601523324e-05 | J122: -0.0008638179986 | K122: -0.013365213 | L122: 0.00301123953 | M122: 0.04696535885 | N122: 0.0001034092629
A123: =IF('DF raw data'!E128="","",'DF raw data'!E128) -> -269.5 | B123: =IF('DF raw data'!F128="","",'DF raw data'!F128) -> -3.84405e-05 | C123: =IF('DF raw data'!G128="","",'DF raw data'!G128) -> 9.61481e-05 | D123: =IF('DF raw data'!H128="","",'DF raw data'!H128) -> -2.31027e-05 | F123: -3.864423465e-05 | G123: 9.665768493e-05 | H123: -2.322514431e-05 | J123: -0.0008831401159 | K123: -0.01380678306 | L123: 0.003059568372 | M123: 0.04849514304 | N123: 0.0001084797104
A124: =IF('DF raw data'!E129="","",'DF raw data'!E129) -> -269 | B124: =IF('DF raw data'!F129="","",'DF raw data'!F129) -> -2.47284e-05 | C124: =IF('DF raw data'!G129="","",'DF raw data'!G129) -> 9.04278e-05 | D124: =IF('DF raw data'!H129="","",'DF raw data'!H129) -> -1.84856e-05 | F124: -2.485946052e-05 | G124: 9.090706734e-05 | H124: -1.858357368e-05 | J124: -0.0008955698461 | K124: -0.01425456798 | L124: 0.003105021906 | M124: 0.05004765399 | N124: 0.0001137013136
A125: =IF('DF raw data'!E130="","",'DF raw data'!E130) -> -268.5 | B125: =IF('DF raw data'!F130="","",'DF raw data'!F130) -> -3.42723e-05 | C125: =IF('DF raw data'!G130="","",'DF raw data'!G130) -> 8.52725e-05 | D125: =IF('DF raw data'!H130="","",'DF raw data'!H130) -> -2.67864e-05 | F125: -3.445394319e-05 | G125: 8.572444425e-05 | H125: -2.692836792e-05 | J125: -0.0009127968177 | K125: -0.01471096639 | L125: 0.003147884128 | M125: 0.05162159605 | N125: 0.0001190724999
A126: =IF('DF raw data'!E131="","",'DF raw data'!E131) -> -268 | B126: =IF('DF raw data'!F131="","",'DF raw data'!F131) -> -2.2092e-05 | C126: =IF('DF raw data'!G131="","",'DF raw data'!G131) -> 8.97328e-05 | D126: =IF('DF raw data'!H131="","",'DF raw data'!H131) -> -3.19389e-05 | F126: -2.22090876e-05 | G126: 9.020838384e-05 | H126: -3.210817617e-05 | J126: -0.0009239013615 | K126: -0.01517291707 | L126: 0.00319298832 | M126: 0.05321809021 | N126: 0.0001245968839
A127: =IF('DF raw data'!E132="","",'DF raw data'!E132) -> -267.5 | B127: =IF('DF raw data'!F132="","",'DF raw data'!F132) -> -3.2803e-05 | C127: =IF('DF raw data'!G132="","",'DF raw data'!G132) -> 9.16247e-05 | D127: =IF('DF raw data'!H132="","",'DF raw data'!H132) -> -1.9289e-05 | F127: -3.29768559e-05 | G127: 9.211031091e-05 | H127: -1.93912317e-05 | J127: -0.0009403897895 | K127: -0.01564311197 | L127: 0.003239043475 | M127: 0.05483761195 | N127: 0.0001302847517
A128: =IF('DF raw data'!E133="","",'DF raw data'!E133) -> -267 | B128: =IF('DF raw data'!F133="","",'DF raw data'!F133) -> -3.55544e-05 | C128: =IF('DF raw data'!G133="","",'DF raw data'!G133) -> 9.5993e-05 | D128: =IF('DF raw data'!H133="","",'DF raw data'!H133) -> -2.61973e-05 | F128: =(1-$G$1*($B$49-$G$2))*B128 -> -3.574283832e-05 | G128: 9.65017629e-05 | H128: -2.633614569e-05 | J128: =F128*$G$3+J127 -> -0.0009582612086 | K128: =J128*$G$3+K127 -> -0.01612224257 | L128: =G128*$G$3+L127 -> 0.003287294357 | M128: =L128*$G$3+M127 -> 0.05648125913 | N128: =(J128^2+L128^2)*$G$3+N127 -> 0.0001361470361
A129: =IF('DF raw data'!E134="","",'DF raw data'!E134) -> -266.5 | B129: =IF('DF raw data'!F134="","",'DF raw data'!F134) -> -3.36961e-05 | C129: =IF('DF raw data'!G134="","",'DF raw data'!G134) -> 9.47629e-05 | D129: =IF('DF raw data'!H134="","",'DF raw data'!H134) -> -2.56504e-05 | F129: -3.387468933e-05 | G129: 9.526514337e-05 | H129: -2.578634712e-05 | J129: -0.0009751985533 | K129: -0.01660984185 | L129: 0.003334926929 | M129: 0.05814872259 | N129: 0.000142183411
A130: =IF('DF raw data'!E135="","",'DF raw data'!E135) -> -266 | B130: =IF('DF raw data'!F135="","",'DF raw data'!F135) -> -2.29336e-05 | C130: =IF('DF raw data'!G135="","",'DF raw data'!G135) -> 9.72533e-05 | D130: =IF('DF raw data'!H135="","",'DF raw data'!H135) -> -1.90692e-05 | F130: -2.305514808e-05 | G130: 9.776874249e-05 | H130: -1.917026676e-05 | J130: -0.0009867261273 | K130: -0.01710320491 | L130: 0.0033838113 | M130: 0.05984062824 | N130: 0.0001483953147
A131: =IF('DF raw data'!E136="","",'DF raw data'!E136) -> -265.5 | B131: =IF('DF raw data'!F136="","",'DF raw data'!F136) -> -2.49862e-05 | C131: =IF('DF raw data'!G136="","",'DF raw data'!G136) -> 0.000102813 | D131: =IF('DF raw data'!H136="","",'DF raw data'!H136) -> -1.62822e-05 | F131: -2.511862686e-05 | G131: 0.0001033579089 | H131: -1.636849566e-05 | J131: -0.0009992854408 | K131: -0.01760284763 | L131: 0.003435490254 | M131: 0.06155837337 | N131: 0.000154795897
A132: =IF('DF raw data'!E137="","",'DF raw data'!E137) -> -265 | B132: =IF('DF raw data'!F137="","",'DF raw data'!F137) -> -3.73456e-05 | C132: =IF('DF raw data'!G137="","",'DF raw data'!G137) -> 9.9092e-05 | D132: =IF('DF raw data'!H137="","",'DF raw data'!H137) -> -3.11968e-05 | F132: -3.754353168e-05 | G132: 9.96171876e-05 | H132: -3.136214304e-05 | J132: -0.001018057207 | K132: -0.01811187623 | L132: 0.003485298848 | M132: 0.06330102279 | N132: 0.0001613877713
A133: =IF('DF raw data'!E138="","",'DF raw data'!E138) -> -264.5 | B133: =IF('DF raw data'!F138="","",'DF raw data'!F138) -> -2.0112e-05 | C133: =IF('DF raw data'!G138="","",'DF raw data'!G138) -> 9.22848e-05 | D133: =IF('DF raw data'!H138="","",'DF raw data'!H138) -> -2.13489e-05 | F133: -2.02185936e-05 | G133: 9.277390944e-05 | H133: -2.146204917e-05 | J133: -0.001028166503 | K133: -0.01862595949 | L133: 0.003531685803 | M133: 0.0650668657 | N133: 0.0001681527368
A134: =IF('DF raw data'!E139="","",'DF raw data'!E139) -> -264 | B134: =IF('DF raw data'!F139="","",'DF raw data'!F139) -> -3.52956e-05 | C134: =IF('DF raw data'!G139="","",'DF raw data'!G139) -> 9.1976e-05 | D134: =IF('DF raw data'!H139="","",'DF raw data'!H139) -> -2.99599e-05 | F134: -3.548266668e-05 | G134: 9.24634728e-05 | H134: -3.011868747e-05 | J134: -0.001045907837 | K134: -0.0191489134 | L134: 0.003577917539 | M134: 0.06685582447 | N134: 0.0001751004453
A135: =IF('DF raw data'!E140="","",'DF raw data'!E140) -> -263.5 | B135: =IF('DF raw data'!F140="","",'DF raw data'!F140) -> -2.87624e-05 | C135: =IF('DF raw data'!G140="","",'DF raw data'!G140) -> 0.000100844 | D135: =IF('DF raw data'!H140="","",'DF raw data'!H140) -> -2.39534e-05 | F135: -2.891484072e-05 | G135: 0.0001013784732 | H135: -2.408035302e-05 | J135: -0.001060365257 | K135: -0.01967909603 | L135: 0.003628606776 | M135: 0.06867012785 | N135: 0.0001822460262
A136: =IF('DF raw data'!E141="","",'DF raw data'!E141) -> -263 | B136: =IF('DF raw data'!F141="","",'DF raw data'!F141) -> -3.11913e-05 | C136: =IF('DF raw data'!G141="","",'DF raw data'!G141) -> 0.000100871 | D136: =IF('DF raw data'!H141="","",'DF raw data'!H141) -> -3.38608e-05 | F136: -3.135661389e-05 | G136: 0.0001014056163 | H136: -3.404026224e-05 | J136: -0.001076043564 | K136: -0.02021711782 | L136: 0.003679309584 | M136: 0.07050978265 | N136: 0.0001895936205
A137: =IF('DF raw data'!E142="","",'DF raw data'!E142) -> -262.5 | B137: =IF('DF raw data'!F142="","",'DF raw data'!F142) -> -3.07482e-05 | C137: =IF('DF raw data'!G142="","",'DF raw data'!G142) -> 9.62544e-05 | D137: =IF('DF raw data'!H142="","",'DF raw data'!H142) -> -2.56179e-05 | F137: -3.091116546e-05 | G137: 9.676454832e-05 | H137: -2.575367487e-05 | J137: -0.001091499147 | K137: -0.02076286739 | L137: 0.003727691858 | M137: 0.07237362857 | N137: 0.000197137149
A138: =IF('DF raw data'!E143="","",'DF raw data'!E143) -> -262 | B138: =IF('DF raw data'!F143="","",'DF raw data'!F143) -> -3.363e-05 | C138: =IF('DF raw data'!G143="","",'DF raw data'!G143) -> 9.26694e-05 | D138: =IF('DF raw data'!H143="","",'DF raw data'!H143) -> -2.90084e-05 | F138: -3.3808239e-05 | G138: 9.316054782e-05 | H138: -2.916214452e-05 | J138: -0.001108403266 | K138: -0.02131706902 | L138: 0.003774272132 | M138: 0.07426076464 | N138: 0.000204873993
A139: =IF('DF raw data'!E144="","",'DF raw data'!E144) -> -261.5 | B139: =IF('DF raw data'!F144="","",'DF raw data'!F144) -> -3.20307e-05 | C139: =IF('DF raw data'!G144="","",'DF raw data'!G144) -> 9.26348e-05 | D139: =IF('DF raw data'!H144="","",'DF raw data'!H144) -> -2.43121e-05 | F139: -3.220046271e-05 | G139: 9.312576444e-05 | H139: -2.444095413e-05 | J139: -0.001124503498 | K139: -0.02187932077 | L139: 0.003820835014 | M139: 0.07617118215 | N139: 0.0002128056371
A140: =IF('DF raw data'!E145="","",'DF raw data'!E145) -> -261 | B140: =IF('DF raw data'!F145="","",'DF raw data'!F145) -> -3.51001e-05 | C140: =IF('DF raw data'!G145="","",'DF raw data'!G145) -> 9.89744e-05 | D140: =IF('DF raw data'!H145="","",'DF raw data'!H145) -> -3.48452e-05 | F140: -3.528613053e-05 | G140: 9.949896432e-05 | H140: -3.502987956e-05 | J140: -0.001142146563 | K140: -0.02245039405 | L140: 0.003870584496 | M140: 0.0781064744 | N140: 0.0002209485987
A141: =IF('DF raw data'!E146="","",'DF raw data'!E146) -> -260.5 | B141: =IF('DF raw data'!F146="","",'DF raw data'!F146) -> -3.05556e-05 | C141: =IF('DF raw data'!G146="","",'DF raw data'!G146) -> 9.92302e-05 | D141: =IF('DF raw data'!H146="","",'DF raw data'!H146) -> -2.58911e-05 | F141: -3.071754468e-05 | G141: 9.975612006e-05 | H141: -2.602832283e-05 | J141: -0.001157505335 | K141: -0.02302914672 | L141: 0.003920462556 | M141: 0.08006670567 | N141: 0.0002293035213
A142: =IF('DF raw data'!E147="","",'DF raw data'!E147) -> -260 | B142: =IF('DF raw data'!F147="","",'DF raw data'!F147) -> -3.56849e-05 | C142: =IF('DF raw data'!G147="","",'DF raw data'!G147) -> 9.96853e-05 | D142: =IF('DF raw data'!H147="","",'DF raw data'!H147) -> -2.26962e-05 | F142: -3.587402997e-05 | G142: 0.0001002136321 | H142: -2.281648986e-05 | J142: -0.00117544235 | K142: -0.02361686789 | L142: 0.003970569372 | M142: 0.08205199036 | N142: 0.0002378770643
A143: =IF('DF raw data'!E148="","",'DF raw data'!E148) -> -259.5 | B143: =IF('DF raw data'!F148="","",'DF raw data'!F148) -> -3.02315e-05 | C143: =IF('DF raw data'!G148="","",'DF raw data'!G148) -> 0.00010063 | D143: =IF('DF raw data'!H148="","",'DF raw data'!H148) -> -3.18008e-05 | F143: -3.039172695e-05 | G143: 0.000101163339 | H143: -3.196934424e-05 | J143: -0.001190638214 | K143: -0.024212187 | L143: 0.004021151042 | M143: 0.08406256588 | N143: 0.0002466707018
A144: =IF('DF raw data'!E149="","",'DF raw data'!E149) -> -259 | B144: =IF('DF raw data'!F149="","",'DF raw data'!F149) -> -1.86325e-05 | C144: =IF('DF raw data'!G149="","",'DF raw data'!G149) -> 9.02267e-05 | D144: =IF('DF raw data'!H149="","",'DF raw data'!H149) -> -3.0033e-05 | F144: -1.873125225e-05 | G144: 9.070490151e-05 | H144: -3.01921749e-05 | J144: -0.00120000384 | K144: -0.02481218892 | L144: 0.004066503493 | M144: 0.08609581763 | N144: 0.0002556589317
A145: =IF('DF raw data'!E150="","",'DF raw data'!E150) -> -258.5 | B145: =IF('DF raw data'!F150="","",'DF raw data'!F150) -> -2.63793e-05 | C145: =IF('DF raw data'!G150="","",'DF raw data'!G150) -> 9.48412e-05 | D145: =IF('DF raw data'!H150="","",'DF raw data'!H150) -> -4.20537e-05 | F145: -2.651911029e-05 | G145: 9.534385836e-05 | H145: -4.227658461e-05 | J145: -0.001213263395 | K145: -0.02541882062 | L145: 0.004114175422 | M145: 0.08815290534 | N145: 0.0002648581555
A146: =IF('DF raw data'!E151="","",'DF raw data'!E151) -> -258 | B146: =IF('DF raw data'!F151="","",'DF raw data'!F151) -> -3.42016e-05 | C146: =IF('DF raw data'!G151="","",'DF raw data'!G151) -> 8.68879e-05 | D146: =IF('DF raw data'!H151="","",'DF raw data'!H151) -> -3.67728e-05 | F146: -3.438286848e-05 | G146: 8.734840587e-05 | H146: -3.696769584e-05 | J146: -0.001230454829 | K146: -0.02603404803 | L146: 0.004157849625 | M146: 0.09023183015 | N146: 0.0002742590218
A147: =IF('DF raw data'!E152="","",'DF raw data'!E152) -> -257.5 | B147: =IF('DF raw data'!F152="","",'DF raw data'!F152) -> -2.82449e-05 | C147: =IF('DF raw data'!G152="","",'DF raw data'!G152) -> 8.75499e-05 | D147: =IF('DF raw data'!H152="","",'DF raw data'!H152) -> -3.13455e-05 | F147: -2.839459797e-05 | G147: 8.801391447e-05 | H147: -3.151163115e-05 | J147: -0.001244652128 | K147: -0.0266563741 | L147: 0.004201856582 | M147: 0.09233275844 | N147: 0.0002838614006
A148: =IF('DF raw data'!E153="","",'DF raw data'!E153) -> -257 | B148: =IF('DF raw data'!F153="","",'DF raw data'!F153) -> -3.09382e-05 | C148: =IF('DF raw data'!G153="","",'DF raw data'!G153) -> 9.36079e-05 | D148: =IF('DF raw data'!H153="","",'DF raw data'!H153) -> -2.88043e-05 | F148: -3.110217246e-05 | G148: 9.410402187e-05 | H148: -2.895696279e-05 | J148: -0.001260203214 | K148: -0.02728647571 | L148: 0.004248908593 | M148: 0.09445721274 | N148: 0.0002936820688
A149: =IF('DF raw data'!E154="","",'DF raw data'!E154) -> -256.5 | B149: =IF('DF raw data'!F154="","",'DF raw data'!F154) -> -3.54232e-05 | C149: =IF('DF raw data'!G154="","",'DF raw data'!G154) -> 9.95021e-05 | D149: =IF('DF raw data'!H154="","",'DF raw data'!H154) -> -3.08996e-05 | F149: -3.561094296e-05 | G149: 0.0001000294611 | H149: -3.106336788e-05 | J149: -0.001278008686 | K149: -0.02792548005 | L149: 0.004298923323 | M149: 0.0966066744 | N149: 0.0003037390927
A150: =IF('DF raw data'!E155="","",'DF raw data'!E155) -> -256 | B150: =IF('DF raw data'!F155="","",'DF raw data'!F155) -> -3.82454e-05 | C150: =IF('DF raw data'!G155="","",'DF raw data'!G155) -> 0.0001068 | D150: =IF('DF raw data'!H155="","",'DF raw data'!H155) -> -2.72241e-05 | F150: -3.844810062e-05 | G150: 0.00010736604 | H150: -2.736838773e-05 | J150: -0.001297232736 | K150: -0.02857409642 | L150: 0.004352606343 | M150: 0.09878297757 | N150: 0.0003140530901
A151: =IF('DF raw data'!E156="","",'DF raw data'!E156) -> -255.5 | B151: =IF('DF raw data'!F156="","",'DF raw data'!F156) -> -3.84399e-05 | C151: =IF('DF raw data'!G156="","",'DF raw data'!G156) -> 0.000100731 | D151: =IF('DF raw data'!H156="","",'DF raw data'!H156) -> -2.39505e-05 | F151: -3.864363147e-05 | G151: 0.0001012648743 | H151: -2.407743765e-05 | J151: -0.001316554552 | K151: -0.02923237369 | L151: 0.004403238781 | M151: 0.100984597 | N151: 0.0003246140039
A152: =IF('DF raw data'!E157="","",'DF raw data'!E157) -> -255 | B152: =IF('DF raw data'!F157="","",'DF raw data'!F157) -> -3.25434e-05 | C152: =IF('DF raw data'!G157="","",'DF raw data'!G157) -> 0.000100446 | D152: =IF('DF raw data'!H157="","",'DF raw data'!H157) -> -2.44018e-05 | F152: -3.271588002e-05 | G152: 0.0001009783638 | H152: -2.453112954e-05 | J152: -0.001332912492 | K152: -0.02989882994 | L152: 0.004453727963 | M152: 0.1032114609 | N152: 0.0003354201782
A153: =IF('DF raw data'!E158="","",'DF raw data'!E158) -> -254.5 | B153: =IF('DF raw data'!F158="","",'DF raw data'!F158) -> -3.4209e-05 | C153: =IF('DF raw data'!G158="","",'DF raw data'!G158) -> 9.20743e-05 | D153: =IF('DF raw data'!H158="","",'DF raw data'!H158) -> -2.53229e-05 | F153: -3.43903077e-05 | G153: 9.256229379e-05 | H153: -2.545711137e-05 | J153: -0.001350107646 | K153: -0.03057388376 | L153: 0.004500009109 | M153: 0.1054614655 | N153: 0.0003464566145
A154: =IF('DF raw data'!E159="","",'DF raw data'!E159) -> -254 | B154: =IF('DF raw data'!F159="","",'DF raw data'!F159) -> -3.29268e-05 | C154: =IF('DF raw data'!G159="","",'DF raw data'!G159) -> 9.10764e-05 | D154: =IF('DF raw data'!H159="","",'DF raw data'!H159) -> -2.60978e-05 | F154: -3.310131204e-05 | G154: 9.155910492e-05 | H154: -2.623611834e-05 | J154: -0.001366658302 | K154: -0.03125721291 | L154: 0.004545788662 | M154: 0.1077343598 | N154: 0.0003577225892
A155: =IF('DF raw data'!E160="","",'DF raw data'!E160) -> -253.5 | B155: =IF('DF raw data'!F160="","",'DF raw data'!F160) -> -3.06791e-05 | C155: =IF('DF raw data'!G160="","",'DF raw data'!G160) -> 9.27944e-05 | D155: =IF('DF raw data'!H160="","",'DF raw data'!H160) -> -3.30422e-05 | F155: -3.084169923e-05 | G155: 9.328621032e-05 | H155: -3.321732366e-05 | J155: -0.001382079151 | K155: -0.03194825249 | L155: 0.004592431767 | M155: 0.1100305757 | N155: 0.0003692228754
A156: =IF('DF raw data'!E161="","",'DF raw data'!E161) -> -253 | B156: =IF('DF raw data'!F161="","",'DF raw data'!F161) -> -4.31763e-05 | C156: =IF('DF raw data'!G161="","",'DF raw data'!G161) -> 9.26519e-05 | D156: =IF('DF raw data'!H161="","",'DF raw data'!H161) -> -3.32402e-05 | F156: -4.340513439e-05 | G156: 9.314295507e-05 | H156: -3.341637306e-05 | J156: -0.001403781719 | K156: -0.03265014335 | L156: 0.004639003245 | M156: 0.1123500773 | N156: 0.0003809683525
A157: =IF('DF raw data'!E162="","",'DF raw data'!E162) -> -252.5 | B157: =IF('DF raw data'!F162="","",'DF raw data'!F162) -> -2.67728e-05 | C157: =IF('DF raw data'!G162="","",'DF raw data'!G162) -> 0.000100339 | D157: =IF('DF raw data'!H162="","",'DF raw data'!H162) -> -2.82171e-05 | F157: -2.691469584e-05 | G157: 0.0001008707967 | H157: -2.836665063e-05 | J157: -0.001417239067 | K157: -0.03335876288 | L157: 0.004689438643 | M157: 0.1146947967 | N157: 0.0003929680532
A158: =IF('DF raw data'!E163="","",'DF raw data'!E163) -> -252 | B158: =IF('DF raw data'!F163="","",'DF raw data'!F163) -> -3.20913e-05 | C158: =IF('DF raw data'!G163="","",'DF raw data'!G163) -> 9.97943e-05 | D158: =IF('DF raw data'!H163="","",'DF raw data'!H163) -> -2.95017e-05 | F158: -3.226138389e-05 | G158: 0.0001003232098 | H158: -2.965805901e-05 | J158: -0.001433369759 | K158: -0.03407544776 | L158: 0.004739600248 | M158: 0.1170645968 | N158: 0.0004052272329
A159: =IF('DF raw data'!E164="","",'DF raw data'!E164) -> -251.5 | B159: =IF('DF raw data'!F164="","",'DF raw data'!F164) -> -3.78581e-05 | C159: =IF('DF raw data'!G164="","",'DF raw data'!G164) -> 9.82641e-05 | D159: =IF('DF raw data'!H164="","",'DF raw data'!H164) -> -3.1452e-05 | F159: -3.805874793e-05 | G159: 9.878489973e-05 | H159: -3.16186956e-05 | J159: -0.001452399132 | K159: -0.03480164733 | L159: 0.004788992698 | M159: 0.1194590931 | N159: 0.00041774919
A160: =IF('DF raw data'!E165="","",'DF raw data'!E165) -> -251 | B160: =IF('DF raw data'!F165="","",'DF raw data'!F165) -> -3.42041e-05 | C160: =IF('DF raw data'!G165="","",'DF raw data'!G165) -> 9.88506e-05 | D160: =IF('DF raw data'!H165="","",'DF raw data'!H165) -> -3.29633e-05 | F160: -3.438538173e-05 | G160: 9.937450818e-05 | H160: -3.313800549e-05 | J160: -0.001469591823 | K160: -0.03553644324 | L160: 0.004838679952 | M160: 0.1218784331 | N160: 0.0004305354519
A161: =IF('DF raw data'!E166="","",'DF raw data'!E166) -> -250.5 | B161: =IF('DF raw data'!F166="","",'DF raw data'!F166) -> -2.14498e-05 | C161: =IF('DF raw data'!G166="","",'DF raw data'!G166) -> 9.68107e-05 | D161: =IF('DF raw data'!H166="","",'DF raw data'!H166) -> -3.40064e-05 | F161: -2.156348394e-05 | G161: 9.732379671e-05 | H161: -3.418663392e-05 | J161: -0.001480373565 | K161: -0.03627663002 | L161: 0.00488734185 | M161: 0.124322104 | N161: 0.00044357426
A162: =IF('DF raw data'!E167="","",'DF raw data'!E167) -> -250 | B162: =IF('DF raw data'!F167="","",'DF raw data'!F167) -> -2.46573e-05 | C162: =IF('DF raw data'!G167="","",'DF raw data'!G167) -> 9.02055e-05 | D162: =IF('DF raw data'!H167="","",'DF raw data'!H167) -> -2.94445e-05 | F162: -2.478798369e-05 | G162: 9.068358915e-05 | H162: -2.960055585e-05 | J162: -0.001492767557 | K162: -0.0370230138 | L162: 0.004932683645 | M162: 0.1267884459 | N162: 0.0004568541215
A163: =IF('DF raw data'!E168="","",'DF raw data'!E168) -> -249.5 | B163: =IF('DF raw data'!F168="","",'DF raw data'!F168) -> -3.38916e-05 | C163: =IF('DF raw data'!G168="","",'DF raw data'!G168) -> 9.17792e-05 | D163: =IF('DF raw data'!H168="","",'DF raw data'!H168) -> -2.09322e-05 | F163: -3.407122548e-05 | G163: 9.226562976e-05 | H163: -2.104314066e-05 | J163: -0.00150980317 | K163: -0.03777791538 | L163: 0.00497881646 | M163: 0.1292778541 | N163: 0.000470388181
A164: =IF('DF raw data'!E169="","",'DF raw data'!E169) -> -249 | B164: =IF('DF raw data'!F169="","",'DF raw data'!F169) -> -3.58758e-05 | C164: =IF('DF raw data'!G169="","",'DF raw data'!G169) -> 9.56763e-05 | D164: =IF('DF raw data'!H169="","",'DF raw data'!H169) -> -2.45858e-05 | F164: -3.606594174e-05 | G164: 9.618338439e-05 | H164: -2.471610474e-05 | J164: -0.001527836141 | K164: -0.03854183345 | L164: 0.005026908152 | M164: 0.1317913082 | N164: 0.0004841902254
A165: =IF('DF raw data'!E170="","",'DF raw data'!E170) -> -248.5 | B165: =IF('DF raw data'!F170="","",'DF raw data'!F170) -> -2.87636e-05 | C165: =IF('DF raw data'!G170="","",'DF raw data'!G170) -> 8.92459e-05 | D165: =IF('DF raw data'!H170="","",'DF raw data'!H170) -> -2.21491e-05 | F165: -2.891604708e-05 | G165: 8.971890327e-05 | H165: -2.226649023e-05 | J165: -0.001542294164 | K165: -0.03931298054 | L165: 0.005071767603 | M165: 0.134327192 | N165: 0.0004982409744
A166: =IF('DF raw data'!E171="","",'DF raw data'!E171) -> -248 | B166: =IF('DF raw data'!F171="","",'DF raw data'!F171) -> -2.34548e-05 | C166: =IF('DF raw data'!G171="","",'DF raw data'!G171) -> 8.78873e-05 | D166: =IF('DF raw data'!H171="","",'DF raw data'!H171) -> -5.85328e-06 | F166: -2.357911044e-05 | G166: 8.835310269e-05 | H166: -5.884302384e-06 | J166: -0.00155408372 | K166: -0.0400900224 | L166: 0.005115944155 | M166: 0.136885164 | N166: 0.0005125350048
A167: =IF('DF raw data'!E172="","",'DF raw data'!E172) -> -247.5 | B167: =IF('DF raw data'!F172="","",'DF raw data'!F172) -> -4.6898e-05 | C167: =IF('DF raw data'!G172="","",'DF raw data'!G172) -> 9.00585e-05 | D167: =IF('DF raw data'!H172="","",'DF raw data'!H172) -> -2.65605e-05 | F167: -4.71465594e-05 | G167: 9.053581005e-05 | H167: -2.670127065e-05 | J167: -0.001577656999 | K167: -0.0408788509 | L167: 0.00516121206 | M167: 0.1394657701 | N167: 0.0005270985605
A168: =IF('DF raw data'!E173="","",'DF raw data'!E173) -> -247 | B168: =IF('DF raw data'!F173="","",'DF raw data'!F173) -> -3.56877e-05 | C168: =IF('DF raw data'!G173="","",'DF raw data'!G173) -> 9.07267e-05 | D168: =IF('DF raw data'!H173="","",'DF raw data'!H173) -> -1.84128e-05 | F168: -3.587684481e-05 | G168: 9.120755151e-05 | H168: -1.851038784e-05 | J168: -0.001595595422 | K168: -0.04167664861 | L168: 0.005206815836 | M168: 0.142069178 | N168: 0.0005419269885
A169: =IF('DF raw data'!E174="","",'DF raw data'!E174) -> -246.5 | B169: =IF('DF raw data'!F174="","",'DF raw data'!F174) -> -2.67748e-05 | C169: =IF('DF raw data'!G174="","",'DF raw data'!G174) -> 9.72665e-05 | D169: =IF('DF raw data'!H174="","",'DF raw data'!H174) -> -2.51976e-05 | F169: -2.691670644e-05 | G169: 9.778201245e-05 | H169: -2.533114728e-05 | J169: -0.001609053775 | K169: -0.04248117549 | L169: 0.005255706842 | M169: 0.1446970314 | N169: 0.0005570327427
A170: =IF('DF raw data'!E175="","",'DF raw data'!E175) -> -246 | B170: =IF('DF raw data'!F175="","",'DF raw data'!F175) -> -2.22268e-05 | C170: =IF('DF raw data'!G175="","",'DF raw data'!G175) -> 8.90139e-05 | D170: =IF('DF raw data'!H175="","",'DF raw data'!H175) -> -2.16145e-05 | F170: -2.234460204e-05 | G170: 8.948567367e-05 | H170: -2.172905685e-05 | J170: -0.001620226076 | K170: -0.04329128853 | L170: 0.005300449679 | M170: 0.1473472562 | N170: 0.0005723926924
A171: =IF('DF raw data'!E176="","",'DF raw data'!E176) -> -245.5 | B171: =IF('DF raw data'!F176="","",'DF raw data'!F176) -> -3.87597e-05 | C171: =IF('DF raw data'!G176="","",'DF raw data'!G176) -> 9.54693e-05 | D171: =IF('DF raw data'!H176="","",'DF raw data'!H176) -> -2.47054e-05 | F171: -3.896512641e-05 | G171: 9.597528729e-05 | H171: -2.483633862e-05 | J171: -0.001639708639 | K171: -0.04411114285 | L171: 0.005348437322 | M171: 0.1500214749 | N171: 0.0005880399055
A172: =IF('DF raw data'!E177="","",'DF raw data'!E177) -> -245 | B172: =IF('DF raw data'!F177="","",'DF raw data'!F177) -> -3.61977e-05 | C172: =IF('DF raw data'!G177="","",'DF raw data'!G177) -> 0.000102402 | D172: =IF('DF raw data'!H177="","",'DF raw data'!H177) -> -2.25862e-05 | F172: -3.638954781e-05 | G172: 0.0001029447306 | H172: -2.270590686e-05 | J172: -0.001657903413 | K172: -0.04494009456 | L172: 0.005399909688 | M172: 0.1527214297 | N172: 0.0006039937397
A173: =IF('DF raw data'!E178="","",'DF raw data'!E178) -> -244.5 | B173: =IF('DF raw data'!F178="","",'DF raw data'!F178) -> -3.68333e-05 | C173: =IF('DF raw data'!G178="","",'DF raw data'!G178) -> 9.75375e-05 | D173: =IF('DF raw data'!H178="","",'DF raw data'!H178) -> -3.07303e-05 | F173: -3.702851649e-05 | G173: 9.805444875e-05 | H173: -3.089317059e-05 | J173: -0.001676417671 | K173: -0.04577830339 | L173: 0.005448936912 | M173: 0.1554458982 | N173: 0.0006202443845
A174: =IF('DF raw data'!E179="","",'DF raw data'!E179) -> -244 | B174: =IF('DF raw data'!F179="","",'DF raw data'!F179) -> -2.52339e-05 | C174: =IF('DF raw data'!G179="","",'DF raw data'!G179) -> 0.000103419 | D174: =IF('DF raw data'!H179="","",'DF raw data'!H179) -> -2.96361e-05 | F174: -2.536763967e-05 | G174: 0.0001039671207 | H174: -2.979317133e-05 | J174: -0.001689101491 | K174: -0.04662285414 | L174: 0.005500920472 | M174: 0.1581963584 | N174: 0.0006368009794
A175: =IF('DF raw data'!E180="","",'DF raw data'!E180) -> -243.5 | B175: =IF('DF raw data'!F180="","",'DF raw data'!F180) -> -3.70861e-05 | C175: =IF('DF raw data'!G180="","",'DF raw data'!G180) -> 0.000102438 | D175: =IF('DF raw data'!H180="","",'DF raw data'!H180) -> -3.61936e-05 | F175: -3.728265633e-05 | G175: 0.0001029809214 | H175: -3.638542608e-05 | J175: -0.001707742819 | K175: -0.04747672555 | L175: 0.005552410933 | M175: 0.1609725639 | N175: 0.0006536738058
A176: =IF('DF raw data'!E181="","",'DF raw data'!E181) -> -243 | B176: =IF('DF raw data'!F181="","",'DF raw data'!F181) -> -2.76694e-05 | C176: =IF('DF raw data'!G181="","",'DF raw data'!G181) -> 9.61861e-05 | D176: =IF('DF raw data'!H181="","",'DF raw data'!H181) -> -2.92152e-05 | F176: -2.781604782e-05 | G176: 9.669588633e-05 | H176: -2.937004056e-05 | J176: -0.001721650843 | K176: -0.04833755097 | L176: 0.005600758876 | M176: 0.1637729433 | N176: 0.0006708400966
A177: =IF('DF raw data'!E182="","",'DF raw data'!E182) -> -242.5 | B177: =IF('DF raw data'!F182="","",'DF raw data'!F182) -> -3.40746e-05 | C177: =IF('DF raw data'!G182="","",'DF raw data'!G182) -> 9.46319e-05 | D177: =IF('DF raw data'!H182="","",'DF raw data'!H182) -> -3.50084e-05 | F177: -3.425519538e-05 | G177: 9.513344907e-05 | H177: -3.519394452e-05 | J177: -0.001738778441 | K177: -0.04920694019 | L177: 0.005648325601 | M177: 0.1665971061 | N177: 0.0006883035629
A178: =IF('DF raw data'!E183="","",'DF raw data'!E183) -> -242 | B178: =IF('DF raw data'!F183="","",'DF raw data'!F183) -> -3.90178e-05 | C178: =IF('DF raw data'!G183="","",'DF raw data'!G183) -> 9.46466e-05 | D178: =IF('DF raw data'!H183="","",'DF raw data'!H183) -> -2.21393e-05 | F178: -3.922459434e-05 | G178: 9.514822698e-05 | H178: -2.225663829e-05 | J178: -0.001758390738 | K178: -0.05008613556 | L178: 0.005695899714 | M178: 0.169445056 | N178: 0.0007060711686
A179: =IF('DF raw data'!E184="","",'DF raw data'!E184) -> -241.5 | B179: =IF('DF raw data'!F184="","",'DF raw data'!F184) -> -4.51651e-05 | C179: =IF('DF raw data'!G184="","",'DF raw data'!G184) -> 8.78865e-05 | D179: =IF('DF raw data'!H184="","",'DF raw data'!H184) -> -3.03137e-05 | F179: -4.540447503e-05 | G179: 8.835229845e-05 | H179: -3.047436261e-05 | J179: -0.001781092976 | K179: -0.05097668205 | L179: 0.005740075863 | M179: 0.1723150939 | N179: 0.0007241315502
A180: =IF('DF raw data'!E185="","",'DF raw data'!E185) -> -241 | B180: =IF('DF raw data'!F185="","",'DF raw data'!F185) -> -2.95919e-05 | C180: =IF('DF raw data'!G185="","",'DF raw data'!G185) -> 8.4092e-05 | D180: =IF('DF raw data'!H185="","",'DF raw data'!H185) -> -2.97887e-05 | F180: -2.974873707e-05 | G180: 8.45376876e-05 | H180: -2.994658011e-05 | J180: -0.001795967344 | K180: -0.05187466572 | L180: 0.005782344707 | M180: 0.1752062663 | N180: 0.0007424620547
A181: =IF('DF raw data'!E186="","",'DF raw data'!E186) -> -240.5 | B181: =IF('DF raw data'!F186="","",'DF raw data'!F186) -> -3.86287e-05 | C181: =IF('DF raw data'!G186="","",'DF raw data'!G186) -> 8.3631e-05 | D181: =IF('DF raw data'!H186="","",'DF raw data'!H186) -> -2.91262e-05 | F181: -3.883343211e-05 | G181: 8.40742443e-05 | H181: -2.928056886e-05 | J181: -0.00181538406 | K181: -0.05278235775 | L181: 0.005824381829 | M181: 0.1781184572 | N181: 0.0007610715762
A182: =IF('DF raw data'!E187="","",'DF raw data'!E187) -> -240 | B182: =IF('DF raw data'!F187="","",'DF raw data'!F187) -> -3.67082e-05 | C182: =IF('DF raw data'!G187="","",'DF raw data'!G187) -> 8.91101e-05 | D182: =IF('DF raw data'!H187="","",'DF raw data'!H187) -> -2.59459e-05 | F182: -3.690275346e-05 | G182: 8.958238353e-05 | H182: -2.608341327e-05 | J182: -0.001833835437 | K182: -0.05369927547 | L182: 0.005869173021 | M182: 0.1810530437 | N182: 0.0007799766484
A183: =IF('DF raw data'!E188="","",'DF raw data'!E188) -> -239.5 | B183: =IF('DF raw data'!F188="","",'DF raw data'!F188) -> -3.03632e-05 | C183: =IF('DF raw data'!G188="","",'DF raw data'!G188) -> 8.5137e-05 | D183: =IF('DF raw data'!H188="","",'DF raw data'!H188) -> -2.63397e-05 | F183: -3.052412496e-05 | G183: 8.55882261e-05 | H183: -2.647930041e-05 | J183: -0.001849097499 | K183: -0.05462382422 | L183: 0.005911967134 | M183: 0.1840090273 | N183: 0.0007991619069
A184: =IF('DF raw data'!E189="","",'DF raw data'!E189) -> -239 | B184: =IF('DF raw data'!F189="","",'DF raw data'!F189) -> -3.61941e-05 | C184: =IF('DF raw data'!G189="","",'DF raw data'!G189) -> 8.92264e-05 | D184: =IF('DF raw data'!H189="","",'DF raw data'!H189) -> -2.81274e-05 | F184: -3.638592873e-05 | G184: 8.969929992e-05 | H184: -2.827647522e-05 | J184: -0.001867290464 | K184: -0.05555746945 | L184: 0.005956816784 | M184: 0.1869874357 | N184: 0.0008186471268
A185: =IF('DF raw data'!E190="","",'DF raw data'!E190) -> -238.5 | B185: =IF('DF raw data'!F190="","",'DF raw data'!F190) -> -3.56211e-05 | C185: =IF('DF raw data'!G190="","",'DF raw data'!G190) -> 9.60923e-05 | D185: =IF('DF raw data'!H190="","",'DF raw data'!H190) -> -2.19782e-05 | F185: -3.580989183e-05 | G185: 9.660158919e-05 | H185: -2.209468446e-05 | J185: -0.00188519541 | K185: -0.05650006715 | L185: 0.006005117579 | M185: 0.1899899945 | N185: 0.0008384548262
A186: =IF('DF raw data'!E191="","",'DF raw data'!E191) -> -238 | B186: =IF('DF raw data'!F191="","",'DF raw data'!F191) -> -4.3497e-05 | C186: =IF('DF raw data'!G191="","",'DF raw data'!G191) -> 9.1605e-05 | D186: =IF('DF raw data'!H191="","",'DF raw data'!H191) -> -3.3188e-05 | F186: -4.37275341e-05 | G186: 9.20905065e-05 | H186: -3.33638964e-05 | J186: -0.001907059177 | K186: -0.05745359674 | L186: 0.006051162832 | M186: 0.1930155759 | N186: 0.0008585815494
A187: =IF('DF raw data'!E192="","",'DF raw data'!E192) -> -237.5 | B187: =IF('DF raw data'!F192="","",'DF raw data'!F192) -> -3.38836e-05 | C187: =IF('DF raw data'!G192="","",'DF raw data'!G192) -> 9.25348e-05 | D187: =IF('DF raw data'!H192="","",'DF raw data'!H192) -> -3.33389e-05 | F187: -3.406318308e-05 | G187: 9.302523444e-05 | H187: -3.351559617e-05 | J187: -0.001924090768 | K187: -0.05841564213 | L187: 0.006097675449 | M187: 0.1960644136 | N187: 0.000879023435
A188: =IF('DF raw data'!E193="","",'DF raw data'!E193) -> -237 | B188: =IF('DF raw data'!F193="","",'DF raw data'!F193) -> -3.00984e-05 | C188: =IF('DF raw data'!G193="","",'DF raw data'!G193) -> 8.81019e-05 | D188: =IF('DF raw data'!H193="","",'DF raw data'!H193) -> -3.93386e-05 | F188: -3.025792152e-05 | G188: 8.856884007e-05 | H188: -3.954709458e-05 | J188: -0.001939219729 | K188: -0.05938525199 | L188: 0.006141959869 | M188: 0.1991353935 | N188: 0.0008997655571
A189: =IF('DF raw data'!E194="","",'DF raw data'!E194) -> -236.5 | B189: =IF('DF raw data'!F194="","",'DF raw data'!F194) -> -4.09931e-05 | C189: =IF('DF raw data'!G194="","",'DF raw data'!G194) -> 8.43389e-05 | D189: =IF('DF raw data'!H194="","",'DF raw data'!H194) -> -3.98932e-05 | F189: -4.121036343e-05 | G189: 8.478589617e-05 | H189: -4.010463396e-05 | J189: -0.001959824911 | K189: -0.06036516445 | L189: 0.006184352817 | M189: 0.2022275699 | N189: 0.0009208091238
A190: =IF('DF raw data'!E195="","",'DF raw data'!E195) -> -236 | B190: =IF('DF raw data'!F195="","",'DF raw data'!F195) -> -3.39472e-05 | C190: =IF('DF raw data'!G195="","",'DF raw data'!G195) -> 9.05944e-05 | D190: =IF('DF raw data'!H195="","",'DF raw data'!H195) -> -3.37989e-05 | F190: -3.412712016e-05 | G190: 9.107455032e-05 | H190: -3.397803417e-05 | J190: -0.001976888471 | K190: -0.06135360868 | L190: 0.006229890092 | M190: 0.205342515 | N190: 0.0009421689331
A191: =IF('DF raw data'!E196="","",'DF raw data'!E196) -> -235.5 | B191: =IF('DF raw data'!F196="","",'DF raw data'!F196) -> -3.15133e-05 | C191: =IF('DF raw data'!G196="","",'DF raw data'!G196) -> 8.64031e-05 | D191: =IF('DF raw data'!H196="","",'DF raw data'!H196) -> -3.17894e-05 | F191: -3.168032049e-05 | G191: 8.686103643e-05 | H191: -3.195788382e-05 | J191: -0.001992728631 | K191: -0.062349973 | L191: 0.006273320611 | M191: 0.2084791753 | N191: 0.0009638316925
A192: =IF('DF raw data'!E197="","",'DF raw data'!E197) -> -235 | B192: =IF('DF raw data'!F197="","",'DF raw data'!F197) -> -3.58087e-05 | C192: =IF('DF raw data'!G197="","",'DF raw data'!G197) -> 8.16868e-05 | D192: =IF('DF raw data'!H197="","",'DF raw data'!H197) -> -2.95241e-05 | F192: =(1-$G$1*($B$49-$G$2))*B192 -> -3.599848611e-05 | G192: 8.211974004e-05 | H192: -2.968057773e-05 | J192: =F192*$G$3+J191 -> -0.002010727874 | K192: =J192*$G$3+K191 -> -0.06335533693 | L192: =G192*$G$3+L191 -> 0.006314380481 | M192: =L192*$G$3+M191 -> 0.2116363655 | N192: =(J192^2+L192^2)*$G$3+N191 -> 0.0009857889062
A193: =IF('DF raw data'!E198="","",'DF raw data'!E198) -> -234.5 | B193: =IF('DF raw data'!F198="","",'DF raw data'!F198) -> -3.82399e-05 | C193: =IF('DF raw data'!G198="","",'DF raw data'!G198) -> 8.74038e-05 | D193: =IF('DF raw data'!H198="","",'DF raw data'!H198) -> -3.57566e-05 | F193: -3.844257147e-05 | G193: 8.786704014e-05 | H193: -3.594610998e-05 | J193: -0.00202994916 | K193: -0.06437031151 | L193: 0.006358314001 | M193: 0.2148155225 | N193: 0.001008063332
A194: =IF('DF raw data'!E199="","",'DF raw data'!E199) -> -234 | B194: =IF('DF raw data'!F199="","",'DF raw data'!F199) -> -3.11957e-05 | C194: =IF('DF raw data'!G199="","",'DF raw data'!G199) -> 8.58394e-05 | D194: =IF('DF raw data'!H199="","",'DF raw data'!H199) -> -2.71802e-05 | F194: -3.136103721e-05 | G194: 8.629434882e-05 | H194: -2.732425506e-05 | J194: -0.002045629678 | K194: -0.06539312635 | L194: 0.006401461175 | M194: 0.2180162531 | N194: 0.001030644984
A195: =IF('DF raw data'!E200="","",'DF raw data'!E200) -> -233.5 | B195: =IF('DF raw data'!F200="","",'DF raw data'!F200) -> -3.26761e-05 | C195: =IF('DF raw data'!G200="","",'DF raw data'!G200) -> 8.36944e-05 | D195: =IF('DF raw data'!H200="","",'DF raw data'!H200) -> -1.74761e-05 | F195: -3.284928333e-05 | G195: 8.413798032e-05 | H195: -1.756872333e-05 | J195: -0.00206205432 | K195: -0.06642415351 | L195: 0.006443530165 | M195: 0.2212380182 | N195: 0.001053530559
A196: =IF('DF raw data'!E201="","",'DF raw data'!E201) -> -233 | B196: =IF('DF raw data'!F201="","",'DF raw data'!F201) -> -4.04922e-05 | C196: =IF('DF raw data'!G201="","",'DF raw data'!G201) -> 9.57541e-05 | D196: =IF('DF raw data'!H201="","",'DF raw data'!H201) -> -2.16431e-05 | F196: -4.070680866e-05 | G196: 9.626159673e-05 | H196: -2.175780843e-05 | J196: -0.002082407724 | K196: -0.06746535738 | L196: 0.006491660964 | M196: 0.2244838487 | N196: 0.001076769601
A197: =IF('DF raw data'!E202="","",'DF raw data'!E202) -> -232.5 | B197: =IF('DF raw data'!F202="","",'DF raw data'!F202) -> -3.4656e-05 | C197: =IF('DF raw data'!G202="","",'DF raw data'!G202) -> 0.000100496 | D197: =IF('DF raw data'!H202="","",'DF raw data'!H202) -> -2.81645e-05 | F197: -3.48396768e-05 | G197: 0.0001010286288 | H197: -2.831377185e-05 | J197: -0.002099827563 | K197: -0.06851527116 | L197: 0.006542175278 | M197: 0.2277549363 | N197: 0.001100374268
A198: =IF('DF raw data'!E203="","",'DF raw data'!E203) -> -232 | B198: =IF('DF raw data'!F203="","",'DF raw data'!F203) -> -4.19651e-05 | C198: =IF('DF raw data'!G203="","",'DF raw data'!G203) -> 8.93343e-05 | D198: =IF('DF raw data'!H203="","",'DF raw data'!H203) -> -2.35593e-05 | F198: -4.218751503e-05 | G198: 8.980777179e-05 | H198: -2.368416429e-05 | J198: -0.00212092132 | K198: -0.06957573182 | L198: 0.006587079164 | M198: 0.2310484759 | N198: 0.001124318227
A199: =IF('DF raw data'!E204="","",'DF raw data'!E204) -> -231.5 | B199: =IF('DF raw data'!F204="","",'DF raw data'!F204) -> -2.86973e-05 | C199: =IF('DF raw data'!G204="","",'DF raw data'!G204) -> 8.37064e-05 | D199: =IF('DF raw data'!H204="","",'DF raw data'!H204) -> -2.53629e-05 | F199: -2.884939569e-05 | G199: 8.415004392e-05 | H199: -2.549732337e-05 | J199: -0.002135346018 | K199: -0.07064340483 | L199: 0.006629154186 | M199: 0.234363053 | N199: 0.001148570921
A200: =IF('DF raw data'!E205="","",'DF raw data'!E205) -> -231 | B200: =IF('DF raw data'!F205="","",'DF raw data'!F205) -> -2.92699e-05 | C200: =IF('DF raw data'!G205="","",'DF raw data'!G205) -> 9.13313e-05 | D200: =IF('DF raw data'!H205="","",'DF raw data'!H205) -> -3.20858e-05 | F200: -2.942503047e-05 | G200: 9.181535589e-05 | H200: -3.225585474e-05 | J200: -0.002150058533 | K200: -0.07171843409 | L200: 0.006675061864 | M200: 0.2377005839 | N200: 0.001173160522
A201: =IF('DF raw data'!E206="","",'DF raw data'!E206) -> -230.5 | B201: =IF('DF raw data'!F206="","",'DF raw data'!F206) -> -2.54255e-05 | C201: =IF('DF raw data'!G206="","",'DF raw data'!G206) -> 8.32902e-05 | D201: =IF('DF raw data'!H206="","",'DF raw data'!H206) -> -3.08009e-05 | F201: -2.556025515e-05 | G201: 8.373163806e-05 | H201: -3.096414477e-05 | J201: -0.002162838661 | K201: -0.07279985342 | L201: 0.006716927683 | M201: 0.2410590478 | N201: 0.001198058017
... 1061 more rows

Sheet 10 y=0
A1: =IF('DF raw data'!I1="","",'DF raw data'!I1) -> Number of header lines | B1: =IF('DF raw data'!J1="","",'DF raw data'!J1) -> 54 | C1: =IF('DF raw data'!K1="","",'DF raw data'!K1) ->  | D1: =IF('DF raw data'!L1="","",'DF raw data'!L1) ->  | F1: T_coeff | G1: -0.001 | H1: /degC | J1: IBy total | K1: =J1262*1000 -> -12.62108072 | L1: muTm | M1: =L1262*1000 -> 21.59942888 | R1: DF ref | S1: ='10 y=-0.2'!S1 -> 1
A2: =IF('DF raw data'!I2="","",'DF raw data'!I2) -> Measured by | B2: =IF('DF raw data'!J2="","",'DF raw data'!J2) -> Danfysik | C2: =IF('DF raw data'!K2="","",'DF raw data'!K2) ->  | D2: =IF('DF raw data'!L2="","",'DF raw data'!L2) ->  | F2: Tcorr | G2: 20 | H2: degC | J2: JBy total | K2: =K1262 -> -15.10540653 | L2: muTm^2 | M2: =M1262 -> 8.130407203
A3: =IF('DF raw data'!I3="","",'DF raw data'!I3) -> Operator | B3: =IF('DF raw data'!J3="","",'DF raw data'!J3) -> PMHA | C3: =IF('DF raw data'!K3="","",'DF raw data'!K3) ->  | D3: =IF('DF raw data'!L3="","",'DF raw data'!L3) ->  | F3: Step | G3: =A63-A62 -> 0.5 | H3: mm | J3: PI total | K3: =N1262 -> 10657.22304 | L3: T^2mm^3
A4: =IF('DF raw data'!I4="","",'DF raw data'!I4) -> Data-time | B4: =IF('DF raw data'!J4="","",'DF raw data'!J4) -> 02-10-2024, 21:45:30 | C4: =IF('DF raw data'!K4="","",'DF raw data'!K4) ->  | D4: =IF('DF raw data'!L4="","",'DF raw data'!L4) -> 
A5: =IF('DF raw data'!I5="","",'DF raw data'!I5) -> Project | B5: =IF('DF raw data'!J5="","",'DF raw data'!J5) -> 504314 | C5: =IF('DF raw data'!K5="","",'DF raw data'!K5) ->  | D5: =IF('DF raw data'!L5="","",'DF raw data'!L5) -> 
A6: =IF('DF raw data'!I6="","",'DF raw data'!I6) -> Magnet type | B6: =IF('DF raw data'!J6="","",'DF raw data'!J6) -> Dipole | C6: =IF('DF raw data'!K6="","",'DF raw data'!K6) ->  | D6: =IF('DF raw data'!L6="","",'DF raw data'!L6) -> 
A7: =IF('DF raw data'!I7="","",'DF raw data'!I7) -> Magnet nr. | B7: =IF('DF raw data'!J7="","",'DF raw data'!J7) -> 2410110 | C7: =IF('DF raw data'!K7="","",'DF raw data'!K7) ->  | D7: =IF('DF raw data'!L7="","",'DF raw data'!L7) -> 
A8: =IF('DF raw data'!I8="","",'DF raw data'!I8) -> Meas. number | B8: =IF('DF raw data'!J8="","",'DF raw data'!J8) -> 996 | C8: =IF('DF raw data'!K8="","",'DF raw data'!K8) ->  | D8: =IF('DF raw data'!L8="","",'DF raw data'!L8) -> 
A9: =IF('DF raw data'!I9="","",'DF raw data'!I9) -> Add. info | B9: =IF('DF raw data'!J9="","",'DF raw data'!J9) -> Y-alignment scan 3) | C9: =IF('DF raw data'!K9="","",'DF raw data'!K9) ->  | D9: =IF('DF raw data'!L9="","",'DF raw data'!L9) -> 
A10: =IF('DF raw data'!I10="","",'DF raw data'!I10) -> Device | B10: =IF('DF raw data'!J10="","",'DF raw data'!J10) -> (HAL) HALL-PROBE | C10: =IF('DF raw data'!K10="","",'DF raw data'!K10) ->  | D10: =IF('DF raw data'!L10="","",'DF raw data'!L10) -> 
A11: =IF('DF raw data'!I11="","",'DF raw data'!I11) -> Goal | B11: =IF('DF raw data'!J11="","",'DF raw data'!J11) -> (AXI) AXis Integral (Line, EFB) | C11: =IF('DF raw data'!K11="","",'DF raw data'!K11) ->  | D11: =IF('DF raw data'!L11="","",'DF raw data'!L11) -> 
A12: =IF('DF raw data'!I12="","",'DF raw data'!I12) -> Power supply mode | B12: =IF('DF raw data'!J12="","",'DF raw data'!J12) -> (PM) Permanent Magnet (no MPS in use) | C12: =IF('DF raw data'!K12="","",'DF raw data'!K12) ->  | D12: =IF('DF raw data'!L12="","",'DF raw data'!L12) -> 
A13: =IF('DF raw data'!I13="","",'DF raw data'!I13) -> Data format | B13: =IF('DF raw data'!J13="","",'DF raw data'!J13) -> Raw data text file | C13: =IF('DF raw data'!K13="","",'DF raw data'!K13) ->  | D13: =IF('DF raw data'!L13="","",'DF raw data'!L13) -> 
A14: =IF('DF raw data'!I14="","",'DF raw data'!I14) -> Direction of the pos. x-axis | B14: =IF('DF raw data'!J14="","",'DF raw data'!J14) -> See test program | C14: =IF('DF raw data'!K14="","",'DF raw data'!K14) ->  | D14: =IF('DF raw data'!L14="","",'DF raw data'!L14) -> 
A15: =IF('DF raw data'!I15="","",'DF raw data'!I15) -> Direction of the pos. y-axis | B15: =IF('DF raw data'!J15="","",'DF raw data'!J15) -> Vertical up | C15: =IF('DF raw data'!K15="","",'DF raw data'!K15) ->  | D15: =IF('DF raw data'!L15="","",'DF raw data'!L15) -> 
A16: =IF('DF raw data'!I16="","",'DF raw data'!I16) -> Direction of the pos. z-axis | B16: =IF('DF raw data'!J16="","",'DF raw data'!J16) -> See test program | C16: =IF('DF raw data'!K16="","",'DF raw data'!K16) ->  | D16: =IF('DF raw data'!L16="","",'DF raw data'!L16) -> 
A17: =IF('DF raw data'!I17="","",'DF raw data'!I17) -> Mapper type | B17: =IF('DF raw data'!J17="","",'DF raw data'!J17) -> Precision Hall Mapper | C17: =IF('DF raw data'!K17="","",'DF raw data'!K17) ->  | D17: =IF('DF raw data'!L17="","",'DF raw data'!L17) -> 
A18: =IF('DF raw data'!I18="","",'DF raw data'!I18) -> Mapper Danfysik Reg. Number | B18: =IF('DF raw data'!J18="","",'DF raw data'!J18) -> 2033-D (mapper 1) | C18: =IF('DF raw data'!K18="","",'DF raw data'!K18) ->  | D18: =IF('DF raw data'!L18="","",'DF raw data'!L18) -> 
A19: =IF('DF raw data'!I19="","",'DF raw data'!I19) -> Measurement consept | B19: =IF('DF raw data'!J19="","",'DF raw data'!J19) -> Square line grid | C19: =IF('DF raw data'!K19="","",'DF raw data'!K19) ->  | D19: =IF('DF raw data'!L19="","",'DF raw data'!L19) -> 
A20: =IF('DF raw data'!I20="","",'DF raw data'!I20) -> Mode | B20: =IF('DF raw data'!J20="","",'DF raw data'!J20) -> On-the-fly measurement | C20: =IF('DF raw data'!K20="","",'DF raw data'!K20) ->  | D20: =IF('DF raw data'!L20="","",'DF raw data'!L20) -> 
A21: =IF('DF raw data'!I21="","",'DF raw data'!I21) ->  | B21: =IF('DF raw data'!J21="","",'DF raw data'!J21) ->  | C21: =IF('DF raw data'!K21="","",'DF raw data'!K21) ->  | D21: =IF('DF raw data'!L21="","",'DF raw data'!L21) -> 
A22: =IF('DF raw data'!I22="","",'DF raw data'!I22) -> Probe Name | B22: =IF('DF raw data'!J22="","",'DF raw data'!J22) -> ID12_By | C22: =IF('DF raw data'!K22="","",'DF raw data'!K22) ->  | D22: =IF('DF raw data'!L22="","",'DF raw data'!L22) -> 
A23: =IF('DF raw data'!I23="","",'DF raw data'!I23) -> Probe Type | B23: =IF('DF raw data'!J23="","",'DF raw data'!J23) -> DF_ID_3D_Bxyz | C23: =IF('DF raw data'!K23="","",'DF raw data'!K23) ->  | D23: =IF('DF raw data'!L23="","",'DF raw data'!L23) -> 
A24: =IF('DF raw data'!I24="","",'DF raw data'!I24) -> Probe Danfysik Reg. Number | B24: =IF('DF raw data'!J24="","",'DF raw data'!J24) -> 2277 | C24: =IF('DF raw data'!K24="","",'DF raw data'!K24) ->  | D24: =IF('DF raw data'!L24="","",'DF raw data'!L24) -> 
A25: =IF('DF raw data'!I25="","",'DF raw data'!I25) -> Probe Axis | B25: =IF('DF raw data'!J25="","",'DF raw data'!J25) -> By | C25: =IF('DF raw data'!K25="","",'DF raw data'!K25) ->  | D25: =IF('DF raw data'!L25="","",'DF raw data'!L25) -> 
A26: =IF('DF raw data'!I26="","",'DF raw data'!I26) -> Probe Current Supply | B26: =IF('DF raw data'!J26="","",'DF raw data'!J26) -> 1825-D | C26: =IF('DF raw data'!K26="","",'DF raw data'!K26) ->  | D26: =IF('DF raw data'!L26="","",'DF raw data'!L26) -> 
A27: =IF('DF raw data'!I27="","",'DF raw data'!I27) -> Probe Gain Correction | B27: =IF('DF raw data'!J27="","",'DF raw data'!J27) -> 0.99615 | C27: =IF('DF raw data'!K27="","",'DF raw data'!K27) ->  | D27: =IF('DF raw data'!L27="","",'DF raw data'!L27) -> 
A28: =IF('DF raw data'!I28="","",'DF raw data'!I28) -> Probe Offset Correction | B28: =IF('DF raw data'!J28="","",'DF raw data'!J28) -> 0.0027536 | C28: =IF('DF raw data'!K28="","",'DF raw data'!K28) ->  | D28: =IF('DF raw data'!L28="","",'DF raw data'!L28) -> 
A29: =IF('DF raw data'!I29="","",'DF raw data'!I29) -> DVM Number | B29: =IF('DF raw data'!J29="","",'DF raw data'!J29) -> 2 | C29: =IF('DF raw data'!K29="","",'DF raw data'!K29) ->  | D29: =IF('DF raw data'!L29="","",'DF raw data'!L29) -> 
A30: =IF('DF raw data'!I30="","",'DF raw data'!I30) -> DVM Type | B30: =IF('DF raw data'!J30="","",'DF raw data'!J30) -> K2701 | C30: =IF('DF raw data'!K30="","",'DF raw data'!K30) ->  | D30: =IF('DF raw data'!L30="","",'DF raw data'!L30) -> 
A31: =IF('DF raw data'!I31="","",'DF raw data'!I31) -> DVM Danfysik Reg. Number | B31: =IF('DF raw data'!J31="","",'DF raw data'!J31) -> 1743-D | C31: =IF('DF raw data'!K31="","",'DF raw data'!K31) ->  | D31: =IF('DF raw data'!L31="","",'DF raw data'!L31) -> 
A32: =IF('DF raw data'!I32="","",'DF raw data'!I32) -> Probe Name | B32: =IF('DF raw data'!J32="","",'DF raw data'!J32) -> ID12_Bx | C32: =IF('DF raw data'!K32="","",'DF raw data'!K32) ->  | D32: =IF('DF raw data'!L32="","",'DF raw data'!L32) -> 
A33: =IF('DF raw data'!I33="","",'DF raw data'!I33) -> Probe Type | B33: =IF('DF raw data'!J33="","",'DF raw data'!J33) -> DF_ID_3D_Bxyz | C33: =IF('DF raw data'!K33="","",'DF raw data'!K33) ->  | D33: =IF('DF raw data'!L33="","",'DF raw data'!L33) -> 
A34: =IF('DF raw data'!I34="","",'DF raw data'!I34) -> Probe Danfysik Reg. Number | B34: =IF('DF raw data'!J34="","",'DF raw data'!J34) -> 2277 | C34: =IF('DF raw data'!K34="","",'DF raw data'!K34) ->  | D34: =IF('DF raw data'!L34="","",'DF raw data'!L34) -> 
A35: =IF('DF raw data'!I35="","",'DF raw data'!I35) -> Probe Axis | B35: =IF('DF raw data'!J35="","",'DF raw data'!J35) -> Bx | C35: =IF('DF raw data'!K35="","",'DF raw data'!K35) ->  | D35: =IF('DF raw data'!L35="","",'DF raw data'!L35) -> 
A36: =IF('DF raw data'!I36="","",'DF raw data'!I36) -> Probe Current Supply | B36: =IF('DF raw data'!J36="","",'DF raw data'!J36) -> 1825-D | C36: =IF('DF raw data'!K36="","",'DF raw data'!K36) ->  | D36: =IF('DF raw data'!L36="","",'DF raw data'!L36) -> 
A37: =IF('DF raw data'!I37="","",'DF raw data'!I37) -> Probe Gain Correction | B37: =IF('DF raw data'!J37="","",'DF raw data'!J37) -> 1 | C37: =IF('DF raw data'!K37="","",'DF raw data'!K37) ->  | D37: =IF('DF raw data'!L37="","",'DF raw data'!L37) -> 
A38: =IF('DF raw data'!I38="","",'DF raw data'!I38) -> Probe Offset Correction | B38: =IF('DF raw data'!J38="","",'DF raw data'!J38) -> -0.17575 | C38: =IF('DF raw data'!K38="","",'DF raw data'!K38) ->  | D38: =IF('DF raw data'!L38="","",'DF raw data'!L38) -> 
A39: =IF('DF raw data'!I39="","",'DF raw data'!I39) -> DVM Number | B39: =IF('DF raw data'!J39="","",'DF raw data'!J39) -> 3 | C39: =IF('DF raw data'!K39="","",'DF raw data'!K39) ->  | D39: =IF('DF raw data'!L39="","",'DF raw data'!L39) -> 
A40: =IF('DF raw data'!I40="","",'DF raw data'!I40) -> DVM Type | B40: =IF('DF raw data'!J40="","",'DF raw data'!J40) -> K2701 | C40: =IF('DF raw data'!K40="","",'DF raw data'!K40) ->  | D40: =IF('DF raw data'!L40="","",'DF raw data'!L40) -> 
A41: =IF('DF raw data'!I41="","",'DF raw data'!I41) -> DVM Danfysik Reg. Number | B41: =IF('DF raw data'!J41="","",'DF raw data'!J41) -> 1744-D | C41: =IF('DF raw data'!K41="","",'DF raw data'!K41) ->  | D41: =IF('DF raw data'!L41="","",'DF raw data'!L41) -> 
A42: =IF('DF raw data'!I42="","",'DF raw data'!I42) -> Probe Name | B42: =IF('DF raw data'!J42="","",'DF raw data'!J42) -> ID12_Bz | C42: =IF('DF raw data'!K42="","",'DF raw data'!K42) ->  | D42: =IF('DF raw data'!L42="","",'DF raw data'!L42) -> 
A43: =IF('DF raw data'!I43="","",'DF raw data'!I43) -> Probe Type | B43: =IF('DF raw data'!J43="","",'DF raw data'!J43) -> DF_ID_3D_Bxyz | C43: =IF('DF raw data'!K43="","",'DF raw data'!K43) ->  | D43: =IF('DF raw data'!L43="","",'DF raw data'!L43) -> 
A44: =IF('DF raw data'!I44="","",'DF raw data'!I44) -> Probe Danfysik Reg. Number | B44: =IF('DF raw data'!J44="","",'DF raw data'!J44) -> 2277 | C44: =IF('DF raw data'!K44="","",'DF raw data'!K44) ->  | D44: =IF('DF raw data'!L44="","",'DF raw data'!L44) -> 
A45: =IF('DF raw data'!I45="","",'DF raw data'!I45) -> Probe Axis | B45: =IF('DF raw data'!J45="","",'DF raw data'!J45) -> Bz | C45: =IF('DF raw data'!K45="","",'DF raw data'!K45) ->  | D45: =IF('DF raw data'!L45="","",'DF raw data'!L45) -> 
A46: =IF('DF raw data'!I46="","",'DF raw data'!I46) -> Probe Current Supply | B46: =IF('DF raw data'!J46="","",'DF raw data'!J46) -> 1825-D | C46: =IF('DF raw data'!K46="","",'DF raw data'!K46) ->  | D46: =IF('DF raw data'!L46="","",'DF raw data'!L46) -> 
A47: =IF('DF raw data'!I47="","",'DF raw data'!I47) -> Probe Gain Correction | B47: =IF('DF raw data'!J47="","",'DF raw data'!J47) -> 1 | C47: =IF('DF raw data'!K47="","",'DF raw data'!K47) ->  | D47: =IF('DF raw data'!L47="","",'DF raw data'!L47) -> 
A48: =IF('DF raw data'!I53="","",'DF raw data'!I53) -> PS-Gap: | B48: =IF('DF raw data'!J53="","",'DF raw data'!J53) -> 10 | C48: =IF('DF raw data'!K53="","",'DF raw data'!K53) ->  | D48: =IF('DF raw data'!L53="","",'DF raw data'!L53) -> 
A49: =IF('DF raw data'!I54="","",'DF raw data'!I54) -> PS-Temperature: | B49: =IF('DF raw data'!J54="","",'DF raw data'!J54) -> 25.3 | C49: =IF('DF raw data'!K54="","",'DF raw data'!K54) ->  | D49: =IF('DF raw data'!L54="","",'DF raw data'!L54) -> 
A50: =IF('DF raw data'!I55="","",'DF raw data'!I55) -> PS-Encoder: | B50: =IF('DF raw data'!J55="","",'DF raw data'!J55) -> 19.7503 | C50: =IF('DF raw data'!K55="","",'DF raw data'!K55) ->  | D50: =IF('DF raw data'!L55="","",'DF raw data'!L55) -> 
A51: =IF('DF raw data'!I56="","",'DF raw data'!I56) ->  | B51: =IF('DF raw data'!J56="","",'DF raw data'!J56) ->  | C51: =IF('DF raw data'!K56="","",'DF raw data'!K56) ->  | D51: =IF('DF raw data'!L56="","",'DF raw data'!L56) -> 
A52: =IF('DF raw data'!I57="","",'DF raw data'!I57) -> Monitor-Index | B52: =IF('DF raw data'!J57="","",'DF raw data'!J57) -> [1,1,4] | C52: =IF('DF raw data'!K57="","",'DF raw data'!K57) ->  | D52: =IF('DF raw data'!L57="","",'DF raw data'!L57) -> 
A53: =IF('DF raw data'!I58="","",'DF raw data'!I58) ->  | B53: =IF('DF raw data'!J58="","",'DF raw data'!J58) ->  | C53: =IF('DF raw data'!K58="","",'DF raw data'!K58) ->  | D53: =IF('DF raw data'!L58="","",'DF raw data'!L58) -> 
A54: =IF('DF raw data'!I59="","",'DF raw data'!I59) -> Time [s] | B54: =IF('DF raw data'!J59="","",'DF raw data'!J59) -> Y [mm] | C54: =IF('DF raw data'!K59="","",'DF raw data'!K59) -> X [mm] | D54: =IF('DF raw data'!L59="","",'DF raw data'!L59) -> Nominal current [A]
A55: =IF('DF raw data'!I60="","",'DF raw data'!I60) ->  | B55: =IF('DF raw data'!J60="","",'DF raw data'!J60) ->  | C55: =IF('DF raw data'!K60="","",'DF raw data'!K60) ->  | D55: =IF('DF raw data'!L60="","",'DF raw data'!L60) -> 
A56: =IF('DF raw data'!I61="","",'DF raw data'!I61) -> 209.6 | B56: =IF('DF raw data'!J61="","",'DF raw data'!J61) -> 31.35 | C56: =IF('DF raw data'!K61="","",'DF raw data'!K61) -> 301.3 | D56: =IF('DF raw data'!L61="","",'DF raw data'!L61) -> 0
A57: =IF('DF raw data'!I62="","",'DF raw data'!I62) ->  | B57: =IF('DF raw data'!J62="","",'DF raw data'!J62) ->  | C57: =IF('DF raw data'!K62="","",'DF raw data'!K62) ->  | D57: =IF('DF raw data'!L62="","",'DF raw data'!L62) -> 
A58: =IF('DF raw data'!I63="","",'DF raw data'!I63) -> Measurement-Index | B58: =IF('DF raw data'!J63="","",'DF raw data'!J63) -> [1,1,1201,2] | C58: =IF('DF raw data'!K63="","",'DF raw data'!K63) ->  | D58: =IF('DF raw data'!L63="","",'DF raw data'!L63) -> 
A59: =IF('DF raw data'!I64="","",'DF raw data'!I64) ->  | B59: =IF('DF raw data'!J64="","",'DF raw data'!J64) ->  | C59: =IF('DF raw data'!K64="","",'DF raw data'!K64) ->  | D59: =IF('DF raw data'!L64="","",'DF raw data'!L64) -> 
A60: =IF('DF raw data'!I65="","",'DF raw data'!I65) -> Z [mm] | B60: By [T] | C60: Bx [T] | D60: Bz [T] | F60: By_corr | G60: Bx_corr | H60: Bz_corr | J60: Iy | K60: Jy | L60: Ix | M60: Jx | N60: PI
A62: =IF('DF raw data'!I67="","",'DF raw data'!I67) -> -300 | B62: =IF('DF raw data'!J67="","",'DF raw data'!J67) -> -3.89606e-05 | C62: =IF('DF raw data'!K67="","",'DF raw data'!K67) -> 9.12929e-05 | D62: =IF('DF raw data'!L67="","",'DF raw data'!L67) -> -2.9865e-05 | F62: =(1-$G$1*($B$49))*B62 -> -3.994630318e-05 | G62: =(1-$G$1*($B$49-$G$2))*C62 -> 9.177675237e-05 | H62: =(1-$G$1*($B$49-$G$2))*D62 -> -3.00232845e-05 | J62: =F62*$G$3 -> -1.997315159e-05 | K62: =J62*$G$3 -> -9.986575795e-06 | L62: =G62*$G$3 -> 4.588837619e-05 | M62: =L62*$G$3 -> 2.294418809e-05 | N62: =(J62^2+L62^2)*$G$3 -> 1.252334927e-09
A63: =IF('DF raw data'!I68="","",'DF raw data'!I68) -> -299.5 | B63: =IF('DF raw data'!J68="","",'DF raw data'!J68) -> -3.90245e-05 | C63: =IF('DF raw data'!K68="","",'DF raw data'!K68) -> 9.45986e-05 | D63: =IF('DF raw data'!L68="","",'DF raw data'!L68) -> -2.99261e-05 | F63: =(1-$G$1*($B$49-$G$2))*B63 -> -3.923132985e-05 | G63: =(1-$G$1*($B$49-$G$2))*C63 -> 9.509997258e-05 | H63: -3.008470833e-05 | J63: =F63*$G$3+J62 -> -3.958881652e-05 | K63: =J63*$G$3+K62 -> -2.978098405e-05 | L63: =G63*$G$3+L62 -> 9.343836248e-05 | M63: =L63*$G$3+M62 -> 6.966336933e-05 | N63: =(J63^2+L63^2)*$G$3+N62 -> 6.401335914e-09
A64: =IF('DF raw data'!I69="","",'DF raw data'!I69) -> -299 | B64: =IF('DF raw data'!J69="","",'DF raw data'!J69) -> -3.4474e-05 | C64: =IF('DF raw data'!K69="","",'DF raw data'!K69) -> 9.24562e-05 | D64: =IF('DF raw data'!L69="","",'DF raw data'!L69) -> -3.00164e-05 | F64: =(1-$G$1*($B$49-$G$2))*B64 -> -3.46567122e-05 | G64: 9.294621786e-05 | H64: -3.017548692e-05 | J64: =F64*$G$3+J63 -> -5.691717262e-05 | K64: =J64*$G$3+K63 -> -5.823957036e-05 | L64: =G64*$G$3+L63 -> 0.0001399114714 | M64: =L64*$G$3+M63 -> 0.000139619105 | N64: =(J64^2+L64^2)*$G$3+N63 -> 1.78087281e-08
A65: =IF('DF raw data'!I70="","",'DF raw data'!I70) -> -298.5 | B65: =IF('DF raw data'!J70="","",'DF raw data'!J70) -> -4.01142e-05 | C65: =IF('DF raw data'!K70="","",'DF raw data'!K70) -> 8.8297e-05 | D65: =IF('DF raw data'!L70="","",'DF raw data'!L70) -> -2.98647e-05 | F65: -4.032680526e-05 | G65: 8.87649741e-05 | H65: -3.002298291e-05 | J65: -7.708057525e-05 | K65: -9.677985798e-05 | L65: 0.0001842939585 | M65: 0.0002317660843 | N65: 3.77615672e-08
A66: =IF('DF raw data'!I71="","",'DF raw data'!I71) -> -298 | B66: =IF('DF raw data'!J71="","",'DF raw data'!J71) -> -3.41539e-05 | C66: =IF('DF raw data'!K71="","",'DF raw data'!K71) -> 8.90185e-05 | D66: =IF('DF raw data'!L71="","",'DF raw data'!L71) -> -2.96544e-05 | F66: -3.433491567e-05 | G66: 8.949029805e-05 | H66: -2.981156832e-05 | J66: -9.424803308e-05 | K66: -0.0001439038745 | L66: 0.0002290391075 | M66: 0.000346285638 | N66: 6.843236945e-08
A67: =IF('DF raw data'!I72="","",'DF raw data'!I72) -> -297.5 | B67: =IF('DF raw data'!J72="","",'DF raw data'!J72) -> -3.33845e-05 | C67: =IF('DF raw data'!K72="","",'DF raw data'!K72) -> 8.40065e-05 | D67: =IF('DF raw data'!L72="","",'DF raw data'!L72) -> -2.98141e-05 | F67: -3.356143785e-05 | G67: 8.445173445e-05 | H67: -2.997211473e-05 | J67: -0.000111028752 | K67: -0.0001994182505 | L67: 0.0002712649747 | M67: 0.0004819181254 | N67: 1.113884046e-07
A68: =IF('DF raw data'!I73="","",'DF raw data'!I73) -> -297 | B68: =IF('DF raw data'!J73="","",'DF raw data'!J73) -> -3.05003e-05 | C68: =IF('DF raw data'!K73="","",'DF raw data'!K73) -> 8.98358e-05 | D68: =IF('DF raw data'!L73="","",'DF raw data'!L73) -> -3.04105e-05 | F68: -3.066195159e-05 | G68: 9.031192974e-05 | H68: -3.057167565e-05 | J68: -0.0001263597278 | K68: -0.0002625981144 | L68: 0.0003164209396 | M68: 0.0006401285951 | N68: 1.694329005e-07
A69: =IF('DF raw data'!I74="","",'DF raw data'!I74) -> -296.5 | B69: =IF('DF raw data'!J74="","",'DF raw data'!J74) -> -3.31918e-05 | C69: =IF('DF raw data'!K74="","",'DF raw data'!K74) -> 8.77279e-05 | D69: =IF('DF raw data'!L74="","",'DF raw data'!L74) -> -3.06594e-05 | F69: -3.336771654e-05 | G69: 8.819285787e-05 | H69: -3.082189482e-05 | J69: -0.0001430435861 | K69: -0.0003341199075 | L69: 0.0003605173685 | M69: 0.0008203872794 | N69: 2.446500207e-07
A70: =IF('DF raw data'!I75="","",'DF raw data'!I75) -> -296 | B70: =IF('DF raw data'!J75="","",'DF raw data'!J75) -> -4.06907e-05 | C70: =IF('DF raw data'!K75="","",'DF raw data'!K75) -> 8.86686e-05 | D70: =IF('DF raw data'!L75="","",'DF raw data'!L75) -> -3.0066e-05 | F70: -4.090636071e-05 | G70: 8.913854358e-05 | H70: -3.02253498e-05 | J70: -0.0001634967664 | K70: -0.0004158682907 | L70: 0.0004050866403 | M70: 0.0010229306 | N70: 3.400632101e-07
A71: =IF('DF raw data'!I76="","",'DF raw data'!I76) -> -295.5 | B71: =IF('DF raw data'!J76="","",'DF raw data'!J76) -> -3.35771e-05 | C71: =IF('DF raw data'!K76="","",'DF raw data'!K76) -> 8.78386e-05 | D71: =IF('DF raw data'!L76="","",'DF raw data'!L76) -> -2.95343e-05 | F71: -3.375505863e-05 | G71: 8.830414458e-05 | H71: -2.969083179e-05 | J71: -0.0001803742957 | K71: -0.0005060554385 | L71: 0.0004492387126 | M71: 0.001247549956 | N71: 4.572383639e-07
A72: =IF('DF raw data'!I77="","",'DF raw data'!I77) -> -295 | B72: =IF('DF raw data'!J77="","",'DF raw data'!J77) -> -2.66551e-05 | C72: =IF('DF raw data'!K77="","",'DF raw data'!K77) -> 8.39213e-05 | D72: =IF('DF raw data'!L77="","",'DF raw data'!L77) -> -2.97958e-05 | F72: -2.679637203e-05 | G72: 8.436608289e-05 | H72: -2.995371774e-05 | J72: -0.0001937724818 | K72: -0.0006029416794 | L72: 0.000491421754 | M72: 0.001493260833 | N72: 5.967599214e-07
A73: =IF('DF raw data'!I78="","",'DF raw data'!I78) -> -294.5 | B73: =IF('DF raw data'!J78="","",'DF raw data'!J78) -> -3.441e-05 | C73: =IF('DF raw data'!K78="","",'DF raw data'!K78) -> 7.29897e-05 | D73: =IF('DF raw data'!L78="","",'DF raw data'!L78) -> -3.01243e-05 | F73: -3.4592373e-05 | G73: 7.337654541e-05 | H73: -3.028395879e-05 | J73: -0.0002110686683 | K73: -0.0007084760135 | L73: 0.0005281100267 | M73: 0.001757315846 | N73: 7.584850129e-07
A74: =IF('DF raw data'!I79="","",'DF raw data'!I79) -> -294 | B74: =IF('DF raw data'!J79="","",'DF raw data'!J79) -> -2.83212e-05 | C74: =IF('DF raw data'!K79="","",'DF raw data'!K79) -> 7.98428e-05 | D74: =IF('DF raw data'!L79="","",'DF raw data'!L79) -> -3.00865e-05 | F74: -2.847130236e-05 | G74: 8.026596684e-05 | H74: -3.024595845e-05 | J74: -0.0002253043194 | K74: -0.0008211281733 | L74: 0.0005682430102 | M74: 0.002041437351 | N74: 9.453160904e-07
A75: =IF('DF raw data'!I80="","",'DF raw data'!I80) -> -293.5 | B75: =IF('DF raw data'!J80="","",'DF raw data'!J80) -> -3.48583e-05 | C75: =IF('DF raw data'!K80="","",'DF raw data'!K80) -> 8.81646e-05 | D75: =IF('DF raw data'!L80="","",'DF raw data'!L80) -> -3.03737e-05 | F75: -3.504304899e-05 | G75: 8.863187238e-05 | H75: -3.053468061e-05 | J75: -0.0002428258439 | K75: -0.0009425410952 | L75: 0.0006125589464 | M75: 0.002347716824 | N75: 1.162412517e-06
A76: =IF('DF raw data'!I81="","",'DF raw data'!I81) -> -293 | B76: =IF('DF raw data'!J81="","",'DF raw data'!J81) -> -1.8643e-05 | C76: =IF('DF raw data'!K81="","",'DF raw data'!K81) -> 8.89756e-05 | D76: =IF('DF raw data'!L81="","",'DF raw data'!L81) -> -3.1051e-05 | F76: -1.87418079e-05 | G76: 8.944717068e-05 | H76: -3.12155703e-05 | J76: -0.0002521967479 | K76: -0.001068639469 | L76: 0.0006572825317 | M76: 0.00267635809 | N76: 1.41022428e-06
A77: =IF('DF raw data'!I82="","",'DF raw data'!I82) -> -292.5 | B77: =IF('DF raw data'!J82="","",'DF raw data'!J82) -> -4.91504e-05 | C77: =IF('DF raw data'!K82="","",'DF raw data'!K82) -> 8.75995e-05 | D77: =IF('DF raw data'!L82="","",'DF raw data'!L82) -> -3.04852e-05 | F77: -4.941089712e-05 | G77: 8.806377735e-05 | H77: -3.064677156e-05 | J77: -0.0002769021964 | K77: -0.001207090567 | L77: 0.0007013144204 | M77: 0.003027015301 | N77: 1.694482651e-06
A78: =IF('DF raw data'!I83="","",'DF raw data'!I83) -> -292 | B78: =IF('DF raw data'!J83="","",'DF raw data'!J83) -> -3.24236e-05 | C78: =IF('DF raw data'!K83="","",'DF raw data'!K83) -> 9.6711e-05 | D78: =IF('DF raw data'!L83="","",'DF raw data'!L83) -> -2.93993e-05 | F78: -3.259544508e-05 | G78: 9.72235683e-05 | H78: -2.955511629e-05 | J78: -0.000293199919 | K78: -0.001353690527 | L78: 0.0007499262045 | M78: 0.003401978403 | N78: 2.018660404e-06
A79: =IF('DF raw data'!I84="","",'DF raw data'!I84) -> -291.5 | B79: =IF('DF raw data'!J84="","",'DF raw data'!J84) -> -2.51814e-05 | C79: =IF('DF raw data'!K84="","",'DF raw data'!K84) -> 8.89014e-05 | D79: =IF('DF raw data'!L84="","",'DF raw data'!L84) -> -2.9366e-05 | F79: -2.531486142e-05 | G79: 8.937257742e-05 | H79: -2.95216398e-05 | J79: -0.0003058573497 | K79: -0.001506619202 | L79: 0.0007946124932 | M79: 0.003799284649 | N79: 2.38113927e-06
A80: =IF('DF raw data'!I85="","",'DF raw data'!I85) -> -291 | B80: =IF('DF raw data'!J85="","",'DF raw data'!J85) -> -2.99837e-05 | C80: =IF('DF raw data'!K85="","",'DF raw data'!K85) -> 9.47425e-05 | D80: =IF('DF raw data'!L85="","",'DF raw data'!L85) -> -3.62802e-05 | F80: -3.014261361e-05 | G80: 9.524463525e-05 | H80: -3.647248506e-05 | J80: -0.0003209286565 | K80: -0.00166708353 | L80: 0.0008422348108 | M80: 0.004220402055 | N80: 2.78731661e-06
A81: =IF('DF raw data'!I86="","",'DF raw data'!I86) -> -290.5 | B81: =IF('DF raw data'!J86="","",'DF raw data'!J86) -> -2.80683e-05 | C81: =IF('DF raw data'!K86="","",'DF raw data'!K86) -> 9.34015e-05 | D81: =IF('DF raw data'!L86="","",'DF raw data'!L86) -> -2.48008e-05 | F81: -2.821706199e-05 | G81: 9.389652795e-05 | H81: -2.493224424e-05 | J81: -0.0003350371875 | K81: -0.001834602124 | L81: 0.0008891830748 | M81: 0.004664993592 | N81: 3.238764838e-06
A82: =IF('DF raw data'!I87="","",'DF raw data'!I87) -> -290 | B82: =IF('DF raw data'!J87="","",'DF raw data'!J87) -> -3.41544e-05 | C82: =IF('DF raw data'!K87="","",'DF raw data'!K87) -> 0.000101525 | D82: =IF('DF raw data'!L87="","",'DF raw data'!L87) -> -2.89364e-05 | F82: -3.433541832e-05 | G82: 0.0001020630825 | H82: -2.908976292e-05 | J82: -0.0003522048967 | K82: -0.002010704572 | L82: 0.0009402146161 | M82: 0.0051351009 | N82: 3.742790745e-06
A83: =IF('DF raw data'!I88="","",'DF raw data'!I88) -> -289.5 | B83: =IF('DF raw data'!J88="","",'DF raw data'!J88) -> -4.36429e-05 | C83: =IF('DF raw data'!K88="","",'DF raw data'!K88) -> 0.000101276 | D83: =IF('DF raw data'!L88="","",'DF raw data'!L88) -> -2.41589e-05 | F83: -4.387420737e-05 | G83: 0.0001018127628 | H83: -2.428694217e-05 | J83: -0.0003741420003 | K83: -0.002197775572 | L83: 0.0009911209975 | M83: 0.005630661399 | N83: 4.303942279e-06
A84: =IF('DF raw data'!I89="","",'DF raw data'!I89) -> -289 | B84: =IF('DF raw data'!J89="","",'DF raw data'!J89) -> -2.56945e-05 | C84: =IF('DF raw data'!K89="","",'DF raw data'!K89) -> 0.000107492 | D84: =IF('DF raw data'!L89="","",'DF raw data'!L89) -> -2.8807e-05 | F84: -2.583068085e-05 | G84: 0.0001080617076 | H84: -2.89596771e-05 | J84: -0.0003870573408 | K84: -0.002391304243 | L84: 0.001045151851 | M84: 0.006153237325 | N84: 4.925020168e-06
A85: =IF('DF raw data'!I90="","",'DF raw data'!I90) -> -288.5 | B85: =IF('DF raw data'!J90="","",'DF raw data'!J90) -> -3.43453e-05 | C85: =IF('DF raw data'!K90="","",'DF raw data'!K90) -> 0.00010044 | D85: =IF('DF raw data'!L90="","",'DF raw data'!L90) -> -3.08443e-05 | F85: -3.452733009e-05 | G85: 0.000100972332 | H85: -3.100777479e-05 | J85: -0.0004043210058 | K85: -0.002593464745 | L85: 0.001095638017 | M85: 0.006701056333 | N85: 5.606969238e-06
A86: =IF('DF raw data'!I91="","",'DF raw data'!I91) -> -288 | B86: =IF('DF raw data'!J91="","",'DF raw data'!J91) -> -2.20451e-05 | C86: =IF('DF raw data'!K91="","",'DF raw data'!K91) -> 8.56485e-05 | D86: =IF('DF raw data'!L91="","",'DF raw data'!L91) -> -2.2922e-05 | F86: -2.216193903e-05 | G86: 8.610243705e-05 | H86: -2.30434866e-05 | J86: -0.0004154019753 | K86: -0.002801165733 | L86: 0.001138689236 | M86: 0.007270400951 | N86: 6.341555227e-06
A87: =IF('DF raw data'!I92="","",'DF raw data'!I92) -> -287.5 | B87: =IF('DF raw data'!J92="","",'DF raw data'!J92) -> -3.08894e-05 | C87: =IF('DF raw data'!K92="","",'DF raw data'!K92) -> 8.29467e-05 | D87: =IF('DF raw data'!L92="","",'DF raw data'!L92) -> -2.3261e-05 | F87: -3.105311382e-05 | G87: 8.338631751e-05 | H87: -2.33842833e-05 | J87: -0.0004309285322 | K87: -0.003016629999 | L87: 0.001180382395 | M87: 0.007860592148 | N87: 7.131056225e-06
A88: =IF('DF raw data'!I93="","",'DF raw data'!I93) -> -287 | B88: =IF('DF raw data'!J93="","",'DF raw data'!J93) -> -2.78052e-05 | C88: =IF('DF raw data'!K93="","",'DF raw data'!K93) -> 9.70765e-05 | D88: =IF('DF raw data'!L93="","",'DF raw data'!L93) -> -3.51229e-05 | F88: -2.795256756e-05 | G88: 9.759100545e-05 | H88: -3.530905137e-05 | J88: -0.000444904816 | K88: -0.003239082407 | L88: 0.001229177897 | M88: 0.008475181097 | N88: 7.985465524e-06
A89: =IF('DF raw data'!I94="","",'DF raw data'!I94) -> -286.5 | B89: =IF('DF raw data'!J94="","",'DF raw data'!J94) -> -3.46698e-05 | C89: =IF('DF raw data'!K94="","",'DF raw data'!K94) -> 9.81904e-05 | D89: =IF('DF raw data'!L94="","",'DF raw data'!L94) -> -2.48143e-05 | F89: -3.485354994e-05 | G89: 9.871080912e-05 | H89: -2.494581579e-05 | J89: -0.000462331591 | K89: -0.003470248203 | L89: 0.001278533302 | M89: 0.009114447748 | N89: 8.909664476e-06
A90: =IF('DF raw data'!I95="","",'DF raw data'!I95) -> -286 | B90: =IF('DF raw data'!J95="","",'DF raw data'!J95) -> -2.64644e-05 | C90: =IF('DF raw data'!K95="","",'DF raw data'!K95) -> 0.000105505 | D90: =IF('DF raw data'!L95="","",'DF raw data'!L95) -> -2.74344e-05 | F90: -2.660466132e-05 | G90: 0.0001060641765 | H90: -2.757980232e-05 | J90: -0.0004756339216 | K90: -0.003708065164 | L90: 0.00133156539 | M90: 0.009780230443 | N90: 9.909311484e-06
A91: =IF('DF raw data'!I96="","",'DF raw data'!I96) -> -285.5 | B91: =IF('DF raw data'!J96="","",'DF raw data'!J96) -> -3.64628e-05 | C91: =IF('DF raw data'!K96="","",'DF raw data'!K96) -> 0.000108386 | D91: =IF('DF raw data'!L96="","",'DF raw data'!L96) -> -2.71023e-05 | F91: -3.665605284e-05 | G91: 0.0001089604458 | H91: -2.724594219e-05 | J91: -0.0004939619481 | K91: -0.003955046138 | L91: 0.001386045613 | M91: 0.01047325325 | N91: 1.099187191e-05
A92: =IF('DF raw data'!I97="","",'DF raw data'!I97) -> -285 | B92: =IF('DF raw data'!J97="","",'DF raw data'!J97) -> -3.44638e-05 | C92: =IF('DF raw data'!K97="","",'DF raw data'!K97) -> 0.000100663 | D92: =IF('DF raw data'!L97="","",'DF raw data'!L97) -> -4.56926e-05 | F92: -3.464645814e-05 | G92: 0.0001011965139 | H92: -4.593477078e-05 | J92: -0.0005112851771 | K92: -0.004210688726 | L92: 0.00143664387 | M92: 0.01119157518 | N92: 1.215455098e-05
A93: =IF('DF raw data'!I98="","",'DF raw data'!I98) -> -284.5 | B93: =IF('DF raw data'!J98="","",'DF raw data'!J98) -> -3.06262e-05 | C93: =IF('DF raw data'!K98="","",'DF raw data'!K98) -> 0.000108266 | D93: =IF('DF raw data'!L98="","",'DF raw data'!L98) -> -3.38125e-05 | F93: -3.078851886e-05 | G93: 0.0001088398098 | H93: -3.399170625e-05 | J93: -0.0005266794366 | K93: -0.004474028444 | L93: 0.001491063775 | M93: 0.01193710707 | N93: 1.340488218e-05
A94: =IF('DF raw data'!I99="","",'DF raw data'!I99) -> -284 | B94: =IF('DF raw data'!J99="","",'DF raw data'!J99) -> -2.19728e-05 | C94: =IF('DF raw data'!K99="","",'DF raw data'!K99) -> 0.000106653 | D94: =IF('DF raw data'!L99="","",'DF raw data'!L99) -> -3.54301e-05 | F94: -2.208925584e-05 | G94: 0.0001072182609 | H94: -3.561787953e-05 | J94: -0.0005377240645 | K94: -0.004742890477 | L94: 0.001544672905 | M94: 0.01270944352 | N94: 1.474246296e-05
A95: =IF('DF raw data'!I100="","",'DF raw data'!I100) -> -283.5 | B95: =IF('DF raw data'!J100="","",'DF raw data'!J100) -> -3.32569e-05 | C95: =IF('DF raw data'!K100="","",'DF raw data'!K100) -> 9.47498e-05 | D95: =IF('DF raw data'!L100="","",'DF raw data'!L100) -> -2.89463e-05 | F95: -3.343316157e-05 | G95: 9.525197394e-05 | H95: -2.909971539e-05 | J95: -0.0005544406453 | K95: -0.005020110799 | L95: 0.001592298892 | M95: 0.01350559297 | N95: 1.616387306e-05
A96: =IF('DF raw data'!I101="","",'DF raw data'!I101) -> -283 | B96: =IF('DF raw data'!J101="","",'DF raw data'!J101) -> -1.76159e-05 | C96: =IF('DF raw data'!K101="","",'DF raw data'!K101) -> 9.89253e-05 | D96: =IF('DF raw data'!L101="","",'DF raw data'!L101) -> -3.3723e-05 | F96: -1.770926427e-05 | G96: 9.944960409e-05 | H96: -3.39017319e-05 | J96: -0.0005632952774 | K96: -0.005301758438 | L96: 0.001642023694 | M96: 0.01432660482 | N96: 1.767064475e-05
A97: =IF('DF raw data'!I102="","",'DF raw data'!I102) -> -282.5 | B97: =IF('DF raw data'!J102="","",'DF raw data'!J102) -> -3.14059e-05 | C97: =IF('DF raw data'!K102="","",'DF raw data'!K102) -> 0.000101761 | D97: =IF('DF raw data'!L102="","",'DF raw data'!L102) -> -1.7454e-05 | F97: -3.157235127e-05 | G97: 0.0001023003333 | H97: -1.75465062e-05 | J97: -0.000579081453 | K97: -0.005591299165 | L97: 0.001693173861 | M97: 0.01517319175 | N97: 1.927173127e-05
A98: =IF('DF raw data'!I103="","",'DF raw data'!I103) -> -282 | B98: =IF('DF raw data'!J103="","",'DF raw data'!J103) -> -2.87752e-05 | C98: =IF('DF raw data'!K103="","",'DF raw data'!K103) -> 9.70662e-05 | D98: =IF('DF raw data'!L103="","",'DF raw data'!L103) -> -2.19263e-05 | F98: -2.892770856e-05 | G98: 9.758065086e-05 | H98: -2.204250939e-05 | J98: -0.0005935453073 | K98: -0.005888071818 | L98: 0.001741964186 | M98: 0.01604417384 | N98: 2.09650989e-05
A99: =IF('DF raw data'!I104="","",'DF raw data'!I104) -> -281.5 | B99: =IF('DF raw data'!J104="","",'DF raw data'!J104) -> -3.51812e-05 | C99: =IF('DF raw data'!K104="","",'DF raw data'!K104) -> 9.70564e-05 | D99: =IF('DF raw data'!L104="","",'DF raw data'!L104) -> -2.68892e-05 | F99: -3.536766036e-05 | G99: 9.757079892e-05 | H99: -2.703171276e-05 | J99: -0.0006112291375 | K99: -0.006193686387 | L99: 0.001790749586 | M99: 0.01693954863 | N99: 2.275529147e-05
A100: =IF('DF raw data'!I105="","",'DF raw data'!I105) -> -281 | B100: =IF('DF raw data'!J105="","",'DF raw data'!J105) -> -2.5692e-05 | C100: =IF('DF raw data'!K105="","",'DF raw data'!K105) -> 0.000105166 | D100: =IF('DF raw data'!L105="","",'DF raw data'!L105) -> -3.25878e-05 | F100: -2.58281676e-05 | G100: 0.0001057233798 | H100: -3.276051534e-05 | J100: -0.0006241432213 | K100: -0.006505757998 | L100: 0.001843611276 | M100: 0.01786135427 | N100: 2.464952012e-05
A101: =IF('DF raw data'!I106="","",'DF raw data'!I106) -> -280.5 | B101: =IF('DF raw data'!J106="","",'DF raw data'!J106) -> -3.36402e-05 | C101: =IF('DF raw data'!K106="","",'DF raw data'!K106) -> 0.000104683 | D101: =IF('DF raw data'!L106="","",'DF raw data'!L106) -> -3.0779e-05 | F101: -3.381849306e-05 | G101: 0.0001052378199 | H101: -3.09421287e-05 | J101: -0.0006410524678 | K101: -0.006826284232 | L101: 0.001896230186 | M101: 0.01880946937 | N101: 2.665283871e-05
A102: =IF('DF raw data'!I107="","",'DF raw data'!I107) -> -280 | B102: =IF('DF raw data'!J107="","",'DF raw data'!J107) -> -3.22289e-05 | C102: =IF('DF raw data'!K107="","",'DF raw data'!K107) -> 0.000100426 | D102: =IF('DF raw data'!L107="","",'DF raw data'!L107) -> -3.28438e-05 | F102: -3.239971317e-05 | G102: 0.0001009582578 | H102: -3.301787214e-05 | J102: -0.0006572523244 | K102: -0.007154910394 | L102: 0.001946709315 | M102: 0.01978282402 | N102: 2.87636676e-05
A103: =IF('DF raw data'!I108="","",'DF raw data'!I108) -> -279.5 | B103: =IF('DF raw data'!J108="","",'DF raw data'!J108) -> -4.60145e-05 | C103: =IF('DF raw data'!K108="","",'DF raw data'!K108) -> 0.000101024 | D103: =IF('DF raw data'!L108="","",'DF raw data'!L108) -> -2.35155e-05 | F103: -4.625837685e-05 | G103: 0.0001015594272 | H103: -2.364013215e-05 | J103: -0.0006803815128 | K103: -0.00749510115 | L103: 0.001997489028 | M103: 0.02078156854 | N103: 3.099010831e-05
A104: =IF('DF raw data'!I109="","",'DF raw data'!I109) -> -279 | B104: =IF('DF raw data'!J109="","",'DF raw data'!J109) -> -3.37688e-05 | C104: =IF('DF raw data'!K109="","",'DF raw data'!K109) -> 0.00010117 | D104: =IF('DF raw data'!L109="","",'DF raw data'!L109) -> -3.04748e-05 | F104: -3.394777464e-05 | G104: 0.000101706201 | H104: -3.063631644e-05 | J104: -0.0006973554002 | K104: -0.00784377885 | L104: 0.002048342129 | M104: 0.0218057396 | N104: 3.333111332e-05
A105: =IF('DF raw data'!I110="","",'DF raw data'!I110) -> -278.5 | B105: =IF('DF raw data'!J110="","",'DF raw data'!J110) -> -3.64636e-05 | C105: =IF('DF raw data'!K110="","",'DF raw data'!K110) -> 9.85103e-05 | D105: =IF('DF raw data'!L110="","",'DF raw data'!L110) -> -2.58416e-05 | F105: -3.665685708e-05 | G105: 9.903240459e-05 | H105: -2.597856048e-05 | J105: -0.0007156838287 | K105: -0.008201620765 | L105: 0.002097858331 | M105: 0.02285466877 | N105: 3.578771978e-05
A106: =IF('DF raw data'!I111="","",'DF raw data'!I111) -> -278 | B106: =IF('DF raw data'!J111="","",'DF raw data'!J111) -> -3.01222e-05 | C106: =IF('DF raw data'!K111="","",'DF raw data'!K111) -> 9.85375e-05 | D106: =IF('DF raw data'!L111="","",'DF raw data'!L111) -> -2.04353e-05 | F106: -3.028184766e-05 | G106: 9.905974875e-05 | H106: -2.054360709e-05 | J106: -0.0007308247525 | K106: -0.008567033141 | L106: 0.002147388205 | M106: 0.02392836287 | N106: 3.836041025e-05
A107: =IF('DF raw data'!I112="","",'DF raw data'!I112) -> -277.5 | B107: =IF('DF raw data'!J112="","",'DF raw data'!J112) -> -4.15899e-05 | C107: =IF('DF raw data'!K112="","",'DF raw data'!K112) -> 9.06596e-05 | D107: =IF('DF raw data'!L112="","",'DF raw data'!L112) -> -2.70195e-05 | F107: -4.181032647e-05 | G107: 9.114009588e-05 | H107: -2.716270335e-05 | J107: -0.0007517299158 | K107: -0.008942898099 | L107: 0.002192958253 | M107: 0.025024842 | N107: 4.104749213e-05
A108: =IF('DF raw data'!I113="","",'DF raw data'!I113) -> -277 | B108: =IF('DF raw data'!J113="","",'DF raw data'!J113) -> -3.84542e-05 | C108: =IF('DF raw data'!K113="","",'DF raw data'!K113) -> 8.80191e-05 | D108: =IF('DF raw data'!L113="","",'DF raw data'!L113) -> -1.96755e-05 | F108: -3.865800726e-05 | G108: 8.848560123e-05 | H108: -1.977978015e-05 | J108: -0.0007710589194 | K108: -0.009328427558 | L108: 0.002237201054 | M108: 0.02614344252 | N108: 4.384729234e-05
A109: =IF('DF raw data'!I114="","",'DF raw data'!I114) -> -276.5 | B109: =IF('DF raw data'!J114="","",'DF raw data'!J114) -> -3.82041e-05 | C109: =IF('DF raw data'!K114="","",'DF raw data'!K114) -> 9.60821e-05 | D109: =IF('DF raw data'!L114="","",'DF raw data'!L114) -> -1.01016e-05 | F109: -3.840658173e-05 | G109: 9.659133513e-05 | H109: -1.015513848e-05 | J109: -0.0007902622103 | K109: -0.009723558664 | L109: 0.002285496721 | M109: 0.02728619088 | N109: 4.677129715e-05
A110: =IF('DF raw data'!I115="","",'DF raw data'!I115) -> -276 | B110: =IF('DF raw data'!J115="","",'DF raw data'!J115) -> -3.34575e-05 | C110: =IF('DF raw data'!K115="","",'DF raw data'!K115) -> 0.000101306 | D110: =IF('DF raw data'!L115="","",'DF raw data'!L115) -> -1.6285e-05 | F110: -3.363482475e-05 | G110: 0.0001018429218 | H110: -1.63713105e-05 | J110: -0.0008070796226 | K110: -0.01012709847 | L110: 0.002336418182 | M110: 0.02845439997 | N110: 4.982641087e-05
A111: =IF('DF raw data'!I116="","",'DF raw data'!I116) -> -275.5 | B111: =IF('DF raw data'!J116="","",'DF raw data'!J116) -> -3.64032e-05 | C111: =IF('DF raw data'!K116="","",'DF raw data'!K116) -> 0.000104887 | D111: =IF('DF raw data'!L116="","",'DF raw data'!L116) -> -2.00047e-05 | F111: -3.659613696e-05 | G111: 0.0001054429011 | H111: -2.011072491e-05 | J111: -0.0008253776911 | K111: -0.01053978732 | L111: 0.002389139633 | M111: 0.02964896979 | N111: 5.302102913e-05
A112: =IF('DF raw data'!I117="","",'DF raw data'!I117) -> -275 | B112: =IF('DF raw data'!J117="","",'DF raw data'!J117) -> -3.52492e-05 | C112: =IF('DF raw data'!K117="","",'DF raw data'!K117) -> 0.000101156 | D112: =IF('DF raw data'!L117="","",'DF raw data'!L117) -> -2.05294e-05 | F112: -3.543602076e-05 | G112: 0.0001016921268 | H112: -2.063820582e-05 | J112: -0.0008430957015 | K112: -0.01096133517 | L112: 0.002439985696 | M112: 0.03086896264 | N112: 5.635319941e-05
A113: =IF('DF raw data'!I118="","",'DF raw data'!I118) -> -274.5 | B113: =IF('DF raw data'!J118="","",'DF raw data'!J118) -> -3.3134e-05 | C113: =IF('DF raw data'!K118="","",'DF raw data'!K118) -> 9.30941e-05 | D113: =IF('DF raw data'!L118="","",'DF raw data'!L118) -> -2.08173e-05 | F113: -3.33096102e-05 | G113: 9.358749873e-05 | H113: -2.092763169e-05 | J113: -0.0008597505066 | K113: -0.01139121042 | L113: 0.002486779446 | M113: 0.03211235236 | N113: 5.981482088e-05
A114: =IF('DF raw data'!I119="","",'DF raw data'!I119) -> -274 | B114: =IF('DF raw data'!J119="","",'DF raw data'!J119) -> -3.12717e-05 | C114: =IF('DF raw data'!K119="","",'DF raw data'!K119) -> 9.51221e-05 | D114: =IF('DF raw data'!L119="","",'DF raw data'!L119) -> -2.66508e-05 | F114: -3.143744001e-05 | G114: 9.562624713e-05 | H114: -2.679204924e-05 | J114: -0.0008754692266 | K114: -0.01182894504 | L114: 0.002534592569 | M114: 0.03337964865 | N114: 6.341012381e-05
A115: =IF('DF raw data'!I120="","",'DF raw data'!I120) -> -273.5 | B115: =IF('DF raw data'!J120="","",'DF raw data'!J120) -> -2.8708e-05 | C115: =IF('DF raw data'!K120="","",'DF raw data'!K120) -> 9.67966e-05 | D115: =IF('DF raw data'!L120="","",'DF raw data'!L120) -> -2.64831e-05 | F115: -2.88601524e-05 | G115: 9.730962198e-05 | H115: -2.662346043e-05 | J115: -0.0008898993028 | K115: -0.01227389469 | L115: 0.00258324738 | M115: 0.03467127234 | N115: 6.714266771e-05
A116: =IF('DF raw data'!I121="","",'DF raw data'!I121) -> -273 | B116: =IF('DF raw data'!J121="","",'DF raw data'!J121) -> -2.78705e-05 | C116: =IF('DF raw data'!K121="","",'DF raw data'!K121) -> 0.000103611 | D116: =IF('DF raw data'!L121="","",'DF raw data'!L121) -> -3.34824e-05 | F116: -2.801821365e-05 | G116: 0.0001041601383 | H116: -3.365985672e-05 | J116: -0.0009039084096 | K116: -0.01272584889 | L116: 0.002635327449 | M116: 0.03598893606 | N116: 7.10236683e-05
A117: =IF('DF raw data'!I122="","",'DF raw data'!I122) -> -272.5 | B117: =IF('DF raw data'!J122="","",'DF raw data'!J122) -> -2.72347e-05 | C117: =IF('DF raw data'!K122="","",'DF raw data'!K122) -> 0.000103586 | D117: =IF('DF raw data'!L122="","",'DF raw data'!L122) -> -2.55376e-05 | F117: -2.737904391e-05 | G117: 0.0001041350058 | H117: -2.567294928e-05 | J117: -0.0009175979316 | K117: -0.01318464786 | L117: 0.002687394952 | M117: 0.03733263354 | N117: 7.505570709e-05
A118: =IF('DF raw data'!I123="","",'DF raw data'!I123) -> -272 | B118: =IF('DF raw data'!J123="","",'DF raw data'!J123) -> -2.75551e-05 | C118: =IF('DF raw data'!K123="","",'DF raw data'!K123) -> 0.000109759 | D118: =IF('DF raw data'!L123="","",'DF raw data'!L123) -> -2.54722e-05 | F118: -2.770114203e-05 | G118: 0.0001103407227 | H118: -2.560720266e-05 | J118: -0.0009314485026 | K118: -0.01365037211 | L118: 0.002742565314 | M118: 0.03870391619 | N118: 7.92503375e-05
A119: =IF('DF raw data'!I124="","",'DF raw data'!I124) -> -271.5 | B119: =IF('DF raw data'!J124="","",'DF raw data'!J124) -> -2.79447e-05 | C119: =IF('DF raw data'!K124="","",'DF raw data'!K124) -> 0.000103368 | D119: =IF('DF raw data'!L124="","",'DF raw data'!L124) -> -1.76144e-05 | F119: -2.809280691e-05 | G119: 0.0001039158504 | H119: -1.770775632e-05 | J119: -0.000945494906 | K119: -0.01412311956 | L119: 0.002794523239 | M119: 0.04010117781 | N119: 8.360199788e-05
A120: =IF('DF raw data'!I125="","",'DF raw data'!I125) -> -271 | B120: =IF('DF raw data'!J125="","",'DF raw data'!J125) -> -4.31903e-05 | C120: =IF('DF raw data'!K125="","",'DF raw data'!K125) -> 9.97044e-05 | D120: =IF('DF raw data'!L125="","",'DF raw data'!L125) -> -3.00381e-05 | F120: -4.341920859e-05 | G120: 0.0001002328333 | H120: -3.019730193e-05 | J120: -0.0009672045103 | K120: -0.01460672182 | L120: 0.002844639656 | M120: 0.04152349764 | N120: 8.811572754e-05
A121: =IF('DF raw data'!I126="","",'DF raw data'!I126) -> -270.5 | B121: =IF('DF raw data'!J126="","",'DF raw data'!J126) -> -3.01217e-05 | C121: =IF('DF raw data'!K126="","",'DF raw data'!K126) -> 0.000101586 | D121: =IF('DF raw data'!L126="","",'DF raw data'!L126) -> -2.11419e-05 | F121: -3.028134501e-05 | G121: 0.0001021244058 | H121: -2.125395207e-05 | J121: -0.0009823451828 | K121: -0.01509789441 | L121: 0.002895701858 | M121: 0.04297134857 | N121: 9.27907732e-05
A122: =IF('DF raw data'!I127="","",'DF raw data'!I127) -> -270 | B122: =IF('DF raw data'!J127="","",'DF raw data'!J127) -> -2.51201e-05 | C122: =IF('DF raw data'!K127="","",'DF raw data'!K127) -> 0.000103926 | D122: =IF('DF raw data'!L127="","",'DF raw data'!L127) -> -2.48924e-05 | F122: -2.525323653e-05 | G122: 0.0001044768078 | H122: -2.502432972e-05 | J122: -0.0009949718011 | K122: -0.01559538031 | L122: 0.002947940262 | M122: 0.0444453187 | N122: 9.763093354e-05
A123: =IF('DF raw data'!I128="","",'DF raw data'!I128) -> -269.5 | B123: =IF('DF raw data'!J128="","",'DF raw data'!J128) -> -3.12653e-05 | C123: =IF('DF raw data'!K128="","",'DF raw data'!K128) -> 9.91893e-05 | D123: =IF('DF raw data'!L128="","",'DF raw data'!L128) -> -3.65738e-05 | F123: -3.143100609e-05 | G123: 9.971500329e-05 | H123: -3.676764114e-05 | J123: -0.001010687304 | K123: -0.01610072396 | L123: 0.002997797764 | M123: 0.04594421758 | N123: 0.0001026350737
A124: =IF('DF raw data'!I129="","",'DF raw data'!I129) -> -269 | B124: =IF('DF raw data'!J129="","",'DF raw data'!J129) -> -2.15879e-05 | C124: =IF('DF raw data'!K129="","",'DF raw data'!K129) -> 9.61388e-05 | D124: =IF('DF raw data'!L129="","",'DF raw data'!L129) -> -3.58906e-05 | F124: -2.170231587e-05 | G124: 9.664833564e-05 | H124: -3.608082018e-05 | J124: -0.001021538462 | K124: -0.01661149319 | L124: 0.003046121932 | M124: 0.04746727855 | N124: 0.0001077962735
A125: =IF('DF raw data'!I130="","",'DF raw data'!I130) -> -268.5 | B125: =IF('DF raw data'!J130="","",'DF raw data'!J130) -> -2.82622e-05 | C125: =IF('DF raw data'!K130="","",'DF raw data'!K130) -> 9.42472e-05 | D125: =IF('DF raw data'!L130="","",'DF raw data'!L130) -> -2.23738e-05 | F125: -2.841198966e-05 | G125: 9.474671016e-05 | H125: -2.249238114e-05 | J125: -0.001035744457 | K125: -0.01712936542 | L125: 0.003093495287 | M125: 0.04901402619 | N125: 0.0001131175133
A126: =IF('DF raw data'!I131="","",'DF raw data'!I131) -> -268 | B126: =IF('DF raw data'!J131="","",'DF raw data'!J131) -> -3.57497e-05 | C126: =IF('DF raw data'!K131="","",'DF raw data'!K131) -> 9.39855e-05 | D126: =IF('DF raw data'!L131="","",'DF raw data'!L131) -> -3.9279e-05 | F126: -3.593917341e-05 | G126: 9.448362315e-05 | H126: -3.94871787e-05 | J126: -0.001053714044 | K126: -0.01765622244 | L126: 0.003140737098 | M126: 0.05058439474 | N126: 0.0001186047847
A127: =IF('DF raw data'!I132="","",'DF raw data'!I132) -> -267.5 | B127: =IF('DF raw data'!J132="","",'DF raw data'!J132) -> -3.4028e-05 | C127: =IF('DF raw data'!K132="","",'DF raw data'!K132) -> 9.80023e-05 | D127: =IF('DF raw data'!L132="","",'DF raw data'!L132) -> -2.60996e-05 | F127: -3.42083484e-05 | G127: 9.852171219e-05 | H127: -2.623792788e-05 | J127: -0.001070818218 | K127: -0.01819163155 | L127: 0.003189997955 | M127: 0.05217939372 | N127: 0.000124266154
A128: =IF('DF raw data'!I133="","",'DF raw data'!I133) -> -267 | B128: =IF('DF raw data'!J133="","",'DF raw data'!J133) -> -3.52406e-05 | C128: =IF('DF raw data'!K133="","",'DF raw data'!K133) -> 9.30205e-05 | D128: =IF('DF raw data'!L133="","",'DF raw data'!L133) -> -3.37121e-05 | F128: =(1-$G$1*($B$49-$G$2))*B128 -> -3.542737518e-05 | G128: 9.351350865e-05 | H128: -3.389077413e-05 | J128: =F128*$G$3+J127 -> -0.001088531905 | K128: =J128*$G$3+K127 -> -0.01873589751 | L128: =G128*$G$3+L127 -> 0.003236754709 | M128: =L128*$G$3+M127 -> 0.05379777107 | N128: =(J128^2+L128^2)*$G$3+N127 -> 0.0001300968954
A129: =IF('DF raw data'!I134="","",'DF raw data'!I134) -> -266.5 | B129: =IF('DF raw data'!J134="","",'DF raw data'!J134) -> -3.47282e-05 | C129: =IF('DF raw data'!K134="","",'DF raw data'!K134) -> 8.98704e-05 | D129: =IF('DF raw data'!L134="","",'DF raw data'!L134) -> -3.32825e-05 | F129: -3.491225946e-05 | G129: 9.034671312e-05 | H129: -3.345889725e-05 | J129: -0.001105988035 | K129: -0.01928889152 | L129: 0.003281928065 | M129: 0.05543873511 | N129: 0.0001360940261
A130: =IF('DF raw data'!I135="","",'DF raw data'!I135) -> -266 | B130: =IF('DF raw data'!J135="","",'DF raw data'!J135) -> -3.47329e-05 | C130: =IF('DF raw data'!K135="","",'DF raw data'!K135) -> 9.55453e-05 | D130: =IF('DF raw data'!L135="","",'DF raw data'!L135) -> -2.60289e-05 | F130: -3.491698437e-05 | G130: 9.605169009e-05 | H130: -2.616685317e-05 | J130: -0.001123446527 | K130: -0.01985061479 | L130: 0.00332995391 | M130: 0.05710371206 | N130: 0.0001422693887
A131: =IF('DF raw data'!I136="","",'DF raw data'!I136) -> -265.5 | B131: =IF('DF raw data'!J136="","",'DF raw data'!J136) -> -3.42284e-05 | C131: =IF('DF raw data'!K136="","",'DF raw data'!K136) -> 9.06379e-05 | D131: =IF('DF raw data'!L136="","",'DF raw data'!L136) -> -1.33844e-05 | F131: -3.440981052e-05 | G131: 9.111828087e-05 | H131: -1.345533732e-05 | J131: -0.001140651433 | K131: -0.0204209405 | L131: 0.003375513051 | M131: 0.05879146859 | N131: 0.0001486169757
A132: =IF('DF raw data'!I137="","",'DF raw data'!I137) -> -265 | B132: =IF('DF raw data'!J137="","",'DF raw data'!J137) -> -3.26184e-05 | C132: =IF('DF raw data'!K137="","",'DF raw data'!K137) -> 8.92411e-05 | D132: =IF('DF raw data'!L137="","",'DF raw data'!L137) -> -2.51769e-05 | F132: -3.279127752e-05 | G132: 8.971407783e-05 | H132: -2.531033757e-05 | J132: -0.001157047071 | K132: -0.02099946404 | L132: 0.00342037009 | M132: 0.06050165363 | N132: 0.0001551358204
A133: =IF('DF raw data'!I138="","",'DF raw data'!I138) -> -264.5 | B133: =IF('DF raw data'!J138="","",'DF raw data'!J138) -> -4.75551e-05 | C133: =IF('DF raw data'!K138="","",'DF raw data'!K138) -> 9.25101e-05 | D133: =IF('DF raw data'!L138="","",'DF raw data'!L138) -> -1.96331e-05 | F133: -4.780714203e-05 | G133: 9.300040353e-05 | H133: -1.973715543e-05 | J133: -0.001180950642 | K133: -0.02158993936 | L133: 0.003466870292 | M133: 0.06223508878 | N133: 0.0001618427374
A134: =IF('DF raw data'!I139="","",'DF raw data'!I139) -> -264 | B134: =IF('DF raw data'!J139="","",'DF raw data'!J139) -> -3.56956e-05 | C134: =IF('DF raw data'!K139="","",'DF raw data'!K139) -> 9.24416e-05 | D134: =IF('DF raw data'!L139="","",'DF raw data'!L139) -> -2.40689e-05 | F134: -3.588478668e-05 | G134: 9.293154048e-05 | H134: -2.419646517e-05 | J134: -0.001198893036 | K134: -0.02218938588 | L134: 0.003513336062 | M134: 0.06399175681 | N134: 0.0001687331748
A135: =IF('DF raw data'!I140="","",'DF raw data'!I140) -> -263.5 | B135: =IF('DF raw data'!J140="","",'DF raw data'!J140) -> -3.13907e-05 | C135: =IF('DF raw data'!K140="","",'DF raw data'!K140) -> 8.74317e-05 | D135: =IF('DF raw data'!L140="","",'DF raw data'!L140) -> -4.08173e-05 | F135: -3.155707071e-05 | G135: 8.789508801e-05 | H135: -4.103363169e-05 | J135: -0.001214671571 | K135: -0.02279672166 | L135: 0.003557283606 | M135: 0.06577039861 | N135: 0.0001757980217
A136: =IF('DF raw data'!I141="","",'DF raw data'!I141) -> -263 | B136: =IF('DF raw data'!J141="","",'DF raw data'!J141) -> -3.04331e-05 | C136: =IF('DF raw data'!K141="","",'DF raw data'!K141) -> 9.10041e-05 | D136: =IF('DF raw data'!L141="","",'DF raw data'!L141) -> -3.48488e-05 | F136: -3.059439543e-05 | G136: 9.148642173e-05 | H136: -3.503349864e-05 | J136: -0.001229968769 | K136: -0.02341170605 | L136: 0.003603026817 | M136: 0.06757191202 | N136: 0.0001830453344
A137: =IF('DF raw data'!I142="","",'DF raw data'!I142) -> -262.5 | B137: =IF('DF raw data'!J142="","",'DF raw data'!J142) -> -3.60133e-05 | C137: =IF('DF raw data'!K142="","",'DF raw data'!K142) -> 9.594e-05 | D137: =IF('DF raw data'!L142="","",'DF raw data'!L142) -> -2.82132e-05 | F137: -3.620417049e-05 | G137: 9.6448482e-05 | H137: -2.836272996e-05 | J137: -0.001248070854 | K137: -0.02403574148 | L137: 0.003651251058 | M137: 0.06939753755 | N137: 0.000190489992
A138: =IF('DF raw data'!I143="","",'DF raw data'!I143) -> -262 | B138: =IF('DF raw data'!J143="","",'DF raw data'!J143) -> -4.54287e-05 | C138: =IF('DF raw data'!K143="","",'DF raw data'!K143) -> 9.54011e-05 | D138: =IF('DF raw data'!L143="","",'DF raw data'!L143) -> -3.74501e-05 | F138: -4.566947211e-05 | G138: 9.590672583e-05 | H138: -3.764858553e-05 | J138: -0.00127090559 | K138: -0.02467119427 | L138: 0.003699204421 | M138: 0.07124713976 | N138: 0.0001981396491
A139: =IF('DF raw data'!I144="","",'DF raw data'!I144) -> -261.5 | B139: =IF('DF raw data'!J144="","",'DF raw data'!J144) -> -3.60762e-05 | C139: =IF('DF raw data'!K144="","",'DF raw data'!K144) -> 9.24379e-05 | D139: =IF('DF raw data'!L144="","",'DF raw data'!L144) -> -3.02664e-05 | F139: -3.626740386e-05 | G139: 9.292782087e-05 | H139: -3.042681192e-05 | J139: -0.001289039292 | K139: -0.02531571392 | L139: 0.003745668331 | M139: 0.07311997393 | N139: 0.0002059854759
A140: =IF('DF raw data'!I145="","",'DF raw data'!I145) -> -261 | B140: =IF('DF raw data'!J145="","",'DF raw data'!J145) -> -3.48598e-05 | C140: =IF('DF raw data'!K145="","",'DF raw data'!K145) -> 8.78873e-05 | D140: =IF('DF raw data'!L145="","",'DF raw data'!L145) -> -2.80808e-05 | F140: -3.504455694e-05 | G140: 8.835310269e-05 | H140: -2.822962824e-05 | J140: -0.00130656157 | K140: -0.0259689947 | L140: 0.003789844882 | M140: 0.07501489637 | N140: 0.0002140204896
A141: =IF('DF raw data'!I146="","",'DF raw data'!I146) -> -260.5 | B141: =IF('DF raw data'!J146="","",'DF raw data'!J146) -> -3.78102e-05 | C141: =IF('DF raw data'!K146="","",'DF raw data'!K146) -> 9.78122e-05 | D141: =IF('DF raw data'!L146="","",'DF raw data'!L146) -> -2.43793e-05 | F141: -3.801059406e-05 | G141: 9.833060466e-05 | H141: -2.450851029e-05 | J141: -0.001325566868 | K141: -0.02663177814 | L141: 0.003839010185 | M141: 0.07693440146 | N141: 0.000222268053
A142: =IF('DF raw data'!I147="","",'DF raw data'!I147) -> -260 | B142: =IF('DF raw data'!J147="","",'DF raw data'!J147) -> -3.87691e-05 | C142: =IF('DF raw data'!K147="","",'DF raw data'!K147) -> 0.000106288 | D142: =IF('DF raw data'!L147="","",'DF raw data'!L147) -> -2.8413e-05 | F142: -3.897457623e-05 | G142: 0.0001068513264 | H142: -2.85635889e-05 | J142: -0.001345054156 | K142: -0.02730430521 | L142: 0.003892435848 | M142: 0.07888061938 | N142: 0.0002307481667
A143: =IF('DF raw data'!I148="","",'DF raw data'!I148) -> -259.5 | B143: =IF('DF raw data'!J148="","",'DF raw data'!J148) -> -4.02422e-05 | C143: =IF('DF raw data'!K148="","",'DF raw data'!K148) -> 9.43257e-05 | D143: =IF('DF raw data'!L148="","",'DF raw data'!L148) -> -2.99832e-05 | F143: -4.045548366e-05 | G143: 9.482562621e-05 | H143: -3.014211096e-05 | J143: -0.001365281897 | K143: -0.02798694616 | L143: 0.003939848661 | M143: 0.08085054371 | N143: 0.0002394413678
A144: =IF('DF raw data'!I149="","",'DF raw data'!I149) -> -259 | B144: =IF('DF raw data'!J149="","",'DF raw data'!J149) -> -2.47947e-05 | C144: =IF('DF raw data'!K149="","",'DF raw data'!K149) -> 9.07808e-05 | D144: =IF('DF raw data'!L149="","",'DF raw data'!L149) -> -3.27034e-05 | F144: -2.492611191e-05 | G144: 9.126193824e-05 | H144: -3.287672802e-05 | J144: -0.001377744953 | K144: -0.02867581864 | L144: 0.00398547963 | M144: 0.08284328353 | N144: 0.0002483324823
A145: =IF('DF raw data'!I150="","",'DF raw data'!I150) -> -258.5 | B145: =IF('DF raw data'!J150="","",'DF raw data'!J150) -> -3.10105e-05 | C145: =IF('DF raw data'!K150="","",'DF raw data'!K150) -> 9.57138e-05 | D145: =IF('DF raw data'!L150="","",'DF raw data'!L150) -> -3.40768e-05 | F145: -3.117485565e-05 | G145: 9.622108314e-05 | H145: -3.425740704e-05 | J145: -0.001393332381 | K145: -0.02937248483 | L145: 0.004033590172 | M145: 0.08486007861 | N145: 0.0002574380947
A146: =IF('DF raw data'!I151="","",'DF raw data'!I151) -> -258 | B146: =IF('DF raw data'!J151="","",'DF raw data'!J151) -> -3.6904e-05 | C146: =IF('DF raw data'!K151="","",'DF raw data'!K151) -> 9.58189e-05 | D146: =IF('DF raw data'!L151="","",'DF raw data'!L151) -> -3.81919e-05 | F146: -3.70995912e-05 | G146: 9.632674017e-05 | H146: -3.839431707e-05 | J146: -0.001411882177 | K146: -0.03007842592 | L146: 0.004081753542 | M146: 0.08690095539 | N146: 0.0002667651563
A147: =IF('DF raw data'!I152="","",'DF raw data'!I152) -> -257.5 | B147: =IF('DF raw data'!J152="","",'DF raw data'!J152) -> -2.86381e-05 | C147: =IF('DF raw data'!K152="","",'DF raw data'!K152) -> 9.45371e-05 | D147: =IF('DF raw data'!L152="","",'DF raw data'!L152) -> -3.56037e-05 | F147: -2.878988193e-05 | G147: 9.503814663e-05 | H147: -3.579239961e-05 | J147: -0.001426277118 | K147: -0.03079156448 | L147: 0.004129272615 | M147: 0.08896559169 | N147: 0.0002763077357
A148: =IF('DF raw data'!I153="","",'DF raw data'!I153) -> -257 | B148: =IF('DF raw data'!J153="","",'DF raw data'!J153) -> -3.87637e-05 | C148: =IF('DF raw data'!K153="","",'DF raw data'!K153) -> 9.32254e-05 | D148: =IF('DF raw data'!L153="","",'DF raw data'!L153) -> -3.66828e-05 | F148: -3.896914761e-05 | G148: 9.371949462e-05 | H148: -3.687721884e-05 | J148: -0.001445761692 | K148: -0.03151444532 | L148: 0.004176132362 | M148: 0.09105365787 | N148: 0.0002860728899
A149: =IF('DF raw data'!I154="","",'DF raw data'!I154) -> -256.5 | B149: =IF('DF raw data'!J154="","",'DF raw data'!J154) -> -4.64593e-05 | C149: =IF('DF raw data'!K154="","",'DF raw data'!K154) -> 9.01221e-05 | D149: =IF('DF raw data'!L154="","",'DF raw data'!L154) -> -2.93961e-05 | F149: -4.670553429e-05 | G149: 9.059974713e-05 | H149: -2.955189933e-05 | J149: -0.001469114459 | K149: -0.03224900255 | L149: 0.004221432236 | M149: 0.09316437399 | N149: 0.0002960622836
A150: =IF('DF raw data'!I155="","",'DF raw data'!I155) -> -256 | B150: =IF('DF raw data'!J155="","",'DF raw data'!J155) -> -4.3889e-05 | C150: =IF('DF raw data'!K155="","",'DF raw data'!K155) -> 9.13683e-05 | D150: =IF('DF raw data'!L155="","",'DF raw data'!L155) -> -3.98245e-05 | F150: -4.41216117e-05 | G150: 9.185255199e-05 | H150: -4.003556985e-05 | J150: -0.001491175265 | K150: -0.03299459018 | L150: 0.004267358512 | M150: 0.09529805325 | N150: 0.0003062792598
A151: =IF('DF raw data'!I156="","",'DF raw data'!I156) -> -255.5 | B151: =IF('DF raw data'!J156="","",'DF raw data'!J156) -> -4.3898e-05 | C151: =IF('DF raw data'!K156="","",'DF raw data'!K156) -> 9.5953e-05 | D151: =IF('DF raw data'!L156="","",'DF raw data'!L156) -> -2.60062e-05 | F151: -4.41306594e-05 | G151: 9.64615509e-05 | H151: -2.614403286e-05 | J151: -0.001513240594 | K151: -0.03375121048 | L151: 0.004315589287 | M151: 0.09745584789 | N151: 0.0003167363638
A152: =IF('DF raw data'!I157="","",'DF raw data'!I157) -> -255 | B152: =IF('DF raw data'!J157="","",'DF raw data'!J157) -> -4.28765e-05 | C152: =IF('DF raw data'!K157="","",'DF raw data'!K157) -> 9.41598e-05 | D152: =IF('DF raw data'!L157="","",'DF raw data'!L157) -> -1.95695e-05 | F152: -4.310374545e-05 | G152: 9.465884694e-05 | H152: -1.967321835e-05 | J152: -0.001534792467 | K152: -0.03451860671 | L152: 0.004362918711 | M152: 0.09963730725 | N152: 0.0003274316876
A153: =IF('DF raw data'!I158="","",'DF raw data'!I158) -> -254.5 | B153: =IF('DF raw data'!J158="","",'DF raw data'!J158) -> -2.19757e-05 | C153: =IF('DF raw data'!K158="","",'DF raw data'!K158) -> 9.13539e-05 | D153: =IF('DF raw data'!L158="","",'DF raw data'!L158) -> -3.09632e-05 | F153: -2.209217121e-05 | G153: 9.183807567e-05 | H153: -3.112730496e-05 | J153: -0.001545838553 | K153: -0.03529152599 | L153: 0.004408837749 | M153: 0.1018417261 | N153: 0.0003383454211
A154: =IF('DF raw data'!I159="","",'DF raw data'!I159) -> -254 | B154: =IF('DF raw data'!J159="","",'DF raw data'!J159) -> -2.59573e-05 | C154: =IF('DF raw data'!K159="","",'DF raw data'!K159) -> 9.02559e-05 | D154: =IF('DF raw data'!L159="","",'DF raw data'!L159) -> -1.88424e-05 | F154: -2.609487369e-05 | G154: 9.073425627e-05 | H154: -1.894226472e-05 | J154: -0.001558885989 | K154: -0.03607096899 | L154: 0.004454204877 | M154: 0.1040688286 | N154: 0.0003494804544
A155: =IF('DF raw data'!I160="","",'DF raw data'!I160) -> -253.5 | B155: =IF('DF raw data'!J160="","",'DF raw data'!J160) -> -3.38983e-05 | C155: =IF('DF raw data'!K160="","",'DF raw data'!K160) -> 8.5452e-05 | D155: =IF('DF raw data'!L160="","",'DF raw data'!L160) -> -2.85351e-05 | F155: -3.407796099e-05 | G155: 8.59048956e-05 | H155: -2.868633603e-05 | J155: -0.00157592497 | K155: -0.03685893147 | L155: 0.004497157325 | M155: 0.1063174072 | N155: 0.0003608344362
A156: =IF('DF raw data'!I161="","",'DF raw data'!I161) -> -253 | B156: =IF('DF raw data'!J161="","",'DF raw data'!J161) -> -3.5309e-05 | C156: =IF('DF raw data'!K161="","",'DF raw data'!K161) -> 8.2199e-05 | D156: =IF('DF raw data'!L161="","",'DF raw data'!L161) -> -2.72822e-05 | F156: -3.54961377e-05 | G156: 8.26346547e-05 | H156: -2.742679566e-05 | J156: -0.001593673039 | K156: -0.03765576799 | L156: 0.004538474652 | M156: 0.1085866445 | N156: 0.0003724032091
A157: =IF('DF raw data'!I162="","",'DF raw data'!I162) -> -252.5 | B157: =IF('DF raw data'!J162="","",'DF raw data'!J162) -> -3.69805e-05 | C157: =IF('DF raw data'!K162="","",'DF raw data'!K162) -> 8.21346e-05 | D157: =IF('DF raw data'!L162="","",'DF raw data'!L162) -> -1.93647e-05 | F157: -3.717649665e-05 | G157: 8.256991338e-05 | H157: -1.946733291e-05 | J157: -0.001612261287 | K157: -0.03846189863 | L157: 0.004579759609 | M157: 0.1108765244 | N157: 0.0003841900014
A158: =IF('DF raw data'!I163="","",'DF raw data'!I163) -> -252 | B158: =IF('DF raw data'!J163="","",'DF raw data'!J163) -> -3.53668e-05 | C158: =IF('DF raw data'!K163="","",'DF raw data'!K163) -> 8.44007e-05 | D158: =IF('DF raw data'!L163="","",'DF raw data'!L163) -> -3.6744e-05 | F158: -3.555424404e-05 | G158: 8.484802371e-05 | H158: -3.69387432e-05 | J158: -0.001630038409 | K158: -0.03927691784 | L158: 0.004622183621 | M158: 0.1131876162 | N158: 0.0003962008047
A159: =IF('DF raw data'!I164="","",'DF raw data'!I164) -> -251.5 | B159: =IF('DF raw data'!J164="","",'DF raw data'!J164) -> -3.33811e-05 | C159: =IF('DF raw data'!K164="","",'DF raw data'!K164) -> 7.84818e-05 | D159: =IF('DF raw data'!L164="","",'DF raw data'!L164) -> -3.49557e-05 | F159: -3.355801983e-05 | G159: 7.889775354e-05 | H159: -3.514096521e-05 | J159: -0.001646817419 | K159: -0.04010032655 | L159: 0.004661632497 | M159: 0.1155184324 | N159: 0.0004084222173
A160: =IF('DF raw data'!I165="","",'DF raw data'!I165) -> -251 | B160: =IF('DF raw data'!J165="","",'DF raw data'!J165) -> -3.06215e-05 | C160: =IF('DF raw data'!K165="","",'DF raw data'!K165) -> 8.52894e-05 | D160: =IF('DF raw data'!L165="","",'DF raw data'!L165) -> -4.10978e-05 | F160: -3.078379395e-05 | G160: 8.574143382e-05 | H160: -4.131561834e-05 | J160: -0.001662209316 | K160: -0.04093143121 | L160: 0.004704503214 | M160: 0.117870684 | N160: 0.0004208698625
A161: =IF('DF raw data'!I166="","",'DF raw data'!I166) -> -250.5 | B161: =IF('DF raw data'!J166="","",'DF raw data'!J166) -> -3.76155e-05 | C161: =IF('DF raw data'!K166="","",'DF raw data'!K166) -> 8.8481e-05 | D161: =IF('DF raw data'!L166="","",'DF raw data'!L166) -> -2.83565e-05 | F161: -3.781486215e-05 | G161: 8.89499493e-05 | H161: -2.850678945e-05 | J161: -0.001681116747 | K161: -0.04177198958 | L161: 0.004748978189 | M161: 0.1202451731 | N161: 0.0004335593361
A162: =IF('DF raw data'!I167="","",'DF raw data'!I167) -> -250 | B162: =IF('DF raw data'!J167="","",'DF raw data'!J167) -> -3.4861e-05 | C162: =IF('DF raw data'!K167="","",'DF raw data'!K167) -> 8.82278e-05 | D162: =IF('DF raw data'!L167="","",'DF raw data'!L167) -> -2.61502e-05 | F162: -3.50457633e-05 | G162: 8.869540734e-05 | H162: -2.628879606e-05 | J162: -0.001698639629 | K162: -0.04262130939 | L162: 0.004793325893 | M162: 0.1226418361 | N162: 0.000446490011
A163: =IF('DF raw data'!I168="","",'DF raw data'!I168) -> -249.5 | B163: =IF('DF raw data'!J168="","",'DF raw data'!J168) -> -4.08894e-05 | C163: =IF('DF raw data'!K168="","",'DF raw data'!K168) -> 9.40641e-05 | D163: =IF('DF raw data'!L168="","",'DF raw data'!L168) -> -2.02006e-05 | F163: -4.110611382e-05 | G163: 9.456263973e-05 | H163: -2.030766318e-05 | J163: -0.001719192686 | K163: -0.04348090574 | L163: 0.004840607212 | M163: 0.1250621397 | N163: 0.0004596835618
A164: =IF('DF raw data'!I169="","",'DF raw data'!I169) -> -249 | B164: =IF('DF raw data'!J169="","",'DF raw data'!J169) -> -3.83836e-05 | C164: =IF('DF raw data'!K169="","",'DF raw data'!K169) -> 8.82399e-05 | D164: =IF('DF raw data'!L169="","",'DF raw data'!L169) -> -2.97873e-05 | F164: -3.858703308e-05 | G164: 8.870757147e-05 | H164: -2.994517269e-05 | J164: -0.001738486202 | K164: -0.04435014884 | L164: 0.004884960998 | M164: 0.1275046202 | N164: 0.0004731261509
A165: =IF('DF raw data'!I170="","",'DF raw data'!I170) -> -248.5 | B165: =IF('DF raw data'!J170="","",'DF raw data'!J170) -> -3.32687e-05 | C165: =IF('DF raw data'!K170="","",'DF raw data'!K170) -> 9.59189e-05 | D165: =IF('DF raw data'!L170="","",'DF raw data'!L170) -> -1.07304e-05 | F165: -3.344502411e-05 | G165: 9.642727017e-05 | H165: -1.078727112e-05 | J165: -0.001755208714 | K165: -0.04522775319 | L165: 0.004933174633 | M165: 0.1299712075 | N165: 0.0004868346357
A166: =IF('DF raw data'!I171="","",'DF raw data'!I171) -> -248 | B166: =IF('DF raw data'!J171="","",'DF raw data'!J171) -> -4.23575e-05 | C166: =IF('DF raw data'!K171="","",'DF raw data'!K171) -> 9.06646e-05 | D166: =IF('DF raw data'!L171="","",'DF raw data'!L171) -> -2.91743e-05 | F166: -4.258199475e-05 | G166: 9.114512238e-05 | H166: -2.932892379e-05 | J166: -0.001776499712 | K166: -0.04611600305 | L166: 0.004978747194 | M166: 0.1324605811 | N166: 0.0005008065732
A167: =IF('DF raw data'!I172="","",'DF raw data'!I172) -> -247.5 | B167: =IF('DF raw data'!J172="","",'DF raw data'!J172) -> -2.51195e-05 | C167: =IF('DF raw data'!K172="","",'DF raw data'!K172) -> 9.27121e-05 | D167: =IF('DF raw data'!L172="","",'DF raw data'!L172) -> -2.57165e-05 | F167: -2.525263335e-05 | G167: 9.320347413e-05 | H167: -2.585279745e-05 | J167: -0.001789126028 | K167: -0.04701056606 | L167: 0.005025348931 | M167: 0.1349732555 | N167: 0.0005150341251
A168: =IF('DF raw data'!I173="","",'DF raw data'!I173) -> -247 | B168: =IF('DF raw data'!J173="","",'DF raw data'!J173) -> -3.11467e-05 | C168: =IF('DF raw data'!K173="","",'DF raw data'!K173) -> 9.86355e-05 | D168: =IF('DF raw data'!L173="","",'DF raw data'!L173) -> -2.17646e-05 | F168: -3.131177751e-05 | G168: 9.915826815e-05 | H168: -2.187995238e-05 | J168: -0.001804781917 | K168: -0.04791295702 | L168: 0.005074928066 | M168: 0.1375107196 | N168: 0.0005295401914
A169: =IF('DF raw data'!I174="","",'DF raw data'!I174) -> -246.5 | B169: =IF('DF raw data'!J174="","",'DF raw data'!J174) -> -4.06905e-05 | C169: =IF('DF raw data'!K174="","",'DF raw data'!K174) -> 0.000102064 | D169: =IF('DF raw data'!L174="","",'DF raw data'!L174) -> -3.03142e-05 | F169: -4.090615965e-05 | G169: 0.0001026049392 | H169: -3.047486526e-05 | J169: -0.001825234997 | K169: -0.04882557452 | L169: 0.005126230535 | M169: 0.1400738348 | N169: 0.0005443450525
A170: =IF('DF raw data'!I175="","",'DF raw data'!I175) -> -246 | B170: =IF('DF raw data'!J175="","",'DF raw data'!J175) -> -3.22358e-05 | C170: =IF('DF raw data'!K175="","",'DF raw data'!K175) -> 0.000101025 | D170: =IF('DF raw data'!L175="","",'DF raw data'!L175) -> -2.21334e-05 | F170: -3.240664974e-05 | G170: 0.0001015604325 | H170: -2.225070702e-05 | J170: -0.001841438322 | K170: -0.04974629368 | L170: 0.005177010751 | M170: 0.1426623402 | N170: 0.0005594412202
A171: =IF('DF raw data'!I176="","",'DF raw data'!I176) -> -245.5 | B171: =IF('DF raw data'!J176="","",'DF raw data'!J176) -> -1.4673e-05 | C171: =IF('DF raw data'!K176="","",'DF raw data'!K176) -> 9.18206e-05 | D171: =IF('DF raw data'!L176="","",'DF raw data'!L176) -> -2.57255e-05 | F171: -1.47507669e-05 | G171: 9.230724918e-05 | H171: -2.586184515e-05 | J171: -0.001848813705 | K171: -0.05067070054 | L171: 0.005223164376 | M171: 0.1452739224 | N171: 0.0005747909994
A172: =IF('DF raw data'!I177="","",'DF raw data'!I177) -> -245 | B172: =IF('DF raw data'!J177="","",'DF raw data'!J177) -> -3.73687e-05 | C172: =IF('DF raw data'!K177="","",'DF raw data'!K177) -> 8.74207e-05 | D172: =IF('DF raw data'!L177="","",'DF raw data'!L177) -> -1.36315e-05 | F172: -3.756675411e-05 | G172: 8.788402971e-05 | H172: -1.370374695e-05 | J172: -0.001867597082 | K172: -0.05160449908 | L172: 0.005267106391 | M172: 0.1479074756 | N172: 0.0005904061637
A173: =IF('DF raw data'!I178="","",'DF raw data'!I178) -> -244.5 | B173: =IF('DF raw data'!J178="","",'DF raw data'!J178) -> -2.76885e-05 | C173: =IF('DF raw data'!K178="","",'DF raw data'!K178) -> 9.12061e-05 | D173: =IF('DF raw data'!L178="","",'DF raw data'!L178) -> -1.7324e-05 | F173: -2.783524905e-05 | G173: 9.168949233e-05 | H173: -1.74158172e-05 | J173: -0.001881514707 | K173: -0.05254525643 | L173: 0.005312951137 | M173: 0.1505639512 | N173: 0.0006062899373
A174: =IF('DF raw data'!I179="","",'DF raw data'!I179) -> -244 | B174: =IF('DF raw data'!J179="","",'DF raw data'!J179) -> -3.14604e-05 | C174: =IF('DF raw data'!K179="","",'DF raw data'!K179) -> 8.5999e-05 | D174: =IF('DF raw data'!L179="","",'DF raw data'!L179) -> -3.19234e-05 | F174: -3.162714012e-05 | G174: 8.64547947e-05 | H174: -3.209259402e-05 | J174: -0.001897328277 | K174: -0.05349392057 | L174: 0.005356178534 | M174: 0.1532420404 | N174: 0.0006224341889
A175: =IF('DF raw data'!I180="","",'DF raw data'!I180) -> -243.5 | B175: =IF('DF raw data'!J180="","",'DF raw data'!J180) -> -3.56328e-05 | C175: =IF('DF raw data'!K180="","",'DF raw data'!K180) -> 8.75019e-05 | D175: =IF('DF raw data'!L180="","",'DF raw data'!L180) -> -2.19311e-05 | F175: -3.582165384e-05 | G175: 8.796566007e-05 | H175: -2.204733483e-05 | J175: -0.001915239104 | K175: -0.05445154012 | L175: 0.005400161364 | M175: 0.1559421211 | N175: 0.0006388491307
A176: =IF('DF raw data'!I181="","",'DF raw data'!I181) -> -243 | B176: =IF('DF raw data'!J181="","",'DF raw data'!J181) -> -2.90253e-05 | C176: =IF('DF raw data'!K181="","",'DF raw data'!K181) -> 9.00547e-05 | D176: =IF('DF raw data'!L181="","",'DF raw data'!L181) -> -3.15122e-05 | F176: -2.917913409e-05 | G176: 9.053198991e-05 | H176: -3.167921466e-05 | J176: -0.001929828671 | K176: -0.05541645446 | L176: 0.005445427359 | M176: 0.1586648348 | N176: 0.0006555375896
A177: =IF('DF raw data'!I182="","",'DF raw data'!I182) -> -242.5 | B177: =IF('DF raw data'!J182="","",'DF raw data'!J182) -> -2.87097e-05 | C177: =IF('DF raw data'!K182="","",'DF raw data'!K182) -> 8.21989e-05 | D177: =IF('DF raw data'!L182="","",'DF raw data'!L182) -> -2.38224e-05 | F177: -2.886186141e-05 | G177: 8.263455417e-05 | H177: -2.394865872e-05 | J177: -0.001944259602 | K177: -0.05638858426 | L177: 0.005486744636 | M177: 0.1614082071 | N177: 0.0006724798456
A178: =IF('DF raw data'!I183="","",'DF raw data'!I183) -> -242 | B178: =IF('DF raw data'!J183="","",'DF raw data'!J183) -> -3.72949e-05 | C178: =IF('DF raw data'!K183="","",'DF raw data'!K183) -> 9.18488e-05 | D178: =IF('DF raw data'!L183="","",'DF raw data'!L183) -> -2.84185e-05 | F178: -3.749256297e-05 | G178: 9.233559864e-05 | H178: -2.856911805e-05 | J178: -0.001963005883 | K178: -0.0573700872 | L178: 0.005532912436 | M178: 0.1641746633 | N178: 0.0006897131017
A179: =IF('DF raw data'!I184="","",'DF raw data'!I184) -> -241.5 | B179: =IF('DF raw data'!J184="","",'DF raw data'!J184) -> -3.76169e-05 | C179: =IF('DF raw data'!K184="","",'DF raw data'!K184) -> 9.15772e-05 | D179: =IF('DF raw data'!L184="","",'DF raw data'!L184) -> -2.6156e-05 | F179: -3.781626957e-05 | G179: 9.206255916e-05 | H179: -2.62946268e-05 | J179: -0.001981914018 | K179: -0.05836104421 | L179: 0.005578943715 | M179: 0.1669641352 | N179: 0.0007072393998
A180: =IF('DF raw data'!I185="","",'DF raw data'!I185) -> -241 | B180: =IF('DF raw data'!J185="","",'DF raw data'!J185) -> -4.11401e-05 | C180: =IF('DF raw data'!K185="","",'DF raw data'!K185) -> 9.03436e-05 | D180: =IF('DF raw data'!L185="","",'DF raw data'!L185) -> -2.89453e-05 | F180: -4.135814253e-05 | G180: 9.082242108e-05 | H180: -2.909871009e-05 | J180: -0.002002593089 | K180: -0.05936234075 | L180: 0.005624354926 | M180: 0.1697763127 | N180: 0.0007250612735
A181: =IF('DF raw data'!I186="","",'DF raw data'!I186) -> -240.5 | B181: =IF('DF raw data'!J186="","",'DF raw data'!J186) -> -5.1899e-05 | C181: =IF('DF raw data'!K186="","",'DF raw data'!K186) -> 8.33263e-05 | D181: =IF('DF raw data'!L186="","",'DF raw data'!L186) -> -4.17597e-05 | F181: -5.21740647e-05 | G181: 8.376792939e-05 | H181: -4.198102641e-05 | J181: -0.002028680121 | K181: -0.06037668081 | L181: 0.005666238891 | M181: 0.1726094321 | N181: 0.0007431721766
A182: =IF('DF raw data'!I187="","",'DF raw data'!I187) -> -240 | B182: =IF('DF raw data'!J187="","",'DF raw data'!J187) -> -4.22307e-05 | C182: =IF('DF raw data'!K187="","",'DF raw data'!K187) -> 8.3789e-05 | D182: =IF('DF raw data'!L187="","",'DF raw data'!L187) -> -2.70413e-05 | F182: -4.245452271e-05 | G182: 8.42330817e-05 | H182: -2.718461889e-05 | J182: -0.002049907383 | K182: -0.0614016345 | L182: 0.005708355431 | M182: 0.1754636098 | N182: 0.0007615658976
A183: =IF('DF raw data'!I188="","",'DF raw data'!I188) -> -239.5 | B183: =IF('DF raw data'!J188="","",'DF raw data'!J188) -> -3.45402e-05 | C183: =IF('DF raw data'!K188="","",'DF raw data'!K188) -> 8.2883e-05 | D183: =IF('DF raw data'!L188="","",'DF raw data'!L188) -> -2.6925e-05 | F183: -3.472326306e-05 | G183: 8.33222799e-05 | H183: -2.70677025e-05 | J183: -0.002067269014 | K183: -0.06243526901 | L183: 0.005750016571 | M183: 0.1783386181 | N183: 0.0007802340435
A184: =IF('DF raw data'!I189="","",'DF raw data'!I189) -> -239 | B184: =IF('DF raw data'!J189="","",'DF raw data'!J189) -> -4.88957e-05 | C184: =IF('DF raw data'!K189="","",'DF raw data'!K189) -> 8.22624e-05 | D184: =IF('DF raw data'!L189="","",'DF raw data'!L189) -> -2.78892e-05 | F184: -4.915484721e-05 | G184: 8.269839072e-05 | H184: -2.803701276e-05 | J184: -0.002091846438 | K184: -0.06348119223 | L184: 0.005791365767 | M184: 0.181234301 | N184: 0.0007991919129
A185: =IF('DF raw data'!I190="","",'DF raw data'!I190) -> -238.5 | B185: =IF('DF raw data'!J190="","",'DF raw data'!J190) -> -3.81998e-05 | C185: =IF('DF raw data'!K190="","",'DF raw data'!K190) -> 8.20614e-05 | D185: =IF('DF raw data'!L190="","",'DF raw data'!L190) -> -1.65684e-05 | F185: -3.840225894e-05 | G185: 8.249632542e-05 | H185: -1.665621252e-05 | J185: -0.002111047567 | K185: -0.06453671601 | L185: 0.005832613929 | M185: 0.184150608 | N185: 0.0008184298665
A186: =IF('DF raw data'!I191="","",'DF raw data'!I191) -> -238 | B186: =IF('DF raw data'!J191="","",'DF raw data'!J191) -> -3.78772e-05 | C186: =IF('DF raw data'!K191="","",'DF raw data'!K191) -> 8.45381e-05 | D186: =IF('DF raw data'!L191="","",'DF raw data'!L191) -> -2.01432e-05 | F186: -3.807794916e-05 | G186: 8.498615193e-05 | H186: -2.024995896e-05 | J186: -0.002130086542 | K186: -0.06560175928 | L186: 0.005875107005 | M186: 0.1870881615 | N186: 0.000837956942
A187: =IF('DF raw data'!I192="","",'DF raw data'!I192) -> -237.5 | B187: =IF('DF raw data'!J192="","",'DF raw data'!J192) -> -4.12705e-05 | C187: =IF('DF raw data'!K192="","",'DF raw data'!K192) -> 8.88715e-05 | D187: =IF('DF raw data'!L192="","",'DF raw data'!L192) -> -2.55909e-05 | F187: -4.148923365e-05 | G187: 8.934251895e-05 | H187: -2.572653177e-05 | J187: -0.002150831159 | K187: -0.06667717486 | L187: 0.005919778265 | M187: 0.1900480506 | N187: 0.0008577918667
A188: =IF('DF raw data'!I193="","",'DF raw data'!I193) -> -237 | B188: =IF('DF raw data'!J193="","",'DF raw data'!J193) -> -3.55615e-05 | C188: =IF('DF raw data'!K193="","",'DF raw data'!K193) -> 9.30204e-05 | D188: =IF('DF raw data'!L193="","",'DF raw data'!L193) -> -3.33008e-05 | F188: -3.574997595e-05 | G188: 9.351340812e-05 | H188: -3.347729424e-05 | J188: -0.002168706147 | K188: -0.06776152794 | L188: 0.005966534969 | M188: 0.1930313181 | N188: 0.0008779432796
A189: =IF('DF raw data'!I194="","",'DF raw data'!I194) -> -236.5 | B189: =IF('DF raw data'!J194="","",'DF raw data'!J194) -> -2.73536e-05 | C189: =IF('DF raw data'!K194="","",'DF raw data'!K194) -> 8.67859e-05 | D189: =IF('DF raw data'!L194="","",'DF raw data'!L194) -> -3.98944e-05 | F189: -2.749857408e-05 | G189: 8.724586527e-05 | H189: -4.010584032e-05 | J189: -0.002182455434 | K189: -0.06885275565 | L189: 0.006010157902 | M189: 0.196036397 | N189: 0.0008983858345
A190: =IF('DF raw data'!I195="","",'DF raw data'!I195) -> -236 | B190: =IF('DF raw data'!J195="","",'DF raw data'!J195) -> -4.26221e-05 | C190: =IF('DF raw data'!K195="","",'DF raw data'!K195) -> 9.08623e-05 | D190: =IF('DF raw data'!L195="","",'DF raw data'!L195) -> -1.63988e-05 | F190: -4.284799713e-05 | G190: 9.134387019e-05 | H190: -1.648571364e-05 | J190: -0.002203879432 | K190: -0.06995469537 | L190: 0.006055829837 | M190: 0.1990643119 | N190: 0.0009191509143
A191: =IF('DF raw data'!I196="","",'DF raw data'!I196) -> -235.5 | B191: =IF('DF raw data'!J196="","",'DF raw data'!J196) -> -4.18503e-05 | C191: =IF('DF raw data'!K196="","",'DF raw data'!K196) -> 9.62663e-05 | D191: =IF('DF raw data'!L196="","",'DF raw data'!L196) -> -2.06479e-05 | F191: -4.207210659e-05 | G191: 9.677651139e-05 | H191: -2.075733387e-05 | J191: -0.002224915486 | K191: -0.07106715311 | L191: 0.006104218092 | M191: 0.202116421 | N191: 0.000940256778
A192: =IF('DF raw data'!I197="","",'DF raw data'!I197) -> -235 | B192: =IF('DF raw data'!J197="","",'DF raw data'!J197) -> -2.90271e-05 | C192: =IF('DF raw data'!K197="","",'DF raw data'!K197) -> 9.55377e-05 | D192: =IF('DF raw data'!L197="","",'DF raw data'!L197) -> -2.88031e-05 | F192: =(1-$G$1*($B$49-$G$2))*B192 -> -2.918094363e-05 | G192: 9.604404981e-05 | H192: -2.895575643e-05 | J192: =F192*$G$3+J191 -> -0.002239505957 | K192: =J192*$G$3+K191 -> -0.07218690609 | L192: =G192*$G$3+L191 -> 0.006152240117 | M192: =L192*$G$3+M191 -> 0.205192541 | N192: =(J192^2+L192^2)*$G$3+N191 -> 0.0009616895007
A193: =IF('DF raw data'!I198="","",'DF raw data'!I198) -> -234.5 | B193: =IF('DF raw data'!J198="","",'DF raw data'!J198) -> -3.76175e-05 | C193: =IF('DF raw data'!K198="","",'DF raw data'!K198) -> 9.90651e-05 | D193: =IF('DF raw data'!L198="","",'DF raw data'!L198) -> -2.52046e-05 | F193: -3.781687275e-05 | G193: 9.959014503e-05 | H193: -2.533818438e-05 | J193: -0.002258414394 | K193: -0.07331611329 | L193: 0.00620203519 | M193: 0.2082935586 | N193: 0.0009834723387
A194: =IF('DF raw data'!I199="","",'DF raw data'!I199) -> -234 | B194: =IF('DF raw data'!J199="","",'DF raw data'!J199) -> -3.38363e-05 | C194: =IF('DF raw data'!K199="","",'DF raw data'!K199) -> 0.00010274 | D194: =IF('DF raw data'!L199="","",'DF raw data'!L199) -> -2.5005e-05 | F194: -3.401563239e-05 | G194: 0.000103284522 | H194: -2.51375265e-05 | J194: -0.00227542221 | K194: -0.07445382439 | L194: 0.006253677451 | M194: 0.2114203974 | N194: 0.001005615353
A195: =IF('DF raw data'!I200="","",'DF raw data'!I200) -> -233.5 | B195: =IF('DF raw data'!J200="","",'DF raw data'!J200) -> -3.28721e-05 | C195: =IF('DF raw data'!K200="","",'DF raw data'!K200) -> 9.39986e-05 | D195: =IF('DF raw data'!L200="","",'DF raw data'!L200) -> -2.92004e-05 | F195: -3.304632213e-05 | G195: 9.449679258e-05 | H195: -2.935516212e-05 | J195: -0.002291945371 | K195: -0.07559979708 | L195: 0.006300925847 | M195: 0.2145708603 | N195: 0.001028092693
A196: =IF('DF raw data'!I201="","",'DF raw data'!I201) -> -233 | B196: =IF('DF raw data'!J201="","",'DF raw data'!J201) -> -2.47987e-05 | C196: =IF('DF raw data'!K201="","",'DF raw data'!K201) -> 8.55669e-05 | D196: =IF('DF raw data'!L201="","",'DF raw data'!L201) -> -2.65752e-05 | F196: -2.493013311e-05 | G196: 8.602040457e-05 | H196: -2.671604856e-05 | J196: -0.002304410438 | K196: -0.0767520023 | L196: 0.006343936049 | M196: 0.2177428283 | N196: 0.001050870609
A197: =IF('DF raw data'!I202="","",'DF raw data'!I202) -> -232.5 | B197: =IF('DF raw data'!J202="","",'DF raw data'!J202) -> -4.37042e-05 | C197: =IF('DF raw data'!K202="","",'DF raw data'!K202) -> 8.36908e-05 | D197: =IF('DF raw data'!L202="","",'DF raw data'!L202) -> -2.81455e-05 | F197: -4.393583226e-05 | G197: 8.413436124e-05 | H197: -2.829467115e-05 | J197: -0.002326378354 | K197: -0.07791519147 | L197: 0.00638600323 | M197: 0.2209358299 | N197: 0.001073967145
A198: =IF('DF raw data'!I203="","",'DF raw data'!I203) -> -232 | B198: =IF('DF raw data'!J203="","",'DF raw data'!J203) -> -3.17784e-05 | C198: =IF('DF raw data'!K203="","",'DF raw data'!K203) -> 9.48234e-05 | D198: =IF('DF raw data'!L203="","",'DF raw data'!L203) -> -3.58449e-05 | F198: -3.194682552e-05 | G198: 9.532596402e-05 | H198: -3.603487797e-05 | J198: -0.002342351767 | K198: -0.07908636736 | L198: 0.006433666212 | M198: 0.224152663 | N198: 0.001097406482
A199: =IF('DF raw data'!I204="","",'DF raw data'!I204) -> -231.5 | B199: =IF('DF raw data'!J204="","",'DF raw data'!J204) -> -3.15285e-05 | C199: =IF('DF raw data'!K204="","",'DF raw data'!K204) -> 9.47436e-05 | D199: =IF('DF raw data'!L204="","",'DF raw data'!L204) -> -2.59427e-05 | F199: -3.169560105e-05 | G199: 9.524574108e-05 | H199: -2.608019631e-05 | J199: -0.002358199567 | K199: -0.08026546714 | L199: 0.006481289083 | M199: 0.2273933076 | N199: 0.001121190589
A200: =IF('DF raw data'!I205="","",'DF raw data'!I205) -> -231 | B200: =IF('DF raw data'!J205="","",'DF raw data'!J205) -> -3.24853e-05 | C200: =IF('DF raw data'!K205="","",'DF raw data'!K205) -> 9.05383e-05 | D200: =IF('DF raw data'!L205="","",'DF raw data'!L205) -> -3.27304e-05 | F200: -3.265747209e-05 | G200: 9.101815299e-05 | H200: -3.290387112e-05 | J200: -0.002374528303 | K200: -0.08145273129 | L200: 0.006526798159 | M200: 0.2306567067 | N200: 0.001145309328
A201: =IF('DF raw data'!I206="","",'DF raw data'!I206) -> -230.5 | B201: =IF('DF raw data'!J206="","",'DF raw data'!J206) -> -3.79961e-05 | C201: =IF('DF raw data'!K206="","",'DF raw data'!K206) -> 8.92e-05 | D201: =IF('DF raw data'!L206="","",'DF raw data'!L206) -> -3.43189e-05 | F201: -3.819747933e-05 | G201: 8.967276e-05 | H201: -3.450079017e-05 | J201: -0.002393627043 | K201: -0.08264954481 | L201: 0.006571634539 | M201: 0.2339425239 | N201: 0.001169767243
... 1061 more rows

Sheet 10 y=0.1
A1: =IF('DF raw data'!M1="","",'DF raw data'!M1) -> Number of header lines | B1: =IF('DF raw data'!N1="","",'DF raw data'!N1) -> 54 | C1: =IF('DF raw data'!O1="","",'DF raw data'!O1) ->  | D1: =IF('DF raw data'!P1="","",'DF raw data'!P1) ->  | F1: T_coeff | G1: -0.001 | H1: /degC | J1: ='10 y=-0.2'!J1 -> IBy total | K1: ='10 y=-0.2'!K1 -> -11.36112901 | L1: ='10 y=-0.2'!L1 -> muTm | R1: ='10 y=-0.2'!R1 -> DF ref | S1: ='10 y=-0.2'!S1 -> 1
A2: =IF('DF raw data'!M2="","",'DF raw data'!M2) -> Measured by | B2: =IF('DF raw data'!N2="","",'DF raw data'!N2) -> Danfysik | C2: =IF('DF raw data'!O2="","",'DF raw data'!O2) ->  | D2: =IF('DF raw data'!P2="","",'DF raw data'!P2) ->  | F2: Tcorr | G2: 20 | H2: degC | J2: JBy total | K2: =K1262 -> -14.84213706 | L2: muTm^2 | M2: =M1262 -> 16.69843582
A3: =IF('DF raw data'!M3="","",'DF raw data'!M3) -> Operator | B3: =IF('DF raw data'!N3="","",'DF raw data'!N3) -> PMHA | C3: =IF('DF raw data'!O3="","",'DF raw data'!O3) ->  | D3: =IF('DF raw data'!P3="","",'DF raw data'!P3) ->  | F3: Step | G3: =A63-A62 -> 0.5 | H3: mm | J3: PI total | K3: =N1262 -> 10656.88736 | L3: T^2mm^3
A4: =IF('DF raw data'!M4="","",'DF raw data'!M4) -> Data-time | B4: =IF('DF raw data'!N4="","",'DF raw data'!N4) -> 02-10-2024, 21:49:00 | C4: =IF('DF raw data'!O4="","",'DF raw data'!O4) ->  | D4: =IF('DF raw data'!P4="","",'DF raw data'!P4) -> 
A5: =IF('DF raw data'!M5="","",'DF raw data'!M5) -> Project | B5: =IF('DF raw data'!N5="","",'DF raw data'!N5) -> 504314 | C5: =IF('DF raw data'!O5="","",'DF raw data'!O5) ->  | D5: =IF('DF raw data'!P5="","",'DF raw data'!P5) -> 
A6: =IF('DF raw data'!M6="","",'DF raw data'!M6) -> Magnet type | B6: =IF('DF raw data'!N6="","",'DF raw data'!N6) -> Dipole | C6: =IF('DF raw data'!O6="","",'DF raw data'!O6) ->  | D6: =IF('DF raw data'!P6="","",'DF raw data'!P6) -> 
A7: =IF('DF raw data'!M7="","",'DF raw data'!M7) -> Magnet nr. | B7: =IF('DF raw data'!N7="","",'DF raw data'!N7) -> 2410110 | C7: =IF('DF raw data'!O7="","",'DF raw data'!O7) ->  | D7: =IF('DF raw data'!P7="","",'DF raw data'!P7) -> 
A8: =IF('DF raw data'!M8="","",'DF raw data'!M8) -> Meas. number | B8: =IF('DF raw data'!N8="","",'DF raw data'!N8) -> 997 | C8: =IF('DF raw data'!O8="","",'DF raw data'!O8) ->  | D8: =IF('DF raw data'!P8="","",'DF raw data'!P8) -> 
A9: =IF('DF raw data'!M9="","",'DF raw data'!M9) -> Add. info | B9: =IF('DF raw data'!N9="","",'DF raw data'!N9) -> Y-alignment scan 4) | C9: =IF('DF raw data'!O9="","",'DF raw data'!O9) ->  | D9: =IF('DF raw data'!P9="","",'DF raw data'!P9) -> 
A10: =IF('DF raw data'!M10="","",'DF raw data'!M10) -> Device | B10: =IF('DF raw data'!N10="","",'DF raw data'!N10) -> (HAL) HALL-PROBE | C10: =IF('DF raw data'!O10="","",'DF raw data'!O10) ->  | D10: =IF('DF raw data'!P10="","",'DF raw data'!P10) -> 
A11: =IF('DF raw data'!M11="","",'DF raw data'!M11) -> Goal | B11: =IF('DF raw data'!N11="","",'DF raw data'!N11) -> (AXI) AXis Integral (Line, EFB) | C11: =IF('DF raw data'!O11="","",'DF raw data'!O11) ->  | D11: =IF('DF raw data'!P11="","",'DF raw data'!P11) -> 
A12: =IF('DF raw data'!M12="","",'DF raw data'!M12) -> Power supply mode | B12: =IF('DF raw data'!N12="","",'DF raw data'!N12) -> (PM) Permanent Magnet (no MPS in use) | C12: =IF('DF raw data'!O12="","",'DF raw data'!O12) ->  | D12: =IF('DF raw data'!P12="","",'DF raw data'!P12) -> 
A13: =IF('DF raw data'!M13="","",'DF raw data'!M13) -> Data format | B13: =IF('DF raw data'!N13="","",'DF raw data'!N13) -> Raw data text file | C13: =IF('DF raw data'!O13="","",'DF raw data'!O13) ->  | D13: =IF('DF raw data'!P13="","",'DF raw data'!P13) -> 
A14: =IF('DF raw data'!M14="","",'DF raw data'!M14) -> Direction of the pos. x-axis | B14: =IF('DF raw data'!N14="","",'DF raw data'!N14) -> See test program | C14: =IF('DF raw data'!O14="","",'DF raw data'!O14) ->  | D14: =IF('DF raw data'!P14="","",'DF raw data'!P14) -> 
A15: =IF('DF raw data'!M15="","",'DF raw data'!M15) -> Direction of the pos. y-axis | B15: =IF('DF raw data'!N15="","",'DF raw data'!N15) -> Vertical up | C15: =IF('DF raw data'!O15="","",'DF raw data'!O15) ->  | D15: =IF('DF raw data'!P15="","",'DF raw data'!P15) -> 
A16: =IF('DF raw data'!M16="","",'DF raw data'!M16) -> Direction of the pos. z-axis | B16: =IF('DF raw data'!N16="","",'DF raw data'!N16) -> See test program | C16: =IF('DF raw data'!O16="","",'DF raw data'!O16) ->  | D16: =IF('DF raw data'!P16="","",'DF raw data'!P16) -> 
A17: =IF('DF raw data'!M17="","",'DF raw data'!M17) -> Mapper type | B17: =IF('DF raw data'!N17="","",'DF raw data'!N17) -> Precision Hall Mapper | C17: =IF('DF raw data'!O17="","",'DF raw data'!O17) ->  | D17: =IF('DF raw data'!P17="","",'DF raw data'!P17) -> 
A18: =IF('DF raw data'!M18="","",'DF raw data'!M18) -> Mapper Danfysik Reg. Number | B18: =IF('DF raw data'!N18="","",'DF raw data'!N18) -> 2033-D (mapper 1) | C18: =IF('DF raw data'!O18="","",'DF raw data'!O18) ->  | D18: =IF('DF raw data'!P18="","",'DF raw data'!P18) -> 
A19: =IF('DF raw data'!M19="","",'DF raw data'!M19) -> Measurement consept | B19: =IF('DF raw data'!N19="","",'DF raw data'!N19) -> Square line grid | C19: =IF('DF raw data'!O19="","",'DF raw data'!O19) ->  | D19: =IF('DF raw data'!P19="","",'DF raw data'!P19) -> 
A20: =IF('DF raw data'!M20="","",'DF raw data'!M20) -> Mode | B20: =IF('DF raw data'!N20="","",'DF raw data'!N20) -> On-the-fly measurement | C20: =IF('DF raw data'!O20="","",'DF raw data'!O20) ->  | D20: =IF('DF raw data'!P20="","",'DF raw data'!P20) -> 
A21: =IF('DF raw data'!M21="","",'DF raw data'!M21) ->  | B21: =IF('DF raw data'!N21="","",'DF raw data'!N21) ->  | C21: =IF('DF raw data'!O21="","",'DF raw data'!O21) ->  | D21: =IF('DF raw data'!P21="","",'DF raw data'!P21) -> 
A22: =IF('DF raw data'!M22="","",'DF raw data'!M22) -> Probe Name | B22: =IF('DF raw data'!N22="","",'DF raw data'!N22) -> ID12_By | C22: =IF('DF raw data'!O22="","",'DF raw data'!O22) ->  | D22: =IF('DF raw data'!P22="","",'DF raw data'!P22) -> 
A23: =IF('DF raw data'!M23="","",'DF raw data'!M23) -> Probe Type | B23: =IF('DF raw data'!N23="","",'DF raw data'!N23) -> DF_ID_3D_Bxyz | C23: =IF('DF raw data'!O23="","",'DF raw data'!O23) ->  | D23: =IF('DF raw data'!P23="","",'DF raw data'!P23) -> 
A24: =IF('DF raw data'!M24="","",'DF raw data'!M24) -> Probe Danfysik Reg. Number | B24: =IF('DF raw data'!N24="","",'DF raw data'!N24) -> 2277 | C24: =IF('DF raw data'!O24="","",'DF raw data'!O24) ->  | D24: =IF('DF raw data'!P24="","",'DF raw data'!P24) -> 
A25: =IF('DF raw data'!M25="","",'DF raw data'!M25) -> Probe Axis | B25: =IF('DF raw data'!N25="","",'DF raw data'!N25) -> By | C25: =IF('DF raw data'!O25="","",'DF raw data'!O25) ->  | D25: =IF('DF raw data'!P25="","",'DF raw data'!P25) -> 
A26: =IF('DF raw data'!M26="","",'DF raw data'!M26) -> Probe Current Supply | B26: =IF('DF raw data'!N26="","",'DF raw data'!N26) -> 1825-D | C26: =IF('DF raw data'!O26="","",'DF raw data'!O26) ->  | D26: =IF('DF raw data'!P26="","",'DF raw data'!P26) -> 
A27: =IF('DF raw data'!M27="","",'DF raw data'!M27) -> Probe Gain Correction | B27: =IF('DF raw data'!N27="","",'DF raw data'!N27) -> 0.99615 | C27: =IF('DF raw data'!O27="","",'DF raw data'!O27) ->  | D27: =IF('DF raw data'!P27="","",'DF raw data'!P27) -> 
A28: =IF('DF raw data'!M28="","",'DF raw data'!M28) -> Probe Offset Correction | B28: =IF('DF raw data'!N28="","",'DF raw data'!N28) -> 0.0027536 | C28: =IF('DF raw data'!O28="","",'DF raw data'!O28) ->  | D28: =IF('DF raw data'!P28="","",'DF raw data'!P28) -> 
A29: =IF('DF raw data'!M29="","",'DF raw data'!M29) -> DVM Number | B29: =IF('DF raw data'!N29="","",'DF raw data'!N29) -> 2 | C29: =IF('DF raw data'!O29="","",'DF raw data'!O29) ->  | D29: =IF('DF raw data'!P29="","",'DF raw data'!P29) -> 
A30: =IF('DF raw data'!M30="","",'DF raw data'!M30) -> DVM Type | B30: =IF('DF raw data'!N30="","",'DF raw data'!N30) -> K2701 | C30: =IF('DF raw data'!O30="","",'DF raw data'!O30) ->  | D30: =IF('DF raw data'!P30="","",'DF raw data'!P30) -> 
A31: =IF('DF raw data'!M31="","",'DF raw data'!M31) -> DVM Danfysik Reg. Number | B31: =IF('DF raw data'!N31="","",'DF raw data'!N31) -> 1743-D | C31: =IF('DF raw data'!O31="","",'DF raw data'!O31) ->  | D31: =IF('DF raw data'!P31="","",'DF raw data'!P31) -> 
A32: =IF('DF raw data'!M32="","",'DF raw data'!M32) -> Probe Name | B32: =IF('DF raw data'!N32="","",'DF raw data'!N32) -> ID12_Bx | C32: =IF('DF raw data'!O32="","",'DF raw data'!O32) ->  | D32: =IF('DF raw data'!P32="","",'DF raw data'!P32) -> 
A33: =IF('DF raw data'!M33="","",'DF raw data'!M33) -> Probe Type | B33: =IF('DF raw data'!N33="","",'DF raw data'!N33) -> DF_ID_3D_Bxyz | C33: =IF('DF raw data'!O33="","",'DF raw data'!O33) ->  | D33: =IF('DF raw data'!P33="","",'DF raw data'!P33) -> 
A34: =IF('DF raw data'!M34="","",'DF raw data'!M34) -> Probe Danfysik Reg. Number | B34: =IF('DF raw data'!N34="","",'DF raw data'!N34) -> 2277 | C34: =IF('DF raw data'!O34="","",'DF raw data'!O34) ->  | D34: =IF('DF raw data'!P34="","",'DF raw data'!P34) -> 
A35: =IF('DF raw data'!M35="","",'DF raw data'!M35) -> Probe Axis | B35: =IF('DF raw data'!N35="","",'DF raw data'!N35) -> Bx | C35: =IF('DF raw data'!O35="","",'DF raw data'!O35) ->  | D35: =IF('DF raw data'!P35="","",'DF raw data'!P35) -> 
A36: =IF('DF raw data'!M36="","",'DF raw data'!M36) -> Probe Current Supply | B36: =IF('DF raw data'!N36="","",'DF raw data'!N36) -> 1825-D | C36: =IF('DF raw data'!O36="","",'DF raw data'!O36) ->  | D36: =IF('DF raw data'!P36="","",'DF raw data'!P36) -> 
A37: =IF('DF raw data'!M37="","",'DF raw data'!M37) -> Probe Gain Correction | B37: =IF('DF raw data'!N37="","",'DF raw data'!N37) -> 1 | C37: =IF('DF raw data'!O37="","",'DF raw data'!O37) ->  | D37: =IF('DF raw data'!P37="","",'DF raw data'!P37) -> 
A38: =IF('DF raw data'!M38="","",'DF raw data'!M38) -> Probe Offset Correction | B38: =IF('DF raw data'!N38="","",'DF raw data'!N38) -> -0.17575 | C38: =IF('DF raw data'!O38="","",'DF raw data'!O38) ->  | D38: =IF('DF raw data'!P38="","",'DF raw data'!P38) -> 
A39: =IF('DF raw data'!M39="","",'DF raw data'!M39) -> DVM Number | B39: =IF('DF raw data'!N39="","",'DF raw data'!N39) -> 3 | C39: =IF('DF raw data'!O39="","",'DF raw data'!O39) ->  | D39: =IF('DF raw data'!P39="","",'DF raw data'!P39) -> 
A40: =IF('DF raw data'!M40="","",'DF raw data'!M40) -> DVM Type | B40: =IF('DF raw data'!N40="","",'DF raw data'!N40) -> K2701 | C40: =IF('DF raw data'!O40="","",'DF raw data'!O40) ->  | D40: =IF('DF raw data'!P40="","",'DF raw data'!P40) -> 
A41: =IF('DF raw data'!M41="","",'DF raw data'!M41) -> DVM Danfysik Reg. Number | B41: =IF('DF raw data'!N41="","",'DF raw data'!N41) -> 1744-D | C41: =IF('DF raw data'!O41="","",'DF raw data'!O41) ->  | D41: =IF('DF raw data'!P41="","",'DF raw data'!P41) -> 
A42: =IF('DF raw data'!M42="","",'DF raw data'!M42) -> Probe Name | B42: =IF('DF raw data'!N42="","",'DF raw data'!N42) -> ID12_Bz | C42: =IF('DF raw data'!O42="","",'DF raw data'!O42) ->  | D42: =IF('DF raw data'!P42="","",'DF raw data'!P42) -> 
A43: =IF('DF raw data'!M43="","",'DF raw data'!M43) -> Probe Type | B43: =IF('DF raw data'!N43="","",'DF raw data'!N43) -> DF_ID_3D_Bxyz | C43: =IF('DF raw data'!O43="","",'DF raw data'!O43) ->  | D43: =IF('DF raw data'!P43="","",'DF raw data'!P43) -> 
A44: =IF('DF raw data'!M44="","",'DF raw data'!M44) -> Probe Danfysik Reg. Number | B44: =IF('DF raw data'!N44="","",'DF raw data'!N44) -> 2277 | C44: =IF('DF raw data'!O44="","",'DF raw data'!O44) ->  | D44: =IF('DF raw data'!P44="","",'DF raw data'!P44) -> 
A45: =IF('DF raw data'!M45="","",'DF raw data'!M45) -> Probe Axis | B45: =IF('DF raw data'!N45="","",'DF raw data'!N45) -> Bz | C45: =IF('DF raw data'!O45="","",'DF raw data'!O45) ->  | D45: =IF('DF raw data'!P45="","",'DF raw data'!P45) -> 
A46: =IF('DF raw data'!M46="","",'DF raw data'!M46) -> Probe Current Supply | B46: =IF('DF raw data'!N46="","",'DF raw data'!N46) -> 1825-D | C46: =IF('DF raw data'!O46="","",'DF raw data'!O46) ->  | D46: =IF('DF raw data'!P46="","",'DF raw data'!P46) -> 
A47: =IF('DF raw data'!M47="","",'DF raw data'!M47) -> Probe Gain Correction | B47: =IF('DF raw data'!N47="","",'DF raw data'!N47) -> 1 | C47: =IF('DF raw data'!O47="","",'DF raw data'!O47) ->  | D47: =IF('DF raw data'!P47="","",'DF raw data'!P47) -> 
A48: =IF('DF raw data'!M53="","",'DF raw data'!M53) -> PS-Gap: | B48: =IF('DF raw data'!N53="","",'DF raw data'!N53) -> 10 | C48: =IF('DF raw data'!O53="","",'DF raw data'!O53) ->  | D48: =IF('DF raw data'!P53="","",'DF raw data'!P53) -> 
A49: =IF('DF raw data'!M54="","",'DF raw data'!M54) -> PS-Temperature: | B49: =IF('DF raw data'!N54="","",'DF raw data'!N54) -> 25.3 | C49: =IF('DF raw data'!O54="","",'DF raw data'!O54) ->  | D49: =IF('DF raw data'!P54="","",'DF raw data'!P54) -> 
A50: =IF('DF raw data'!M55="","",'DF raw data'!M55) -> PS-Encoder: | B50: =IF('DF raw data'!N55="","",'DF raw data'!N55) -> 19.7503 | C50: =IF('DF raw data'!O55="","",'DF raw data'!O55) ->  | D50: =IF('DF raw data'!P55="","",'DF raw data'!P55) -> 
A51: =IF('DF raw data'!M56="","",'DF raw data'!M56) ->  | B51: =IF('DF raw data'!N56="","",'DF raw data'!N56) ->  | C51: =IF('DF raw data'!O56="","",'DF raw data'!O56) ->  | D51: =IF('DF raw data'!P56="","",'DF raw data'!P56) -> 
A52: =IF('DF raw data'!M57="","",'DF raw data'!M57) -> Monitor-Index | B52: =IF('DF raw data'!N57="","",'DF raw data'!N57) -> [1,1,4] | C52: =IF('DF raw data'!O57="","",'DF raw data'!O57) ->  | D52: =IF('DF raw data'!P57="","",'DF raw data'!P57) -> 
A53: =IF('DF raw data'!M58="","",'DF raw data'!M58) ->  | B53: =IF('DF raw data'!N58="","",'DF raw data'!N58) ->  | C53: =IF('DF raw data'!O58="","",'DF raw data'!O58) ->  | D53: =IF('DF raw data'!P58="","",'DF raw data'!P58) -> 
A54: =IF('DF raw data'!M59="","",'DF raw data'!M59) -> Time [s] | B54: =IF('DF raw data'!N59="","",'DF raw data'!N59) -> Y [mm] | C54: =IF('DF raw data'!O59="","",'DF raw data'!O59) -> X [mm] | D54: =IF('DF raw data'!P59="","",'DF raw data'!P59) -> Nominal current [A]
A55: =IF('DF raw data'!M60="","",'DF raw data'!M60) ->  | B55: =IF('DF raw data'!N60="","",'DF raw data'!N60) ->  | C55: =IF('DF raw data'!O60="","",'DF raw data'!O60) ->  | D55: =IF('DF raw data'!P60="","",'DF raw data'!P60) -> 
A56: =IF('DF raw data'!M61="","",'DF raw data'!M61) -> 209.7 | B56: =IF('DF raw data'!N61="","",'DF raw data'!N61) -> 31.45 | C56: =IF('DF raw data'!O61="","",'DF raw data'!O61) -> 301.3 | D56: =IF('DF raw data'!P61="","",'DF raw data'!P61) -> 0
A57: =IF('DF raw data'!M62="","",'DF raw data'!M62) ->  | B57: =IF('DF raw data'!N62="","",'DF raw data'!N62) ->  | C57: =IF('DF raw data'!O62="","",'DF raw data'!O62) ->  | D57: =IF('DF raw data'!P62="","",'DF raw data'!P62) -> 
A58: =IF('DF raw data'!M63="","",'DF raw data'!M63) -> Measurement-Index | B58: =IF('DF raw data'!N63="","",'DF raw data'!N63) -> [1,1,1201,2] | C58: =IF('DF raw data'!O63="","",'DF raw data'!O63) ->  | D58: =IF('DF raw data'!P63="","",'DF raw data'!P63) -> 
A59: =IF('DF raw data'!M64="","",'DF raw data'!M64) ->  | B59: =IF('DF raw data'!N64="","",'DF raw data'!N64) ->  | C59: =IF('DF raw data'!O64="","",'DF raw data'!O64) ->  | D59: =IF('DF raw data'!P64="","",'DF raw data'!P64) -> 
A60: =IF('DF raw data'!M65="","",'DF raw data'!M65) -> Z [mm] | B60: By [T] | C60: Bx [T] | D60: Bz [T] | F60: By_corr | G60: Bx_corr | H60: Bz_corr | J60: Iy | K60: Jy | L60: Ix | M60: Jx | N60: PI
A62: =IF('DF raw data'!M67="","",'DF raw data'!M67) -> -300 | B62: =IF('DF raw data'!N67="","",'DF raw data'!N67) -> -3.60647e-05 | C62: =IF('DF raw data'!O67="","",'DF raw data'!O67) -> 0.000145104 | D62: =IF('DF raw data'!P67="","",'DF raw data'!P67) -> -2.72393e-05 | F62: =(1-$G$1*($B$49))*B62 -> -3.697713691e-05 | G62: =(1-$G$1*($B$49-$G$2))*C62 -> 0.0001458730512 | H62: =(1-$G$1*($B$49-$G$2))*D62 -> -2.738366829e-05 | J62: =F62*$G$3 -> -1.848856846e-05 | K62: =J62*$G$3 -> -9.244284228e-06 | L62: =G62*$G$3 -> 7.29365256e-05 | M62: =L62*$G$3 -> 3.64682628e-05 | N62: =(J62^2+L62^2)*$G$3 -> 2.830781965e-09
A63: =IF('DF raw data'!M68="","",'DF raw data'!M68) -> -299.5 | B63: =IF('DF raw data'!N68="","",'DF raw data'!N68) -> -3.3117e-05 | C63: =IF('DF raw data'!O68="","",'DF raw data'!O68) -> 0.000142265 | D63: =IF('DF raw data'!P68="","",'DF raw data'!P68) -> -2.70596e-05 | F63: =(1-$G$1*($B$49-$G$2))*B63 -> -3.32925201e-05 | G63: =(1-$G$1*($B$49-$G$2))*C63 -> 0.0001430190045 | H63: -2.720301588e-05 | J63: =F63*$G$3+J62 -> -3.513482851e-05 | K63: =J63*$G$3+K62 -> -2.681169848e-05 | L63: =G63*$G$3+L62 -> 0.0001444460279 | M63: =L63*$G$3+M62 -> 0.0001086912767 | N63: =(J63^2+L63^2)*$G$3+N62 -> 1.388033753e-08
A64: =IF('DF raw data'!M69="","",'DF raw data'!M69) -> -299 | B64: =IF('DF raw data'!N69="","",'DF raw data'!N69) -> -4.06153e-05 | C64: =IF('DF raw data'!O69="","",'DF raw data'!O69) -> 0.000145608 | D64: =IF('DF raw data'!P69="","",'DF raw data'!P69) -> -2.66848e-05 | F64: =(1-$G$1*($B$49-$G$2))*B64 -> -4.083056109e-05 | G64: 0.0001463797224 | H64: -2.682622944e-05 | J64: =F64*$G$3+J63 -> -5.555010905e-05 | K64: =J64*$G$3+K63 -> -5.458675301e-05 | L64: =G64*$G$3+L63 -> 0.0002176358891 | M64: =L64*$G$3+M63 -> 0.0002175092213 | N64: =(J64^2+L64^2)*$G$3+N63 -> 3.910593494e-08
A65: =IF('DF raw data'!M70="","",'DF raw data'!M70) -> -298.5 | B65: =IF('DF raw data'!N70="","",'DF raw data'!N70) -> -2.60036e-05 | C65: =IF('DF raw data'!O70="","",'DF raw data'!O70) -> 0.000144519 | D65: =IF('DF raw data'!P70="","",'DF raw data'!P70) -> -2.68232e-05 | F65: -2.614141908e-05 | G65: 0.0001452849507 | H65: -2.696536296e-05 | J65: -6.862081859e-05 | K65: -8.88971623e-05 | L65: 0.0002902783644 | M65: 0.0003626484035 | N65: 8.359110773e-08
A66: =IF('DF raw data'!M71="","",'DF raw data'!M71) -> -298 | B66: =IF('DF raw data'!N71="","",'DF raw data'!N71) -> -2.88231e-05 | C66: =IF('DF raw data'!O71="","",'DF raw data'!O71) -> 0.000141595 | D66: =IF('DF raw data'!P71="","",'DF raw data'!P71) -> -2.71432e-05 | F66: -2.897586243e-05 | G66: 0.0001423454535 | H66: -2.728705896e-05 | J66: -8.310874981e-05 | K66: -0.0001304515372 | L66: 0.0003614510912 | M66: 0.000543373949 | N66: 1.523680855e-07
A67: =IF('DF raw data'!M72="","",'DF raw data'!M72) -> -297.5 | B67: =IF('DF raw data'!N72="","",'DF raw data'!N72) -> -3.66418e-05 | C67: =IF('DF raw data'!O72="","",'DF raw data'!O72) -> 0.000131728 | D67: =IF('DF raw data'!P72="","",'DF raw data'!P72) -> -2.69796e-05 | F67: -3.683600154e-05 | G67: 0.0001324261584 | H67: -2.712259188e-05 | J67: -0.0001015267506 | K67: -0.0001812149125 | L67: 0.0004276641704 | M67: 0.0007572060342 | N67: 2.489702474e-07
A68: =IF('DF raw data'!M73="","",'DF raw data'!M73) -> -297 | B68: =IF('DF raw data'!N73="","",'DF raw data'!N73) -> -2.32477e-05 | C68: =IF('DF raw data'!O73="","",'DF raw data'!O73) -> 0.000131464 | D68: =IF('DF raw data'!P73="","",'DF raw data'!P73) -> -2.70516e-05 | F68: -2.337091281e-05 | G68: 0.0001321607592 | H68: -2.719497348e-05 | J68: -0.000113212207 | K68: -0.000237821016 | L68: 0.00049374455 | M68: 0.001004078309 | N68: 3.772705896e-07
A69: =IF('DF raw data'!M74="","",'DF raw data'!M74) -> -296.5 | B69: =IF('DF raw data'!N74="","",'DF raw data'!N74) -> -2.44009e-05 | C69: =IF('DF raw data'!O74="","",'DF raw data'!O74) -> 0.000126003 | D69: =IF('DF raw data'!P74="","",'DF raw data'!P74) -> -2.75284e-05 | F69: -2.453022477e-05 | G69: 0.0001266708159 | H69: -2.767430052e-05 | J69: -0.0001254773194 | K69: -0.0003005596757 | L69: 0.0005570799579 | M69: 0.001282618288 | N69: 5.403119082e-07
A70: =IF('DF raw data'!M75="","",'DF raw data'!M75) -> -296 | B70: =IF('DF raw data'!N75="","",'DF raw data'!N75) -> -3.60645e-05 | C70: =IF('DF raw data'!O75="","",'DF raw data'!O75) -> 0.000131344 | D70: =IF('DF raw data'!P75="","",'DF raw data'!P75) -> -2.76371e-05 | F70: -3.625564185e-05 | G70: 0.0001320401232 | H70: -2.778357663e-05 | J70: -0.0001436051403 | K70: -0.0003723622458 | L70: 0.0006231000195 | M70: 0.001594168298 | N70: 7.447499435e-07
A71: =IF('DF raw data'!M76="","",'DF raw data'!M76) -> -295.5 | B71: =IF('DF raw data'!N76="","",'DF raw data'!N76) -> -2.24141e-05 | C71: =IF('DF raw data'!O76="","",'DF raw data'!O76) -> 0.000137768 | D71: =IF('DF raw data'!P76="","",'DF raw data'!P76) -> -2.76106e-05 | F71: -2.253289473e-05 | G71: 0.0001384981704 | H71: -2.775693618e-05 | J71: -0.0001548715877 | K71: -0.0004497980396 | L71: 0.0006923491047 | M71: 0.00194034285 | N71: 9.964161892e-07
A72: =IF('DF raw data'!M77="","",'DF raw data'!M77) -> -295 | B72: =IF('DF raw data'!N77="","",'DF raw data'!N77) -> -3.35653e-05 | C72: =IF('DF raw data'!O77="","",'DF raw data'!O77) -> 0.000135364 | D72: =IF('DF raw data'!P77="","",'DF raw data'!P77) -> -2.73038e-05 | F72: -3.374319609e-05 | G72: 0.0001360814292 | H72: -2.744851014e-05 | J72: -0.0001717431857 | K72: -0.0005356696325 | L72: 0.0007603898193 | M72: 0.00232053776 | N72: 1.300260389e-06
A73: =IF('DF raw data'!M78="","",'DF raw data'!M78) -> -294.5 | B73: =IF('DF raw data'!N78="","",'DF raw data'!N78) -> -3.16433e-05 | C73: =IF('DF raw data'!O78="","",'DF raw data'!O78) -> 0.000137827 | D73: =IF('DF raw data'!P78="","",'DF raw data'!P78) -> -2.64646e-05 | F73: -3.181100949e-05 | G73: 0.0001385574831 | H73: -2.660486238e-05 | J73: -0.0001876486904 | K73: -0.0006294939777 | L73: 0.0008296685609 | M73: 0.00273537204 | N73: 1.662041365e-06
A74: =IF('DF raw data'!M79="","",'DF raw data'!M79) -> -294 | B74: =IF('DF raw data'!N79="","",'DF raw data'!N79) -> -2.62603e-05 | C74: =IF('DF raw data'!O79="","",'DF raw data'!O79) -> 0.000143155 | D74: =IF('DF raw data'!P79="","",'DF raw data'!P79) -> -2.62808e-05 | F74: -2.639947959e-05 | G74: 0.0001439137215 | H74: -2.642008824e-05 | J74: -0.0002008484302 | K74: -0.0007299181928 | L74: 0.0009016254216 | M74: 0.003186184751 | N74: 2.088675611e-06
A75: =IF('DF raw data'!M80="","",'DF raw data'!M80) -> -293.5 | B75: =IF('DF raw data'!N80="","",'DF raw data'!N80) -> -9.91722e-06 | C75: =IF('DF raw data'!O80="","",'DF raw data'!O80) -> 0.000139039 | D75: =IF('DF raw data'!P80="","",'DF raw data'!P80) -> -2.75658e-05 | F75: -9.969781266e-06 | G75: 0.0001397759067 | H75: -2.771189874e-05 | J75: -0.0002058333209 | K75: -0.0008328348533 | L75: 0.000971513375 | M75: 0.003671941439 | N75: 2.581778408e-06
A76: =IF('DF raw data'!M81="","",'DF raw data'!M81) -> -293 | B76: =IF('DF raw data'!N81="","",'DF raw data'!N81) -> -3.10012e-05 | C76: =IF('DF raw data'!O81="","",'DF raw data'!O81) -> 0.000141325 | D76: =IF('DF raw data'!P81="","",'DF raw data'!P81) -> -2.84104e-05 | F76: -3.116550636e-05 | G76: 0.0001420740225 | H76: -2.856097512e-05 | J76: -0.0002214160741 | K76: -0.0009435428903 | L76: 0.001042550386 | M76: 0.004193216632 | N76: 3.149746601e-06
A77: =IF('DF raw data'!M82="","",'DF raw data'!M82) -> -292.5 | B77: =IF('DF raw data'!N82="","",'DF raw data'!N82) -> -2.97837e-05 | C77: =IF('DF raw data'!O82="","",'DF raw data'!O82) -> 0.000141644 | D77: =IF('DF raw data'!P82="","",'DF raw data'!P82) -> -2.8008e-05 | F77: -2.994155361e-05 | G77: 0.0001423947132 | H77: -2.81564424e-05 | J77: -0.0002363868509 | K77: -0.001061736316 | L77: 0.001113747743 | M77: 0.004750090503 | N77: 3.79790299e-06
A78: =IF('DF raw data'!M83="","",'DF raw data'!M83) -> -292 | B78: =IF('DF raw data'!N83="","",'DF raw data'!N83) -> -2.84382e-05 | C78: =IF('DF raw data'!O83="","",'DF raw data'!O83) -> 0.000142446 | D78: =IF('DF raw data'!P83="","",'DF raw data'!P83) -> -2.78195e-05 | F78: -2.858892246e-05 | G78: 0.0001432009638 | H78: -2.796694335e-05 | J78: -0.0002506813121 | K78: -0.001187076972 | L78: 0.001185348225 | M78: 0.005342764615 | N78: 4.531848757e-06
A79: =IF('DF raw data'!M84="","",'DF raw data'!M84) -> -291.5 | B79: =IF('DF raw data'!N84="","",'DF raw data'!N84) -> -2.5238e-05 | C79: =IF('DF raw data'!O84="","",'DF raw data'!O84) -> 0.000143071 | D79: =IF('DF raw data'!P84="","",'DF raw data'!P84) -> -2.11925e-05 | F79: -2.53717614e-05 | G79: 0.0001438292763 | H79: -2.130482025e-05 | J79: -0.0002633671928 | K79: -0.001318760568 | L79: 0.001257262863 | M79: 0.005971396047 | N79: 5.356884849e-06
A80: =IF('DF raw data'!M85="","",'DF raw data'!M85) -> -291 | B80: =IF('DF raw data'!N85="","",'DF raw data'!N85) -> -3.90791e-05 | C80: =IF('DF raw data'!O85="","",'DF raw data'!O85) -> 0.000137559 | D80: =IF('DF raw data'!P85="","",'DF raw data'!P85) -> -2.37655e-05 | F80: -3.928621923e-05 | G80: 0.0001382880627 | H80: -2.389145715e-05 | J80: -0.0002830103024 | K80: -0.001460265719 | L80: 0.001326406894 | M80: 0.006634599494 | N80: 6.276609889e-06
A81: =IF('DF raw data'!M86="","",'DF raw data'!M86) -> -290.5 | B81: =IF('DF raw data'!N86="","",'DF raw data'!N86) -> -4.24698e-05 | C81: =IF('DF raw data'!O86="","",'DF raw data'!O86) -> 0.000139878 | D81: =IF('DF raw data'!P86="","",'DF raw data'!P86) -> -3.2884e-05 | F81: -4.269488994e-05 | G81: 0.0001406193534 | H81: -3.30582852e-05 | J81: -0.0003043577474 | K81: -0.001612444593 | L81: 0.001396716571 | M81: 0.007332957779 | N81: 7.298335298e-06
A82: =IF('DF raw data'!M87="","",'DF raw data'!M87) -> -290 | B82: =IF('DF raw data'!N87="","",'DF raw data'!N87) -> -2.3632e-05 | C82: =IF('DF raw data'!O87="","",'DF raw data'!O87) -> 0.000144866 | D82: =IF('DF raw data'!P87="","",'DF raw data'!P87) -> -2.73547e-05 | F82: -2.37572496e-05 | G82: 0.0001456337898 | H82: -2.749967991e-05 | J82: -0.0003162363722 | K82: -0.001770562779 | L82: 0.001469533466 | M82: 0.008067724512 | N82: 8.428102323e-06
A83: =IF('DF raw data'!M88="","",'DF raw data'!M88) -> -289.5 | B83: =IF('DF raw data'!N88="","",'DF raw data'!N88) -> -3.72863e-05 | C83: =IF('DF raw data'!O88="","",'DF raw data'!O88) -> 0.000134871 | D83: =IF('DF raw data'!P88="","",'DF raw data'!P88) -> -2.14048e-05 | F83: -3.748391739e-05 | G83: 0.0001355858163 | H83: -2.151824544e-05 | J83: -0.0003349783309 | K83: -0.001938051945 | L83: 0.001537326374 | M83: 0.008836387699 | N83: 9.665893754e-06
A84: =IF('DF raw data'!M89="","",'DF raw data'!M89) -> -289 | B84: =IF('DF raw data'!N89="","",'DF raw data'!N89) -> -2.96566e-05 | C84: =IF('DF raw data'!O89="","",'DF raw data'!O89) -> 0.000131903 | D84: =IF('DF raw data'!P89="","",'DF raw data'!P89) -> -2.63502e-05 | F84: -2.981377998e-05 | G84: 0.0001326020859 | H84: -2.648985606e-05 | J84: -0.0003498852209 | K84: -0.002112994555 | L84: 0.001603627417 | M84: 0.009638201408 | N84: 1.101291403e-05
A85: =IF('DF raw data'!M90="","",'DF raw data'!M90) -> -288.5 | B85: =IF('DF raw data'!N90="","",'DF raw data'!N90) -> -3.61814e-05 | C85: =IF('DF raw data'!O90="","",'DF raw data'!O90) -> 0.000130683 | D85: =IF('DF raw data'!P90="","",'DF raw data'!P90) -> -4.50312e-05 | F85: -3.637316142e-05 | G85: 0.0001313756199 | H85: -4.526986536e-05 | J85: -0.0003680718016 | K85: -0.002297030456 | L85: 0.001669315227 | M85: 0.01047285902 | N85: 1.247395912e-05
A86: =IF('DF raw data'!M91="","",'DF raw data'!M91) -> -288 | B86: =IF('DF raw data'!N91="","",'DF raw data'!N91) -> -3.89503e-05 | C86: =IF('DF raw data'!O91="","",'DF raw data'!O91) -> 0.000135214 | D86: =IF('DF raw data'!P91="","",'DF raw data'!P91) -> -2.47996e-05 | F86: -3.915673659e-05 | G86: 0.0001359306342 | H86: -2.493103788e-05 | J86: -0.0003876501699 | K86: -0.002490855541 | L86: 0.001737280544 | M86: 0.01134149929 | N86: 1.405816729e-05
A87: =IF('DF raw data'!M92="","",'DF raw data'!M92) -> -287.5 | B87: =IF('DF raw data'!N92="","",'DF raw data'!N92) -> -2.26783e-05 | C87: =IF('DF raw data'!O92="","",'DF raw data'!O92) -> 0.000143728 | D87: =IF('DF raw data'!P92="","",'DF raw data'!P92) -> -1.54723e-05 | F87: -2.279849499e-05 | G87: 0.0001444897584 | H87: -1.555430319e-05 | J87: -0.0003990494174 | K87: -0.002690380249 | L87: 0.001809525423 | M87: 0.012246262 | N87: 1.577497864e-05
A88: =IF('DF raw data'!M93="","",'DF raw data'!M93) -> -287 | B88: =IF('DF raw data'!N93="","",'DF raw data'!N93) -> -3.25508e-05 | C88: =IF('DF raw data'!O93="","",'DF raw data'!O93) -> 0.000141162 | D88: =IF('DF raw data'!P93="","",'DF raw data'!P93) -> -1.05176e-05 | F88: -3.272331924e-05 | G88: 0.0001419101586 | H88: -1.057334328e-05 | J88: -0.000415411077 | K88: -0.002898085788 | L88: 0.001880480502 | M88: 0.01318650226 | N88: 1.762936528e-05
A89: =IF('DF raw data'!M94="","",'DF raw data'!M94) -> -286.5 | B89: =IF('DF raw data'!N94="","",'DF raw data'!N94) -> -3.1394e-05 | C89: =IF('DF raw data'!O94="","",'DF raw data'!O94) -> 0.000145271 | D89: =IF('DF raw data'!P94="","",'DF raw data'!P94) -> -1.56467e-05 | F89: -3.15603882e-05 | G89: 0.0001460409363 | H89: -1.572962751e-05 | J89: -0.0004311912711 | K89: -0.003113681423 | L89: 0.001953500971 | M89: 0.01416325274 | N89: 1.963041126e-05
A90: =IF('DF raw data'!M95="","",'DF raw data'!M95) -> -286 | B90: =IF('DF raw data'!N95="","",'DF raw data'!N95) -> -3.01707e-05 | C90: =IF('DF raw data'!O95="","",'DF raw data'!O95) -> 0.000146009 | D90: =IF('DF raw data'!P95="","",'DF raw data'!P95) -> -2.46373e-05 | F90: -3.033060471e-05 | G90: 0.0001467828477 | H90: -2.476787769e-05 | J90: -0.0004463565734 | K90: -0.00333685971 | L90: 0.002026892394 | M90: 0.01517669894 | N90: 2.178417474e-05
A91: =IF('DF raw data'!M96="","",'DF raw data'!M96) -> -285.5 | B91: =IF('DF raw data'!N96="","",'DF raw data'!N96) -> -3.58721e-05 | C91: =IF('DF raw data'!O96="","",'DF raw data'!O96) -> 0.000147026 | D91: =IF('DF raw data'!P96="","",'DF raw data'!P96) -> -2.81791e-05 | F91: -3.606222213e-05 | G91: 0.0001478052378 | H91: -2.832844923e-05 | J91: -0.0004643876845 | K91: -0.003569053552 | L91: 0.002100795013 | M91: 0.01622709645 | N91: 2.409867255e-05
A92: =IF('DF raw data'!M97="","",'DF raw data'!M97) -> -285 | B92: =IF('DF raw data'!N97="","",'DF raw data'!N97) -> -1.51692e-05 | C92: =IF('DF raw data'!O97="","",'DF raw data'!O97) -> 0.000148274 | D92: =IF('DF raw data'!P97="","",'DF raw data'!P97) -> -3.25577e-05 | F92: -1.524959676e-05 | G92: 0.0001490598522 | H92: -3.273025581e-05 | J92: -0.0004720124829 | K92: -0.003805059794 | L92: 0.002175324939 | M92: 0.01731475891 | N92: 2.657608974e-05
A93: =IF('DF raw data'!M98="","",'DF raw data'!M98) -> -284.5 | B93: =IF('DF raw data'!N98="","",'DF raw data'!N98) -> -2.04275e-05 | C93: =IF('DF raw data'!O98="","",'DF raw data'!O98) -> 0.000139228 | D93: =IF('DF raw data'!P98="","",'DF raw data'!P98) -> -2.74547e-05 | F93: -2.053576575e-05 | G93: 0.0001399659084 | H93: -2.760020991e-05 | J93: -0.0004822803658 | K93: -0.004046199977 | L93: 0.002245307894 | M93: 0.01843741286 | N93: 2.921309068e-05
A94: =IF('DF raw data'!M99="","",'DF raw data'!M99) -> -284 | B94: =IF('DF raw data'!N99="","",'DF raw data'!N99) -> -3.27907e-05 | C94: =IF('DF raw data'!O99="","",'DF raw data'!O99) -> 0.000143057 | D94: =IF('DF raw data'!P99="","",'DF raw data'!P99) -> -3.59208e-05 | F94: -3.296449071e-05 | G94: 0.0001438152021 | H94: -3.611118024e-05 | J94: -0.0004987626111 | K94: -0.004295581282 | L94: 0.002317215495 | M94: 0.01959602061 | N94: 3.202221658e-05
A95: =IF('DF raw data'!M100="","",'DF raw data'!M100) -> -283.5 | B95: =IF('DF raw data'!N100="","",'DF raw data'!N100) -> -2.95215e-05 | C95: =IF('DF raw data'!O100="","",'DF raw data'!O100) -> 0.000146344 | D95: =IF('DF raw data'!P100="","",'DF raw data'!P100) -> -3.70564e-05 | F95: -2.967796395e-05 | G95: 0.0001471196232 | H95: -3.725279892e-05 | J95: -0.0005136015931 | K95: -0.004552382079 | L95: 0.002390775306 | M95: 0.02079140826 | N95: 3.501201316e-05
A96: =IF('DF raw data'!M101="","",'DF raw data'!M101) -> -283 | B96: =IF('DF raw data'!N101="","",'DF raw data'!N101) -> -3.67716e-05 | C96: =IF('DF raw data'!O101="","",'DF raw data'!O101) -> 0.000136863 | D96: =IF('DF raw data'!P101="","",'DF raw data'!P101) -> -2.45699e-05 | F96: -3.696648948e-05 | G96: 0.0001375883739 | H96: -2.470012047e-05 | J96: -0.0005320848378 | K96: -0.004818424498 | L96: 0.002459569493 | M96: 0.02202119301 | N96: 3.817831134e-05
A97: =IF('DF raw data'!M102="","",'DF raw data'!M102) -> -282.5 | B97: =IF('DF raw data'!N102="","",'DF raw data'!N102) -> -2.8247e-05 | C97: =IF('DF raw data'!O102="","",'DF raw data'!O102) -> 0.00014413 | D97: =IF('DF raw data'!P102="","",'DF raw data'!P102) -> -2.59256e-05 | F97: -2.83967091e-05 | G97: 0.000144893889 | H97: -2.606300568e-05 | J97: -0.0005462831924 | K97: -0.005091566094 | L97: 0.002532016438 | M97: 0.02328720123 | N97: 4.153307763e-05
A98: =IF('DF raw data'!M103="","",'DF raw data'!M103) -> -282 | B98: =IF('DF raw data'!N103="","",'DF raw data'!N103) -> -2.68401e-05 | C98: =IF('DF raw data'!O103="","",'DF raw data'!O103) -> 0.000147314 | D98: =IF('DF raw data'!P103="","",'DF raw data'!P103) -> -2.14235e-05 | F98: -2.698235253e-05 | G98: 0.0001480947642 | H98: -2.153704455e-05 | J98: -0.0005597743686 | K98: -0.005371453278 | L98: 0.00260606382 | M98: 0.02459023314 | N98: 4.508553561e-05
A99: =IF('DF raw data'!M104="","",'DF raw data'!M104) -> -281.5 | B99: =IF('DF raw data'!N104="","",'DF raw data'!N104) -> -2.7926e-05 | C99: =IF('DF raw data'!O104="","",'DF raw data'!O104) -> 0.00015042 | D99: =IF('DF raw data'!P104="","",'DF raw data'!P104) -> -2.70926e-05 | F99: -2.80740078e-05 | G99: 0.000151217226 | H99: -2.723619078e-05 | J99: -0.0005738113725 | K99: -0.005658358964 | L99: 0.002681672433 | M99: 0.02593106935 | N99: 4.884584888e-05
A100: =IF('DF raw data'!M105="","",'DF raw data'!M105) -> -281 | B100: =IF('DF raw data'!N105="","",'DF raw data'!N105) -> -2.21576e-05 | C100: =IF('DF raw data'!O105="","",'DF raw data'!O105) -> 0.000145306 | D100: =IF('DF raw data'!P105="","",'DF raw data'!P105) -> -2.78012e-05 | F100: -2.227503528e-05 | G100: 0.0001460761218 | H100: -2.794854636e-05 | J100: -0.0005849488902 | K100: -0.00595083341 | L100: 0.002754710494 | M100: 0.0273084246 | N100: 5.281114643e-05
A101: =IF('DF raw data'!M106="","",'DF raw data'!M106) -> -280.5 | B101: =IF('DF raw data'!N106="","",'DF raw data'!N106) -> -2.19689e-05 | C101: =IF('DF raw data'!O106="","",'DF raw data'!O106) -> 0.000140719 | D101: =IF('DF raw data'!P106="","",'DF raw data'!P106) -> -2.26435e-05 | F101: -2.208533517e-05 | G101: 0.0001414648107 | H101: -2.276351055e-05 | J101: -0.0005959915578 | K101: -0.006248829188 | L101: 0.002825442899 | M101: 0.02872114605 | N101: 5.698031319e-05
A102: =IF('DF raw data'!M107="","",'DF raw data'!M107) -> -280 | B102: =IF('DF raw data'!N107="","",'DF raw data'!N107) -> -3.2605e-05 | C102: =IF('DF raw data'!O107="","",'DF raw data'!O107) -> 0.000147447 | D102: =IF('DF raw data'!P107="","",'DF raw data'!P107) -> -2.60652e-05 | F102: -3.27778065e-05 | G102: 0.0001482284691 | H102: -2.620334556e-05 | J102: -0.000612380461 | K102: -0.006555019419 | L102: 0.002899557134 | M102: 0.03017092462 | N102: 6.137153389e-05
A103: =IF('DF raw data'!M108="","",'DF raw data'!M108) -> -279.5 | B103: =IF('DF raw data'!N108="","",'DF raw data'!N108) -> -3.4465e-05 | C103: =IF('DF raw data'!O108="","",'DF raw data'!O108) -> 0.000142385 | D103: =IF('DF raw data'!P108="","",'DF raw data'!P108) -> -2.39251e-05 | F103: -3.46476645e-05 | G103: 0.0001431396405 | H103: -2.405190303e-05 | J103: -0.0006297042933 | K103: -0.006869871566 | L103: 0.002971126954 | M103: 0.03165648809 | N103: 6.598359533e-05
A104: =IF('DF raw data'!M109="","",'DF raw data'!M109) -> -279 | B104: =IF('DF raw data'!N109="","",'DF raw data'!N109) -> -2.90839e-05 | C104: =IF('DF raw data'!O109="","",'DF raw data'!O109) -> 0.000135022 | D104: =IF('DF raw data'!P109="","",'DF raw data'!P109) -> -2.04195e-05 | F104: -2.923804467e-05 | G104: 0.0001357376166 | H104: -2.052772335e-05 | J104: -0.0006443233156 | K104: -0.007192033223 | L104: 0.003038995762 | M104: 0.03317598598 | N104: 7.080891921e-05
A105: =IF('DF raw data'!M110="","",'DF raw data'!M110) -> -278.5 | B105: =IF('DF raw data'!N110="","",'DF raw data'!N110) -> -2.48485e-05 | C105: =IF('DF raw data'!O110="","",'DF raw data'!O110) -> 0.000138276 | D105: =IF('DF raw data'!P110="","",'DF raw data'!P110) -> -2.89691e-05 | F105: -2.498019705e-05 | G105: 0.0001390088628 | H105: -2.912263623e-05 | J105: -0.0006568134141 | K105: -0.00752043993 | L105: 0.003108500194 | M105: 0.03473023607 | N105: 7.585600787e-05
A106: =IF('DF raw data'!M111="","",'DF raw data'!M111) -> -278 | B106: =IF('DF raw data'!N111="","",'DF raw data'!N111) -> -2.83798e-05 | C106: =IF('DF raw data'!O111="","",'DF raw data'!O111) -> 0.000142507 | D106: =IF('DF raw data'!P111="","",'DF raw data'!P111) -> -1.89288e-05 | F106: -2.853021294e-05 | G106: 0.0001432622871 | H106: -1.902912264e-05 | J106: -0.0006710785206 | K106: -0.007855979191 | L106: 0.003180131337 | M106: 0.03632030174 | N106: 8.113779872e-05
A107: =IF('DF raw data'!M112="","",'DF raw data'!M112) -> -277.5 | B107: =IF('DF raw data'!N112="","",'DF raw data'!N112) -> -2.01803e-05 | C107: =IF('DF raw data'!O112="","",'DF raw data'!O112) -> 0.000138817 | D107: =IF('DF raw data'!P112="","",'DF raw data'!P112) -> -1.3234e-05 | F107: -2.028725559e-05 | G107: 0.0001395527301 | H107: -1.33041402e-05 | J107: -0.0006812221484 | K107: -0.008196590265 | L107: 0.003249907702 | M107: 0.03794525559 | N107: 8.665078057e-05
A108: =IF('DF raw data'!M113="","",'DF raw data'!M113) -> -277 | B108: =IF('DF raw data'!N113="","",'DF raw data'!N113) -> -2.85667e-05 | C108: =IF('DF raw data'!O113="","",'DF raw data'!O113) -> 0.000133571 | D108: =IF('DF raw data'!P113="","",'DF raw data'!P113) -> -2.7306e-05 | F108: -2.871810351e-05 | G108: 0.0001342789263 | H108: -2.74507218e-05 | J108: -0.0006955812001 | K108: -0.008544380865 | L108: 0.003317047165 | M108: 0.03960377917 | N108: 9.239409812e-05
A109: =IF('DF raw data'!M114="","",'DF raw data'!M114) -> -276.5 | B109: =IF('DF raw data'!N114="","",'DF raw data'!N114) -> -3.06739e-05 | C109: =IF('DF raw data'!O114="","",'DF raw data'!O114) -> 0.000142806 | D109: =IF('DF raw data'!P114="","",'DF raw data'!P114) -> -3.92672e-05 | F109: -3.083647167e-05 | G109: 0.0001435628718 | H109: -3.947531616e-05 | J109: -0.000710999436 | K109: -0.008899880583 | L109: 0.003388828601 | M109: 0.04129819348 | N109: 9.838893786e-05
A110: =IF('DF raw data'!M115="","",'DF raw data'!M115) -> -276 | B110: =IF('DF raw data'!N115="","",'DF raw data'!N115) -> -3.32323e-05 | C110: =IF('DF raw data'!O115="","",'DF raw data'!O115) -> 0.000144728 | D110: =IF('DF raw data'!P115="","",'DF raw data'!P115) -> -4.69152e-05 | F110: -3.340843119e-05 | G110: 0.0001454950584 | H110: -4.716385056e-05 | J110: -0.0007277036516 | K110: -0.009263732409 | L110: 0.00346157613 | M110: 0.04302898154 | N110: 0.0001046449688
A111: =IF('DF raw data'!M116="","",'DF raw data'!M116) -> -275.5 | B111: =IF('DF raw data'!N116="","",'DF raw data'!N116) -> -3.2603e-05 | C111: =IF('DF raw data'!O116="","",'DF raw data'!O116) -> 0.000139148 | D111: =IF('DF raw data'!P116="","",'DF raw data'!P116) -> -2.91436e-05 | F111: -3.27757959e-05 | G111: 0.0001398854844 | H111: -2.929806108e-05 | J111: -0.0007440915495 | K111: -0.009635778184 | L111: 0.003531518873 | M111: 0.04479474098 | N111: 0.0001111576177
A112: =IF('DF raw data'!M117="","",'DF raw data'!M117) -> -275 | B112: =IF('DF raw data'!N117="","",'DF raw data'!N117) -> -2.65166e-05 | C112: =IF('DF raw data'!O117="","",'DF raw data'!O117) -> 0.00014265 | D112: =IF('DF raw data'!P117="","",'DF raw data'!P117) -> -2.63228e-05 | F112: -2.665713798e-05 | G112: 0.000143406045 | H112: -2.646231084e-05 | J112: -0.0007574201185 | K112: -0.01001448824 | L112: 0.003603221895 | M112: 0.04659635192 | N112: 0.0001179360643
A113: =IF('DF raw data'!M118="","",'DF raw data'!M118) -> -274.5 | B113: =IF('DF raw data'!N118="","",'DF raw data'!N118) -> -3.81816e-05 | C113: =IF('DF raw data'!O118="","",'DF raw data'!O118) -> 0.00013914 | D113: =IF('DF raw data'!P118="","",'DF raw data'!P118) -> -2.4365e-05 | F113: -3.838396248e-05 | G113: 0.000139877442 | H113: -2.44941345e-05 | J113: -0.0007766120998 | K113: -0.01040279429 | L113: 0.003673160616 | M113: 0.04843293223 | N113: 0.000124983682
A114: =IF('DF raw data'!M119="","",'DF raw data'!M119) -> -274 | B114: =IF('DF raw data'!N119="","",'DF raw data'!N119) -> -4.02971e-05 | C114: =IF('DF raw data'!O119="","",'DF raw data'!O119) -> 0.00013328 | D114: =IF('DF raw data'!P119="","",'DF raw data'!P119) -> -2.33844e-05 | F114: -4.051067463e-05 | G114: 0.000133986384 | H114: -2.350833732e-05 | J114: -0.0007968674371 | K114: -0.01080122801 | L114: 0.003740153808 | M114: 0.05030300914 | N114: 0.0001322955561
A115: =IF('DF raw data'!M120="","",'DF raw data'!M120) -> -273.5 | B115: =IF('DF raw data'!N120="","",'DF raw data'!N120) -> -4.45208e-05 | C115: =IF('DF raw data'!O120="","",'DF raw data'!O120) -> 0.000138426 | D115: =IF('DF raw data'!P120="","",'DF raw data'!P120) -> -3.25611e-05 | F115: -4.475676024e-05 | G115: 0.0001391596578 | H115: -3.273367383e-05 | J115: -0.0008192458172 | K115: -0.01121085092 | L115: 0.003809733637 | M115: 0.05220787595 | N115: 0.0001398881731
A116: =IF('DF raw data'!M121="","",'DF raw data'!M121) -> -273 | B116: =IF('DF raw data'!N121="","",'DF raw data'!N121) -> -1.97231e-05 | C116: =IF('DF raw data'!O121="","",'DF raw data'!O121) -> 0.000145202 | D116: =IF('DF raw data'!P121="","",'DF raw data'!P121) -> -2.68337e-05 | F116: -1.982763243e-05 | G116: 0.0001459715706 | H116: -2.697591861e-05 | J116: -0.0008291596334 | K116: -0.01162543074 | L116: 0.003882719422 | M116: 0.05414923567 | N116: 0.000147769681
A117: =IF('DF raw data'!M122="","",'DF raw data'!M122) -> -272.5 | B117: =IF('DF raw data'!N122="","",'DF raw data'!N122) -> -2.536e-05 | C117: =IF('DF raw data'!O122="","",'DF raw data'!O122) -> 0.00014965 | D117: =IF('DF raw data'!P122="","",'DF raw data'!P122) -> -3.07072e-05 | F117: -2.5494408e-05 | G117: 0.000150443145 | H117: -3.086994816e-05 | J117: -0.0008419068374 | K117: -0.01204638416 | L117: 0.003957940995 | M117: 0.05612820616 | N117: 0.0001559567331
A118: =IF('DF raw data'!M123="","",'DF raw data'!M123) -> -272 | B118: =IF('DF raw data'!N123="","",'DF raw data'!N123) -> -2.72851e-05 | C118: =IF('DF raw data'!O123="","",'DF raw data'!O123) -> 0.000148376 | D118: =IF('DF raw data'!P123="","",'DF raw data'!P123) -> -2.72373e-05 | F118: -2.742971103e-05 | G118: 0.0001491623928 | H118: -2.738165769e-05 | J118: -0.0008556216929 | K118: -0.012474195 | L118: 0.004032522191 | M118: 0.05814446726 | N118: 0.0001644533949
A119: =IF('DF raw data'!M124="","",'DF raw data'!M124) -> -271.5 | B119: =IF('DF raw data'!N124="","",'DF raw data'!N124) -> -3.33121e-05 | C119: =IF('DF raw data'!O124="","",'DF raw data'!O124) -> 0.000132996 | D119: =IF('DF raw data'!P124="","",'DF raw data'!P124) -> -2.25616e-05 | F119: -3.348865413e-05 | G119: 0.0001337008788 | H119: -2.268117648e-05 | J119: -0.00087236602 | K119: -0.01291037801 | L119: 0.004099372631 | M119: 0.06019415357 | N119: 0.0001732363341
A120: =IF('DF raw data'!M125="","",'DF raw data'!M125) -> -271 | B120: =IF('DF raw data'!N125="","",'DF raw data'!N125) -> -3.55582e-05 | C120: =IF('DF raw data'!O125="","",'DF raw data'!O125) -> 0.000138746 | D120: =IF('DF raw data'!P125="","",'DF raw data'!P125) -> -1.79264e-05 | F120: -3.574665846e-05 | G120: 0.0001394813538 | H120: -1.802140992e-05 | J120: -0.0008902393492 | K120: -0.01335549769 | L120: 0.004169113308 | M120: 0.06227871023 | N120: 0.0001823233501
A121: =IF('DF raw data'!M126="","",'DF raw data'!M126) -> -270.5 | B121: =IF('DF raw data'!N126="","",'DF raw data'!N126) -> -3.00414e-05 | C121: =IF('DF raw data'!O126="","",'DF raw data'!O126) -> 0.00014495 | D121: =IF('DF raw data'!P126="","",'DF raw data'!P126) -> -2.64635e-05 | F121: -3.020061942e-05 | G121: 0.000145718235 | H121: -2.660375655e-05 | J121: -0.0009053396589 | K121: -0.01380816752 | L121: 0.004241972425 | M121: 0.06439969644 | N121: 0.000191730335
A122: =IF('DF raw data'!M127="","",'DF raw data'!M127) -> -270 | B122: =IF('DF raw data'!N127="","",'DF raw data'!N127) -> -2.3563e-05 | C122: =IF('DF raw data'!O127="","",'DF raw data'!O127) -> 0.000149707 | D122: =IF('DF raw data'!P127="","",'DF raw data'!P127) -> -3.48473e-05 | F122: -2.36878839e-05 | G122: 0.0001505004471 | H122: -3.503199069e-05 | J122: -0.0009171836009 | K122: -0.01426675932 | L122: 0.004317222649 | M122: 0.06655830777 | N122: 0.0002014701536
A123: =IF('DF raw data'!M128="","",'DF raw data'!M128) -> -269.5 | B123: =IF('DF raw data'!N128="","",'DF raw data'!N128) -> -3.65803e-05 | C123: =IF('DF raw data'!O128="","",'DF raw data'!O128) -> 0.000147155 | D123: =IF('DF raw data'!P128="","",'DF raw data'!P128) -> -2.28812e-05 | F123: -3.677417559e-05 | G123: 0.0001479349215 | H123: -2.300247036e-05 | J123: -0.0009355706887 | K123: -0.01473454466 | L123: 0.004391190109 | M123: 0.06875390282 | N123: 0.0002115490752
A124: =IF('DF raw data'!M129="","",'DF raw data'!M129) -> -269 | B124: =IF('DF raw data'!N129="","",'DF raw data'!N129) -> -3.06765e-05 | C124: =IF('DF raw data'!O129="","",'DF raw data'!O129) -> 0.000150107 | D124: =IF('DF raw data'!P129="","",'DF raw data'!P129) -> -3.52665e-05 | F124: -3.083908545e-05 | G124: 0.0001509025671 | H124: -3.545341245e-05 | J124: -0.0009509902314 | K124: -0.01521003978 | L124: 0.004466641393 | M124: 0.07098722352 | N124: 0.000221976709
A125: =IF('DF raw data'!M130="","",'DF raw data'!M130) -> -268.5 | B125: =IF('DF raw data'!N130="","",'DF raw data'!N130) -> -3.26657e-05 | C125: =IF('DF raw data'!O130="","",'DF raw data'!O130) -> 0.000153338 | D125: =IF('DF raw data'!P130="","",'DF raw data'!P130) -> -3.11443e-05 | F125: -3.283882821e-05 | G125: 0.0001541506914 | H125: -3.130936479e-05 | J125: -0.0009674096455 | K125: -0.0156937446 | L125: 0.004543716739 | M125: 0.07325908189 | N125: 0.0002327673306
A126: =IF('DF raw data'!M131="","",'DF raw data'!M131) -> -268 | B126: =IF('DF raw data'!N131="","",'DF raw data'!N131) -> -3.93977e-05 | C126: =IF('DF raw data'!O131="","",'DF raw data'!O131) -> 0.000148437 | D126: =IF('DF raw data'!P131="","",'DF raw data'!P131) -> -2.68264e-05 | F126: -3.960650781e-05 | G126: 0.0001492237161 | H126: -2.696857992e-05 | J126: -0.0009872128994 | K126: -0.01618735105 | L126: 0.004618328597 | M126: 0.07556824618 | N126: 0.0002439191048
A127: =IF('DF raw data'!M132="","",'DF raw data'!M132) -> -267.5 | B127: =IF('DF raw data'!N132="","",'DF raw data'!N132) -> -4.59412e-05 | C127: =IF('DF raw data'!O132="","",'DF raw data'!O132) -> 0.000144718 | D127: =IF('DF raw data'!P132="","",'DF raw data'!P132) -> -1.62764e-05 | F127: -4.618468836e-05 | G127: 0.0001454850054 | H127: -1.636266492e-05 | J127: -0.001010305244 | K127: -0.01669250367 | L127: 0.004691071099 | M127: 0.07791378173 | N127: 0.0002554325372
A128: =IF('DF raw data'!M133="","",'DF raw data'!M133) -> -267 | B128: =IF('DF raw data'!N133="","",'DF raw data'!N133) -> -2.63866e-05 | C128: =IF('DF raw data'!O133="","",'DF raw data'!O133) -> 0.000145555 | D128: =IF('DF raw data'!P133="","",'DF raw data'!P133) -> -2.9196e-05 | F128: =(1-$G$1*($B$49-$G$2))*B128 -> -2.652644898e-05 | G128: 0.0001463264415 | H128: -2.93507388e-05 | J128: =F128*$G$3+J127 -> -0.001023568468 | K128: =J128*$G$3+K127 -> -0.0172042879 | L128: =G128*$G$3+L127 -> 0.00476423432 | M128: =L128*$G$3+M127 -> 0.08029589889 | N128: =(J128^2+L128^2)*$G$3+N127 -> 0.0002673053477
A129: =IF('DF raw data'!M134="","",'DF raw data'!M134) -> -266.5 | B129: =IF('DF raw data'!N134="","",'DF raw data'!N134) -> -3.98446e-05 | C129: =IF('DF raw data'!O134="","",'DF raw data'!O134) -> 0.000151845 | D129: =IF('DF raw data'!P134="","",'DF raw data'!P134) -> -2.92452e-05 | F129: -4.005577638e-05 | G129: 0.0001526497785 | H129: -2.940019956e-05 | J129: -0.001043596356 | K129: -0.01772608608 | L129: 0.004840559209 | M129: 0.0827161785 | N129: 0.0002795654011
A130: =IF('DF raw data'!M135="","",'DF raw data'!M135) -> -266 | B130: =IF('DF raw data'!N135="","",'DF raw data'!N135) -> -3.80543e-05 | C130: =IF('DF raw data'!O135="","",'DF raw data'!O135) -> 0.000155505 | D130: =IF('DF raw data'!P135="","",'DF raw data'!P135) -> -2.30854e-05 | F130: -3.825598779e-05 | G130: 0.0001563291765 | H130: -2.320775262e-05 | J130: -0.00106272435 | K130: -0.01825744826 | L130: 0.004918723798 | M130: 0.0851755404 | N130: 0.0002922270145
A131: =IF('DF raw data'!M136="","",'DF raw data'!M136) -> -265.5 | B131: =IF('DF raw data'!N136="","",'DF raw data'!N136) -> -2.90766e-05 | C131: =IF('DF raw data'!O136="","",'DF raw data'!O136) -> 0.00014553 | D131: =IF('DF raw data'!P136="","",'DF raw data'!P136) -> -3.16931e-05 | F131: -2.923070598e-05 | G131: 0.000146301309 | H131: -3.186107343e-05 | J131: -0.001077339703 | K131: -0.01879611811 | L131: 0.004991874452 | M131: 0.08767147762 | N131: 0.0003052667502
A132: =IF('DF raw data'!M137="","",'DF raw data'!M137) -> -265 | B132: =IF('DF raw data'!N137="","",'DF raw data'!N137) -> -1.85664e-05 | C132: =IF('DF raw data'!O137="","",'DF raw data'!O137) -> 0.000145217 | D132: =IF('DF raw data'!P137="","",'DF raw data'!P137) -> -3.16903e-05 | F132: -1.866480192e-05 | G132: 0.0001459866501 | H132: -3.185825859e-05 | J132: -0.001086672104 | K132: -0.01933945416 | L132: 0.005064867777 | M132: 0.09020391151 | N132: 0.0003186836212
A133: =IF('DF raw data'!M138="","",'DF raw data'!M138) -> -264.5 | B133: =IF('DF raw data'!N138="","",'DF raw data'!N138) -> -4.04243e-05 | C133: =IF('DF raw data'!O138="","",'DF raw data'!O138) -> 0.000143804 | D133: =IF('DF raw data'!P138="","",'DF raw data'!P138) -> -2.49652e-05 | F133: -4.063854879e-05 | G133: 0.0001445661612 | H133: -2.509751556e-05 | J133: -0.001106991379 | K133: -0.01989294985 | L133: 0.005137150858 | M133: 0.09277248694 | N133: 0.0003324914956
A134: =IF('DF raw data'!M139="","",'DF raw data'!M139) -> -264 | B134: =IF('DF raw data'!N139="","",'DF raw data'!N139) -> -2.09979e-05 | C134: =IF('DF raw data'!O139="","",'DF raw data'!O139) -> 0.000144862 | D134: =IF('DF raw data'!P139="","",'DF raw data'!P139) -> -3.73561e-05 | F134: -2.110918887e-05 | G134: 0.0001456297686 | H134: -3.755408733e-05 | J134: -0.001117545973 | K134: -0.02045172284 | L134: 0.005209965742 | M134: 0.09537746981 | N134: 0.0003466878216
A135: =IF('DF raw data'!M140="","",'DF raw data'!M140) -> -263.5 | B135: =IF('DF raw data'!N140="","",'DF raw data'!N140) -> -3.09425e-05 | C135: =IF('DF raw data'!O140="","",'DF raw data'!O140) -> 0.000139933 | D135: =IF('DF raw data'!P140="","",'DF raw data'!P140) -> -2.03764e-05 | F135: -3.110649525e-05 | G135: 0.0001406746449 | H135: -2.048439492e-05 | J135: -0.001133099221 | K135: -0.02101827245 | L135: 0.005280303065 | M135: 0.09801762134 | N135: 0.0003612705788
A136: =IF('DF raw data'!M141="","",'DF raw data'!M141) -> -263 | B136: =IF('DF raw data'!N141="","",'DF raw data'!N141) -> -3.14517e-05 | C136: =IF('DF raw data'!O141="","",'DF raw data'!O141) -> 0.000145822 | D136: =IF('DF raw data'!P141="","",'DF raw data'!P141) -> -2.57857e-05 | F136: -3.161839401e-05 | G136: 0.0001465948566 | H136: -2.592236421e-05 | J136: -0.001148908418 | K136: -0.02159272666 | L136: 0.005353600493 | M136: 0.1006944216 | N136: 0.0003762610932
A137: =IF('DF raw data'!M142="","",'DF raw data'!M142) -> -262.5 | B137: =IF('DF raw data'!N142="","",'DF raw data'!N142) -> -2.72237e-05 | C137: =IF('DF raw data'!O142="","",'DF raw data'!O142) -> 0.000143014 | D137: =IF('DF raw data'!P142="","",'DF raw data'!P142) -> -2.28632e-05 | F137: -2.736798561e-05 | G137: 0.0001437719742 | H137: -2.298437496e-05 | J137: -0.00116259241 | K137: -0.02217402286 | L137: 0.00542548648 | M137: 0.1034071648 | N137: 0.0003916548555
A138: =IF('DF raw data'!M143="","",'DF raw data'!M143) -> -262 | B138: =IF('DF raw data'!N143="","",'DF raw data'!N143) -> -3.73422e-05 | C138: =IF('DF raw data'!O143="","",'DF raw data'!O143) -> 0.000147125 | D138: =IF('DF raw data'!P143="","",'DF raw data'!P143) -> -3.39094e-05 | F138: -3.754011366e-05 | G138: 0.0001479047625 | H138: -3.408911982e-05 | J138: -0.001181362467 | K138: -0.02276470409 | L138: 0.005499438861 | M138: 0.1061568843 | N138: 0.000407474578
A139: =IF('DF raw data'!M144="","",'DF raw data'!M144) -> -261.5 | B139: =IF('DF raw data'!N144="","",'DF raw data'!N144) -> -3.32417e-05 | C139: =IF('DF raw data'!O144="","",'DF raw data'!O144) -> 0.000147414 | D139: =IF('DF raw data'!P144="","",'DF raw data'!P144) -> -3.25444e-05 | F139: -3.341788101e-05 | G139: 0.0001481952942 | H139: -3.271688532e-05 | J139: -0.001198071408 | K139: -0.0233637398 | L139: 0.005573536508 | M139: 0.1089436525 | N139: 0.0004237244202
A140: =IF('DF raw data'!M145="","",'DF raw data'!M145) -> -261 | B140: =IF('DF raw data'!N145="","",'DF raw data'!N145) -> -4.64452e-05 | C140: =IF('DF raw data'!O145="","",'DF raw data'!O145) -> 0.000135795 | D140: =IF('DF raw data'!P145="","",'DF raw data'!P145) -> -2.98123e-05 | F140: -4.669135956e-05 | G140: 0.0001365147135 | H140: -2.997030519e-05 | J140: -0.001221417087 | K140: -0.02397444834 | L140: 0.005641793865 | M140: 0.1117645494 | N140: 0.000440385269
A141: =IF('DF raw data'!M146="","",'DF raw data'!M146) -> -260.5 | B141: =IF('DF raw data'!N146="","",'DF raw data'!N146) -> -4.49104e-05 | C141: =IF('DF raw data'!O146="","",'DF raw data'!O146) -> 0.000145144 | D141: =IF('DF raw data'!P146="","",'DF raw data'!P146) -> -2.47225e-05 | F141: -4.514842512e-05 | G141: 0.0001459132632 | H141: -2.485352925e-05 | J141: -0.0012439913 | K141: -0.02459644399 | L141: 0.005714750497 | M141: 0.1146219247 | N141: 0.0004574882128
A142: =IF('DF raw data'!M147="","",'DF raw data'!M147) -> -260 | B142: =IF('DF raw data'!N147="","",'DF raw data'!N147) -> -3.45216e-05 | C142: =IF('DF raw data'!O147="","",'DF raw data'!O147) -> 0.000148467 | D142: =IF('DF raw data'!P147="","",'DF raw data'!P147) -> -3.5273e-05 | F142: -3.470456448e-05 | G142: 0.0001492538751 | H142: -3.54599469e-05 | J142: -0.001261343582 | K142: -0.02522711578 | L142: 0.005789377434 | M142: 0.1175166134 | N142: 0.0004750421522
A143: =IF('DF raw data'!M148="","",'DF raw data'!M148) -> -259.5 | B143: =IF('DF raw data'!N148="","",'DF raw data'!N148) -> -3.91468e-05 | C143: =IF('DF raw data'!O148="","",'DF raw data'!O148) -> 0.000134843 | D143: =IF('DF raw data'!P148="","",'DF raw data'!P148) -> -1.86077e-05 | F143: -3.935427804e-05 | G143: 0.0001355576679 | H143: -1.870632081e-05 | J143: -0.001281020721 | K143: -0.02586762614 | L143: 0.005857156268 | M143: 0.1204451915 | N143: 0.000493015799
A144: =IF('DF raw data'!M149="","",'DF raw data'!M149) -> -259 | B144: =IF('DF raw data'!N149="","",'DF raw data'!N149) -> -1.64515e-05 | C144: =IF('DF raw data'!O149="","",'DF raw data'!O149) -> 0.000137163 | D144: =IF('DF raw data'!P149="","",'DF raw data'!P149) -> -3.16871e-05 | F144: -1.653869295e-05 | G144: 0.0001378899639 | H144: -3.185504163e-05 | J144: -0.001289290068 | K144: -0.02651227118 | L144: 0.00592610125 | M144: 0.1234082422 | N144: 0.0005114062714
